Workbook

Sheet Dropdowns (hidden)
A1: Individual | B1: For-profit | C1: Alameda | I1: General | J1: General | K1: General | L1: General | M1: General | N1: General | O1: General | P1: General | Q1: General | R1: General Site & Units Dev Sources | S1: General | T1: General | U1: General | V1: General | W1: General | X1: Contacts | Y1: Contacts | Z1: Site & Units | AA1: Site & Units Rents | AB1: Rents | AC1: Rents | AD1: Dev Sources | AE1: Dev Sources | AF1: Dev Sources
A2: Joint Venture | B2: Nonprofit | C2: Alpine | H2: Drop Down Name | I2: Fed Min. Set | J2: TCAC Application Type: | K2: CalHFA Application Type | L2: Tenure Type | M2: TCAC Housing Type | N2: State Set-Aside | O2: TCAC Geographical Area | P2: Relocation Req'd? | Q2: County | R2: Yes/No | S2: Pool | T2: Development Type | U2: Occupancy | V2: TCAC_Type Housing | W2: Applicant Role | X2: FORM OF ENTITY | Y2: Partner or Member Role | Z2: Site Control | AA2: Unit Size | AB2: Income Limit | AC2: Beds | AD2: Required Payment | AE2: Repayment Terms Type | AF2: Interest Rate Type
A3: Partnership | C3: Amador | I3: 20% at 50% | J3: Preliminary Reservation | K3: Pre-Application | L3: Permanent | M3: Large Family | N3: Nonprofit Organization | O3: San Diego County | P3: No | Q3: Alameda | R3: Yes | S3: General | T3: New Construction | U3: None | V3: Dormitory | W3: Project Sponsor / Developer | X3: Yet to be formed L.P. | Y3: Managing General Partner of Owner | Z3: Fee Title | AA3: Beds | AB3: 0.15 | AC3: 0 Bdrm. | AD3: Interest Only | AE3: FAM | AF3: Fixed for Term
A4: Limited Partnership | C4: Butte | I4: 40% at 60% | J4: Final Reservation | K4: Application | L4: Transitional | M4: Single Room Occupancy | N4: Nonprofit Homeless Apportionment | O4: Orange County | P4: Temporary Only | Q4: Alpine | R4: No | S4: Rural | T4: Acquisition/Rehabilitation | U4: Elderly over 55 | V4: Congregate Care | W4: Bond Issuer | X4: Yet to be formed LLC | Y4: General Partner of Owner | Z4: Purchase Option | AA4: 0 Bdrm. | AB4: 0.2 | AC4: 1 Bdrm. | AD4: Deferred | AE4: AWC | AF4: Fixed with Reset
A5: Trust | C5: Calaveras | J5: Placed In Service | K5: Commitment | M5: At-Risk | N5: Rural | O5: Los Angeles County | P5: Temp. & Perm. | Q5: Amador | R5: N/A | S5: Mixed Income | T5: New Const. & Acq/Rehab | U5: Elderly over 62 | V5: Group Home | W5: Local Government HOME Applicant | X5: Limited Partnership | Y5: Administrative General Partner of Owner | Z5: Lease | AA5: 1 Bdrm. | AB5: 0.25 | AC5: 2 Bdrm. | AD5: None | AE5: RR | AF5: Fixed, then Variable
A6: Corporation | C6: Colusa | J6: Re-application, Credit awarded | K6: Closing | M6: Special Needs | N6: Rural/RHS 514 | O6: Inland Empire | Q6: Butte | T6: Rehabilitation Only | U6: Some Elderly - 55+ | V6: Assisted Living | W6: Ultimate Owner (LP or LLC) | X6: Limited Liability Company | Y6: Managing Member | Z6: Lease Option | AA6: 2 Bdrm. | AB6: 0.3 | AC6: 3 Bdrm. | AD6: Other | AE6: DEF | AF6: Variable
A7: Limited Liability Corporation | C7: Contra Costa | H7: TCAC | J7: Re-application, Credit never awarded | M7: Seniors | N7: Rural/RHS 515 | O7: Central | Q7: Calaveras | T7: Conversion | U7: Some Elderly - 62+ | V7: Housing Co-op | W7: Consultant | X7: Non-profit Corporation | Z7: DDA | AA7: 3 Bdrm. | AB7: 0.35 | AC7: 4 Bdrm. | AE7: Not Yet Known | AF7: Other
A8: Local Public Entity | C8: Del Norte | H8: Federal 9% | M8: Large Family/At-Risk Waiver | N8: Rural/RHS 538 | O8: Coastal California | Q8: Colusa | U8: Students Only | V8: SRO | W8: General Partner | X8: Non-profit Public Benefit Corporation | Z8: Eminent Domain | AA8: 4 Bdrm. | AB8: 0.4 | AC8: 5 Bdrm. | AE8: None
A9: Other legal entity | C9: El Dorado | H9: Federal 4% | N9: Small Development | O9: San Francisco County | Q9: Contra Costa | V9: Shared Housing | X9: Public Agency | Z9: Other -specify in Applicant Notes | AA9: 5 Bdrm. | AB9: 0.45 | AE9: IO
C10: Fresno | H10: No Tax Credits | N10: At-Risk | O10: San Mateo/Santa Clara | Q10: Del Norte | X10: For-profit Corporation | AB10: 0.5 | AE10: F2FL
C11: Glenn | N11: At-Risk and In Rural Census Tract | O11: North and East Bay | Q11: El Dorado | X11: Tribal Government | AB11: 0.55 | AE11: MHP
C12: Humboldt | N12: Special Needs | O12: Capital/Northern | Q12: Fresno | X12: Public Agency | AB12: 0.6 | AE12: Other
C13: Imperial | H13: Limited Liability Company | J13: single story | N13: SRO | O13: All Other | Q13: Glenn | X13: Joint Powers Authority | AB13: 0.7
C14: Inyo | H14: Limited Partnership | J14: town-house | Q14: Humboldt | X14: Individual(s) | AB14: 0.8
A15: none | C15: Kern | H15: Local Public Entity | I15: Limited Liability Company | J15: mid-rise buildings | Q15: Imperial | X15: Other | AB15: 0.9
A16: CalGreen Tier 2 | C16: Kings | H16: Non-profit Corporation | I16: Limited Partnership | J16: high-rise buildings | Q16: Inyo | AB16: 1
A17: LEED Gold | C17: Lake | I17: Non-profit Corporation | Q17: Kern | AB17: 1.1
A18: Green Point Rated Gold for New Construction | C18: Lassen | I18: Public Agency | Q18: Kings | AB18: 1.2
A19: Green Point Rated Whole Building for Rehab | C19: Los Angeles | Q19: Lake
A20: ENERGY STAR Certified Home | C20: Madera | J20: Rental Housing Development - New Construction | Q20: Lassen
C21: Marin | J21: Rental Housing Development - Rehabilitation | Q21: Los Angeles
C22: Mariposa | J22: Rental Housing Development - Acquisition and Rehabilitation | Q22: Madera
C23: Mendocino | Q23: Marin
A24: none | C24: Merced | Q24: Mariposa
A25: Energy Producer-at least one-third (or 33%) of the building energy is produced by on site renewable sources | C25: Modoc | Q25: Mendocino
A26: Zero Net Energy-produces as much energy as it consumes over the course of a year, when accounted for at the energy generation source | C26: Mono | Q26: Merced
C27: Monterey | Q27: Modoc
C28: Napa | Q28: Mono
C29: Nevada | Q29: Monterey
C30: Orange | Q30: Napa
C31: Placer | Q31: Nevada
C32: Plumas | Q32: Orange
C33: Riverside | Q33: Placer
C34: Sacramento | Q34: Plumas
C35: San Benito | Q35: Riverside
C36: San Bernardino | Q36: Sacramento
C37: San Diego | Q37: San Benito
C38: San Francisco | Q38: San Bernardino
C39: San Joaquin | Q39: San Diego
C40: San Luis Obispo | Q40: San Francisco
C41: San Mateo | Q41: San Joaquin
C42: Santa Barbara | Q42: San Luis Obispo
C43: Santa Clara | Q43: San Mateo
C44: Santa Cruz | Q44: Santa Barbara
C45: Shasta | Q45: Santa Clara
C46: Sierra | Q46: Santa Cruz
C47: Siskiyou | Q47: Shasta
C48: Solano | Q48: Sierra
C49: Sonoma | Q49: Siskiyou
C50: Stanislaus | Q50: Solano
C51: Sutter | Q51: Sonoma
C52: Tehama | Q52: Stanislaus
C53: Trinity | Q53: Sutter
C54: Tulare | Q54: Tehama
C55: Tuolumne | Q55: Trinity
C56: Ventura | Q56: Tulare
C57: Yolo | Q57: Tuolumne
C58: Yuba | Q58: Ventura
Q59: Yolo
Q60: Yuba
A64: <=1 Point for Full 5% point increments above 100% | C64: =#REF! -> 
A65: <=1 Point for Full 5% point increments above 50% | C65: =IF(AND(OR(#REF!="Not Applicable",#REF!="High Segregation & Poverty",#REF!= "Low Resource"),#REF!= 0,#REF!="No 9% Tax Credits"),#REF!,0) -> 
A66: <=2 Points for Full 5% point increments above 100% | C66: =IF(AND(OR(#REF!="High Resource",#REF!="Highest Resource"),#REF!= "No 9% Tax Credits"),#REF!,0) -> 
A67: <=1 Point for Full 5% point increments above 50% X (% of Restricted SH Units X 2 + % of Restricted Non SH Units) | C67: =IF(AND(OR(#REF!="Not Applicable",#REF!="High Segregation & Poverty",#REF!= "Low Resource"),#REF!>0,#REF!="No 9% Tax Credits"),#REF!,0) -> 
A70: Leadership in Energy & Environmental Design (LEED)
A71: GreenPoint Rated Existing Home Multifamily Program
A72: Passive House Institute US (PHIUS)
A73: Passive House
A74: Living Building Challenge
A75: National Green Building Standard ICC / ASRAE – 700 silver or higher rating
A76: 2011 Enterprise Green Communities
A77: WELL (when not combined with the programs listed)
A78: N/A

Sheet Serna RHD Coverpage
A5: Joe Serna, Jr. Farmworker Housing Grant Program
A7: Round 2 Notice of Funding Availability (February 25, 2021)
A9: Application - Rental Housing Development
A10: Rev. | B10: 2021-03-26
A26: State of California
A27: Governor Gavin Newsom
A29: Lourdes Castro Ramirez, Secretary
A30: Business, Consumer Services and Housing Agency
A32: Gustavo Velasquez, Director
A33: Department of Housing and Community Development
A36: 2020 West El Camino Avenue, Suite 150
A37: Sacramento, CA 95833
A38: Phone (916) 263-2771
A39: Email: serna@hcd.ca.gov
A40: http://www.hcd.ca.gov/grants-funding/active-funding/fwhg.shtml

Sheet OLD MAPPING (hidden)
M1: §7204. Project Eligibility Requirements. | Q1: §7205. Applicant Eligibility Requirements. | W1: Proposed Project Information | AG1: §7222. Environmental Clearances. | AP1: §7207. Site Control Requirements. | AS1: Relocation | AT1: Application # 1 | BM1: Application # 2 | CF1: Application # 3 | CY1: Application # 4 | DR1: Owner/Borrower Entity | EK1: Managing General Partner | FD1: AGP #1 | FW1: AGP #2
A2: Project_Name | B2: (a)Project Development_Type | C2: Project_County | D2: Project_Address | E2: Project_City | F2: Project_Zip | G2: Activity | H2: Tax Credits | I2: Total Rental Development Costs - New Construction | J2: New Construction Fund Requested | K2: Total Rental Development Costs - Rehab. | L2: Rehab. Fund Requested | M2: Applicant(s) certify that the housing development must contain assisted units to be occupied by agricultural households. | N2: Applicant(s) certify to the greatest extent possible, assisted units are to be occupied by lower-income agricultural households. | O2: Applicant(s) certify to the greatest extent possible, any non-assisted units are to be occupied by agricultural households. | P2: Applicant(s) acknowledges that assisted units in a rental housing development required to be made available to lower-income households pursuant to §7209 are to be made available at affordable rents as defined in Health and Safety Code Section 50053. | Q2: Applicant(s) certifies that it has the ability to timely proceed with the construction or rehabilitation of the development or program upon commitment of Program funds; and | R2: Applicant(s) certifies that it has sufficient experience and organizational capacity to carry out the activity for which Program funds are being requested. | S2: Applicant(s) certifies that it has successfully developed and owned a minimum of one rental housing project of similar type and size as the proposed project within the last 5 years; and/or | T2: Applicant(s) certifies that it has staff with demonstrated experience in developing and owning a minimum of one rental housing project. | U2: Applicant(s) certifies to have staff with demonstrated experience in managing a rental housing development occupied primarily by agricultural workers and their families. | V2: Applicant(s) acknowledges that the use of multiple Department funding sources on the same Assisted Unit(s) (subsidy stacking) is prohibited. (see NOFA pg. 3). | W2: Total Units | X2: Proposed # of Low Income Housing Tax Credit Units (60% AMI or less). | Y2: Multiple Parcels? | Z2: Tenure Type | AA2: Project Site Area (Acre) | AB2: Units per Acre | AC2: Relocation Required? | AD2: Commercial Space? | AE2: Low-Income Community | AF2: Project Description | AG2: For the RHD, Applicant(s) have completion and approval or adoption of all necessary environmental clearances NEPA & CEQA | AH2: NEPA Is Federal funding proposed that will trigger NEPA requirements? | AI2: If Yes, enter date of "Authority to Use Grant Funds". | AJ2: Describe special circumstances | AK2: CEQA Project approved "by-right"? | AL2: Is Project Categorically Exempt? | AM2: Negative Declaration Date: | AN2: Final EIR Date: | AO2: Describe special circumstances | AP2: Does applicant or Developer of Project have Site Control for the RHD Project? | AQ2: Form of Site Control | AR2: Most recent document execution date: | AS2: Does_Project_trigger_State_Relocation ROW 225 | AT2: Entity Name | AU2: Eligible Applicant | AV2: Organization Type | AW2: Adress | AX2: City | AY2: State | AZ2: Zip | BA2: Auth_Rep_Name | BB2: Title | BC2: Authorized_Rep_Email | BD2: Phone | BE2: Contact_Name | BF2: Title | BG2: Contact_Email | BH2: Contact_Phone | BI2: Address | BJ2: City | BK2: State | BL2: Zip | BM2: Entity Name | BN2: Eligible Applicant | BO2: Organization Type | BP2: Adress | BQ2: City | BR2: State | BS2: Zip | BT2: Auth_Rep_Name | BU2: Title | BV2: Authorized_Rep_Email | BW2: Phone | BX2: Contact_Name | BY2: Title | BZ2: Contact_Email | CA2: Contact_Phone | CB2: Address | CC2: City | CD2: State | CE2: Zip | CF2: Entity Name | CG2: Eligible Applicant | CH2: Organization Type | CI2: Adress | CJ2: City | CK2: State | CL2: Zip | CM2: Auth_Rep_Name | CN2: Title | CO2: Authorized_Rep_Email | CP2: Phone | CQ2: Contact_Name | CR2: Title | CS2: Contact_Email | CT2: Contact_Phone | CU2: Address | CV2: City | CW2: State | CX2: Zip | CY2: Entity Name | CZ2: Eligible Applicant | DA2: Organization Type | DB2: Adress | DC2: City | DD2: State | DE2: Zip | DF2: Auth_Rep_Name | DG2: Title | DH2: Authorized_Rep_Email | DI2: Phone | DJ2: Contact_Name | DK2: Title | DL2: Contact_Email | DM2: Contact_Phone | DN2: Address | DO2: City | DP2: State | DQ2: Zip | DR2: Entity Name | DS2: Eligible Applicant | DT2: Organization Type | DU2: Adress | DV2: City | DW2: State | DX2: Zip | DY2: Auth_Rep_Name | DZ2: Title | EA2: Authorized_Rep_Email | EB2: Phone | EC2: Contact_Name | ED2: Title | EE2: Contact_Email | EF2: Contact_Phone | EG2: Address | EH2: City | EI2: State | EJ2: Zip | EK2: (Managing_General_Partner)_Legal_Name | EL2: Eligible Applicant | EM2: Organization_Type | EN2: Address | EO2: City | EP2: State | EQ2: Zip | ER2: Auth_Rep_Name | ES2: Title | ET2: Authorized_Rep_Email | EU2: Phone | EV2: Contact_Name | EW2: Title | EX2: Contact_Email | EY2: Phone | EZ2: Address | FA2: City | FB2: Sate | FC2: Zip | FD2: (Administrative General Partner #1) Legal Name | FE2: Eligible Applicant | FF2: Organization_Type | FG2: Address | FH2: City | FI2: State | FJ2: Zip | FK2: Auth_Rep_Name | FL2: Title | FM2: Authorized_Rep._Email | FN2: Phone | FO2: Contact Name | FP2: Title | FQ2: Contact_Email | FR2: Phone | FS2: Address | FT2: City | FU2: Sate | FV2: Zip | FW2: (Administrative_General_Partner_#2)_Legal_Name | FX2: Eligible Applicant | FY2: Organization_Type | FZ2: Address | GA2: City | GB2: State | GC2: Zip | GD2: Auth_Rep_Name | GE2: Title | GF2: Authorized_Rep_Email | GG2: Phone | GH2: Contact Name | GI2: Title | GJ2: Contact_Email | GK2: Phone | GL2: Address | GM2: City | GN2: Sate | GO2: Zip | GP2: Property_Management_Agent_Legal_Name | GQ2: Contact_Name | GR2: Contact_Email | GS2: Phone | GT2: Address | GU2: City | GV2: State | GW2: Zip | GX2: Financial_Consultant_Legal_Name | GY2: Contact_Name | GZ2: Contact_Email | HA2: Phone | HB2: Address | HC2: City | HD2: State | HE2: Zip | HF2: Lead(primary)Service_ Provider_Legal_Name | HG2: Contact_Name | HH2: Contact_Email | HI2: Phone | HJ2: Address | HK2: City | HL2: State | HM2: Zip | HN2: Borrower_Legal_Counsel_Legal_Name | HO2: Contact_Name | HP2: Contact_Email | HQ2: Phone | HR2: Address | HS2: City | HT2: State | HU2: Zip | HV2: General_Contractor_Legal_Name | HW2: Contact_Name | HX2: Contact_Email | HY2: Phone | HZ2: Address | IA2: City | IB2: State | IC2: Zip | ID2: Architect_Legal_Name | IE2: Contact_Name | IF2: Contact_Email | IG2: Phone | IH2: Address | II2: City | IJ2: State | IK2: Zip | IL2: Development_Funding_Source_Legal_Name | IM2: Contact_Name | IN2: Contact_Email | IO2: Phone | IP2: Address | IQ2: City | IR2: State | IS2: Zip | IT2: Development_Funding_Source_Legal_Name | IU2: Contact_Name | IV2: Contact_Email | IW2: Phone | IX2: Address | IY2: City | IZ2: State | JA2: zip | JB2: Development_Funding_Source_Legal_Name | JC2: Contact_Name | JD2: Contact_Email | JE2: Phone | JF2: Address | JG2: City | JH2: State | JI2: zip | JJ2: Development_Funding_Source_Legal_Name | JK2: Contact_Name | JL2: Contact_Email | JM2: Phone | JN2: Address | JO2: City | JP2: State | JQ2: zip | JR2: Development_Funding_Source_Legal_Name | JS2: Contact_Name | JT2: Contact_Email | JU2: Phone | JV2: Address | JW2: City | JX2: State | JY2: Zip | JZ2: Development_Funding_Source_Legal_Name | KA2: Contact_Name | KB2: Contact_Email | KC2: Phone | KD2: Address | KE2: City | KF2: State | KG2: Zip | KH2: Rent/Operating_Subsidy_Source_Legal_Name | KI2: Contact_Name | KJ2: Contact_Email | KK2: Phone | KL2: Address | KM2: City | KN2: State | KO2: Zip | KP2: Enter_Name_Entity_Qualifying_for_Experience: | KQ2: Lead_Service_Provider_Name | KR2: Relationship_to_Sponsor | KS2: Staffing_ratios: Total_MHP_Assisted_Units | KT2: Total_FTE | KU2: #_of_MHP_Units_per_FTE_Staff | KV2: Total_MHP_Assisted_units_Chronically_Homeless | KW2: Total_Case_manager_FTE_reserved_SH_Chronically_Honeless_only | KX2: Number_of_MHP_Assisted_units_for_SH_Chronically_Homeless_per_case_manager_FTE | KY2: Total_MHP_Assisted_units_for_SNP_Homeless_with_Disability | KZ2: Total_case_manager_FTE_devoted_to_tenants_in_units_reserved_for_SNP_Homeless_with_Disability_only | LA2: Number_of_MHP_Assisted_units_for_SNP_Homeless_with_Disability_per_case_manager_FTE | LB2: Total_MHP_Assisted_units_for_those_SNP_Other_Homeless | LC2: Total_Case_manager_FTE_Devoted_to_Tenants_in_units_reserved_for_those_Exiting_Institutions_only | LD2: Number_of_MHP_Assisted_units_SNP_Other_Homeless _per_case_managers_FTE | LE2: Total_MHP_Assisted_units | LF2: Total_Supportive _Services_Expenses | LG2: Total_Supportive_Services_Expenses_per_Unit | LH2: Not_Required_for_this_Project(CEQA) | LI2: Not_Required_for_this_Project(NEPA) | LJ2: Final_date_of_Public_Comment_ Period(CEQA) | LK2: Final_Date_ of_Public_Comment_ Period(NEPA) | LL2: Approved _Date(CEQA) | LM2: Approved _Date(NEPA) | LN2: Not_Required_for_this_Project(Nessary_Discretionary_nondiscressionarry_public_land_udr_approval) | LO2: Not_Required_for_this_Project(design_Review) | LP2: Verified_Complete and date completed(Nessary_Discretionary_nondiscressionarry_public_land_udr_approval) | LQ2: Verified_Complete_and_date_completed(design_Review) | LR2: Is_ project_located_ in_an_area_shown_on_TCAC/HCD_Opportunity_Area_Map | LS2: If_Yes_ Select _or_ Enter_TCAC/HCD_Opportunity_Area_Map_Tract_ID_# | LT2: Opportunity_Area_Map_Category | LU2: Unit_info(A) | LV2: Unit_info(B) | LW2: Unit_info(C) | LX2: Unit_info(C) | LY2: Unit_info(D) | LZ2: Unit_info(D) | MA2: MHP_Assisted_Units_Lareg_Family(E) | MB2: MHP_Assisted_Units_Special_Need(F) | MC2: MHP_Assisted_Units_Senior_Housing(G) | MD2: MHP_Assisted_Units_Sup_Housing(H) | ME2: MHP_Assisted_Units_AT_High_Risk(I) | MF2: MHP_Assisted_Units_Other_Assisted(I) | MG2: Total_MHP_Assisted_Units | MH2: Other_Restricted_Units_Large_Family(E) | MI2: Other_Restricted_Units_Special_Needs(F) | MJ2: Other_Restricted_Units_Senior_Housing(G) | MK2: Other_Restricted_Units_Suup_Housing(H) | ML2: Other_Restricted_Units_At_High_Risk(I) | MM2: Other_Restricted_Units_Other_RU | MN2: Other_Restricted_Units_total_other_RU | MO2: Total_RU | MP2: Other_HCD_Assisted_Units | MQ2: #_of_Other_HCD_ Assisted_Units | MR2: Total_Project_Cost | MS2: Less:Net_Syndication_Proceeds/Investor_Equity | MT2: Less:Additional_Owner/General_Partner_Equity | MU2: Total_Estimated_Financing_Need | MV2: Less:Supportable_Conventional_or_Bond Debt_Financing | MW2: Less:"Soft"_Financing_and_Grants | MX2: Funding_Gap | MY2: 1.Total_Residential_Development_Cost | MZ2: 2a.Gross_sq._footage_ of_Restricted_units | NA2: 2b.Gross_square_footage_of_all_Residential_units | NB2: 3.Restricted_square footage_as_%_of_total | NC2: 4.MHP Residential_Dev_cost_on_%_of_Restricted_sq._footage | ND2: Total_Self_Score | NE2: Serving_Lowest_ Income_ Levels | NF2: Addressing_Most_Serious_Local_Housing_Need | NG2: Development_and_Ownership_Experience | NH2: Leverage_of_Other_Funds | NI2: Project_Readiness | NJ2: Adaptive Reuse /Infill/Proximity_to_Amenities | NK2: Tiebreaker_Score
A3: =Overview!#REF! ->  | B3: =Overview!#REF! ->  | C3: =Overview!#REF! ->  | D3: =Overview!#REF! ->  | E3: =Overview!#REF! ->  | F3: =Overview!#REF! ->  | G3: =Overview!#REF! ->  | H3: =Overview!#REF! ->  | I3: =Overview!#REF! ->  | J3: =Overview!#REF! ->  | K3: =Overview!#REF! ->  | L3: =Overview!#REF! ->  | M3: =Overview!AK13 -> 0 | N3: =Overview!AK14 -> 0 | O3: =Overview!AK15 -> 0 | P3: =Overview!AK16 -> 0 | Q3: =Overview!AK70 -> 0 | R3: =Overview!AK71 -> 0 | S3: =Overview!AK72 -> 0 | T3: =Overview!AK84 -> 0 | U3: =Overview!AK87 -> 0 | V3: =Overview!#REF! ->  | W3: =Overview!#REF! ->  | X3: =Overview!#REF! ->  | Y3: =Overview!#REF! ->  | Z3: =Overview!#REF! ->  | AA3: =Overview!#REF! ->  | AB3: =Overview!#REF! ->  | AC3: =Overview!#REF! ->  | AD3: =Overview!#REF! ->  | AE3: =Overview!#REF! ->  | AF3: =Overview!#REF! ->  | AG3: =Overview!#REF! ->  | AH3: =Overview!#REF! ->  | AI3: =Overview!#REF! ->  | AJ3: =Overview!#REF! ->  | AK3: =Overview!#REF! ->  | AL3: =Overview!#REF! ->  | AM3: =Overview!#REF! ->  | AN3: =Overview!#REF! ->  | AO3: =Overview!#REF! ->  | AP3: =Overview!#REF! ->  | AQ3: =Overview!#REF! ->  | AR3: =Overview!#REF! ->  | AT3: =Overview!#REF! ->  | AU3: =Overview!#REF! ->  | AV3: =Overview!#REF! ->  | AW3: =Overview!#REF! ->  | AX3: =Overview!#REF! ->  | AY3: =Overview!#REF! ->  | AZ3: =Overview!#REF! ->  | BA3: =Overview!#REF! ->  | BB3: =Overview!#REF! ->  | BC3: =Overview!#REF! ->  | BD3: =Overview!#REF! ->  | BE3: =Overview!#REF! ->  | BF3: =Overview!#REF! ->  | BG3: =Overview!#REF! ->  | BH3: =Overview!#REF! ->  | BI3: =Overview!#REF! ->  | BJ3: =Overview!#REF! ->  | BK3: =Overview!#REF! ->  | BL3: =Overview!#REF! ->  | BM3: =Overview!#REF! ->  | BN3: =Overview!#REF! ->  | BO3: =Overview!#REF! ->  | BP3: =Overview!#REF! ->  | BQ3: =Overview!#REF! ->  | BR3: =Overview!#REF! ->  | BS3: =Overview!#REF! ->  | BT3: =Overview!#REF! ->  | BU3: =Overview!#REF! ->  | BV3: =Overview!#REF! ->  | BW3: =Overview!#REF! ->  | BX3: =Overview!#REF! ->  | BY3: =Overview!#REF! ->  | BZ3: =Overview!#REF! ->  | CA3: =Overview!#REF! ->  | CB3: =Overview!#REF! ->  | CC3: =Overview!#REF! ->  | CD3: =Overview!#REF! ->  | CE3: =Overview!#REF! ->  | CF3: =Overview!#REF! ->  | CG3: =Overview!#REF! ->  | CH3: =Overview!#REF! ->  | CI3: =Overview!#REF! ->  | CJ3: =Overview!#REF! ->  | CK3: =Overview!#REF! ->  | CL3: =Overview!#REF! ->  | CM3: =Overview!#REF! ->  | CN3: =Overview!#REF! ->  | CO3: =Overview!#REF! ->  | CP3: =Overview!#REF! ->  | CQ3: =Overview!#REF! ->  | CR3: =Overview!#REF! ->  | CS3: =Overview!#REF! ->  | CT3: =Overview!#REF! ->  | CU3: =Overview!#REF! ->  | CV3: =Overview!#REF! ->  | CW3: =Overview!#REF! ->  | CX3: =Overview!#REF! ->  | CY3: =Overview!#REF! ->  | CZ3: =Overview!#REF! ->  | DA3: =Overview!#REF! ->  | DB3: =Overview!#REF! ->  | DC3: =Overview!#REF! ->  | DD3: =Overview!#REF! ->  | DE3: =Overview!#REF! ->  | DF3: =Overview!#REF! ->  | DG3: =Overview!#REF! ->  | DH3: =Overview!#REF! ->  | DI3: =Overview!#REF! ->  | DJ3: =Overview!#REF! ->  | DK3: =Overview!#REF! ->  | DL3: =Overview!#REF! ->  | DM3: =Overview!#REF! ->  | DN3: =Overview!#REF! ->  | DO3: =Overview!#REF! ->  | DP3: =Overview!#REF! ->  | DQ3: =Overview!#REF! ->  | DR3: =Overview!#REF! ->  | DS3: =Overview!#REF! ->  | DT3: =Overview!#REF! ->  | DU3: =Overview!#REF! ->  | DV3: =Overview!#REF! ->  | DW3: =Overview!#REF! ->  | DX3: =Overview!#REF! ->  | DY3: =Overview!#REF! ->  | DZ3: =Overview!#REF! ->  | EA3: =Overview!#REF! ->  | EB3: =Overview!#REF! ->  | EC3: =Overview!#REF! ->  | ED3: =Overview!#REF! ->  | EE3: =Overview!#REF! ->  | EF3: =Overview!#REF! ->  | EG3: =Overview!#REF! ->  | EH3: =Overview!#REF! ->  | EI3: =Overview!#REF! ->  | EJ3: =Overview!#REF! ->  | EK3: =Overview!#REF! ->  | EL3: =Overview!#REF! ->  | EM3: =Overview!#REF! ->  | EN3: =Overview!#REF! ->  | EO3: =Overview!#REF! ->  | EP3: =Overview!#REF! ->  | EQ3: =Overview!#REF! ->  | ER3: =Overview!#REF! ->  | ES3: =Overview!#REF! ->  | ET3: =Overview!#REF! ->  | EU3: =Overview!#REF! ->  | EV3: =Overview!#REF! ->  | EW3: =Overview!#REF! ->  | EX3: =Overview!#REF! ->  | EY3: =Overview!#REF! ->  | EZ3: =Overview!#REF! ->  | FA3: =Overview!#REF! ->  | FB3: =Overview!#REF! ->  | FC3: =Overview!#REF! ->  | FD3: =Overview!#REF! ->  | FE3: =Overview!#REF! ->  | FF3: =Overview!#REF! ->  | FG3: =Overview!#REF! ->  | FH3: =Overview!#REF! ->  | FI3: =Overview!#REF! ->  | FJ3: =Overview!#REF! ->  | FK3: =Overview!#REF! ->  | FL3: =Overview!#REF! ->  | FM3: =Overview!#REF! ->  | FN3: =Overview!#REF! ->  | FO3: =Overview!#REF! ->  | FP3: =Overview!#REF! ->  | FQ3: =Overview!#REF! ->  | FR3: =Overview!#REF! ->  | FS3: =Overview!#REF! ->  | FT3: =Overview!#REF! ->  | FU3: =Overview!#REF! ->  | FV3: =Overview!#REF! ->  | FW3: =Overview!#REF! ->  | FX3: =Overview!#REF! ->  | FY3: =Overview!#REF! ->  | FZ3: =Overview!#REF! ->  | GA3: =Overview!#REF! ->  | GB3: =Overview!#REF! ->  | GC3: =Overview!#REF! ->  | GD3: =Overview!#REF! ->  | GE3: =Overview!#REF! ->  | GF3: =Overview!#REF! ->  | GG3: =Overview!#REF! ->  | GH3: =Overview!#REF! ->  | GI3: =Overview!#REF! ->  | GJ3: =Overview!#REF! ->  | GK3: =Overview!#REF! ->  | GL3: =Overview!#REF! ->  | GM3: =Overview!#REF! ->  | GN3: =Overview!#REF! ->  | GO3: =Overview!#REF! ->  | GP3: =Overview!#REF! ->  | GQ3: =Overview!#REF! ->  | GR3: =Overview!#REF! ->  | GS3: =Overview!#REF! ->  | GT3: =Overview!#REF! ->  | GU3: =Overview!#REF! ->  | GV3: =Overview!#REF! ->  | GW3: =Overview!#REF! ->  | GX3: =Overview!#REF! ->  | GY3: =Overview!#REF! ->  | GZ3: =Overview!#REF! ->  | HA3: =Overview!#REF! ->  | HB3: =Overview!#REF! ->  | HC3: =Overview!#REF! ->  | HD3: =Overview!#REF! ->  | HE3: =Overview!#REF! ->  | HF3: =Overview!#REF! ->  | HG3: =Overview!#REF! ->  | HH3: =Overview!#REF! ->  | HI3: =Overview!#REF! ->  | HJ3: =Overview!#REF! ->  | HK3: =Overview!#REF! ->  | HL3: =Overview!#REF! ->  | HM3: =Overview!#REF! ->  | HN3: =Overview!#REF! ->  | HO3: =Overview!#REF! ->  | HP3: =Overview!#REF! ->  | HQ3: =Overview!#REF! ->  | HR3: =Overview!#REF! ->  | HS3: =Overview!#REF! ->  | HT3: =Overview!#REF! ->  | HU3: =Overview!#REF! ->  | HV3: =Overview!#REF! ->  | HW3: =Overview!#REF! ->  | HX3: =Overview!#REF! ->  | HY3: =Overview!#REF! ->  | HZ3: =Overview!#REF! ->  | IA3: =Overview!#REF! ->  | IB3: =Overview!#REF! ->  | IC3: =Overview!#REF! ->  | ID3: =Overview!#REF! ->  | IE3: =Overview!#REF! ->  | IF3: =Overview!#REF! ->  | IG3: =Overview!#REF! ->  | IH3: =Overview!#REF! ->  | II3: =Overview!#REF! ->  | IJ3: =Overview!#REF! ->  | IK3: =Overview!#REF! ->  | IL3: =Overview!#REF! ->  | IM3: =Overview!#REF! ->  | IN3: =Overview!#REF! ->  | IO3: =Overview!#REF! ->  | IP3: =Overview!#REF! ->  | IQ3: =Overview!#REF! ->  | IR3: =Overview!#REF! ->  | IS3: =Overview!#REF! ->  | IT3: =Overview!#REF! ->  | IU3: =Overview!#REF! ->  | IV3: =Overview!#REF! ->  | IW3: =Overview!#REF! ->  | IX3: =Overview!#REF! ->  | IY3: =Overview!#REF! ->  | IZ3: =Overview!#REF! ->  | JA3: =Overview!#REF! ->  | JB3: =Overview!#REF! ->  | JC3: =Overview!#REF! ->  | JD3: =Overview!#REF! ->  | JE3: =Overview!#REF! ->  | JF3: =Overview!#REF! ->  | JG3: =Overview!#REF! ->  | JH3: =Overview!#REF! ->  | JI3: =Overview!#REF! ->  | JJ3: =Overview!#REF! ->  | JK3: =Overview!#REF! ->  | JL3: =Overview!#REF! ->  | JM3: =Overview!#REF! ->  | JN3: =Overview!#REF! ->  | JO3: =Overview!#REF! ->  | JP3: =Overview!#REF! ->  | JQ3: =Overview!#REF! ->  | JR3: =Overview!#REF! ->  | JS3: =Overview!#REF! ->  | JT3: =Overview!#REF! ->  | JU3: =Overview!#REF! ->  | JV3: =Overview!#REF! ->  | JW3: =Overview!#REF! ->  | JX3: =Overview!#REF! ->  | JY3: =Overview!#REF! ->  | JZ3: =Overview!#REF! ->  | KA3: =Overview!#REF! ->  | KB3: =Overview!#REF! ->  | KC3: =Overview!#REF! ->  | KD3: =Overview!#REF! ->  | KE3: =Overview!#REF! ->  | KF3: =Overview!#REF! ->  | KG3: =Overview!#REF! ->  | KH3: =Overview!#REF! ->  | KI3: =Overview!#REF! ->  | KJ3: =Overview!#REF! ->  | KK3: =Overview!#REF! ->  | KL3: =Overview!#REF! ->  | KM3: =Overview!#REF! ->  | KN3: =Overview!#REF! ->  | KO3: =Overview!#REF! ->  | KP3: =#REF! ->  | KQ3: =#REF! ->  | KR3: =#REF! ->  | KS3: =#REF! ->  | KT3: =#REF! ->  | KU3: =#REF! ->  | KV3: =#REF! ->  | KW3: =#REF! ->  | KX3: =#REF! ->  | KY3: =#REF! ->  | KZ3: =#REF! ->  | LA3: =#REF! ->  | LB3: =#REF! ->  | LC3: =#REF! ->  | LD3: =#REF! ->  | LE3: =#REF! ->  | LF3: =#REF! ->  | LG3: =#REF! ->  | LH3: =#REF! ->  | LI3: =#REF! ->  | LJ3: =#REF! ->  | LK3: =#REF! ->  | LL3: =#REF! ->  | LM3: =#REF! ->  | LN3: =#REF! ->  | LO3: =#REF! ->  | LP3: =#REF! ->  | LQ3: =#REF! ->  | LR3: =#REF! ->  | LS3: =#REF! ->  | LT3: =#REF! ->  | LU3: =#REF! ->  | LV3: =#REF! ->  | LW3: =#REF! ->  | LX3: =#REF! ->  | LY3: =#REF! ->  | LZ3: =#REF! ->  | MA3: =#REF! ->  | MB3: =#REF! ->  | MC3: =#REF! ->  | MD3: =#REF! ->  | ME3: =#REF! ->  | MF3: =#REF! ->  | MG3: =#REF! ->  | MH3: =#REF! ->  | MI3: =#REF! ->  | MJ3: =#REF! ->  | MK3: =#REF! ->  | ML3: =#REF! ->  | MM3: =#REF! ->  | MN3: =#REF! ->  | MO3: =#REF! ->  | MP3: =#REF! ->  | MQ3: =#REF! ->  | MR3: =#REF! ->  | MS3: =#REF! ->  | MT3: =#REF! ->  | MU3: =#REF! ->  | MV3: =#REF! ->  | MW3: =#REF! ->  | MX3: =#REF! ->  | MY3: =#REF! ->  | MZ3: =#REF! ->  | NA3: =#REF! ->  | NB3: =#REF! ->  | NC3: =#REF! ->  | ND3: =#REF! ->  | NE3: =#REF! ->  | NF3: =#REF! ->  | NG3: =#REF! ->  | NH3: =#REF! ->  | NI3: =#REF! ->  | NJ3: =#REF! ->  | NK3: =#REF! -> 

Sheet NEW MAPPING (hidden)
BE1: §7205. Applicant Eligibility Requirements. | CF1: §7205. Applicant Eligibility Requirements. | DG1: §7205. Applicant Eligibility Requirements. | EH1: §7205. Applicant Eligibility Requirements. | FT1: §7217 Application Content Requirements | NZ1: (c)(6) - (c)(7) Detailed Cost Breakdown / Sources and Uses (see Universal Application) §7209.5(a) | SR1: (c)(11) Income Ranges of the Agricultural Households to be Served (Assisted units) | TH1: Verification of Environmental Review & Land Use Entitlements
AD2: §7204. Project Eligibility Requirements. | AH2: §7206(a) Project's Rental Housing Development activity: | AI2: Tax Credits (TC) and Appraisal | BA2: §7201(a)(1), UMR §8302 Restrictions on Demolition | BD2: NOFA - Pet Friendly Housing Act | BE2: Applicant #1 | BW2: UPLOADED TO HCD | CF2: Applicant #2 | CX2: UPLOADED TO HCD | DG2: Applicant #3 | DY2: UPLOADED TO HCD | EK2: Rental Housing Project Experience #1 | ET2: Rental Housing Project Experience #2 | FC2: Rental Housing Project Experience #3 | FS2: application requirements | FT2: (c)(1) Contact Information Owner/Borrower Entity | GL2: UPLOADED TO HCD | GU2: In the cell below, select an authorized party related to the Organization Type in cell AE4 | HN2: UPLOADED TO HCD | HW2: In the cell below, select an authorized party related to the Organization Type in cell AE4 | IP2: UPLOADED TO HCD | IY2: In the cell below, select an authorized party related to the Organization Type in cell AE4 | JR2: UPLOADED TO HCD | KA2: Property Management Agent | KI2: Financial Consultant | KQ2: Primary Service Provider | KY2: Borrower Legal Counsel | LG2: General Contractor | LO2: Architect | LW2: Rent/Operating Subsidy Source | ME2: Rent/Operating Subsidy Source | MQ2: Site Control- Uploaded to HCD | MR2: Site Criteria §7210(a)(1) | MW2: Scaled Map - Uploaded to HCD | MX2: Preliminary Title - Uploaded to HCD | MY2: (B) Provide a current preliminary title report (within six months of application submittal date). | NO2: (D) Environmental Clearances §7222 | NP2: Env Report 1 | NR2: Env Report 2 | NT2: Env Report 3 | NV2: Env Report 4 | NX2: Env Report 5 | NZ2: Development Funding Source | OH2: Development Funding Source | RN2: Development Funding Source | RV2: Development Funding Source | SD2: Development Funding Source | SL2: Funding Sources - Uploaded to HCD | SM2: Contract 1, 2, 3, etc. - Uploaded to HCD | SN2: (c)(9) Review and Approval by the Required State and Local Officials | SQ2: Market Analysis - Uploaded to HCD | SR2: Proposed annual household income range (Assisted units): | SU2: Monthly Houshld Cost | TB2: Financial statement - Uploaded to HCD | TE2: PNA - Uploaded to HCD | TF2: Rehab Scope - Uploaded to HCD | TG2: SRI - Uploaded to HCD | TH2: Auth to Use Grant Funds - Uploaded to HCD | TI2: Environmental - Uploaded to HCD
A3: Count | B3: Portal Sub | C3: HCD Contracts # | D3: CAPES # | E3: Received Date & Time | F3: Project_Name | G3: Project_County | H3: Total units | I3: Project_Address | J3: Project_City | K3: Project_Zip | L3: If Project is also known under another Project name(s) or was formerly known under another name(s), enter the name(s). | M3: Have you applied, do you plan to apply, or has the Project been awarded other HCD program funds? | N3: Have you applied, do you plan to apply, or has the Project been awarded other HCD program funds? | O3: Other HCD Program(s) Name(s): | P3: Funding Amount | Q3: Funding Status | R3: NOFA Date | S3: Award Date/Expected Award Date | T3: Other HCD Program(s) Name(s): | U3: Funding Amount | V3: Funding Status | W3: NOFA Date | X3: Award Date/Expected Award Date | Y3: Other HCD Program(s) Name(s): | Z3: Funding Amount | AA3: Funding Status | AB3: NOFA Date | AC3: Award Date/Expected Award Date | AD3: (a) Applicant(s) housing development will contain Assisted units to be occupied by agricultural households? | AE3: (b) Project's Assisted units will to the greatest extent possible, be occupied by lower-income agricultural households? | AF3: (c) Project's non-Assisted units will to the greatest extent possible, be occupied by agricultural households? | AG3: (d) Applicant(s) acknowledges that Assisted units in a rental housing development required to be made available to lower-income households pursuant to §7209 are to be made available at affordable rents as defined in Health and Safety Code §50053. | AI3: Type (Select One) | AJ3: Federal | AK3: Proposed Equity Investor Contribution ($) | AL3: Anticipated TC Factor | AM3: App. Rate | AN3: State | AO3: Proposed Equity Investor Contribution ($) | AP3: Anticipated TC Factor | AQ3: App. Rate | AR3: Timeframe for Applying for 4% TC | AS3: Proposed Month | AT3: Proposed Year | AU3: Timeframe for Applying for 9% TC | AV3: Proposed Round | AW3: Proposed Year | AX3: If already awarded, enter date of TCAC Reservation | AY3: Tax Credit Reservation- Uploaded to HCD | AZ3: Appraisal- Uploaded to HCD | BA3: New Construction Project: is demolition of existing residential required (only eligible if the number of bedrooms in the new Project is at least equal to the total number of bedrooms in the demolished structures)? | BB3: =Overview!V31 ->  | BC3: =Overview!AF31 ->  | BD3: Sponsor certifies that residents of the housing development will be authorized to own or otherwise maintain one or more common household pets pursuant to the Pet Friendly Housing Act of 2017 (California Health & Safety Code, Section 50466) | BE3: Entity Name | BF3: Applicant Type | BG3: Address | BH3: City | BI3: State | BJ3: Zip | BK3: Auth. Rep | BL3: Title | BM3: Email | BN3: Phone | BO3: Contact | BP3: Title | BQ3: Email | BR3: Phone | BS3: Address | BT3: City | BU3: State | BV3: Zip | BW3: App1 Cert & Legal | BX3: App1 Resolution | BY3: App1 OrgDoc1, OrgDoc2, etc… | BZ3: App1 OrgChart | CA3: App1 Signature Block | CB3: App1 Payee Data Record | CC3: App1 FISCAL TIN Form | CD3: App1 Cert of Good Standing | CE3: App1 Tax-Exempt Status | CF3: Entity Name | CG3: Applicant Type | CH3: Address | CI3: City | CJ3: State | CK3: Zip | CL3: Auth. Rep | CM3: Title | CN3: Email | CO3: Phone | CP3: Contact | CQ3: Title | CR3: Email | CS3: Phone | CT3: Address | CU3: City | CV3: State | CW3: Zip | CX3: App2 Cert & Legal | CY3: App2 Resolution | CZ3: App2 OrgDoc1, OrgDoc2, etc… | DA3: App2 OrgChart | DB3: App2 Signature Block | DC3: App2 Payee Data Record | DD3: App2 FISCAL TIN Form | DE3: App2 Cert of Good Standing | DF3: App2 Tax-Exempt Status | DG3: Entity Name | DH3: Applicant Type | DI3: Address | DJ3: City | DK3: State | DL3: Zip | DM3: Auth. Rep | DN3: Title | DO3: Email | DP3: Phone | DQ3: Contact | DR3: Title | DS3: Email | DT3: Phone | DU3: Address | DV3: City | DW3: State | DX3: Zip | DY3: App3 Cert & Legal | DZ3: App3 Resolution | EA3: App3 OrgDoc1, OrgDoc2, etc… | EB3: App3 OrgChart | EC3: App3 Signature Block | ED3: App3 Payee Data Record | EE3: App3 FISCAL TIN Form | EF3: App3 Cert of Good Standing | EG3: App3 Tax-Exempt Status | EH3: (1) It has the ability to timely proceed with the development upon commitment of Program funds? | EI3: (2) It has sufficient experience and organizational capacity to carry out the activity for which Program funds are being requested? | EJ3: (A) It has successfully developed and owned a minimum of one rental housing Project of similar type and size as the Project within the last 5 years of the NOFA date; or (B) below | EK3: Project Name | EL3: Relationship | EM3: Development Entity | EN3: Completeion Date | EO3: Project Tenure | EP3: Number of Units | EQ3: Units per Acre | ER3: Commercial (sq. ft.) | ES3: Brief Description (population served, etc.) | ET3: Project Name | EU3: Relationship | EV3: Development Entity | EW3: Completeion Date | EX3: Project Tenure | EY3: Number of Units | EZ3: Units per Acre | FA3: Commercial (sq. ft.) | FB3: Brief Description (population served, etc.) | FC3: Project Name | FD3: Relationship | FE3: Development Entity | FF3: Completeion Date | FG3: Project Tenure | FH3: Number of Units | FI3: Units per Acre | FJ3: Commercial (sq. ft.) | FK3: Brief Description (population served, etc.) | FL3: Past Exp 1, 2, and 3 | FM3: Staff Resume | FN3: Staff Qual Statement | FO3: Resume Managing | FP3: (B) Does Project have staff with demonstrated experience in developing and owning a minimum of one rental housing project? §7217(d)(7) | FQ3: (C) It has staff with demonstrated experience in managing a rental housing development occupied primarily by agricultural workers and their families. | FR3: Relocation Plan | FT3: Legal Name | FU3: Org Type | FV3: Adress | FW3: City | FX3: State | FY3: Zip | FZ3: Auth Rep Name | GA3: Title | GB3: Email | GC3: Phone | GD3: Contact_Name | GE3: Title | GF3: Contact_Email | GG3: Contact_Phone | GH3: Address | GI3: City | GJ3: State | GK3: Zip | GL3: Bwr Cert & Legal | GM3: Bwr Resolution | GN3: Bwr OrgDoc1, OrgDoc3, etc… | GO3: Bwr OrgChart | GP3: Bwr Signature Block | GQ3: Bwr Payee Data Record | GR3: Bwr FISCAL TIN Form | GS3: Bwr Cert of Good Standing | GT3: Bwr Tax-Exempt Status | GU3: Controlling party Type #1 | GV3: Legal Name | GW3: Organization Type | GX3: Adress | GY3: City | GZ3: State | HA3: Zip | HB3: Auth_Rep_Name | HC3: Title | HD3: Authorized_Rep_Email | HE3: Phone | HF3: Contact_Name | HG3: Title | HH3: Contact_Email | HI3: Contact_Phone | HJ3: Address | HK3: City | HL3: State | HM3: Zip | HN3: ='Application Requirements'!D25 -> Cert & Legal | HO3: ='Application Requirements'!D26 -> Resolution | HP3: ='Application Requirements'!D27 -> OrgDoc1, OrgDoc3, etc | HQ3: ='Application Requirements'!D28 -> OrgChart | HR3: ='Application Requirements'!D29 -> Signature Block | HS3: ='Application Requirements'!D30 -> Payee Data Record | HT3: ='Application Requirements'!D31 -> FISCAL TIN Form | HU3: ='Application Requirements'!D32 -> Cert of Good Standing | HV3: ='Application Requirements'!D33 -> Tax-Exempt Status | HW3: Controling party Type #2 | HX3: Legal Name | HY3: Organization Type | HZ3: Adress | IA3: City | IB3: State | IC3: Zip | ID3: Auth_Rep_Name | IE3: Title | IF3: Authorized_Rep_Email | IG3: Phone | IH3: Contact_Name | II3: Title | IJ3: Contact_Email | IK3: Contact_Phone | IL3: Address | IM3: City | IN3: State | IO3: Zip | IP3: ='Application Requirements'!D41 -> Cert & Legal | IQ3: ='Application Requirements'!D42 -> Resolution | IR3: ='Application Requirements'!D43 -> OrgDoc1, OrgDoc3, etc | IS3: ='Application Requirements'!D44 -> OrgChart | IT3: ='Application Requirements'!D45 -> Signature Block | IU3: ='Application Requirements'!D46 -> Payee Data Record | IV3: ='Application Requirements'!D47 -> FISCAL TIN Form | IW3: ='Application Requirements'!D48 -> Cert of Good Standing | IX3: ='Application Requirements'!D49 -> Tax-Exempt Status | IY3: Controling Party Type #3 | IZ3: Legal Name | JA3: Organization Type | JB3: Adress | JC3: City | JD3: State | JE3: Zip | JF3: Auth_Rep_Name | JG3: Title | JH3: Authorized_Rep_Email | JI3: Phone | JJ3: Contact_Name | JK3: Title | JL3: Contact_Email | JM3: Contact_Phone | JN3: Address | JO3: City | JP3: State | JQ3: Zip | JR3: ='Application Requirements'!D57 -> Cert & Legal | JS3: ='Application Requirements'!D58 -> Resolution | JT3: ='Application Requirements'!D59 -> OrgDoc1, OrgDoc3, etc | JU3: ='Application Requirements'!D60 -> OrgChart | JV3: ='Application Requirements'!D61 -> Signature Block | JW3: ='Application Requirements'!D62 -> Payee Data Record | JX3: ='Application Requirements'!D63 -> FISCAL TIN Form | JY3: ='Application Requirements'!D64 -> Cert of Good Standing | JZ3: ='Application Requirements'!D65 -> Tax-Exempt Status | KA3: Legal Name | KB3: Contact | KC3: Email | KD3: Phone | KE3: Address | KF3: City | KG3: State | KH3: Zip | KI3: Legal Name | KJ3: Contact | KK3: Email | KL3: Phone | KM3: Address | KN3: City | KO3: State | KP3: Zip | KQ3: Legal Name | KR3: Contact | KS3: Email | KT3: Phone | KU3: Address | KV3: City | KW3: State | KX3: Zip | KY3: Legal Name | KZ3: Contact | LA3: Email | LB3: Phone | LC3: Address | LD3: City | LE3: State | LF3: Zip | LG3: Legal Name | LH3: Contact | LI3: Email | LJ3: Phone | LK3: Address | LL3: City | LM3: State | LN3: Zip | LO3: Legal Name | LP3: Contact | LQ3: Email | LR3: Phone | LS3: Address | LT3: City | LU3: State | LV3: Zip | LW3: Legal Name | LX3: Contact | LY3: Email | LZ3: Phone | MA3: Address | MB3: City | MC3: State | MD3: Zip | ME3: Legal Name | MF3: Contact | MG3: Email | MH3: Phone | MI3: Address | MJ3: City | MK3: State | ML3: Zip | MM3: (A) Applicant has Site Control (§7207)? | MN3: If yes, enter Site Control type | MO3: Execution Date for Site Control | MP3: Are utilities, water and sewer services now available at Project site? | MR3: The Project is in or reasonably near a residential area with access to schools, shopping, medical services, social services and employment. | MS3: The Project does not unnecessarily confine Assisted units to an area in which there exists a high concentration of low income households. | MT3: The Project is not found to be inconsistent with housing element or housing assistance plan of public jurisdiction in which the Project is located. | MU3: The characteristics of the site, including its topography and distance to public utilities, do not result in unreasonable development or rehabilitation costs. | MV3: The site will not be in a 100 year flood plain unless sufficient measures have been taken, as determined by HCD, to ensure the security of the housing development in the event of flooding. | MY3: (C) Owner: | MZ3: Contact | NA3: Contact Email | NB3: Phone | NC3: Address | ND3: City | NE3: State | NF3: Zip | NG3: Proposed Owner: | NH3: Contact | NI3: Contact Email | NJ3: Phone | NK3: Address | NL3: City | NM3: State | NN3: Zip | NO3: Is the Project free from severe adverse environmental conditions that are economically infeasible to remove and cannot be mitigated? | NP3: ='Application Requirements'!L129 -> 0 | NQ3: Uploaded to HCD | NR3: ='Application Requirements'!L130 -> 0 | NS3: Uploaded to HCD | NT3: ='Application Requirements'!L131 -> 0 | NU3: Uploaded to HCD | NV3: ='Application Requirements'!L132 -> 0 | NW3: Uploaded to HCD | NX3: ='Application Requirements'!L133 -> 0 | NY3: Uploaded to HCD | NZ3: Legal Name | OA3: Contact | OB3: Email | OC3: Phone | OD3: Address | OE3: City | OF3: State | OG3: Zip | OH3: Legal Name | OI3: Contact | OJ3: Email | OK3: Phone | OL3: Address | OM3: City | ON3: State | OO3: Zip | OP3: Enter_Name_Entity_Qualifying_for_Experience: | OQ3: Lead_Service_Provider_Name | OR3: Relationship_to_Sponsor | OS3: Staffing_ratios: Total_MHP_Assisted_Units | OT3: Total_FTE | OU3: #_of_MHP_Units_per_FTE_Staff | OV3: Total_MHP_Assisted_units_Chronically_Homeless | OW3: Total_Case_manager_FTE_reserved_SH_Chronically_Honeless_only | OX3: Number_of_MHP_Assisted_units_for_SH_Chronically_Homeless_per_case_manager_FTE | OY3: Total_MHP_Assisted_units_for_SNP_Homeless_with_Disability | OZ3: Total_case_manager_FTE_devoted_to_tenants_in_units_reserved_for_SNP_Homeless_with_Disability_only | PA3: Number_of_MHP_Assisted_units_for_SNP_Homeless_with_Disability_per_case_manager_FTE | PB3: Total_MHP_Assisted_units_for_those_SNP_Other_Homeless | PC3: Total_Case_manager_FTE_Devoted_to_Tenants_in_units_reserved_for_those_Exiting_Institutions_only | PD3: Number_of_MHP_Assisted_units_SNP_Other_Homeless _per_case_managers_FTE | PE3: Total_MHP_Assisted_units | PF3: Total_Supportive _Services_Expenses | PG3: Total_Supportive_Services_Expenses_per_Unit | PH3: Not_Required_for_this_Project(CEQA) | PI3: Not_Required_for_this_Project(NEPA) | PJ3: Final_date_of_Public_Comment_ Period(CEQA) | PK3: Final_Date_ of_Public_Comment_ Period(NEPA) | PL3: Approved _Date(CEQA) | PM3: Approved _Date(NEPA) | PN3: Not_Required_for_this_Project(Nessary_Discretionary_nondiscressionarry_public_land_udr_approval) | PO3: Not_Required_for_this_Project(design_Review) | PP3: Verified_Complete and date completed(Nessary_Discretionary_nondiscressionarry_public_land_udr_approval) | PQ3: Verified_Complete_and_date_completed(design_Review) | PR3: Is_ project_located_ in_an_area_shown_on_TCAC/HCD_Opportunity_Area_Map | PS3: If_Yes_ Select _or_ Enter_TCAC/HCD_Opportunity_Area_Map_Tract_ID_# | PT3: Opportunity_Area_Map_Category | PU3: Unit_info(A) | PV3: Unit_info(B) | PW3: Unit_info(C) | PX3: Unit_info(C) | PY3: Unit_info(D) | PZ3: Unit_info(D) | QA3: MHP_Assisted_Units_Lareg_Family(E) | QB3: MHP_Assisted_Units_Special_Need(F) | QC3: MHP_Assisted_Units_Senior_Housing(G) | QD3: MHP_Assisted_Units_Sup_Housing(H) | QE3: MHP_Assisted_Units_AT_High_Risk(I) | QF3: MHP_Assisted_Units_Other_Assisted(I) | QG3: Total_MHP_Assisted_Units | QH3: Other_Restricted_Units_Large_Family(E) | QI3: Other_Restricted_Units_Special_Needs(F) | QJ3: Other_Restricted_Units_Senior_Housing(G) | QK3: Other_Restricted_Units_Suup_Housing(H) | QL3: Other_Restricted_Units_At_High_Risk(I) | QM3: Other_Restricted_Units_Other_RU | QN3: Other_Restricted_Units_total_other_RU | QO3: Total_RU | QP3: Other_HCD_Assisted_Units | QQ3: #_of_Other_HCD_ Assisted_Units | QR3: Total_Project_Cost | QS3: Less:Net_Syndication_Proceeds/Investor_Equity | QT3: Less:Additional_Owner/General_Partner_Equity | QU3: Total_Estimated_Financing_Need | QV3: Less:Supportable_Conventional_or_Bond Debt_Financing | QW3: Less:"Soft"_Financing_and_Grants | QX3: Funding_Gap | QY3: 1.Total_Residential_Development_Cost | QZ3: 2a.Gross_sq._footage_ of_Restricted_units | RA3: 2b.Gross_square_footage_of_all_Residential_units | RB3: 3.Restricted_square footage_as_%_of_total | RC3: 4.MHP Residential_Dev_cost_on_%_of_Restricted_sq._footage | RD3: Total_Self_Score | RE3: Serving_Lowest_ Income_ Levels | RF3: Addressing_Most_Serious_Local_Housing_Need | RG3: Development_and_Ownership_Experience | RH3: Leverage_of_Other_Funds | RI3: Project_Readiness | RJ3: Adaptive Reuse /Infill/Proximity_to_Amenities | RK3: Tiebreaker_Score | RN3: Legal Name | RO3: Contact | RP3: Email | RQ3: Phone | RR3: Address | RS3: City | RT3: State | RU3: Zip | RV3: Legal Name | RW3: Contact | RX3: Email | RY3: Phone | RZ3: Address | SA3: City | SB3: State | SC3: Zip | SD3: Legal Name | SE3: Contact | SF3: Email | SG3: Phone | SH3: Address | SI3: City | SJ3: State | SK3: Zip | SN3: Agency / Issuer | SO3: Land Use Approval Date | SP3: Approval Type | SR3: From | SS3: To | ST3: Percentage of household costs to minimum income: | SU3: Mortgages | SV3: Taxes/Ins. | SW3: Utilities | SX3: Fees | SY3: Maint/Repairs | SZ3: Monthly Total | TA3: Annual | TC3: Applicant certifies the Project will comply with the requirements of UMR §8305 "Tenant Selection" as applicable. | TD3: Applicant certifies the Project will comply with the requirements of UMR §8307 "Rental Agreement and Grievance Procedures" as applicable.
F4: =Overview!E3 -> 0 | G4: =Overview!AA3 -> 0 | H4: =Overview!AJ3 -> 0 | I4: =Overview!D4 -> 0 | J4: =Overview!Z4 -> 0 | K4: =Overview!AI4 -> 0 | L4: =Overview!R6 -> 0 | M4: =Overview!AK7 -> 0 | O4: =Overview!A9 -> 0 | P4: =Overview!O9 -> 0 | Q4: =Overview!T9 -> 0 | R4: =Overview!AB9 -> 0 | S4: =Overview!AE9 -> 0 | T4: =Overview!A10 -> 0 | U4: =Overview!O10 -> 0 | V4: =Overview!T10 -> 0 | W4: =Overview!AB10 -> 0 | X4: =Overview!AE10 -> 0 | Y4: =Overview!A11 -> 0 | Z4: =Overview!O11 -> 0 | AA4: =Overview!T11 -> 0 | AB4: =Overview!AB11 -> 0 | AC4: =Overview!AE11 -> 0 | AD4: =Overview!AK13 -> 0 | AE4: =Overview!AK14 -> 0 | AF4: =Overview!AK15 -> 0 | AG4: =Overview!AK16 -> 0 | AH4: =Overview!N17 -> 0 | AI4: =Overview!AB22 -> 0 | AJ4: =Overview!AF22 -> 0 | AK4: =Overview!AR22 -> 0 | AL4: =Overview!BA22 -> 0 | AM4: =Overview!BF22 -> 0 | AN4: =Overview!AF23 -> 0 | AO4: =Overview!AR23 -> 0 | AP4: =Overview!BA23 -> 0 | AQ4: =Overview!BF23 -> 0 | AS4: =Overview!AJ24 -> 0 | AT4: =Overview!AR24 -> 0 | AV4: =Overview!AJ25 -> 0 | AW4: =Overview!AR25 -> 0 | AX4: =Overview!AI26 -> 0 | AY4: =Overview!AK27 -> 0 | AZ4: =Overview!AK29 -> 0 | BA4: =Overview!T31 -> 0 | BB4: =Overview!AD31 -> 0 | BC4: =Overview!AK31 -> 0 | BD4: =Overview!AK33 -> 0 | BE4: =Overview!D40 -> 0 | BF4: =Overview!AA40 -> 0 | BG4: =Overview!C41 -> 0 | BH4: =Overview!W41 -> 0 | BI4: =Overview!AG41 -> 0 | BJ4: =Overview!AI41 -> 0 | BK4: =Overview!D42 -> 0 | BL4: =Overview!N42 -> 0 | BM4: =Overview!W42 -> 0 | BN4: =Overview!AH42 -> 0 | BO4: =Overview!D43 -> 0 | BP4: =Overview!N43 -> 0 | BQ4: =Overview!W43 -> 0 | BR4: =Overview!AH43 -> 0 | BS4: =Overview!C44 -> 0 | BT4: =Overview!W44 -> 0 | BU4: =Overview!AG44 -> 0 | BV4: =Overview!AI44 -> 0 | BW4: =Overview!AK45 -> 0 | BX4: =Overview!AK46 -> 0 | BY4: =Overview!AK47 -> 0 | BZ4: =Overview!AK48 -> 0 | CA4: =Overview!AK49 -> 0 | CB4: =Overview!AK50 -> 0 | CC4: =Overview!AK51 -> 0 | CD4: =Overview!AK52 -> 0 | CE4: =Overview!AK53 -> 0 | CF4: =Overview!D55 -> 0 | CG4: =Overview!AA55 -> 0 | CH4: =Overview!C56 -> 0 | CI4: =Overview!W56 -> 0 | CJ4: =Overview!AG56 -> 0 | CK4: =Overview!AI56 -> 0 | CL4: =Overview!D57 -> 0 | CM4: =Overview!N57 -> 0 | CN4: =Overview!W57 -> 0 | CO4: =Overview!AH57 -> 0 | CP4: =Overview!D58 -> 0 | CQ4: =Overview!N58 -> 0 | CR4: =Overview!W58 -> 0 | CS4: =Overview!AH58 -> 0 | CT4: =Overview!C59 -> 0 | CU4: =Overview!W59 -> 0 | CV4: =Overview!AG59 -> 0 | CW4: =Overview!AI59 -> 0 | CX4: =Overview!AK60 -> 0 | CY4: =Overview!AK61 -> 0 | CZ4: =Overview!AK62 -> 0 | DA4: =Overview!AK63 -> 0 | DB4: =Overview!AK64 -> 0 | DC4: =Overview!AK65 -> 0 | DD4: =Overview!AK66 -> 0 | DE4: =Overview!AK67 -> 0 | DF4: =Overview!AK68 -> 0 | DG4: =Overview!#REF! ->  | DH4: =Overview!#REF! ->  | DI4: =Overview!#REF! ->  | DJ4: =Overview!#REF! ->  | DK4: =Overview!#REF! ->  | DL4: =Overview!#REF! ->  | DM4: =Overview!#REF! ->  | DN4: =Overview!#REF! ->  | DO4: =Overview!#REF! ->  | DP4: =Overview!#REF! ->  | DQ4: =Overview!#REF! ->  | DR4: =Overview!#REF! ->  | DS4: =Overview!#REF! ->  | DT4: =Overview!#REF! ->  | DU4: =Overview!#REF! ->  | DV4: =Overview!#REF! ->  | DW4: =Overview!#REF! ->  | DX4: =Overview!#REF! ->  | DY4: =Overview!#REF! ->  | DZ4: =Overview!#REF! ->  | EA4: =Overview!#REF! ->  | EB4: =Overview!#REF! ->  | EC4: =Overview!#REF! ->  | ED4: =Overview!#REF! ->  | EE4: =Overview!#REF! ->  | EF4: =Overview!#REF! ->  | EG4: =Overview!#REF! ->  | EK4: =Overview!F74 -> 0 | EL4: =Overview!F75 -> 0 | EM4: =Overview!F76 -> 0 | EN4: =Overview!F77 -> 0 | EO4: =Overview!F78 -> 0 | EP4: =Overview!F79 -> 0 | EQ4: =Overview!F80 -> 0 | ER4: =Overview!F81 -> 0 | ES4: =Overview!F82 -> 0 | ET4: =Overview!Q74 -> 0 | EU4: =Overview!Q75 -> 0 | EV4: =Overview!Q76 -> 0 | EW4: =Overview!Q77 -> 0 | EX4: =Overview!Q78 -> 0 | EY4: =Overview!Q79 -> 0 | EZ4: =Overview!Q80 -> 0 | FA4: =Overview!F81 -> 0 | FB4: =Overview!Q82 -> 0 | FC4: =Overview!AB74 -> 0 | FD4: =Overview!AB75 -> 0 | FE4: =Overview!AB76 -> 0 | FF4: =Overview!AB77 -> 0 | FG4: =Overview!AB78 -> 0 | FH4: =Overview!AB79 -> 0 | FI4: =Overview!AB80 -> 0 | FJ4: =Overview!AB81 -> 0 | FK4: =Overview!AB82 -> 0 | FL4: =Overview!AK83 -> 0 | FM4: =Overview!AK85 -> 0 | FN4: =Overview!AK86 -> 0 | FO4: =Overview!AK88 -> 0 | FP4: =Overview!AK84 -> 0 | FQ4: =Overview!AK87 -> 0 | FR4: =Overview!AK96 -> 0 | FT4: ='Application Requirements'!D4 -> 0 | FU4: =unit -> 0 | FV4: ='Application Requirements'!C5 -> 0 | FW4: ='Application Requirements'!W5 -> 0 | FX4: ='Application Requirements'!AG5 -> 0 | FY4: ='Application Requirements'!AI5 -> 0 | FZ4: ='Application Requirements'!D6 -> 0 | GA4: ='Application Requirements'!N6 -> 0 | GB4: ='Application Requirements'!W6 -> 0 | GC4: ='Application Requirements'!AH6 -> 0 | GD4: ='Application Requirements'!D7 -> 0 | GE4: ='Application Requirements'!N7 -> 0 | GF4: ='Application Requirements'!W7 -> 0 | GG4: ='Application Requirements'!AH7 -> 0 | GH4: ='Application Requirements'!C8 -> 0 | GI4: ='Application Requirements'!W8 -> 0 | GJ4: ='Application Requirements'!AG8 -> 0 | GK4: ='Application Requirements'!AI8 -> 0 | GL4: ='Application Requirements'!AK9 -> 0 | GM4: ='Application Requirements'!AK10 -> 0 | GN4: ='Application Requirements'!AK11 -> 0 | GO4: ='Application Requirements'!AK12 -> 0 | GP4: ='Application Requirements'!AK13 -> 0 | GQ4: ='Application Requirements'!AK14 -> 0 | GR4: ='Application Requirements'!AK15 -> 0 | GS4: ='Application Requirements'!AK16 -> 0 | GT4: ='Application Requirements'!AK17 -> 0 | GU4: ='Application Requirements'!H19 -> 0 | GV4: ='Application Requirements'!D20 -> 0 | GW4: ='Application Requirements'!AE20 -> 0 | GX4: ='Application Requirements'!C21 -> 0 | GY4: ='Application Requirements'!W21 -> 0 | GZ4: ='Application Requirements'!AE21 -> 0 | HA4: ='Application Requirements'!AI21 -> 0 | HB4: ='Application Requirements'!E22 -> 0 | HC4: ='Application Requirements'!O22 -> 0 | HD4: ='Application Requirements'!W22 -> 0 | HE4: ='Application Requirements'!AH22 -> 0 | HF4: ='Application Requirements'!D23 -> 0 | HG4: ='Application Requirements'!N23 -> 0 | HH4: ='Application Requirements'!W23 -> 0 | HI4: ='Application Requirements'!AH23 -> 0 | HJ4: ='Application Requirements'!C24 -> 0 | HK4: ='Application Requirements'!W24 -> 0 | HL4: ='Application Requirements'!AE24 -> 0 | HM4: ='Application Requirements'!AI24 -> 0 | HN4: ='Application Requirements'!AK25 -> 0 | HO4: ='Application Requirements'!AK26 -> 0 | HP4: ='Application Requirements'!AK27 -> 0 | HQ4: ='Application Requirements'!AK28 -> 0 | HR4: ='Application Requirements'!AK29 -> 0 | HS4: ='Application Requirements'!AK30 -> 0 | HT4: ='Application Requirements'!AK31 -> 0 | HU4: ='Application Requirements'!AK32 -> 0 | HV4: ='Application Requirements'!AK33 -> 0 | HW4: ='Application Requirements'!H35 -> 0 | HX4: ='Application Requirements'!D36 -> 0 | HY4: ='Application Requirements'!AE36 -> 0 | HZ4: ='Application Requirements'!C37 -> 0 | IA4: ='Application Requirements'!W37 -> 0 | IB4: ='Application Requirements'!AE37 -> 0 | IC4: ='Application Requirements'!AI37 -> 0 | ID4: ='Application Requirements'!E38 -> 0 | IE4: ='Application Requirements'!O38 -> 0 | IF4: ='Application Requirements'!W38 -> 0 | IG4: ='Application Requirements'!AH38 -> 0 | IH4: ='Application Requirements'!D39 -> 0 | II4: ='Application Requirements'!N39 -> 0 | IJ4: ='Application Requirements'!W39 -> 0 | IK4: ='Application Requirements'!AH39 -> 0 | IL4: ='Application Requirements'!C40 -> 0 | IM4: ='Application Requirements'!W40 -> 0 | IN4: ='Application Requirements'!AE40 -> 0 | IO4: ='Application Requirements'!AI40 -> 0 | IP4: ='Application Requirements'!AK41 -> 0 | IQ4: ='Application Requirements'!AK42 -> 0 | IR4: ='Application Requirements'!AK43 -> 0 | IS4: ='Application Requirements'!AK44 -> 0 | IT4: ='Application Requirements'!AK45 -> 0 | IU4: ='Application Requirements'!AK46 -> 0 | IV4: ='Application Requirements'!AK47 -> 0 | IW4: ='Application Requirements'!AK48 -> 0 | IX4: ='Application Requirements'!AK49 -> 0 | IY4: ='Application Requirements'!H51 -> 0 | IZ4: ='Application Requirements'!D52 -> 0 | JA4: ='Application Requirements'!AE52 -> 0 | JB4: ='Application Requirements'!C53 -> 0 | JC4: ='Application Requirements'!W53 -> 0 | JD4: ='Application Requirements'!AE53 -> 0 | JE4: ='Application Requirements'!AI53 -> 0 | JF4: ='Application Requirements'!E54 -> 0 | JG4: ='Application Requirements'!O54 -> 0 | JH4: ='Application Requirements'!W54 -> 0 | JI4: ='Application Requirements'!AH54 -> 0 | JJ4: ='Application Requirements'!D55 -> 0 | JK4: ='Application Requirements'!N55 -> 0 | JL4: ='Application Requirements'!W55 -> 0 | JM4: ='Application Requirements'!AH55 -> 0 | JN4: ='Application Requirements'!C56 -> 0 | JO4: ='Application Requirements'!W56 -> 0 | JP4: ='Application Requirements'!AE56 -> 0 | JQ4: ='Application Requirements'!AI56 -> 0 | JR4: ='Application Requirements'!AK57 -> 0 | JS4: ='Application Requirements'!AK58 -> 0 | JT4: ='Application Requirements'!AK59 -> 0 | JU4: ='Application Requirements'!AK60 -> 0 | JV4: ='Application Requirements'!AK61 -> 0 | JW4: ='Application Requirements'!AK62 -> 0 | JX4: ='Application Requirements'!AK63 -> 0 | JY4: ='Application Requirements'!AK64 -> 0 | JZ4: ='Application Requirements'!AK65 -> 0 | KA4: ='Application Requirements'!D67 -> 0 | KB4: ='Application Requirements'!S67 -> 0 | KC4: ='Application Requirements'!AE67 -> 0 | KD4: ='Application Requirements'!C68 -> 0 | KE4: ='Application Requirements'!J68 -> 0 | KF4: ='Application Requirements'!W68 -> 0 | KG4: ='Application Requirements'!AG68 -> 0 | KH4: ='Application Requirements'!AI68 -> 0 | KI4: ='Application Requirements'!D70 -> 0 | KJ4: ='Application Requirements'!S70 -> 0 | KK4: ='Application Requirements'!AE70 -> 0 | KL4: ='Application Requirements'!C71 -> 0 | KM4: ='Application Requirements'!J71 -> 0 | KN4: ='Application Requirements'!W71 -> 0 | KO4: ='Application Requirements'!AG71 -> 0 | KP4: ='Application Requirements'!AI71 -> 0 | KQ4: ='Application Requirements'!D73 -> 0 | KR4: ='Application Requirements'!S73 -> 0 | KS4: ='Application Requirements'!AE73 -> 0 | KT4: ='Application Requirements'!C74 -> 0 | KU4: ='Application Requirements'!J74 -> 0 | KV4: ='Application Requirements'!W74 -> 0 | KW4: ='Application Requirements'!AG74 -> 0 | KX4: ='Application Requirements'!AI74 -> 0 | KY4: ='Application Requirements'!D76 -> 0 | KZ4: ='Application Requirements'!S76 -> 0 | LA4: ='Application Requirements'!AE76 -> 0 | LB4: ='Application Requirements'!C77 -> 0 | LC4: ='Application Requirements'!J77 -> 0 | LD4: ='Application Requirements'!W77 -> 0 | LE4: ='Application Requirements'!AG77 -> 0 | LF4: ='Application Requirements'!AI77 -> 0 | LG4: ='Application Requirements'!D79 -> 0 | LH4: ='Application Requirements'!S79 -> 0 | LI4: ='Application Requirements'!AE79 -> 0 | LJ4: ='Application Requirements'!C80 -> 0 | LK4: ='Application Requirements'!J80 -> 0 | LL4: ='Application Requirements'!W80 -> 0 | LM4: ='Application Requirements'!AG80 -> 0 | LN4: ='Application Requirements'!AI80 -> 0 | LO4: ='Application Requirements'!D82 -> 0 | LP4: ='Application Requirements'!S82 -> 0 | LQ4: ='Application Requirements'!AE82 -> 0 | LR4: ='Application Requirements'!C83 -> 0 | LS4: ='Application Requirements'!J83 -> 0 | LT4: ='Application Requirements'!W83 -> 0 | LU4: ='Application Requirements'!AG83 -> 0 | LV4: ='Application Requirements'!AI83 -> 0 | LW4: ='Application Requirements'!D85 -> 0 | LX4: ='Application Requirements'!S85 -> 0 | LY4: ='Application Requirements'!AE85 -> 0 | LZ4: ='Application Requirements'!C86 -> 0 | MA4: ='Application Requirements'!J86 -> 0 | MB4: ='Application Requirements'!W86 -> 0 | MC4: ='Application Requirements'!AG86 -> 0 | MD4: ='Application Requirements'!AI86 -> 0 | ME4: ='Application Requirements'!D88 -> 0 | MF4: ='Application Requirements'!S88 -> 0 | MG4: ='Application Requirements'!AE88 -> 0 | MH4: ='Application Requirements'!C89 -> 0 | MI4: ='Application Requirements'!J89 -> 0 | MJ4: ='Application Requirements'!W89 -> 0 | MK4: ='Application Requirements'!AG89 -> 0 | ML4: ='Application Requirements'!AI89 -> 0 | MM4: ='Application Requirements'!J95 -> 0 | MN4: ='Application Requirements'!Y95 -> 0 | MO4: ='Application Requirements'!AJ95 -> 0 | MP4: ='Application Requirements'!AK96 -> 0 | MQ4: ='Application Requirements'!AK98 -> 0 | MR4: ='Application Requirements'!AK100 -> 0 | MS4: ='Application Requirements'!AK103 -> 0 | MT4: ='Application Requirements'!AK105 -> 0 | MU4: ='Application Requirements'!AK107 -> 0 | MV4: ='Application Requirements'!AK109 -> 0 | MW4: ='Application Requirements'!AK102 -> 0 | MX4: ='Application Requirements'!AK121 -> 0 | MY4: ='Application Requirements'!E122 -> 0 | MZ4: ='Application Requirements'!S122 -> 0 | NA4: ='Application Requirements'!AE122 -> 0 | NB4: ='Application Requirements'!C123 -> 0 | NC4: ='Application Requirements'!J123 -> 0 | ND4: ='Application Requirements'!W123 -> 0 | NE4: ='Application Requirements'!AF123 -> 0 | NF4: ='Application Requirements'!AI123 -> 0 | NG4: ='Application Requirements'!E124 -> 0 | NH4: ='Application Requirements'!S124 -> 0 | NI4: ='Application Requirements'!AE124 -> 0 | NJ4: ='Application Requirements'!C125 -> 0 | NK4: ='Application Requirements'!J125 -> 0 | NL4: ='Application Requirements'!W125 -> 0 | NM4: ='Application Requirements'!AF125 -> 0 | NN4: ='Application Requirements'!AI125 -> 0 | NO4: ='Application Requirements'!AK127 -> 0 | NQ4: ='Application Requirements'!AK129 -> 0 | NS4: ='Application Requirements'!AK130 -> 0 | NU4: ='Application Requirements'!AK131 -> 0 | NW4: ='Application Requirements'!AK132 -> 0 | NY4: ='Application Requirements'!AK133 -> 0 | NZ4: ='Application Requirements'!D139 -> 0 | OA4: ='Application Requirements'!S139 -> 0 | OB4: ='Application Requirements'!AE139 -> 0 | OC4: ='Application Requirements'!C140 -> 0 | OD4: ='Application Requirements'!J140 -> 0 | OE4: ='Application Requirements'!W140 -> 0 | OF4: ='Application Requirements'!AG140 -> 0 | OG4: ='Application Requirements'!AI140 -> 0 | OH4: ='Application Requirements'!D142 -> 0 | OI4: ='Application Requirements'!S142 -> 0 | OJ4: ='Application Requirements'!AE142 -> 0 | OK4: ='Application Requirements'!C143 -> 0 | OL4: ='Application Requirements'!J143 -> 0 | OM4: ='Application Requirements'!W143 -> 0 | ON4: ='Application Requirements'!AG140 -> 0 | OO4: ='Application Requirements'!AI140 -> 0 | RN4: ='Application Requirements'!D145 -> 0 | RO4: ='Application Requirements'!S145 -> 0 | RP4: ='Application Requirements'!AE145 -> 0 | RQ4: ='Application Requirements'!C146 -> 0 | RR4: ='Application Requirements'!J146 -> 0 | RS4: ='Application Requirements'!W146 -> 0 | RT4: ='Application Requirements'!AG146 -> 0 | RU4: ='Application Requirements'!AI146 -> 0 | RV4: ='Application Requirements'!D148 -> 0 | RW4: ='Application Requirements'!S148 -> 0 | RX4: ='Application Requirements'!AE148 -> 0 | RY4: ='Application Requirements'!C149 -> 0 | RZ4: ='Application Requirements'!J149 -> 0 | SA4: ='Application Requirements'!W149 -> 0 | SB4: ='Application Requirements'!AG149 -> 0 | SC4: ='Application Requirements'!AI149 -> 0 | SD4: ='Application Requirements'!D151 -> 0 | SE4: ='Application Requirements'!S151 -> 0 | SF4: ='Application Requirements'!AE151 -> 0 | SG4: ='Application Requirements'!C152 -> 0 | SH4: ='Application Requirements'!J152 -> 0 | SI4: ='Application Requirements'!W152 -> 0 | SJ4: ='Application Requirements'!AG152 -> 0 | SK4: ='Application Requirements'!AI152 -> 0 | SL4: ='Application Requirements'!AK155 -> 0 | SM4: ='Application Requirements'!AK159 -> 0 | SN4: ='Application Requirements'!A163 -> 0 | SO4: ='Application Requirements'!L163 -> 0 | SP4: ='Application Requirements'!Q163 -> 0 | SQ4: ='Application Requirements'!AK171 -> 0 | SR4: ='Application Requirements'!Q173 -> 0 | SS4: ='Application Requirements'!U173 -> 0 | ST4: ='Application Requirements'!AJ173 -> 0 | SU4: ='Application Requirements'!I174 -> 0 | SV4: ='Application Requirements'!N174 -> 0 | SW4: ='Application Requirements'!R174 -> 0 | SX4: ='Application Requirements'!V174 -> 0 | SY4: ='Application Requirements'!AA174 -> 0 | SZ4: ='Application Requirements'!AF174 -> 0 | TA4: ='Application Requirements'!AJ174 -> 0 | TB4: ='Application Requirements'!AK176 -> 0 | TC4: ='Application Requirements'!AK184 -> 0 | TD4: ='Application Requirements'!AK185 -> 0 | TE4: ='Application Requirements'!AK187 -> 0 | TF4: ='Application Requirements'!AK188 -> 0 | TG4: ='Application Requirements'!AK189 -> 0 | TH4: ='Env & Land Use Verification'!AK2 -> 0 | TI4: ='Env & Land Use Verification'!AK3 -> 0

Sheet Overview
A1: Overview - Project and Applicant Information | AK1: =IF('Serna RHD Coverpage'!B10="","",'Serna RHD Coverpage'!B10) -> 2021-03-26
A2: §7204 Project Eligibility Requirements
A3: Project name | Y3: County | AE3: Total units
A4: Address | X4: City | AG4: Zip
A5: Census Tract #1 | H5: APN #1 | N5: Census Tract #2 | U5: APN #2 | AA5: Census Tract 3 | AG5: APN #3
A6: If Project is also known under another Project name(s) or was formerly known under another name(s), enter the name(s).
A7: Have you applied, do you plan to apply, or has the Project been awarded other HCD program funds?
A8: Other HCD Program(s) Name(s): | O8: Funding Amount | T8: Funding Status | AB8: NOFA Date | AE8: Award Date/Expected Award Date
A12: Is the Project site's Opportunity Category on TCAC/HCD Opportunity Area Map "High or Highest Resource"? | AB12: If Yes, which TCAC map is used?
A13: (a) Applicant(s) housing development will contain Assisted units to be occupied by agricultural households?
A14: (b) Project's Assisted units will to the greatest extent possible, be occupied by lower-income agricultural households?
A15: (c) Project's non-Assisted units will to the greatest extent possible, be occupied by agricultural households?
A16: (d) Applicant(s) acknowledges that Assisted units in a rental housing development required to be made available to lower-income households pursuant to §7209 are to be made available at affordable rents as defined in Health and Safety Code §50053.
A17: §7206(a) Project's Rental Housing Development activity:
A18: Describe the proposed Project
A20: Tax Credits (TC) and Appraisal
A21: Select appropriate entry for each item
A22: Project Tax Credit Type | I22: Federal | M22: Proposed equity investor contribution ($) | AA22: Anticipated tax credit factor | AI22: App rate
I23: State | M23: Proposed equity investor contribution ($) | AA23: Anticipated tax credit factor | AI23: App rate
A24: Timeframe for applying for 4%Tax Credits | J24: Proposed month | R24: Proposed year
A25: Timeframe for applying for 9%Tax Credits | J25: Proposed round | R25: Proposed year
A26: If already awarded, date of the Tax Credit Reservation
A27: File Name: | D27: Tax Credit Reservation | L27: If Project has already received a tax credit reservation, attach documentation. | AF27: Uploaded to HCD?
A28: Appraisal - If claiming a land value in the development budget, you must submit an appraisal conducted within the last two years to substantiate land value.
A29: File Name | D29: Appraisal | L29: Appraisal report conducted within the last two years. | AF29: Uploaded to HCD?
A30: §7201(a)(1), UMR §8302 Restrictions on Demolition
A31: New Construction Project: is demolition of existing residential required (only eligible if the number of bedrooms in the new Project is at least equal to the total number of bedrooms in the demolished structures)? | V31: =IF(T31="Yes","Number of bedrooms in the demolished structures?","") ->  | AF31: =IF(T31="Yes","Number of bedrooms in new Project?","") -> 
A32: NOFA - Pet Friendly Housing Act
A33: Sponsor certifies that residents of the housing development will be authorized to own or otherwise maintain one or more common household pets pursuant to the Pet Friendly Housing Act of 2017 (California Health & Safety Code, Section 50466)
A34: NOFA - Davis-Bacon Wage & State Prevailing Wage Requirements
A35: Sponsor certifies the Project will comply with Davis-Bacon wage requirements and State prevailing wage law, as set forth in Labor Code Sections 1771, 1720-1781 and require the payment of prevailing wages unless the Project meets one of the exceptions of Labor Code 1720 as determined by the Department of Industrial Relations (DIR). The DIR can be contacted via its website at: https://www.dir.ca.gov/oprl/DPreWageDetermination.htm.
A36: §7205 Applicant Eligibility Requirements (for-profit entities are not eligible Applicants)
A37: (a) To be eligible to apply for funding, the applicant shall be a local public entity, nonprofit corporation, limited liability company, limited partnership or duly constituted governing body of an Indian reservation or rancheria or a tribally designated housing entity.
A38: In the case of a nonprofit corporation, limited liability company, or limited partnership, the applicant shall demonstrate to HCD's satisfaction that the applicant is independent from any direction of, or control by, a for-profit entity and shall meet the requirements of CCR §7205.1 and §7205.2.
A39: Applicant #1
A40: Entity name | W40: Applicant type
A41: Address | V41: City | AE41: State | AH41: Zip
A42: Auth Rep | M42: Title | U42: Email | AF42: Phone
A43: Contact | M43: Title | U43: Email | AF43: Phone
A44: Address | V44: City | AE44: State | AH44: Zip
A45: File Name | D45: App1 Cert & Legal | L45: See Certifications & Legal worksheet. | AF45: Uploaded to HCD?
A46: File Name | D46: App1 Resolution | L46: Signature required; see Applicant Documents worksheet. | AF46: Uploaded to HCD?
A47: File Name | D47: App1 OrgDoc1, OrgDoc2, etc… | L47: See Applicant Documents worksheet. | AF47: Uploaded to HCD?
A48: File Name | D48: App1 OrgChart | L48: See Applicant Documents worksheet. | AF48: Uploaded to HCD?
A49: File Name | D49: App1 Signature Block | L49: See Applicant Documents worksheet. | AF49: Uploaded to HCD?
A50: File Name | D50: App1 Payee Data Record | L50: See Applicant Documents worksheet. | AF50: Uploaded to HCD?
A51: File Name | D51: App1 FISCAL TIN Form | L51: See Applicant Documents worksheet. | AF51: Uploaded to HCD?
A52: File Name | D52: App1 Cert of Good Standing | L52: Dated 30 days or less from the application due date. | AF52: Uploaded to HCD?
A53: File Name | D53: App1 Tax-Exempt Status | L53: Evidence of tax-exempt status from IRS and from Franchise Tax Board for Corporations. | AF53: Uploaded to HCD?
A54: Applicant #2
A55: Entity name | W55: Applicant type
A56: Address | V56: City | AE56: State | AH56: Zip
A57: Auth Rep | M57: Title | U57: Email | AF57: Phone
A58: Contact | M58: Title | U58: Email | AF58: Phone
A59: Address | V59: City | AE59: State | AH59: Zip
A60: File Name | D60: App2 Cert & Legal | L60: See Certifications & Legal worksheet. | AF60: Uploaded to HCD?
A61: File Name | D61: App2 Resolution | L61: Signature required; see Applicant Documents worksheet. | AF61: Uploaded to HCD?
A62: File Name | D62: App2 OrgDoc1, OrgDoc2, etc… | L62: See Applicant Documents worksheet. | AF62: Uploaded to HCD?
A63: File Name | D63: App2 OrgChart | L63: See Applicant Documents worksheet. | AF63: Uploaded to HCD?
A64: File Name | D64: App2 Signature Block | L64: See Applicant Documents worksheet. | AF64: Uploaded to HCD?
A65: File Name | D65: App2 Payee Data Record | L65: See Applicant Documents worksheet. | AF65: Uploaded to HCD?
A66: File Name | D66: App2 FISCAL TIN Form | L66: See Applicant Documents worksheet. | AF66: Uploaded to HCD?
A67: File Name | D67: App2 Cert of Good Standing | L67: Dated 30 days or less from the application due date. | AF67: Uploaded to HCD?
A68: File Name | D68: App2 Tax-Exempt Status | L68: Evidence of tax-exempt status from IRS and from Franchise Tax Board for Corporations. | AF68: Uploaded to HCD?
A69: (b) To be eligible to receive funding, the Applicant must demonstrate to HCD's satisfaction that:
A70: (1) It has the ability to timely proceed with the development upon commitment of Program funds?
A71: (2) It has sufficient experience and organizational capacity to carry out the activity for which Program funds are being requested?
A72: (A) It has successfully developed and owned a minimum of one rental housing Project of similar type and size as the Project within the last 5 years of the NOFA date; or (B) below
F73: Rental Housing Project Experience #1 | Q73: Rental Housing Project Experience #2 | AB73: Rental Housing Project Experience #3
A74: Project Name
A75: Relationship
A76: Development Entity
A77: Completion Date
A78: Project Tenure
A79: Number of units
A80: Units per Acre
A81: Commercial (sq. ft.)
A82: Brief Description (population served, etc.)
A83: File Name | D83: Past Exp 1, 2, and 3 | L83: Certificates of Occupancy for at least one or more completed Project. | AF83: Uploaded to HCD?
A84: (B) Does Project have staff with demonstrated experience in developing and owning a minimum of one rental housing project? §7217(d)(7)
A85: File Name | D85: Staff Resume | L85: Resume of current staff demonstrating development/ownership experience. | AF85: Uploaded to HCD?
A86: File Name | D86: Staff Qual Statement | L86: Statement of qualification of current staff demonstrating development/ownership exp. | AF86: Uploaded to HCD?
A87: (C) It has staff with demonstrated experience in managing a rental housing development occupied primarily by agricultural workers and their families.
A88: File Name | D88: Resume Managing | L88: Resume of current staff demonstrating management experience. | AF88: Uploaded to HCD?
A89: §7208 General Requirements
A90: (b) Describe the architectural and engineering requirements.
A92: (c) Applicant certifies the Project is consistent with Non-Discrimination, Affirmative Action and Fair Housing requirements including duties to affirmatively further fair housing (explain below).
A94: (d) Does the Project trigger State Relocation Assistance Law (CA Gov Code §7260-7277)? If Yes, provide a narrative discussion on the number of impacted households and provided relocation assistance including what actions have or will be taken to comply with State Relocation Assistance Law? If No, provide explanation supporting relocation is not required.
A96: File Name | D96: Relocation Plan | L96: Relocation Plan or documentation supporting no relocation. | AF96: Uploaded to HCD?
A97: §7224 Coordination with Federal Agencies
A98: (c) In the event a conflict exists between federal and state regulations, HCD shall yield to the federal regulations insofar as not prohibited by State law or the legitimate interests of the State. Describe below any federal/state regulatory conflicts that you are aware of.

Sheet Application Requirements
A1: §7217 Application Requirements | AK1: =IF('Serna RHD Coverpage'!B10="","",'Serna RHD Coverpage'!B10) -> 2021-03-26
A2: (c)(1) Contact Information
A3: Owner/Borrower Entity
A4: Legal name | AA4: Organization type
A5: Address | V5: City | AE5: State | AH5: Zip
A6: Auth. Rep | M6: Title | U6: Email | AF6: Phone
A7: Contact | M7: Title | U7: Email | AF7: Phone
A8: Address | V8: City | AE8: State | AH8: Zip
A9: File Name | D9: Bwr Cert & Legal | L9: See Certifications & Legal worksheet. | AF9: Uploaded to HCD?
A10: File Name | D10: Bwr Resolution | L10: Signature required; see Applicant Documents worksheet. | AF10: Uploaded to HCD?
A11: File Name | D11: Bwr OrgDoc1, OrgDoc3, etc… | L11: See Applicant Documents worksheet. | AF11: Uploaded to HCD?
A12: File Name | D12: Bwr OrgChart | L12: See Applicant Documents worksheet. | AF12: Uploaded to HCD?
A13: File Name | D13: Bwr Signature Block | L13: See Applicant Documents worksheet. | AF13: Uploaded to HCD?
A14: File Name | D14: Bwr Payee Data Record | L14: See Applicant Documents worksheet. | AF14: Uploaded to HCD?
A15: File Name | D15: Bwr FISCAL TIN Form | L15: See Applicant Documents worksheet. | AF15: Uploaded to HCD?
A16: File Name | D16: Bwr Cert of Good Standing | L16: Dated 30 days or less from the application due date. | AF16: Uploaded to HCD?
A17: File Name | D17: Bwr Tax-Exempt Status | L17: Evidence of tax-exempt status from IRS and from FTB for Corporations. | AF17: Uploaded to HCD?
A18: In the cell below, select an applicable controlling party to the organization type in cell AE4
A19: Controlling party #1 title
A20: Legal name | AA20: Organization type
A21: Address | V21: City | AC21: State | AH21: Zip
A22: Auth Rep | N22: Title | U22: Email | AF22: Phone
A23: Contact | M23: Title | U23: Email | AF23: Phone
A24: Address | V24: City | AC24: State | AH24: Zip
A25: File Name | D25: =CONCATENATE(H19," Cert & Legal") -> Cert & Legal | L25: See Certifications & Legal worksheet. | AF25: Uploaded to HCD?
A26: File Name | D26: =CONCATENATE(H19," Resolution") -> Resolution | L26: Signature required; see Applicant Documents worksheet. | AF26: Uploaded to HCD?
A27: File Name | D27: =CONCATENATE(H19," OrgDoc1, OrgDoc3, etc") -> OrgDoc1, OrgDoc3, etc | L27: See Applicant Documents worksheet. | AF27: Uploaded to HCD?
A28: File Name | D28: =CONCATENATE(H19," OrgChart") -> OrgChart | L28: See Applicant Documents worksheet. | AF28: Uploaded to HCD?
A29: File Name | D29: =CONCATENATE(H19," Signature Block") -> Signature Block | L29: See Applicant Documents worksheet. | AF29: Uploaded to HCD?
A30: File Name | D30: =CONCATENATE(H19," Payee Data Record") -> Payee Data Record | L30: See Applicant Documents worksheet. | AF30: Uploaded to HCD?
A31: File Name | D31: =CONCATENATE(H19," FISCAL TIN Form") -> FISCAL TIN Form | L31: See Applicant Documents worksheet. | AF31: Uploaded to HCD?
A32: File Name | D32: =CONCATENATE(H19," Cert of Good Standing") -> Cert of Good Standing | L32: Dated 30 days or less from the application due date. | AF32: Uploaded to HCD?
A33: File Name | D33: =CONCATENATE(H19," Tax-Exempt Status") -> Tax-Exempt Status | L33: Evidence of tax-exempt status from IRS and from FTB for Corporations. | AF33: Uploaded to HCD?
A34: In the cell below, select an applicable controlling party to the organization type in cell AE4
A35: Controlling party #2 title
A36: Legal name | AA36: Organization type
A37: Address | V37: City | AC37: State | AH37: Zip
A38: Auth Rep | N38: Title | U38: Email | AF38: Phone
A39: Contact | M39: Title | U39: Email | AF39: Phone
A40: Address | V40: City | AC40: State | AH40: Zip
A41: File Name | D41: =CONCATENATE(H35," Cert & Legal") -> Cert & Legal | L41: See Certifications & Legal worksheet. | AF41: Uploaded to HCD?
A42: File Name | D42: =CONCATENATE(H35," Resolution") -> Resolution | L42: Signature required; see Applicant Documents worksheet. | AF42: Uploaded to HCD?
A43: File Name | D43: =CONCATENATE(H35," OrgDoc1, OrgDoc3, etc") -> OrgDoc1, OrgDoc3, etc | L43: See Applicant Documents worksheet. | AF43: Uploaded to HCD?
A44: File Name | D44: =CONCATENATE(H35," OrgChart") -> OrgChart | L44: See Applicant Documents worksheet. | AF44: Uploaded to HCD?
A45: File Name | D45: =CONCATENATE(H35," Signature Block") -> Signature Block | L45: See Applicant Documents worksheet. | AF45: Uploaded to HCD?
A46: File Name | D46: =CONCATENATE(H35," Payee Data Record") -> Payee Data Record | L46: See Applicant Documents worksheet. | AF46: Uploaded to HCD?
A47: File Name | D47: =CONCATENATE(H35," FISCAL TIN Form") -> FISCAL TIN Form | L47: See Applicant Documents worksheet. | AF47: Uploaded to HCD?
A48: File Name | D48: =CONCATENATE(H35," Cert of Good Standing") -> Cert of Good Standing | L48: Dated 30 days or less from the application due date. | AF48: Uploaded to HCD?
A49: File Name | D49: =CONCATENATE(H35," Tax-Exempt Status") -> Tax-Exempt Status | L49: Evidence of tax-exempt status from IRS and from FTB for Corporations. | AF49: Uploaded to HCD?
A50: In the cell below, select an applicable controlling party to the organization type in cell AE4
A51: Controlling party #3 title
A52: Legal name | AA52: Organization type
A53: Address | V53: City | AC53: State | AH53: Zip
A54: Auth Rep | N54: Title | U54: Email | AF54: Phone
A55: Contact | M55: Title | U55: Email | AF55: Phone
A56: Address | V56: City | AC56: State | AH56: Zip
A57: File Name | D57: =CONCATENATE(H51," Cert & Legal") -> Cert & Legal | L57: See Certifications & Legal worksheet. | AF57: Uploaded to HCD?
A58: File Name | D58: =CONCATENATE(H51," Resolution") -> Resolution | L58: Signature required; see Applicant Documents worksheet. | AF58: Uploaded to HCD?
A59: File Name | D59: =CONCATENATE(H51," OrgDoc1, OrgDoc3, etc") -> OrgDoc1, OrgDoc3, etc | L59: See Applicant Documents worksheet. | AF59: Uploaded to HCD?
A60: File Name | D60: =CONCATENATE(H51," OrgChart") -> OrgChart | L60: See Applicant Documents worksheet. | AF60: Uploaded to HCD?
A61: File Name | D61: =CONCATENATE(H51," Signature Block") -> Signature Block | L61: See Applicant Documents worksheet. | AF61: Uploaded to HCD?
A62: File Name | D62: =CONCATENATE(H51," Payee Data Record") -> Payee Data Record | L62: See Applicant Documents worksheet. | AF62: Uploaded to HCD?
A63: File Name | D63: =CONCATENATE(H51," FISCAL TIN Form") -> FISCAL TIN Form | L63: See Applicant Documents worksheet. | AF63: Uploaded to HCD?
A64: File Name | D64: =CONCATENATE(H51," Cert of Good Standing") -> Cert of Good Standing | L64: Dated 30 days or less from the application due date. | AF64: Uploaded to HCD?
A65: File Name | D65: =CONCATENATE(H51," Tax-Exempt Status") -> Tax-Exempt Status | L65: Evidence of tax-exempt status from IRS and from FTB for Corporations. | AF65: Uploaded to HCD?
A66: Property Management Agent
A67: Legal name | P67: Contact | AB67: Email
A68: Phone | H68: Address | V68: City | AE68: State | AH68: Zip
A69: Financial Consultant
A70: Legal name | P70: Contact | AB70: Email
A71: Phone | H71: Address | V71: City | AE71: State | AH71: Zip
A72: Primary Service Provider
A73: Legal name | P73: Contact | AB73: Email
A74: Phone | H74: Address | V74: City | AE74: State | AH74: Zip
A75: Borrower Legal Counsel
A76: Legal name | P76: Contact | AB76: Email
A77: Phone | H77: Address | V77: City | AE77: State | AH77: Zip
A78: General Contractor
A79: Legal Name | P79: Contact | AB79: Email
A80: Phone | H80: Address | V80: City | AE80: State | AH80: Zip
A81: Architect
A82: Legal name | P82: Contact | AB82: Email
A83: Phone | H83: Address | V83: City | AE83: State | AH83: Zip
A84: Rent/Operating Subsidy Source
A85: Legal name | P85: Contact | AB85: Email
A86: Phone | H86: Address | V86: City | AE86: State | AH86: Zip
A87: Rent/Operating Subsidy Source
A88: Legal name | P88: Contact | AB88: Email
A89: Phone | H89: Address | V89: City | AE89: State | AH89: Zip
A90: (c)(3) Project Site Information
A91: Explain any specific development issues (demolition, hazards, historical, topography, multiple sites, etc.) at the site.
A93: Total Land Area in Acres: | J93: Commercial Square Feet | T93: If Project contains commercial, describe below:
A95: (A) Applicant has Site Control (§7207)? | L95: If yes, enter Site Control type and execution date:
A96: Are utilities, water and sewer services now available at Project site? If not, explain when and how you will obtain these services.
A98: File Name | D98: Site Control | L98: Documentation to demonstrate the form of Site Control indicated above. | AF98: Uploaded to HCD?
A99: Site Criteria §7210(a)(1) - answer and explain how the Project site or location complies with each of the following:
A100: The Project is in or reasonably near a residential area with access to schools, shopping, medical services, social services and employment.
A102: File Name | D102: Scaled Map | L102: Scaled distance map showing the location of schools, shopping, medical services, social services and employment in relation to the Project. | AF102: Uploaded to HCD?
A103: The Project does not unnecessarily confine Assisted units to an area in which there exists a high concentration of low income households.
A105: The Project is not found to be inconsistent with housing element or housing assistance plan of public jurisdiction in which the Project is located.
A107: The characteristics of the site, including its topography and distance to public utilities, do not result in unreasonable development or rehabilitation costs.
A109: The site will not be in a 100 year flood plain unless sufficient measures have been taken, as determined by HCD, to ensure the security of the housing development in the event of flooding.
A111: Design Criteria §7210(a)(2) - answer and explain how the Project design complies with each of the following:
A112: The design will provide safe, sanitary, and decent housing meeting the requirements of all applicable building and housing standards and codes.
A114: The design to the maximum extent feasible, is compatible with the existing community in which the housing development will be located.
A116: To the maximum extent feasible, the design of the improvements, the materials and the mechanical equipment to be used, and the siting of the structures shall be consistent with effective energy conservation design principles.
A118: The design provides for a cost effective use of grant funds in order to achieve affordable housing costs for agricultural households.
A120: (B) Provide a current preliminary title report (within six months of application submittal date).
A121: File Name | D121: Preliminary Title | L121: Preliminary title report within 6 months of application submittal. | AF121: Uploaded to HCD?
A122: (C) Owner: | Q122: Contact: | AB122: Contact Email
A123: Phone | H123: Address | V123: City | AD123: State | AH123: Zip
A124: Proposed owner: | Q124: Contact: | AB124: Contact Email
A125: Phone | H125: Address | V125: City | AD125: State | AH125: Zip
A126: (D) Environmental Clearances §7222
A127: Is the Project free from severe adverse environmental conditions that are economically infeasible to remove and cannot be mitigated?
A128: Attach all available Phase I and Phase II Environmental Site Assessments (ESA). Include any follow-up analysis, (e.g., asbestos or lead-based paint analysis), or information on mitigation completed. It is NOT necessary to include a copy of the Database Records Search section of the ESA. If no Phase I or Phase II has been done for new construction projects, HCD highly recommends submission of a Phase I and Phase II, if recommended by the Phase I, and any follow-up reports with your Application so that environmental remediation costs can be properly assessed and budgeted for. For acquisition/rehabilitation projects, submission of lead-based paint, mold, and asbestos reports is required. Failure to submit the necessary environmental reports with your Application may delay evaluation of your Application. Evidence of completion of all necessary environmental remediation will be required prior to award of funds.
A129: File Name | D129: Env Report 1 | AF129: Uploaded to HCD?
A130: File Name | D130: Env Report 2 | AF130: Uploaded to HCD?
A131: File Name | D131: Env Report 3 | AF131: Uploaded to HCD?
A132: File Name | D132: Env Report 4 | AF132: Uploaded to HCD?
A133: File Name | D133: Env Report 5 | AF133: Uploaded to HCD?
A134: (c)(4) Proposed Improvements
A135: Describe the proposed improvements both residential and commercial, and a timetable for construction (start, completion, occupancy).
A137: (c)(6) - (c)(7) Detailed Cost Breakdown / Sources and Uses (see Universal Application) §7209.5(a)
A138: Development Funding Source
A139: Legal Name | P139: Contact | AB139: Email
A140: Phone | H140: Address | V140: City | AE140: State | AH140: Zip
A141: Development Funding Source
A142: Legal Name | P142: Contact | AB142: Email
A143: Phone | H143: Address | V143: City | AE143: State | AH143: Zip
A144: Development Funding Source
A145: Legal Name | P145: Contact | AB145: Email
A146: Phone | H146: Address | V146: City | AE146: State | AH146: Zip
A147: Development Funding Source
A148: Legal Name | P148: Contact | AB148: Email
A149: Phone | H149: Address | V149: City | AE149: State | AH149: Zip
A150: Development Funding Source
A151: Legal Name | P151: Contact | AB151: Email
A152: Phone | H152: Address | V152: City | AE152: State | AH152: Zip
A153: Describe the terms and conditions of proposed funding, other than HCD and the current status of such funding. Attach letters of commitment or applications for funding.
A155: File Name | D155: Fund Source Name | L155: Commitment letters or funding applications for each funding source. | AF155: Uploaded to HCD?
A156: (c)(8) Method of Construction or Rehabilitation
A157: Describe the method of construction or rehabilitation and the architectural, engineering and legal services to be provided. Include copies of contracts for these services.
A159: File Name | D159: Contract 1, 2, 3, etc. | L159: Copies of all architectural, engineering and legal service contracts. | AF159: Uploaded to HCD?
A160: (c)(9) Review and Approval by the Required State and Local Officials
A161: If applicable, provide a listing and status of all discretionary local land use entitlements and permits, excluding design review, required to complete the Project that have been granted, submitted or to be applied for to the appropriate local agencies, or consistent with local planning documents.
A162: Agency / Issuer | L162: Land Use Approval Date | Q162: Approval Type | X162: Comments
A168: What is the current zoning of the development site? | W168: Is the development site currently zoned for the proposed use?
A169: (c)(10) Market Analysis
A170: Provide a market study or market analysis which supports the need for the proposed housing and includes the characteristics of the persons eligible for occupancy including income and estimates of the number of eligible occupants willing and able to occupy the housing. This market analysis shall specifically address the demand for agricultural worker housing and the ability of local agricultural workers to pay the rents or housing costs proposed in the application.
A171: File Name | D171: Market Analysis | L171: Completed market study or analysis (prepared within one year of the application date). | AF171: Uploaded to HCD?
A172: (c)(11) Income Ranges of the Agricultural Households to be Served (Assisted units)
A173: Proposed annual household income range (Assisted units): | O173: from: | T173: to: | X173: Percentage of household costs to minimum income: | AJ173: =IF(AJ174=0,0,AJ174/Q173) -> 0
A174: Monthly hshld costs: | F174: Mortgages | K174: Taxes/Ins. | P174: Utilities | T174: Fees | X174: Maint/Repairs | AC174: Monthly Total | AF174: =I174+N174+R174+V174+AA174 -> 0 | AH174: Annual | AJ174: =AF174*12 -> 0
A175: (c)(13) Current Financial Statements for Nonprofit Organization Applicants
A176: File Name | D176: Financial Statement | L176: Most recent financial statements; not required for public entity. | AF176: Uploaded to HCD?
A177: (c)(14) Related Facilities
A178: Describe any facilities planned for the Project.
A180: (d)(2) Provide a narrative describing proposed manner of managing the housing and information on the qualifications of the management staff:
A182: (d)(3) Provide a statement of policy regarding management and operation including proposed rules and regulations for the housing development:
A184: Applicant certifies the Project will comply with the requirements of UMR §8305 "Tenant Selection" as applicable.
A185: Applicant certifies the Project will comply with the requirements of UMR §8307 "Rental Agreement and Grievance Procedures" as applicable.
A186: (d)(5) For rehabilitation projects: provide a physical needs assessment, scope of work, and schedule containing current rent role, tenant incomes and household size:
A187: File Name | D187: PNA | L187: PNA by qualified independent third party contractor. | AF187: Uploaded to HCD?
A188: File Name | D188: Rehab Scope | L188: Scope of proposed rehabilitation work. | AF188: Uploaded to HCD?
A189: File Name | D189: SRI | L189: Schedule of Rental Income (for Rehab projects only) | AF189: Uploaded to HCD?
A190: (d)(7) Describe your experience in developing projects similar to the Project being applied for as reported in §7205(b)(2) above; and describe your relationship to the development process (e.g., principal, affiliate, general partner, managing member, etc.):

Sheet Applicant Documents
A1: Required Applicant Documentation | AK1: =IF('Serna RHD Coverpage'!B10="","",'Serna RHD Coverpage'!B10) -> 2021-03-26
A2: Certifications & Legal Disclosure
A3: A completed and signed Certification is required for each Joint Applicant. Each Joint Applicant must sign an individual Certification form. A completed and signed Legal Disclosure is also required for each Joint Applicant. The hard copy Certifications & Legal Disclosure should be submitted with the application as detailed in the NOFA.
A4: Resolutions
A5: Applicant may use their own Resolution format as long as it contains ALL of the authorizations as in the sample. The person attesting to the resolution signing cannot be the same person authorized to execute the documents in the name of the applicant. If more than one authorized signatory is identified, state whether both signatories are required or only one signatory is required to submit and execute Program docs. If the application is being signed by a designee of the authorized signatory, the applicant must also submit a designee letter or other proof of signing authority.
A6: A resolution is required of each Joint Applicant - both private and public entities. A sample resolution template is available on the Serna website.
A7: Organizational Documents
A8: Organizational documents are required for all Applicants, except where a joint applicant is a governmental entity. Governmental entities are not required to submit organizational documents with the application.
A9: Submit organizational documents supporting the Resolution submitted with the application.
A10: Corporation organizational documents
A11: Articles of Incorporation (Corp. Code §154, 200 and 202) as certified by the CA Secretary of State. Bylaws and any amendments thereto (Corp. Code §207(b), 211 and 212) Certificate of Amendment of Articles of Incorporation (Corp. Code §900-910 (general stock), §5810-5820 (public benefit and religious corporations), §7810-7820 (mutual benefit corporations), or §12500-12510 (general cooperative corporations)) as applicable. Restated Articles of Incorporation (Corp. Code §901, 906, 910 (general stock), §5811, 5815, 5819 (public benefit and religious corporations), §7811, 7815 and 7819 (mutual benefit corporations) and §12501, 12506 and 12510 (general cooperative corporations)) as applicable. Statement of Information (CA Secretary of State form SI-100 or SI-200) Shareholder Agreements (Corp. Code §186) if applicable. Certificate of Good Standing certified by Secretary of State.
A12: Any other CA Secretary of State filings applicable to revivals, conversions or mergers.
A13: Limited Liability Company organizational documents
A14: Articles of Organization (CA Secretary of State form LLC-1) Certificate of Amendment (CA Secretary of State form LLC-2) if applicable. Restated Articles of Organization (CA Secretary of State form LLC-10) if applicable. Certificate of Correction (CA Secretary of State form LLC-11) if applicable. Statement of Information (CA Secretary of State form LLC-12 or LLC-12NC) Operating Agreement (Corp. Code §17707.02(s) and 17701.10.) Certificate of Good Standing certified by Secretary of State.
A15: Any other CA Secretary of State filings applicable to revivals, conversions or mergers.
A16: Limited Partnership organizational documents
A17: Certificate of Limited Partnership (CA Secretary of State form LP-1) Amendment to Certificate of Limited Partnership (CA Secretary of State form LP-2) if applicable. Certificate of Correction (CA Secretary of State form LP-2) if applicable. Limited Partnership Agreement (CA Corp. Code §15901.02(x) and 15901.10) Certificate of Good Standing certified by Secretary of State.
A18: Any other CA Secretary of State filings applicable to revivals, conversions or mergers.
A19: Organizational Chart
A20: The Organizational chart must depict the organizational structure of the entities in relation to the applicant.
A21: Signature Block
A22: All Applicants must submit a Signature Block in a Microsoft Word Document that will be used in the HCD legal documents such as the Standard Agreement.
A23: Payee Data Record STD-204 or Taxpayer Identification Number (TIN)
A24: The TIN must be submitted by all governmental entity Applicants. All other Applicants must submit the STD-204 Payee Data Record. Forms available on Serna website.

Sheet Certification & Legal
A1: Certification & Legal Disclosure | AK1: =IF('Serna RHD Coverpage'!B10="","",'Serna RHD Coverpage'!B10) -> 2021-03-26
A2: On behalf of the entity identified in the signature block below, I certify that:
A3: 1. The information, statements and attachments included in this application are, to the best of my knowledge and belief, true and correct.
A4: 2. I possess the legal authority to submit this application on behalf of the entity identified in the signature block.
A5: 3. The following is a complete disclosure of all identities of interest - of all persons or entities, including affiliates, that will provide goods or services to the Project either (a) in one or more capacity or (b) that qualify as a "Related Party" to any person or entity that will provide goods or services to the Project. "Related Party" is defined in Section 10302 of the California Code of Regulations (CTCAC Regulations):
A7: 4. As of the date of application, the Project, or the real property on which the Project is proposed (Property) is not party to or the subject of any claim or action at the State or Federal appellate level.
A8: 5. I have disclosed and described below any claim or action undertaken which affects or potentially affects the feasibility of the Project.
A9: In addition, I acknowledge that all information in this application and attachments is public, and may be disclosed by the State.
A12: Printed Name | K12: Title of Signatory | U12: Signature | AJ12: Date
A13: Legal Disclosure
A14: For purposes of the following questions, and with the exceptions noted below, the term “applicant” shall include the applicant and joint applicant, and any subsidiary of the applicant or joint applicant if the subsidiary is involved in (for example, as a guarantor) or will be benefited by the application or the project.
A15: In addition to each of these entities themselves, the term “applicant” shall also include the direct and indirect holders of more than ten percent (10%) of the ownership interests in the entity, as well as the officers, directors, principals and senior executives of the entity if the entity is a corporation, the general and limited partners of the entity if the entity is a partnership, and the members or managers of the entity if the entity is a limited liability company. For projects using tax-exempt bonds, it shall also include the individual who will be executing the bond purchase agreement.
A16: The following questions must be responded to for each entity and person qualifying as an "applicant," or "joint applicant" as defined above.
A17: Explain all positive responses on a separate sheet and include with this questionnaire in the application.
A18: Exceptions:
A19: Public entity applicants without an ownership interest in the proposed project, including but not limited to cities, counties, and joint powers authorities with 100 or more members, are not required to respond to this questionnaire.
A20: Members of the boards of directors of non-profit corporations, including officers of the boards, are also not required to respond. However, chief executive officers (Executive Directors, Chief Executive Officers, Presidents or their equivalent) must respond, as must chief financial officers (Treasurers, Chief Financial Officers, or their equivalent).
A21: Civil Matters
A22: 1. Has the applicant filed a bankruptcy or receivership case or had a bankruptcy or receivership action commenced against it, defaulted on a loan or been foreclosed against in past ten years?
A23: 2. Is the applicant currently a party to, or been notified that it may become a party to, any civil litigation that may materially and adversely affect (a) the financial condition of the applicant’s business, or (b) the project that is the subject of the application?
A24: 3. Have there been any administrative or civil settlements, decisions, or judgments against the applicant within the past ten years that materially and adversely affected (a) the financial condition of the applicant’s business, or (b) the project that is the subject of the application?
A25: 4. Is the applicant currently subject to, or been notified that it may become subject to, any civil or administrative proceeding, examination, or investigation by a local, state or federal licensing or accreditation agency, a local, state or federal taxing authority, or a local, state or federal regulatory or enforcement agency?
A26: 5. In the past ten years, has the applicant been subject to any civil or administrative proceeding, examination, or investigation by a local, state or federal licensing or accreditation agency, a local, state or federal taxing authority, or a local, state or federal regulatory or enforcement agency that resulted in a settlement, decision, or judgment?
A27: Criminal Matters
A28: 6. Is the applicant currently a party to, or the subject of, or been notified that it may become a party to or the subject of, any criminal litigation, proceeding, charge, complaint, examination or investigation, of any kind, involving, or that could result in, felony charges against the applicant?
A29: 7. Is the applicant currently a party to, or the subject of, or been notified that it may become a party to or the subject of, any criminal litigation, proceeding, charge, complaint, examination or investigation, of any kind, involving, or that could result in, misdemeanor charges against the applicant for matters relating to the conduct of the applicant’s business?
A30: 8. Is the applicant currently a party to, or the subject of, or been notified that it may become a party to or the subject of, any criminal litigation, proceeding, charge, complaint, examination or investigation, of any kind, involving, or that could result in, criminal charges (whether felony or misdemeanor) against the applicant for any financial or fraud related crime?
A31: 9. Is the applicant currently a party to, or the subject of, or been notified that it may become a party to or the subject of, any criminal litigation, proceeding, charge, complaint, examination or investigation, of any kind, that could materially affect the financial condition of the applicant’s business?
A32: 10. Within the past ten years, has the applicant been convicted of any felony?
A33: 11. Within the past ten years, has the applicant been convicted of any misdemeanor related to the conduct of the applicant’s business?
A34: 12. Within the past ten years, has the applicant been convicted of any misdemeanor for any financial or fraud related crime?
A35: Please provide a letter of explanation if you responded "Yes" to any of the questions above.
A36: File Name: | D36: Cert & Legal Explanation | L36: Letter of explanation for any "Yes" answers or red shaded items above. | AF36: Uploaded to HCD?
A39: Printed Name | K39: Title of Signatory | U39: Signature | AJ39: Date

Sheet Narrative
A1: Proposed Project Description Instruction: Describe, at a minimum, the following topics. Narrative used for Project Summary Reports. | AK1: =IF('Serna RHD Coverpage'!B10="","",'Serna RHD Coverpage'!B10) -> 2021-03-26
A2: 1) Type of Development
A4: 2) Topography and Special Site Features
A6: 3) Surrounding Neighborhood
A8: 4) Proposed Tenant Population and Any Special Occupancy Restrictions (inc. those tied to land use approvals)
A10: 5) Any On-Site Services
A12: 6) Specific Issues (relocation, environmental, historical, etc.)
A14: 7) Any Demolition
A16: 8) Scope of Rehabilitation Work
A18: 9) Expected Start and Completion Date of Construction/Rehabilitation
A20: 10) Changes in Land Area during Development (e.g. subsidivision)
A22: 11) Rent Subsidies
A24: 12) Whether Prevailing Wages will be paid.

Sheet Env & Land Use Verification
A1: Verification of Environmental Review & Land Use Entitlements | AK1: =IF('Serna RHD Coverpage'!B10="","",'Serna RHD Coverpage'!B10) -> 2021-03-26
A2: File Name: | D2: Auth to Use Grant Funds | L2: For National Environmental Policy Act (NEPA) only, provide a copy of the HUD 7015.16 "Authority To Use Grant Funds" or clarify current status of the issuance of HUD form. | AF2: Uploaded to HCD?
A3: File Name: | D3: Environmental | L3: Provide a copy of all environmental clearances or Notice of Exemption. | AF3: Uploaded to HCD?
A4: To the Applicant: Submit this form to the Agency or Department of local government responsible for administration of the items listed. This form may be submitted to more than one Agency or Department, if necessary. Applicants need only submit one completed form per locality. If the NEPA Responsible Entity is not a local government, submit a copy of this form to the appropriate NEPA Responsible Entity. If an item is not required, include the reason why in the box provided.
A5: Applicant
A6: Entity Name | W6: Applicant Type
A7: Address | X7: City | AE7: State | AH7: Zip
A8: Housing Development
A9: Project Name | W9: Project County
A10: Address | X10: City | AE10: State | AH10: Zip
A11: Census Tract | K11: APN | T11: Census Tract | AD11: APN
A12: To the Local Jurisdiction or NEPA Responsible Entity: The Applicant will submit an application to the State of California, Department of Housing and Community Development, requesting funding for the project named above under the Joe Serna, Jr. Farmworker Housing Grant Program. Please answer the following questions:
A13: Environmental Review
A14: Is this Housing Development approved "by-right"?
A15: This form must be completed in its entirety regardless of the answer to the preceding question.
A16: All Environmental Clearances NEPA and California Environmental Quality Act (CEQA) necessary to begin construction: | K16: Not Required for this Project | O16: Has a Negative Declaration been issued? | S16: Final Date of Public Comment Period | X16: Date(s) EIR Certified / Notice of Determination filed | AC16: Date Appeal Period Ends | AH16: Have any appeals been filed?
A17: NEPA
A18: CEQA
A19: In the box below, explain why any items are not required and include documentation, if applicable:
A21: Signature Block for Environmental Review
A22: I certify that the information on this form is true and correct to the best of my knowledge.
A23: Date: | J23: Signature of party completing form:
A24: Printed name of party completing form:
A25: Title of party completing form: | T25: Agency and/or Dept. name:
A26: Agency/Dept. Address | V26: City | AE26: State | AH26: Zip
A27: Land Use Entitlements (indicate below the status of the following local approvals)
A28: All necessary and discretionary public land use approvals except building permits and other ministerial approvals are: | N28: Not Required for this Project | S28: Project is consistent with local planning documents & zoning ordinances | AA28: An Application has been submitted, accepted and deemed complete for processing. | AJ28: Date Approved
A29: General Plan Amendment:
A30: Site Plan Review:
A31: Zoning Approval:
A32: Conditional Use Permits:
A33: Density Bonus:
A34: Other Variances:
A35: Other Variances:
A36: Other Variances:
A37: Other Variances:
A38: Other Variances:
A39: In the box below, explain why any items are not required and include documentation, if applicable:
A41: Signature Block for Land Use Entitlements
A42: I certify that the information on this form is true and correct to the best of my knowledge.
A43: Date: | J43: Signature of party completing form:
A44: Printed name of party completing form:
A45: Title of party completing form: | T45: Agency and/or Dept. name:
A46: Agency/Dept. Address | V46: City | AC46: State | AH46: Zip

Sheet Max Loan & Unit Mix
A1: Maximum Loan Amount and Unit Mix | AI1: =IF('Serna RHD Coverpage'!B10="","",'Serna RHD Coverpage'!B10) -> 2021-03-26
A2: Tax Credits | F2: Development Type | N2: Is Project's TCAC Opportunity Category High or Highest Resource | AE2: County
A3: =IF(Overview!G22="","",Overview!G22) ->  | F3: =IF(Overview!N17="","",Overview!N17) ->  | N3: =IF(Overview!Z12="","",Overview!Z12) ->  | AE3: =IF(Overview!AA3="","",Overview!AA3) -> 
A4: §7209(a)(1) & (2) The number of Assisted Units that must be restricted to occupancy by agricultural households (Program funds vs. Total Costs) | L4: Total Program Funds - from below | O4: =AH38 -> 0 | R4: Total Project Costs - from below | U4: =AH28 -> 0 | X4: Program Funds vs. Total Costs | AA4: =IF(OR(O4=0,U4=0),0,O4/U4) -> 0 | AC4: Required Assisted Ag Units | AE4: =IF(AA4<0.25,(AA4/0.01)*(A25*0.02),IF(AA4>=0.25,(MAX(AA4,0.5)*A25),0)) -> 0 | AG4: Actual: | AI4: =I25 -> 0
A5: §7209(a)(3) 10% of Assisted units reserved for agricultural workers must be restricted to <=30% AMI - % restricted | X5: Actual: | Z5: =IFERROR(L25/I25,"") ->  | AB5: Avg Affordability of Assisted Units | AI5: =IF(G25>0,CC23/G25/100,0) -> 0 | AT5: Subsidy Program Name | AY5: Subsidy Program Name | BU5: Total Monthly Subsidy Revenue
A6: A | C6: B | E6: C | G6: D | I6: E | L6: F | O6: G | Q6: H | S6: I | U6: J | W6: K | Y6: L | AB6: M | AE6: N | AH6: O | AK6: =IF(AE3="","",AE3) -> 
A7: Total Units | C7: # of Bdmrs | E7: Income limit (% of AMI) | G7: Total Assisted Units | I7: Assisted Units Restricted to Agricultural Household | L7: Assisted Units Restricted to Agricultural Household 30% AMI or less | O7: Other Assisted Units 15% AMI to 80% AMI | Q7: Other Restrict. Units | S7: Units Assisted by another HCD Program | U7: Other HCD Program §MHP 7302(h) | W7: Unrestricted Units | Y7: Per Unit Loan Amount for 9% Tax Credit Project (Unit) | AB7: Loan Amount for non-9% Tax Credit Project, New Construction, High/Highest Resource (Unit) | AE7: Loan Amount for non-9% Tax Credit Project other Assisted | AH7: Total Project Per Unit Loan Amount | AK7: Restricted Monthly Rent | AM7: Unrestricted Monthly Rent | AP7: Proposed Monthly Rent | AR7: Monthly Utility Allowance | AT7: Monthly Rent Subsidy Amount | AW7: Subsidy Units | AY7: Monthly Rent Subsidy Amount | BB7: Subsidy Units | BD7: # of Baths | BF7: Square Feet | BH7: Building Type | BL7: Total Net Monthly Restricted Rent | BO7: Total Net Monthly Proposed Rent | BR7: Total Monthly Unrestricted Rent | BU7: =AT5 -> Subsidy Program Name | BX7: =AY5 -> Subsidy Program Name | CC7: Affordable Rental Units
L8: =IF(OR(E8="15% AMI",E8="20% AMI",E8="25% AMI",E8="30% AMI"),I8,0) -> 0 | O8: =IF(E8<>"",G8-L8,0) -> 0 | Q8: =IF(E8<>"",A8-G8,0) -> 0 | W8: =IF(AND(A8>0,E8=""),A8,0) -> 0 | Y8: =IF($A$3<>0.09,0,IFERROR(INDEX('Serna Loan Limits'!$A$3:$H$815,MATCH(CB8,'Serna Loan Limits'!$A$3:$A$815,0),MATCH(C8,'Serna Loan Limits'!$A$3:$H$3,0)),0)) -> 0 | AB8: =IF(AND($A$3<>0.09,A8<>"",$F$3="New Construction",$N$3="Yes"),IFERROR(INDEX('Serna Loan Limits'!$I$3:$N$815,MATCH(CB8,'Serna Loan Limits'!$A$3:$A$815,0),MATCH(C8,'Serna Loan Limits'!$I$3:$N$3,0)),0),0) -> 0 | AE8: =IF(AND($A$3<>0.09,A8<>"",OR($F$3<>"New Construction",$N$3<>"Yes")),IFERROR(INDEX('Serna Loan Limits'!$O$3:$T$815,MATCH(CB8,'Serna Loan Limits'!$A$3:$A$815,0),MATCH(C8,'Serna Loan Limits'!$O$3:$T$3,0)),0),0) -> 0 | AH8: =IF(G8-S8>0,((G8-S8)*(MAX(Y8,AB8,AE8))),0) -> 0 | AK8: =IFERROR(INDEX('Rent Limits'!$A$1:$O$1045,MATCH(CA8,'Rent Limits'!$A$1:$A$1045,0),MATCH(C8,'Rent Limits'!$A$1:$O$1,0)),0) -> 0 | BL8: =(AK8-AR8)*A8 -> 0 | BO8: =(AP8-AR8)*A8 -> 0 | BR8: =W8*AM8 -> 0 | BU8: =AT8*AW8 -> 0 | BX8: =AY8*BB8 -> 0 | CA8: =CONCATENATE($AE$3,E8) ->  | CB8: =CONCATENATE($AE$3,LEFT(E8,3)) -> 
L9: =IF(OR(E9="15% AMI",E9="20% AMI",E9="25% AMI",E9="30% AMI"),I9,0) -> 0 | O9: =IF(E9<>"",G9-L9,0) -> 0 | Q9: =IF(E9<>"",A9-G9,0) -> 0 | W9: =IF(AND(A9>0,E9=""),A9,0) -> 0 | Y9: =IF($A$3<>0.09,0,IFERROR(INDEX('Serna Loan Limits'!$A$3:$H$815,MATCH(CB9,'Serna Loan Limits'!$A$3:$A$815,0),MATCH(C9,'Serna Loan Limits'!$A$3:$H$3,0)),0)) -> 0 | AB9: =IF(AND($A$3<>0.09,A9<>"",$F$3="New Construction",$N$3="Yes"),IFERROR(INDEX('Serna Loan Limits'!$I$3:$N$815,MATCH(CB9,'Serna Loan Limits'!$A$3:$A$815,0),MATCH(C9,'Serna Loan Limits'!$I$3:$N$3,0)),0),0) -> 0 | AE9: =IF(AND($A$3<>0.09,A9<>"",OR($F$3<>"New Construction",$N$3<>"Yes")),IFERROR(INDEX('Serna Loan Limits'!$O$3:$T$815,MATCH(CB9,'Serna Loan Limits'!$A$3:$A$815,0),MATCH(C9,'Serna Loan Limits'!$O$3:$T$3,0)),0),0) -> 0 | AH9: 0 | AK9: =IFERROR(INDEX('Rent Limits'!$A$1:$O$1045,MATCH(CA9,'Rent Limits'!$A$1:$A$1045,0),MATCH(C9,'Rent Limits'!$A$1:$O$1,0)),0) -> 0 | BL9: 0 | BO9: 0 | BR9: =W9*AM9 -> 0 | BU9: 0 | BX9: 0 | CC9: =SUMIF($E$8:$F$23,"15% AMI",$G$8:$H$23)*15 -> 0 | CD9: 15% AMI
L10: 0 | O10: =IF(E10<>"",G10-L10,0) -> 0 | Q10: 0 | W10: 0 | Y10: =IF($A$3<>0.09,0,IFERROR(INDEX('Serna Loan Limits'!$A$3:$H$815,MATCH(CB10,'Serna Loan Limits'!$A$3:$A$815,0),MATCH(C10,'Serna Loan Limits'!$A$3:$H$3,0)),0)) -> 0 | AB10: =IF(AND($A$3<>0.09,A10<>"",$F$3="New Construction",$N$3="Yes"),IFERROR(INDEX('Serna Loan Limits'!$I$3:$N$815,MATCH(CB10,'Serna Loan Limits'!$A$3:$A$815,0),MATCH(C10,'Serna Loan Limits'!$I$3:$N$3,0)),0),0) -> 0 | AE10: =IF(AND($A$3<>0.09,A10<>"",OR($F$3<>"New Construction",$N$3<>"Yes")),IFERROR(INDEX('Serna Loan Limits'!$O$3:$T$815,MATCH(CB10,'Serna Loan Limits'!$A$3:$A$815,0),MATCH(C10,'Serna Loan Limits'!$O$3:$T$3,0)),0),0) -> 0 | AH10: 0 | AK10: =IFERROR(INDEX('Rent Limits'!$A$1:$O$1045,MATCH(CA10,'Rent Limits'!$A$1:$A$1045,0),MATCH(C10,'Rent Limits'!$A$1:$O$1,0)),0) -> 0 | BL10: 0 | BO10: 0 | BR10: 0 | BU10: 0 | BX10: 0 | CC10: =SUMIF($E$8:$F$23,"20% AMI",$G$8:$H$23)*20 -> 0 | CD10: 20% AMI
L11: 0 | O11: 0 | Q11: 0 | W11: 0 | Y11: =IF($A$3<>0.09,0,IFERROR(INDEX('Serna Loan Limits'!$A$3:$H$815,MATCH(CB11,'Serna Loan Limits'!$A$3:$A$815,0),MATCH(C11,'Serna Loan Limits'!$A$3:$H$3,0)),0)) -> 0 | AB11: =IF(AND($A$3<>0.09,A11<>"",$F$3="New Construction",$N$3="Yes"),IFERROR(INDEX('Serna Loan Limits'!$I$3:$N$815,MATCH(CB11,'Serna Loan Limits'!$A$3:$A$815,0),MATCH(C11,'Serna Loan Limits'!$I$3:$N$3,0)),0),0) -> 0 | AE11: =IF(AND($A$3<>0.09,A11<>"",OR($F$3<>"New Construction",$N$3<>"Yes")),IFERROR(INDEX('Serna Loan Limits'!$O$3:$T$815,MATCH(CB11,'Serna Loan Limits'!$A$3:$A$815,0),MATCH(C11,'Serna Loan Limits'!$O$3:$T$3,0)),0),0) -> 0 | AH11: 0 | AK11: =IFERROR(INDEX('Rent Limits'!$A$1:$O$1045,MATCH(CA11,'Rent Limits'!$A$1:$A$1045,0),MATCH(C11,'Rent Limits'!$A$1:$O$1,0)),0) -> 0 | BL11: 0 | BO11: 0 | BR11: 0 | BU11: 0 | BX11: 0 | CC11: =SUMIF($E$8:$F$23,"25% AMI",$G$8:$H$23)*25 -> 0 | CD11: 25% AMI
L12: 0 | O12: 0 | Q12: 0 | W12: 0 | Y12: =IF($A$3<>0.09,0,IFERROR(INDEX('Serna Loan Limits'!$A$3:$H$815,MATCH(CB12,'Serna Loan Limits'!$A$3:$A$815,0),MATCH(C12,'Serna Loan Limits'!$A$3:$H$3,0)),0)) -> 0 | AB12: =IF(AND($A$3<>0.09,A12<>"",$F$3="New Construction",$N$3="Yes"),IFERROR(INDEX('Serna Loan Limits'!$I$3:$N$815,MATCH(CB12,'Serna Loan Limits'!$A$3:$A$815,0),MATCH(C12,'Serna Loan Limits'!$I$3:$N$3,0)),0),0) -> 0 | AE12: =IF(AND($A$3<>0.09,A12<>"",OR($F$3<>"New Construction",$N$3<>"Yes")),IFERROR(INDEX('Serna Loan Limits'!$O$3:$T$815,MATCH(CB12,'Serna Loan Limits'!$A$3:$A$815,0),MATCH(C12,'Serna Loan Limits'!$O$3:$T$3,0)),0),0) -> 0 | AH12: 0 | AK12: =IFERROR(INDEX('Rent Limits'!$A$1:$O$1045,MATCH(CA12,'Rent Limits'!$A$1:$A$1045,0),MATCH(C12,'Rent Limits'!$A$1:$O$1,0)),0) -> 0 | BL12: 0 | BO12: 0 | BR12: 0 | BU12: 0 | BX12: 0 | CC12: =SUMIF($E$8:$F$23,"30% AMI",$G$8:$H$23)*30 -> 0 | CD12: 30% AMI
L13: 0 | O13: 0 | Q13: 0 | W13: 0 | Y13: =IF($A$3<>0.09,0,IFERROR(INDEX('Serna Loan Limits'!$A$3:$H$815,MATCH(CB13,'Serna Loan Limits'!$A$3:$A$815,0),MATCH(C13,'Serna Loan Limits'!$A$3:$H$3,0)),0)) -> 0 | AB13: =IF(AND($A$3<>0.09,A13<>"",$F$3="New Construction",$N$3="Yes"),IFERROR(INDEX('Serna Loan Limits'!$I$3:$N$815,MATCH(CB13,'Serna Loan Limits'!$A$3:$A$815,0),MATCH(C13,'Serna Loan Limits'!$I$3:$N$3,0)),0),0) -> 0 | AE13: =IF(AND($A$3<>0.09,A13<>"",OR($F$3<>"New Construction",$N$3<>"Yes")),IFERROR(INDEX('Serna Loan Limits'!$O$3:$T$815,MATCH(CB13,'Serna Loan Limits'!$A$3:$A$815,0),MATCH(C13,'Serna Loan Limits'!$O$3:$T$3,0)),0),0) -> 0 | AH13: 0 | AK13: =IFERROR(INDEX('Rent Limits'!$A$1:$O$1045,MATCH(CA13,'Rent Limits'!$A$1:$A$1045,0),MATCH(C13,'Rent Limits'!$A$1:$O$1,0)),0) -> 0 | BL13: 0 | BO13: 0 | BR13: 0 | BU13: 0 | BX13: 0 | CC13: =SUMIF($E$8:$F$23,"35% AMI",$G$8:$H$23)*35 -> 0 | CD13: 35% AMI
L14: 0 | O14: 0 | Q14: 0 | W14: 0 | Y14: =IF($A$3<>0.09,0,IFERROR(INDEX('Serna Loan Limits'!$A$3:$H$815,MATCH(CB14,'Serna Loan Limits'!$A$3:$A$815,0),MATCH(C14,'Serna Loan Limits'!$A$3:$H$3,0)),0)) -> 0 | AB14: =IF(AND($A$3<>0.09,A14<>"",$F$3="New Construction",$N$3="Yes"),IFERROR(INDEX('Serna Loan Limits'!$I$3:$N$815,MATCH(CB14,'Serna Loan Limits'!$A$3:$A$815,0),MATCH(C14,'Serna Loan Limits'!$I$3:$N$3,0)),0),0) -> 0 | AE14: =IF(AND($A$3<>0.09,A14<>"",OR($F$3<>"New Construction",$N$3<>"Yes")),IFERROR(INDEX('Serna Loan Limits'!$O$3:$T$815,MATCH(CB14,'Serna Loan Limits'!$A$3:$A$815,0),MATCH(C14,'Serna Loan Limits'!$O$3:$T$3,0)),0),0) -> 0 | AH14: 0 | AK14: =IFERROR(INDEX('Rent Limits'!$A$1:$O$1045,MATCH(CA14,'Rent Limits'!$A$1:$A$1045,0),MATCH(C14,'Rent Limits'!$A$1:$O$1,0)),0) -> 0 | BL14: 0 | BO14: 0 | BR14: 0 | BU14: 0 | BX14: 0 | CC14: =SUMIF($E$8:$F$23,"40% AMI",$G$8:$H$23)*40 -> 0 | CD14: 40% AMI
L15: 0 | O15: 0 | Q15: 0 | W15: 0 | Y15: =IF($A$3<>0.09,0,IFERROR(INDEX('Serna Loan Limits'!$A$3:$H$815,MATCH(CB15,'Serna Loan Limits'!$A$3:$A$815,0),MATCH(C15,'Serna Loan Limits'!$A$3:$H$3,0)),0)) -> 0 | AB15: =IF(AND($A$3<>0.09,A15<>"",$F$3="New Construction",$N$3="Yes"),IFERROR(INDEX('Serna Loan Limits'!$I$3:$N$815,MATCH(CB15,'Serna Loan Limits'!$A$3:$A$815,0),MATCH(C15,'Serna Loan Limits'!$I$3:$N$3,0)),0),0) -> 0 | AE15: =IF(AND($A$3<>0.09,A15<>"",OR($F$3<>"New Construction",$N$3<>"Yes")),IFERROR(INDEX('Serna Loan Limits'!$O$3:$T$815,MATCH(CB15,'Serna Loan Limits'!$A$3:$A$815,0),MATCH(C15,'Serna Loan Limits'!$O$3:$T$3,0)),0),0) -> 0 | AH15: 0 | AK15: =IFERROR(INDEX('Rent Limits'!$A$1:$O$1045,MATCH(CA15,'Rent Limits'!$A$1:$A$1045,0),MATCH(C15,'Rent Limits'!$A$1:$O$1,0)),0) -> 0 | BL15: 0 | BO15: 0 | BR15: 0 | BU15: 0 | BX15: 0 | CC15: =SUMIF($E$8:$F$23,"45% AMI",$G$8:$H$23)*45 -> 0 | CD15: 45% AMI
L16: 0 | O16: 0 | Q16: 0 | W16: 0 | Y16: =IF($A$3<>0.09,0,IFERROR(INDEX('Serna Loan Limits'!$A$3:$H$815,MATCH(CB16,'Serna Loan Limits'!$A$3:$A$815,0),MATCH(C16,'Serna Loan Limits'!$A$3:$H$3,0)),0)) -> 0 | AB16: =IF(AND($A$3<>0.09,A16<>"",$F$3="New Construction",$N$3="Yes"),IFERROR(INDEX('Serna Loan Limits'!$I$3:$N$815,MATCH(CB16,'Serna Loan Limits'!$A$3:$A$815,0),MATCH(C16,'Serna Loan Limits'!$I$3:$N$3,0)),0),0) -> 0 | AE16: =IF(AND($A$3<>0.09,A16<>"",OR($F$3<>"New Construction",$N$3<>"Yes")),IFERROR(INDEX('Serna Loan Limits'!$O$3:$T$815,MATCH(CB16,'Serna Loan Limits'!$A$3:$A$815,0),MATCH(C16,'Serna Loan Limits'!$O$3:$T$3,0)),0),0) -> 0 | AH16: 0 | AK16: =IFERROR(INDEX('Rent Limits'!$A$1:$O$1045,MATCH(CA16,'Rent Limits'!$A$1:$A$1045,0),MATCH(C16,'Rent Limits'!$A$1:$O$1,0)),0) -> 0 | BL16: 0 | BO16: 0 | BR16: 0 | BU16: 0 | BX16: 0 | CC16: =SUMIF($E$8:$F$23,"50% AMI",$G$8:$H$23)*50 -> 0 | CD16: 50% AMI
L17: 0 | O17: 0 | Q17: 0 | W17: 0 | Y17: =IF($A$3<>0.09,0,IFERROR(INDEX('Serna Loan Limits'!$A$3:$H$815,MATCH(CB17,'Serna Loan Limits'!$A$3:$A$815,0),MATCH(C17,'Serna Loan Limits'!$A$3:$H$3,0)),0)) -> 0 | AB17: =IF(AND($A$3<>0.09,A17<>"",$F$3="New Construction",$N$3="Yes"),IFERROR(INDEX('Serna Loan Limits'!$I$3:$N$815,MATCH(CB17,'Serna Loan Limits'!$A$3:$A$815,0),MATCH(C17,'Serna Loan Limits'!$I$3:$N$3,0)),0),0) -> 0 | AE17: =IF(AND($A$3<>0.09,A17<>"",OR($F$3<>"New Construction",$N$3<>"Yes")),IFERROR(INDEX('Serna Loan Limits'!$O$3:$T$815,MATCH(CB17,'Serna Loan Limits'!$A$3:$A$815,0),MATCH(C17,'Serna Loan Limits'!$O$3:$T$3,0)),0),0) -> 0 | AH17: 0 | AK17: =IFERROR(INDEX('Rent Limits'!$A$1:$O$1045,MATCH(CA17,'Rent Limits'!$A$1:$A$1045,0),MATCH(C17,'Rent Limits'!$A$1:$O$1,0)),0) -> 0 | BL17: 0 | BO17: 0 | BR17: 0 | BU17: 0 | BX17: 0 | CC17: =SUMIF($E$8:$F$23,"55% AMI",$G$8:$H$23)*55 -> 0 | CD17: 55% AMI
L18: 0 | O18: 0 | Q18: 0 | W18: 0 | Y18: =IF($A$3<>0.09,0,IFERROR(INDEX('Serna Loan Limits'!$A$3:$H$815,MATCH(CB18,'Serna Loan Limits'!$A$3:$A$815,0),MATCH(C18,'Serna Loan Limits'!$A$3:$H$3,0)),0)) -> 0 | AB18: =IF(AND($A$3<>0.09,A18<>"",$F$3="New Construction",$N$3="Yes"),IFERROR(INDEX('Serna Loan Limits'!$I$3:$N$815,MATCH(CB18,'Serna Loan Limits'!$A$3:$A$815,0),MATCH(C18,'Serna Loan Limits'!$I$3:$N$3,0)),0),0) -> 0 | AE18: =IF(AND($A$3<>0.09,A18<>"",OR($F$3<>"New Construction",$N$3<>"Yes")),IFERROR(INDEX('Serna Loan Limits'!$O$3:$T$815,MATCH(CB18,'Serna Loan Limits'!$A$3:$A$815,0),MATCH(C18,'Serna Loan Limits'!$O$3:$T$3,0)),0),0) -> 0 | AH18: 0 | AK18: =IFERROR(INDEX('Rent Limits'!$A$1:$O$1045,MATCH(CA18,'Rent Limits'!$A$1:$A$1045,0),MATCH(C18,'Rent Limits'!$A$1:$O$1,0)),0) -> 0 | BL18: 0 | BO18: 0 | BR18: 0 | BU18: 0 | BX18: 0 | CC18: =SUMIF($E$8:$F$23,"60% AMI",$G$8:$H$23)*60 -> 0 | CD18: 60% AMI
L19: 0 | O19: 0 | Q19: 0 | W19: 0 | Y19: =IF($A$3<>0.09,0,IFERROR(INDEX('Serna Loan Limits'!$A$3:$H$815,MATCH(CB19,'Serna Loan Limits'!$A$3:$A$815,0),MATCH(C19,'Serna Loan Limits'!$A$3:$H$3,0)),0)) -> 0 | AB19: =IF(AND($A$3<>0.09,A19<>"",$F$3="New Construction",$N$3="Yes"),IFERROR(INDEX('Serna Loan Limits'!$I$3:$N$815,MATCH(CB19,'Serna Loan Limits'!$A$3:$A$815,0),MATCH(C19,'Serna Loan Limits'!$I$3:$N$3,0)),0),0) -> 0 | AE19: =IF(AND($A$3<>0.09,A19<>"",OR($F$3<>"New Construction",$N$3<>"Yes")),IFERROR(INDEX('Serna Loan Limits'!$O$3:$T$815,MATCH(CB19,'Serna Loan Limits'!$A$3:$A$815,0),MATCH(C19,'Serna Loan Limits'!$O$3:$T$3,0)),0),0) -> 0 | AH19: 0 | AK19: =IFERROR(INDEX('Rent Limits'!$A$1:$O$1045,MATCH(CA19,'Rent Limits'!$A$1:$A$1045,0),MATCH(C19,'Rent Limits'!$A$1:$O$1,0)),0) -> 0 | BL19: 0 | BO19: 0 | BR19: 0 | BU19: 0 | BX19: 0 | CC19: =SUMIF($E$8:$F$23,"65% AMI",$G$8:$H$23)*65 -> 0 | CD19: 65% AMI
L20: 0 | O20: 0 | Q20: 0 | W20: 0 | Y20: =IF($A$3<>0.09,0,IFERROR(INDEX('Serna Loan Limits'!$A$3:$H$815,MATCH(CB20,'Serna Loan Limits'!$A$3:$A$815,0),MATCH(C20,'Serna Loan Limits'!$A$3:$H$3,0)),0)) -> 0 | AB20: =IF(AND($A$3<>0.09,A20<>"",$F$3="New Construction",$N$3="Yes"),IFERROR(INDEX('Serna Loan Limits'!$I$3:$N$815,MATCH(CB20,'Serna Loan Limits'!$A$3:$A$815,0),MATCH(C20,'Serna Loan Limits'!$I$3:$N$3,0)),0),0) -> 0 | AE20: =IF(AND($A$3<>0.09,A20<>"",OR($F$3<>"New Construction",$N$3<>"Yes")),IFERROR(INDEX('Serna Loan Limits'!$O$3:$T$815,MATCH(CB20,'Serna Loan Limits'!$A$3:$A$815,0),MATCH(C20,'Serna Loan Limits'!$O$3:$T$3,0)),0),0) -> 0 | AH20: 0 | AK20: =IFERROR(INDEX('Rent Limits'!$A$1:$O$1045,MATCH(CA20,'Rent Limits'!$A$1:$A$1045,0),MATCH(C20,'Rent Limits'!$A$1:$O$1,0)),0) -> 0 | BL20: 0 | BO20: 0 | BR20: 0 | BU20: 0 | BX20: 0 | CC20: =SUMIF($E$8:$F$23,"70% AMI",$G$8:$H$23)*70 -> 0 | CD20: 70% AMI
L21: 0 | O21: 0 | Q21: 0 | W21: 0 | Y21: =IF($A$3<>0.09,0,IFERROR(INDEX('Serna Loan Limits'!$A$3:$H$815,MATCH(CB21,'Serna Loan Limits'!$A$3:$A$815,0),MATCH(C21,'Serna Loan Limits'!$A$3:$H$3,0)),0)) -> 0 | AB21: =IF(AND($A$3<>0.09,A21<>"",$F$3="New Construction",$N$3="Yes"),IFERROR(INDEX('Serna Loan Limits'!$I$3:$N$815,MATCH(CB21,'Serna Loan Limits'!$A$3:$A$815,0),MATCH(C21,'Serna Loan Limits'!$I$3:$N$3,0)),0),0) -> 0 | AE21: =IF(AND($A$3<>0.09,A21<>"",OR($F$3<>"New Construction",$N$3<>"Yes")),IFERROR(INDEX('Serna Loan Limits'!$O$3:$T$815,MATCH(CB21,'Serna Loan Limits'!$A$3:$A$815,0),MATCH(C21,'Serna Loan Limits'!$O$3:$T$3,0)),0),0) -> 0 | AH21: 0 | AK21: =IFERROR(INDEX('Rent Limits'!$A$1:$O$1045,MATCH(CA21,'Rent Limits'!$A$1:$A$1045,0),MATCH(C21,'Rent Limits'!$A$1:$O$1,0)),0) -> 0 | BL21: 0 | BO21: 0 | BR21: 0 | BU21: 0 | BX21: 0 | CC21: =SUMIF($E$8:$F$23,"75% AMI",$G$8:$H$23)*75 -> 0 | CD21: 75% AMI
L22: 0 | O22: 0 | Q22: 0 | W22: 0 | Y22: =IF($A$3<>0.09,0,IFERROR(INDEX('Serna Loan Limits'!$A$3:$H$815,MATCH(CB22,'Serna Loan Limits'!$A$3:$A$815,0),MATCH(C22,'Serna Loan Limits'!$A$3:$H$3,0)),0)) -> 0 | AB22: =IF(AND($A$3<>0.09,A22<>"",$F$3="New Construction",$N$3="Yes"),IFERROR(INDEX('Serna Loan Limits'!$I$3:$N$815,MATCH(CB22,'Serna Loan Limits'!$A$3:$A$815,0),MATCH(C22,'Serna Loan Limits'!$I$3:$N$3,0)),0),0) -> 0 | AE22: =IF(AND($A$3<>0.09,A22<>"",OR($F$3<>"New Construction",$N$3<>"Yes")),IFERROR(INDEX('Serna Loan Limits'!$O$3:$T$815,MATCH(CB22,'Serna Loan Limits'!$A$3:$A$815,0),MATCH(C22,'Serna Loan Limits'!$O$3:$T$3,0)),0),0) -> 0 | AH22: 0 | AK22: =IFERROR(INDEX('Rent Limits'!$A$1:$O$1045,MATCH(CA22,'Rent Limits'!$A$1:$A$1045,0),MATCH(C22,'Rent Limits'!$A$1:$O$1,0)),0) -> 0 | BL22: 0 | BO22: 0 | BR22: 0 | BU22: 0 | BX22: 0 | CC22: =SUMIF($E$8:$F$23,"80% AMI",$G$8:$H$23)*80 -> 0 | CD22: 80% AMI
L23: 0 | O23: 0 | Q23: 0 | W23: 0 | Y23: =IF($A$3<>0.09,0,IFERROR(INDEX('Serna Loan Limits'!$A$3:$H$815,MATCH(CB23,'Serna Loan Limits'!$A$3:$A$815,0),MATCH(C23,'Serna Loan Limits'!$A$3:$H$3,0)),0)) -> 0 | AB23: =IF(AND($A$3<>0.09,A23<>"",$F$3="New Construction",$N$3="Yes"),IFERROR(INDEX('Serna Loan Limits'!$I$3:$N$815,MATCH(CB23,'Serna Loan Limits'!$A$3:$A$815,0),MATCH(C23,'Serna Loan Limits'!$I$3:$N$3,0)),0),0) -> 0 | AE23: =IF(AND($A$3<>0.09,A23<>"",OR($F$3<>"New Construction",$N$3<>"Yes")),IFERROR(INDEX('Serna Loan Limits'!$O$3:$T$815,MATCH(CB23,'Serna Loan Limits'!$A$3:$A$815,0),MATCH(C23,'Serna Loan Limits'!$O$3:$T$3,0)),0),0) -> 0 | AH23: 0 | AK23: =IFERROR(INDEX('Rent Limits'!$A$1:$O$1045,MATCH(CA23,'Rent Limits'!$A$1:$A$1045,0),MATCH(C23,'Rent Limits'!$A$1:$O$1,0)),0) -> 0 | BL23: 0 | BO23: 0 | BR23: 0 | BU23: 0 | BX23: 0 | CC23: =SUM(CC9:CC22) -> 0 | CD23: Total
E24: 60% AMI | G24: Manager | Q24: =A24 -> 0 | W24: =IF(AND(A24>0,E24=""),A24,0) -> 0 | Y24: =IF($A$3<>0.09,0,IFERROR(INDEX('Serna Loan Limits'!$A$3:$H$815,MATCH(CB24,'Serna Loan Limits'!$A$3:$A$815,0),MATCH(C24,'Serna Loan Limits'!$A$3:$H$3,0)),0)) -> 0 | AB24: =IF(AND($A$3<>0.09,A24<>"",$F$3="New Construction",$N$3="Yes"),IFERROR(INDEX('Serna Loan Limits'!$I$3:$N$815,MATCH(CB24,'Serna Loan Limits'!$A$3:$A$815,0),MATCH(C24,'Serna Loan Limits'!$I$3:$N$3,0)),0),0) -> 0 | AE24: =IF(AND($A$3<>0.09,A24<>"",OR($F$3<>"New Construction",$N$3<>"Yes")),IFERROR(INDEX('Serna Loan Limits'!$O$3:$T$815,MATCH(CB24,'Serna Loan Limits'!$A$3:$A$815,0),MATCH(C24,'Serna Loan Limits'!$O$3:$T$3,0)),0),0) -> 0 | AH24: =MAX(Y24,AB24,AE24) -> 0 | BL24: 0 | BO24: 0 | BR24: 0 | BU24: 0 | BX24: 0 | CB24: 60%
A25: =SUM(A8:B24) -> 0 | G25: =SUM(G8:H24) -> 0 | I25: =SUM(I8:K23) -> 0 | L25: =SUM(L8:N24) -> 0 | O25: =SUM(O8:P24) -> 0 | Q25: =SUM(Q8:R24) -> 0 | S25: =SUM(S8:T24) -> 0 | W25: =SUM(W8:X24) -> 0 | AH25: =SUM(AH8:AJ24) -> 0 | AW25: =SUM(AW8:AX24) -> 0 | BB25: =SUM(BB8:BC24) -> 0 | BL25: =SUM(BL7:BL24) -> 0 | BO25: =SUM(BO7:BO24) -> 0 | BR25: =SUM(BR7:BR24) -> 0 | BU25: =SUM(BU7:BU24) -> 0 | BX25: =SUM(BX7:BX24) -> 0
A26: Max Loan Calculation | AK26: =12*BL25 -> 0 | AN26: Annual Net Restricted Rent
A27: a. Permanent Funding Gap NOFA III(C)(1) | AH27: =AH31-AH32-AH33 -> 0 | AK27: =12*BO25 -> 0 | AN27: Annual Net Proposed Rent
A28: Total Project Cost ('Dev Budget' worksheet) | AH28: ='Dev Budget'!S123+'Dev Budget'!V123 -> 0 | AK28: =12*BR25 -> 0 | AN28: Annual Unrestricted Rent
A29: Less: Net Syndication Proceeds/Investor Equity ('Dev Sources' worksheet)
A30: Less: Additional Owner/General Partner Equity ('Dev Sources' worksheet)
A31: TOTAL ESTIMATED FINANCING NEED | AH31: =AH28-AH29-AH30 -> 0
A32: Less: Supportable Conventional or Bond Debt Financing ('Dev Sources' worksheet) | AK32: 1 | AL32: 0
A33: Less: "Soft" Financing and Grants ('Dev Sources' worksheet) | AK33: 1.04 | AL33: 30
A34: a. Permanent Funding Gap NOFA III(C)(1) | AH34: =MAX(AH27,0) -> 0 | AK34: 1.08 | AL34: 35
A35: b. Serna Per Unit Loan Limit NOFA III(B)(1) - from above | AH35: =AH25 -> 0 | AK35: 1.12 | AL35: 40
A36: c. NOFA Loan Maximum III(C)(2) | AH36: =IF(A3=0.09,5000000,10000000) -> 10000000
A37: d. Applicant Loan Amount Request
A38: Maximum Allowable Serna Loan (lesser of a - d above) | AH38: =MIN(AH34:AJ37) -> 0
A39: File Name: | D39: Utility Allowance | J39: Documentation from the local housing authority substantiating amount of UA used. | AD39: Uploaded to HCD?
A40: File Name: | D40: Subsidy Commitment | J40: Documentation evidencing commitment status and subsidy amount - e.g. commitment letters, grant awards or subsidy contracts. | AD40: Uploaded to HCD?
A41: File Name: | D41: Transition Reserve | J41: Documentation showing calculation of Transition Reserve amount. | AD41: Uploaded to HCD?

Sheet Dev Sources
A1: Sources of Funds | Q1: =IF('Serna RHD Coverpage'!B10="","",'Serna RHD Coverpage'!B10) -> 2021-03-26
A2: Construction Period Sources of Funds
A3: Funding Committed by Application Due Date? | C3: Source Name (listed in order of lien priority) | F3: Source Type | G3: Local Support | H3: Lien No. | I3: Residential Amount | J3: Commercial Amount | K3: Total Amount | L3: Interest Rate | M3: Required Payment | N3: Loan Term (months) | O3: *Details of Deferred Costs
O4: Amount | P4: Description
A5: 1 | K5: =I5+J5 -> 0
A6: 2 | K6: =I6+J6 -> 0
A7: 3 | K7: 0
A8: 4 | K8: 0
A9: 5 | K9: 0
A10: 6 | K10: 0
A11: 7 | K11: 0
A12: 8 | K12: 0
A13: 9 | K13: 0
A14: 10 | K14: 0
A15: 11 | K15: 0
A16: 12 | K16: 0
A17: 13 | K17: 0
A18: 14 | K18: 0
A19: 15 | K19: 0
A20: 16 | K20: 0
A21: 17 | K21: 0
A22: 18 | K22: 0
A23: 19 | K23: 0
A24: 20 | C24: Deferred costs (detail at right) | F24: Other | G24: No | I24: =O26 -> 0 | K24: 0
A25: 21 | B25: Yes | C25: Equity Investor | K25: 0 | L25: Project Tax Credit Type
C26: =SUMPRODUCT(($B$5:$B$25="Yes")*($K$5:$K$25)) -> 0 | D26: <Total funds committed | F26: =IF($K$26=0,0,$C$26/($K$26-$I$24)) -> 0 | G26: <% Funds committed | I26: =SUM(I5:I25) -> 0 | J26: =SUM(J5:J24) -> 0 | K26: =SUM(K5:K25) -> 0 | L26: Totals | O26: =SUM(O5:O24) -> 0
A27: Permanent Sources of Funds
A28: Funding Committed by Application Due Date? | C28: Source Name (listed in order of lien priority) | F28: Source Type | G28: Local Support | H28: Lien No. | I28: Residential Amount | J28: Commercial Amount | K28: Total Amount | L28: Interest Rate | N28: Repayment Terms | P28: Required Residential Debt Service | Q28: Required Commercial Debt Service
L29: Type | M29: Rate | N29: Type | O29: Due in (yrs)
A30: 1 | C30: HCD Serna Loan | F30: State-HCD | G30: No | K30: =I30+J30 -> 0
A31: 2 | K31: =I31+J31 -> 0
A32: 3 | K32: 0
A33: 4 | K33: 0
A34: 5 | K34: 0
A35: 6 | K35: 0
A36: 7 | K36: 0
A37: 8 | K37: 0
A38: 9 | K38: 0
A39: 10 | K39: 0
A40: 11 | K40: 0
A41: 12 | K41: 0
A42: 13 | K42: 0
A43: 14 | K43: 0
A44: 15 | C44: Deferred costs | F44: Other | G44: No | K44: 0
A45: 16 | B45: Yes | C45: Equity Investor | K45: 0 | L45: Project Tax Credit Type
F46: Totals | I46: =SUM(I30:I45) -> 0 | J46: =SUM(J30:J45) -> 0 | K46: =SUM(K30:K45) -> 0 | L46: Totals | P46: =SUM(P30:P45) -> 0 | Q46: =SUM(Q30:Q45) -> 0
C47: =SUMPRODUCT(($B$30:$B$45="Yes")*($K$30:$K$45)) -> 0 | D47: <Total funds committed | F47: =IF($K$46=0,0,$C$47/($K$46-$I$44)) -> 0 | G47: <% Funds committed
A48: File: | B48: Perm EFC #1, #2, etc | D48: Commitment letter or other evidence documenting permanent financing commitments (see Guidelines for explanation of funding commitments) | P48: File uploaded?
A49: Applicant comments: Include a description of ballon payments and unusual or extraordinary circumstances that have resulted in higher than expected project costs and provide a justification as to why these costs are reasonable.

Sheet Dev Budget
A1: =IF('Serna RHD Coverpage'!B10="","",'Serna RHD Coverpage'!B10) -> 2021-03-26 | C1: Residential Permanent Sources/Uses of Funds | T1: Tax Credit Basis | V1: Commercial Sources/Uses
A2: USES OF FUNDS | B2: Total Project Costs | C2: ='Dev Sources'!$C$30 -> HCD Serna Loan | D2: ='Dev Sources'!$C$31 -> 0 | E2: ='Dev Sources'!$C$32 -> 0 | F2: ='Dev Sources'!$C$33 -> 0 | G2: ='Dev Sources'!$C$34 -> 0 | H2: ='Dev Sources'!$C$35 -> 0 | I2: ='Dev Sources'!$C$36 -> 0 | J2: ='Dev Sources'!$C$37 -> 0 | K2: ='Dev Sources'!$C$38 -> 0 | L2: ='Dev Sources'!$C$39 -> 0 | M2: ='Dev Sources'!$C$40 -> 0 | N2: ='Dev Sources'!$C$41 -> 0 | O2: ='Dev Sources'!$C$42 -> 0 | P2: ='Dev Sources'!$C$43 -> 0 | Q2: ='Dev Sources'!$C$44 -> Deferred costs | R2: ='Dev Sources'!$C$45 -> Equity Investor | S2: Total Residential Sources/Costs | T2: =IF('Dev Sources'!O45="","30% PVC for New Const/Rehab",IF('Dev Sources'!O45=0.09,"70% PVC for New Const/Rehab",IF('Dev Sources'!O45=0.04,"30% PVC for New Const/Rehab","N/A - No tax credits per Dev Sources"))) -> 30% PVC for New Const/Rehab | U2: =IF('Dev Sources'!O45="","30% PVC for Acquisition",IF('Dev Sources'!O45=0.09,"30% PVC for Acquisition",IF('Dev Sources'!O45=0.04,"30% PVC for Acquisition","N/A - No tax credits per Dev Sources"))) -> 30% PVC for Acquisition | V2: Total Commercial Sources/Costs | W2: Source Name: | X2: Source Name:
A4: Project Development Costs
A5: LAND COST/ACQUISITION
A6: Land Cost or Value | B6: =S6+V6 -> 0 | S6: =SUM(C6:R6) -> 0 | V6: =W6+X6 -> 0
A7: Demolition | B7: =S7+V7 -> 0 | S7: =SUM(C7:R7) -> 0 | V7: =W7+X7 -> 0
A8: Legal | B8: 0 | S8: =SUM(C8:R8) -> 0 | V8: 0
A9: Land Lease Rent Prepayment | B9: 0 | S9: =SUM(C9:R9) -> 0 | V9: 0
A10: Total Land Cost or Value | B10: =SUM(B6:B9) -> 0 | C10: =SUM(C6:C9) -> 0 | D10: 0 | E10: 0 | F10: 0 | G10: 0 | H10: 0 | I10: 0 | J10: 0 | K10: 0 | L10: 0 | M10: 0 | N10: 0 | O10: 0 | P10: 0 | Q10: 0 | R10: 0 | S10: 0 | V10: 0 | W10: =SUM(W6:W9) -> 0 | X10: 0
A11: Existing Improvements Cost or Value | B11: =S11+V11 -> 0 | S11: =SUM(C11:R11) -> 0 | V11: 0
A12: Off-Site Improvements | B12: 0 | S12: =SUM(C12:R12) -> 0 | V12: 0
A13: Total Acquisition Cost | B13: =SUM(B11:B12) -> 0 | C13: =SUM(C11:C12) -> 0 | D13: 0 | E13: 0 | F13: 0 | G13: 0 | H13: 0 | I13: 0 | J13: 0 | K13: 0 | L13: 0 | M13: 0 | N13: 0 | O13: 0 | P13: 0 | Q13: 0 | R13: 0 | S13: 0 | U13: =SUM(U11:U12) -> 0 | V13: 0 | W13: =SUM(W11:W12) -> 0 | X13: 0
A14: Total Land Cost / Acquisition Cost | B14: =SUM(B10+B13) -> 0 | C14: 0 | D14: =SUM(D10+D13) -> 0 | E14: 0 | F14: 0 | G14: 0 | H14: 0 | I14: 0 | J14: 0 | K14: 0 | L14: 0 | M14: 0 | N14: 0 | O14: 0 | P14: 0 | Q14: 0 | R14: 0 | S14: 0 | V14: 0 | W14: =SUM(W10+W13) -> 0 | X14: 0
A15: Predevelopment Interest/Holding Cost | B15: =S15+V15 -> 0 | S15: =SUM(C15:R15) -> 0 | V15: 0
A16: Assumed, Accrued Interest on Existing Debt (Rehab/Acq) | B16: 0 | S16: =SUM(C16:R16) -> 0 | V16: 0
A17: Excess Purchase Price Over Appraisal | B17: 0 | S17: =SUM(C17:R17) -> 0 | V17: 0
A18: REHABILITATION
A19: Site Work | B19: =S19+V19 -> 0 | S19: =SUM(C19:R19) -> 0
A20: Structures | B20: 0 | S20: 0
A21: General Requirements | B21: 0 | S21: 0
A22: Contractor Overhead | B22: 0 | S22: 0
A23: Contractor Profit | B23: 0 | S23: 0
A24: Prevailing Wages | B24: 0 | S24: 0
A25: General Liability Insurance | B25: 0 | S25: 0
A26: Urban Greening | B26: 0 | S26: 0
A27: Other Rehabilitation: (Specify) | B27: 0 | S27: 0
A28: Other Rehabilitation: (Specify) | B28: 0 | S28: 0
A29: Other Rehabilitation: (Specify) | B29: 0 | S29: 0
A30: Total Rehabilitation Costs | B30: =SUM(B19:B29) -> 0 | C30: =SUM(C19:C29) -> 0 | D30: =SUM(D19:D29) -> 0 | E30: 0 | F30: 0 | G30: 0 | H30: 0 | I30: 0 | J30: 0 | K30: 0 | L30: 0 | M30: 0 | N30: 0 | O30: 0 | P30: 0 | Q30: 0 | R30: 0 | S30: 0 | T30: =SUM(T19:T29) -> 0 | U30: =SUM(U19:U29) -> 0 | V30: =SUM(V19:V29) -> 0 | W30: 0 | X30: 0
A31: Total Relocation Expenses | B31: =S31+V31 -> 0 | S31: =SUM(C31:R31) -> 0 | V31: 0
A32: NEW CONSTRUCTION
A33: Site Work | B33: =S33+V33 -> 0 | S33: =SUM(C33:R33) -> 0 | V33: =W33+X33 -> 0
A34: Structures | B34: 0 | S34: 0 | V34: 0
A35: General Requirements | B35: 0 | S35: 0 | V35: 0
A36: Contractor Overhead | B36: 0 | S36: 0 | V36: 0
A37: Contractor Profit | B37: 0 | S37: 0 | V37: 0
A38: Prevailing Wages | B38: 0 | S38: 0 | V38: 0
A39: General Liability Insurance | B39: 0 | S39: 0 | V39: 0
A40: Urban Greening | B40: 0 | S40: 0 | V40: 0
A41: Other New Construction: (Specify) | B41: 0 | S41: 0 | V41: 0
A42: Other New Construction: (Specify) | B42: 0 | S42: 0 | V42: 0
A43: Other New Construction: (Specify) | B43: 0 | S43: 0 | V43: 0
A44: Total New Construction Costs | B44: =SUM(B33:B43) -> 0 | C44: =SUM(C33:C43) -> 0 | D44: =SUM(D33:D43) -> 0 | E44: =SUM(E33:E43) -> 0 | F44: 0 | G44: 0 | H44: 0 | I44: 0 | J44: 0 | K44: 0 | L44: 0 | M44: 0 | N44: 0 | O44: 0 | P44: 0 | Q44: 0 | R44: 0 | S44: 0 | T44: =SUM(T33:T43) -> 0 | U44: =SUM(U33:U43) -> 0 | V44: 0 | W44: =SUM(W33:W43) -> 0 | X44: 0
A45: ARCHITECTURAL FEES
A46: Design | B46: =S46+V46 -> 0 | S46: =SUM(C46:R46) -> 0 | V46: =W46+X46 -> 0
A47: Supervision | B47: 0 | S47: =SUM(C47:R47) -> 0 | V47: 0
A48: Total Architectural Costs | B48: =SUM(B45:B47) -> 0 | C48: =SUM(C45:C47) -> 0 | D48: =SUM(D45:D47) -> 0 | E48: =SUM(E45:E47) -> 0 | F48: 0 | G48: 0 | H48: 0 | I48: 0 | J48: 0 | K48: 0 | L48: 0 | M48: 0 | N48: 0 | O48: 0 | P48: 0 | Q48: 0 | R48: 0 | S48: 0 | T48: =SUM(T46:T47) -> 0 | U48: 0 | V48: 0 | W48: =SUM(W45:W47) -> 0 | X48: 0
A49: Total Survey & Engineering | B49: =S49+V49 -> 0 | S49: =SUM(C49:R49) -> 0 | V49: 0
A50: CONSTRUCTION INTEREST & FEES
A51: Construction Loan Interest | B51: =S51+V51 -> 0 | S51: =SUM(C51:R51) -> 0 | V51: =W51+X51 -> 0
A52: Origination Fee | B52: 0 | S52: 0 | V52: 0
A53: Credit Enhancement/Application Fee | B53: 0 | S53: 0 | V53: 0
A54: Bond Premium | B54: 0 | S54: 0 | V54: 0
A55: Cost of Issuance | B55: 0 | S55: 0 | V55: 0
A56: Title & Recording | B56: 0 | S56: 0 | V56: 0
A57: Taxes | B57: 0 | S57: 0 | V57: 0
A58: Insurance | B58: 0 | S58: 0 | V58: 0
A59: Employment Reporting | B59: 0 | S59: 0 | V59: 0
A60: Other Construction Int. & Fees: (Specify) | B60: 0 | S60: 0 | V60: 0
A61: Other Construction Int. & Fees: (Specify) | B61: 0 | S61: 0 | V61: 0
A62: Other Construction Int. & Fees: (Specify) | B62: 0 | S62: 0 | V62: 0
A63: Other Construction Int. & Fees: (Specify) | B63: 0 | S63: 0 | V63: 0
A64: Total Construction Interest & Fees | B64: =SUM(B51:B63) -> 0 | C64: =SUM(C51:C63) -> 0 | D64: =SUM(D51:D63) -> 0 | E64: =SUM(E51:E63) -> 0 | F64: 0 | G64: 0 | H64: 0 | I64: 0 | J64: 0 | K64: 0 | L64: 0 | M64: 0 | N64: 0 | O64: 0 | P64: 0 | Q64: 0 | R64: 0 | S64: 0 | T64: =SUM(T51:T63) -> 0 | U64: =SUM(U51:U63) -> 0 | V64: 0 | W64: =SUM(W51:W63) -> 0 | X64: 0
A65: PERMANENT FINANCING
A66: Loan Origination Fee | B66: =S66+V66 -> 0 | S66: =SUM(C66:R66) -> 0 | V66: =W66+X66 -> 0
A67: Credit Enhancement/Application Fee | B67: 0 | S67: 0 | V67: 0
A68: Title & Recording | B68: 0 | S68: 0 | V68: 0
A69: Taxes | B69: 0 | S69: 0 | V69: 0
A70: Insurance | B70: 0 | S70: 0 | V70: 0
A71: Other Perm. Financing Costs: (Specify) | B71: 0 | S71: 0 | V71: 0
A72: Other Perm. Financing Costs: (Specify) | B72: 0 | S72: 0 | V72: 0
A73: Other Perm. Financing Costs: (Specify) | B73: 0 | S73: 0 | V73: 0
A74: Other Perm. Financing Costs: (Specify) | B74: 0 | S74: 0 | V74: 0
A75: Total Permanent Financing Costs | B75: =SUM(B66:B74) -> 0 | C75: =SUM(C66:C74) -> 0 | D75: 0 | E75: 0 | F75: 0 | G75: 0 | H75: 0 | I75: 0 | J75: 0 | K75: 0 | L75: 0 | M75: 0 | N75: 0 | O75: 0 | P75: 0 | Q75: 0 | R75: 0 | S75: 0 | V75: 0 | W75: =SUM(W66:W74) -> 0 | X75: 0
A76: Subtotals Forward | B76: =SUM(B10+B13+B15+B16+B17+B30+B31+B44+B48+B49+B64+B75) -> 0 | C76: =SUM(C10+C13+C15+C16+C17+C30+C31+C44+C48+C49+C64+C75) -> 0 | D76: =SUM(D10+D13+D15+D16+D17+D30+D31+D44+D48+D49+D64+D75) -> 0 | E76: 0 | F76: 0 | G76: 0 | H76: 0 | I76: 0 | J76: 0 | K76: 0 | L76: 0 | M76: 0 | N76: 0 | O76: 0 | P76: 0 | Q76: 0 | R76: 0 | S76: 0 | T76: =SUM(T12+T15+T16+T17+T30+T31+T44+T48+T49+T64) -> 0 | U76: =SUM(U13+U15+U16+U17+U30+U31+U44+U48+U49+U64) -> 0 | V76: =SUM(V10+V13+V15+V16+V17+V31+V44+V48+V49+V64+V75) -> 0 | W76: 0 | X76: 0
A77: LEGAL FEES
A78: Legal Paid by Applicant | B78: =S78+V78 -> 0 | S78: =SUM(C78:R78) -> 0 | V78: 0
A79: Other Attorney Costs: (Specify) | B79: 0 | S79: =SUM(C79:R79) -> 0 | V79: 0
A80: Other Attorney Costs: (Specify) | B80: 0 | S80: =SUM(C80:R80) -> 0 | V80: 0
A81: Other Attorney Costs: (Specify) | B81: 0 | S81: =SUM(C81:R81) -> 0 | V81: 0
A82: Total Attorney Costs | B82: =SUM(B77:B81) -> 0 | C82: =SUM(C77:C81) -> 0 | D82: =SUM(D77:D81) -> 0 | E82: =SUM(E77:E81) -> 0 | F82: 0 | G82: 0 | H82: 0 | I82: 0 | J82: 0 | K82: 0 | L82: 0 | M82: 0 | N82: 0 | O82: 0 | P82: 0 | Q82: 0 | R82: 0 | S82: 0 | T82: =SUM(T78:T81) -> 0 | U82: 0 | V82: 0 | W82: 0 | X82: 0
A83: RESERVES
A84: Operating Reserve | B84: =S84+V84 -> 0 | S84: =SUM(C84:R84) -> 0 | V84: =W84+X84 -> 0
A85: Replacement Reserve | B85: 0 | S85: 0 | V85: 0
A86: Transition Reserve | B86: 0 | S86: 0 | V86: 0
A87: Rent Reserve | B87: 0 | S87: 0 | V87: 0
A88: Other Reserve Costs: (Specify) | B88: 0 | S88: 0 | V88: 0
A89: Other Reserve Costs: (Specify) | B89: 0 | S89: 0 | V89: 0
A90: Other Reserve Costs: (Specify) | B90: 0 | S90: 0 | V90: 0
A91: Total Reserve Costs | B91: =SUM(B84:B90) -> 0 | C91: =SUM(C84:C90) -> 0 | D91: 0 | E91: 0 | F91: 0 | G91: 0 | H91: 0 | I91: 0 | J91: 0 | K91: 0 | L91: 0 | M91: 0 | N91: 0 | O91: 0 | P91: 0 | Q91: 0 | R91: 0 | S91: 0 | V91: 0 | W91: =SUM(W84:W90) -> 0 | X91: 0
A92: CONTINGENCY COSTS
A93: Construction Hard Cost Contingency | B93: =S93+V93 -> 0 | S93: =SUM(C93:R93) -> 0 | V93: =W93+X93 -> 0
A94: Soft Cost Contingency | B94: 0 | S94: =SUM(C94:R94) -> 0 | V94: 0
A95: Total Contingency Costs | B95: =SUM(B93:B94) -> 0 | C95: =SUM(C93:C94) -> 0 | D95: 0 | E95: 0 | F95: 0 | G95: 0 | H95: 0 | I95: 0 | J95: 0 | K95: 0 | L95: 0 | M95: 0 | N95: 0 | O95: 0 | P95: 0 | Q95: 0 | R95: 0 | S95: 0 | T95: 0 | U95: 0 | V95: 0 | W95: =SUM(W93:W94) -> 0 | X95: 0
A96: OTHER PROJECT COSTS
A97: TCAC App/Allocation/Monitoring Fees | B97: =S97+V97 -> 0 | S97: =SUM(C97:R97) -> 0 | V97: =W97+X97 -> 0
A98: Environmental Audit | B98: 0 | S98: 0 | V98: 0
A99: Local Development Impact Fees | B99: 0 | S99: 0 | V99: 0
A100: Permit Processing Fees | B100: 0 | S100: 0 | V100: 0
A101: Capital Fees | B101: 0 | S101: 0 | V101: 0
A102: Marketing | B102: 0 | S102: 0 | V102: 0
A103: Furnishings | B103: 0 | S103: 0 | V103: 0
A104: Market Study | B104: 0 | S104: 0 | V104: 0
A105: Accounting/Reimbursable | B105: 0 | S105: 0 | V105: 0
A106: Appraisal Costs | B106: 0 | S106: 0 | V106: 0
A107: Other Costs: (Specify) | B107: 0 | S107: 0 | V107: 0
A108: Other Costs: (Specify) | B108: 0 | S108: 0 | V108: 0
A109: Other Costs: (Specify) | B109: 0 | S109: 0 | V109: 0
A110: Other Costs: (Specify) | B110: 0 | S110: 0 | V110: 0
A111: Other Costs: (Specify) | B111: 0 | S111: 0 | V111: 0
A112: Other Costs: (Specify) | B112: 0 | S112: 0 | V112: 0
A113: Total Other Costs | B113: =SUM(B97:B112) -> 0 | C113: =SUM(C97:C112) -> 0 | D113: =SUM(D97:D112) -> 0 | E113: =SUM(E97:E112) -> 0 | F113: 0 | G113: 0 | H113: 0 | I113: 0 | J113: 0 | K113: 0 | L113: 0 | M113: 0 | N113: 0 | O113: 0 | P113: 0 | Q113: 0 | R113: 0 | S113: 0 | T113: =SUM(T98:T101,T103:T112) -> 0 | U113: =SUM(U98:U101,U103:U112) -> 0 | V113: 0 | W113: =SUM(W97:W112) -> 0 | X113: 0
A114: SUBTOTAL PROJECT COST | B114: =SUM(B76+B82+B91+B95+B113) -> 0 | C114: =SUM(C76+C82+C91+C95+C113) -> 0 | D114: =SUM(D76+D82+D91+D95+D113) -> 0 | E114: =SUM(E76+E82+E91+E95+E113) -> 0 | F114: 0 | G114: 0 | H114: 0 | I114: 0 | J114: 0 | K114: 0 | L114: 0 | M114: 0 | N114: 0 | O114: 0 | P114: 0 | Q114: 0 | R114: 0 | S114: 0 | T114: =SUM(+T76+T82+T95+T113) -> 0 | U114: =SUM(U76+U82+U95+U113) -> 0 | V114: 0 | W114: =SUM(W76+W82+W91+W95+W113) -> 0 | X114: 0
A115: DEVELOPER COSTS
A116: Developer Overhead/Profit | B116: =S116+V116 -> 0 | S116: =SUM(C116:R116) -> 0 | V116: =W116+X116 -> 0
A117: Consultant/Processing Agent | B117: 0 | S117: 0 | V117: 0
A118: Project Administration | B118: 0 | S118: 0 | V118: 0
A119: Broker Fees Paid to a Related Party | B119: 0 | S119: 0 | V119: 0
A120: Construction Oversight by Developer | B120: 0 | S120: 0 | V120: 0
A121: Other Developer Costs: (Specify) | B121: 0 | S121: 0 | V121: 0
A122: Total Developer Costs | B122: =SUM(B116:B121) -> 0 | C122: =SUM(C116:C121) -> 0 | D122: 0 | E122: 0 | F122: 0 | G122: 0 | H122: 0 | I122: 0 | J122: 0 | K122: 0 | L122: 0 | M122: 0 | N122: 0 | O122: 0 | P122: 0 | Q122: 0 | R122: 0 | S122: 0 | T122: 0 | U122: 0 | V122: 0 | W122: =SUM(W116:W121) -> 0 | X122: 0
A123: Total Project Costs | B123: =SUM(B114+B122) -> 0 | C123: =SUM(C114+C122) -> 0 | D123: =SUM(D114+D122) -> 0 | E123: 0 | F123: 0 | G123: 0 | H123: 0 | I123: 0 | J123: 0 | K123: 0 | L123: 0 | M123: 0 | N123: 0 | O123: 0 | P123: 0 | Q123: 0 | R123: 0 | S123: 0 | T123: =T114+T122 -> 0 | U123: =U114+U122 -> 0 | V123: 0 | W123: 0 | X123: 0
T124: =T123 -> 0 | U124: =U123 -> 0
F125: DF 2021 | S125: Total Eligible Basis: | U125: =SUM(T124:U124) -> 0
A126: Total Developer Fee (equals Total Developer Costs above): | F126: =S122+V122 -> 0
A127: Total Developer Fee paid from development funding sources: | F127: ='Dev Fee 2021'!H6 -> 0
A128: Deferred Developer Fee payable on a priority basis from available Cash Flow: | F128: ='Dev Fee 2021'!H7 -> 0
A129: Deferred Developer Fee payable from allowable 50% Distribution: | F129: ='Dev Fee 2021'!H8 -> 0
A130: Developer Fee Contributed as Capital: | F130: ='Dev Fee 2021'!F10 -> 0

Sheet TBL and High Cost Test
A1: 2021 TCAC Threshold Basis Limit for HCD Developer Fee 2017 UMR §8312(c) & (b) and High Cost Test for HCD Limits on Development Costs 2017 UMR §8311(a) & (b) (revised 3/24/21) Complete all yellow shaded cells; see cell comments for tips | BA1: 1/5/21 | BB1: SRO & STUDIO 4% & 9 | BC1: 1 BEDROOM | BD1: 2 BEDROOMS | BE1: 3 BEDROOMS | BF1: 4+ BEDROOMS | BG1: SRO & STUDIO | BH1: 1 BEDROOM | BI1: 2 BEDROOMS | BJ1: 3 BEDROOMS | BK1: 4+ BEDROOMS
A2: Project Name: | F2: =IF(Overview!E3="","",Overview!E3) ->  | Z2: County: | AC2: =IF('Max Loan & Unit Mix'!AE3="","",'Max Loan & Unit Mix'!AE3) ->  | AI2: HCD Phase: | AO2: Origination | BA2: ALAMEDA | BB2: 365252 | BC2: 421132 | BD2: 508000 | BE2: 650240 | BF2: 724408
A3: Rep Name: | BA3: ALPINE | BB3: 262291 | BC3: 302419 | BD3: 364800 | BE3: 466944 | BF3: 520205
A4: Unit Size | I4: =CONCATENATE(BA1," TCAC Threshold Basis Limits (TBL) ") -> 1/5/21 TCAC Threshold Basis Limits (TBL) | Y4: Number of Units | AO4: Basis x Number of Units | BA4: AMADOR | BB4: 262291 | BC4: 302419 | BD4: 364800 | BE4: 466944 | BF4: 520205
A5: SRO/Studio | I5: =IF($AC$2="","",VLOOKUP($AC$2,$BA$1:$BF$59,AX5)) ->  | Y5: =SUMIF('Max Loan & Unit Mix'!$C$8:$D$24,0,'Max Loan & Unit Mix'!$A$8:$B$24) -> 0 | AO5: =IF(ISERROR((I5*Y5)),0,(I5*Y5)) -> 0 | AX5: 2 | AY5: 7 | BA5: BUTTE | BB5: 230655 | BC5: 265943 | BD5: 320800 | BE5: 410624 | BF5: 457461
A6: 1 Bedroom | I6: =IF($AC$2="","",VLOOKUP($AC$2,$BA$1:$BF$59,AX6)) ->  | Y6: =SUMIF('Max Loan & Unit Mix'!$C$8:$D$24,1,'Max Loan & Unit Mix'!$A$8:$B$24) -> 0 | AO6: =IF(ISERROR((I6*Y6)),0,(I6*Y6)) -> 0 | AX6: =AX5+1 -> 3 | AY6: =AY5+1 -> 8 | BA6: CALAVERAS | BB6: 262291 | BC6: 302419 | BD6: 364800 | BE6: 466944 | BF6: 520205
A7: 2 Bedrooms | I7: =IF($AC$2="","",VLOOKUP($AC$2,$BA$1:$BF$59,AX7)) ->  | Y7: =SUMIF('Max Loan & Unit Mix'!$C$8:$D$24,2,'Max Loan & Unit Mix'!$A$8:$B$24) -> 0 | AO7: =IF(ISERROR((I7*Y7)),0,(I7*Y7)) -> 0 | AX7: =AX6+1 -> 4 | AY7: =AY6+1 -> 9 | BA7: COLUSA | BB7: 262291 | BC7: 302419 | BD7: 364800 | BE7: 466944 | BF7: 520205
A8: 3 Bedrooms | I8: =IF($AC$2="","",VLOOKUP($AC$2,$BA$1:$BF$59,AX8)) ->  | Y8: =SUMIF('Max Loan & Unit Mix'!$C$8:$D$24,3,'Max Loan & Unit Mix'!$A$8:$B$24) -> 0 | AO8: =IF(ISERROR((I8*Y8)),0,(I8*Y8)) -> 0 | AX8: 5 | AY8: =AY7+1 -> 10 | BA8: CONTRA COSTA | BB8: 365252 | BC8: 421132 | BD8: 508000 | BE8: 650240 | BF8: 724408
A9: 4+ Bedrooms | I9: =IF($AC$2="","",VLOOKUP($AC$2,$BA$1:$BF$59,AX9)) ->  | Y9: =SUMIF('Max Loan & Unit Mix'!$C$8:$D$24,4,'Max Loan & Unit Mix'!$A$8:$B$24)+SUMIF('Max Loan & Unit Mix'!$C$8:$D$24,5,'Max Loan & Unit Mix'!$A$8:$B$24) -> 0 | AO9: =IF(ISERROR((I9*Y9)),0,(I9*Y9)) -> 0 | AX9: 6 | AY9: =AY8+1 -> 11 | BA9: DEL NORTE | BB9: 262291 | BC9: 302419 | BD9: 364800 | BE9: 466944 | BF9: 520205
A10: Number of Manager Units in Project: | T10: TOTAL UNITS: | Y10: =SUM(Y5:Y9) -> 0 | BA10: EL DORADO | BB10: 278397 | BC10: 320989 | BD10: 387200 | BE10: 495616 | BF10: 552147
A11: TOTAL UNADJUSTED THRESHOLD BASIS LIMIT (TBL): | AO11: =SUM(AO5:AO9) -> 0 | BA11: FRESNO | BB11: 238133 | BC11: 274565 | BD11: 331200 | BE11: 423936 | BF11: 472291
A12: TBL ADJUSTMENTS §10327(c)(5)(A-F): | AL12: Yes/No | BA12: GLENN | BB12: 262291 | BC12: 302419 | BD12: 364800 | BE12: 466944 | BF12: 520205
A13: (A) | B13: Project paid in whole or part out of public funds subject to a legal requirement for the payment of state or federal prevailing wages or financed in part by a labor-affiliated organization requiring the employment of construction workers who are paid at least state or federal prevailing wages. (20%) | AO13: =ROUND(IF(AL13="Yes",AO11*0.2,0),0) -> 0 | BA13: HUMBOLDT | BB13: 262291 | BC13: 302419 | BD13: 364800 | BE13: 466944 | BF13: 520205
BA14: IMPERIAL | BB14: 228930 | BC14: 263954 | BD14: 318400 | BE14: 407552 | BF14: 454038
B15: Project certifies that (1) they are subject to a project labor agreement within the meaning of §2500(b)(1) of the Public Contract Code, or (2) they will use a skilled and trained workforce as defined by §25536.7 of the Health and Safety Code to perform all onsite work within an apprenticeable occupation in the building and construction trades. (5%) | AO15: =ROUND(IF(AL15="Yes",AO11*0.05,0),0) -> 0 | BA15: INYO | BB15: 262291 | BC15: 302419 | BD15: 364800 | BE15: 466944 | BF15: 520205
BA16: KERN | BB16: 238133 | BC16: 274565 | BD16: 331200 | BE16: 423936 | BF16: 472291
B17: New construction project required to provide parking beneath residential units (not "tuck under" parking) or through construction of an on-site parking structure of two or more levels. (10%) | AO17: =ROUND(IF(AL17="Yes",AO11*0.1,0),0) -> 0 | BA17: KINGS | BB17: 238133 | BC17: 274565 | BD17: 331200 | BE17: 423936 | BF17: 472291
BA18: LAKE | BB18: 262291 | BC18: 302419 | BD18: 364800 | BE18: 466944 | BF18: 520205
B19: Project where a day care center is part of the development. (2%) | AO19: =ROUND(IF(AL19="Yes",AO11*0.02,0),0) -> 0 | BA19: LASSEN | BB19: 262291 | BC19: 302419 | BD19: 364800 | BE19: 466944 | BF19: 520205
B20: Project where 100 percent of the Low Income units are for Special Needs populations. (2%) | AO20: =ROUND(IF(AL20="Yes",AO11*0.02,0),0) -> 0 | BA20: LOS ANGELES | BB20: 327289 | BC20: 377361 | BD20: 455200 | BE20: 582656 | BF20: 649115
B21: Project where at least 95% of the project's upper floor units are serviced by an elevator. (10%) | AO21: =ROUND(IF(AL21="Yes",(AO11*0.1),0),0) -> 0 | BA21: MADERA | BB21: 238133 | BC21: 274565 | BD21: 331200 | BE21: 423936 | BF21: 472291
BA22: MARIN | BB22: 299104 | BC22: 344864 | BD22: 416000 | BE22: 532480 | BF22: 593216
B23: Project wherein at least 95% of the building(s) is constructed as Type I as defined in the California Building Code, in which case, the Type III 10% increase below is not allowed. (15%) | AO23: =ROUND(IF(AL23="Yes",(AO11*0.15),0),0) -> 0 | BA23: MARIPOSA | BB23: 262291 | BC23: 302419 | BD23: 364800 | BE23: 466944 | BF23: 520205
BA24: MENDOCINO | BB24: 262291 | BC24: 302419 | BD24: 364800 | BE24: 466944 | BF24: 520205
B25: Project wherein at least 95% of the building(s) is constructed as a Type III as defined in the California Building Code, or a Type III/Type I combination, in which case, the Type I 15% increase above is not allowed. (10%) | AO25: =IF(AL23="Yes",0,ROUND(IF(AL25="Yes",(AO11*0.1),0),0)) -> 0 | BA25: MERCED | BB25: 238133 | BC25: 274565 | BD25: 331200 | BE25: 423936 | BF25: 472291
BA26: MODOC | BB26: 262291 | BC26: 302419 | BD26: 364800 | BE26: 466944 | BF26: 520205
A27: (B) | B27: Project applying under §10325 or §10326 of these regulations that include one or more of the features below. (up to 10%) | AO27: =IF(SUM(AL29:AL46)>0.005,MIN(0.1,SUM(AL29:AL46))*AO11,0) -> 0 | BA27: MONO | BB27: 262291 | BC27: 302419 | BD27: 364800 | BE27: 466944 | BF27: 520205
BA28: MONTEREY | BB28: 303706 | BC28: 350170 | BD28: 422400 | BE28: 540672 | BF28: 602342
A29: Proposed energy efficiency/resource conservation/indoor air quality items | B29: (1) Project shall have onsite renewable generation estimated to produce 50% or more of annual tenant electricity use. If the combined available roof area of the Project structures, including carports, is insufficient for provision of 50% of annual electricity use, then the Project shall have onsite renewable generation based on at least 90% of the available solar accessible roof area. Available solar accessible area is defined as roof area less north facing roof area for sloped roofs, equipment, solar thermal hot water and required local or state fire department set-backs and access routes. A Project not availing itself of the 90% roof area exception may also receive an increase under paragraph (2) only if the renewable generation used to calculate each basis increase does not overlap. (5%) | BA29: NAPA | BB29: 299104 | BC29: 344864 | BD29: 416000 | BE29: 532480 | BF29: 593216
AL30: =IF(AL29="Yes",0.05,0) -> 0 | BA30: NEVADA | BB30: 262291 | BC30: 302419 | BD30: 364800 | BE30: 466944 | BF30: 520205
B31: (2) Project shall have onsite renewable generation estimated to produce 75% or more of annual common area electricity use. If the combined available roof area of the Project structures, including carports, is insufficient for provision of 75% of annual electricity use, then the Project shall have onsite renewable generation based on at least 90% of the available solar accessible roof area. Available solar accessible area is defined as roof area less north facing roof area for sloped roofs, equipment, solar thermal hot water and required local or state fire department set-backs and access routes. A Project not availing itself of the 90% roof area exception may also receive an increase under paragraph (1) only if the renewable generation used to calculate each basis increase does not overlap. (2%) | BA31: ORANGE | BB31: 279547 | BC31: 322315 | BD31: 388800 | BE31: 497664 | BF31: 554429
AL32: =IF(AL31="Yes",0.02,0) -> 0 | BA32: PLACER | BB32: 278397 | BC32: 320989 | BD32: 387200 | BE32: 495616 | BF32: 552147
B33: (3) Newly constructed Project buildings shall be 15% or more energy efficient than the 2016 Energy Efficiency Standards (California Code of Regulations, Part 6 of Title 24), except that if the local building department has determined that building permit applications submitted on or before December 31, 2016 are complete, then newly constructed Project buildings shall be fifteen percent (15%) or more energy efficient than the 2013 Energy Efficiency Standards (California Code of Regulations, Part 6 of Title 24). (4%) | BA33: PLUMAS | BB33: 262291 | BC33: 302419 | BD33: 364800 | BE33: 466944 | BF33: 520205
AL34: =IF(AL33="Yes",0.04,0) -> 0 | BA34: RIVERSIDE | BB34: 228930 | BC34: 263954 | BD34: 318400 | BE34: 407552 | BF34: 454038
B35: (4) Rehab Project buildings shall have 80% decrease in estimated TDV energy use (or improvement in energy efficiency) post rehab as demonstrated using the appropriate performance module of CEC software. (4%) | BA35: SACRAMENTO | BB35: 278397 | BC35: 320989 | BD35: 387200 | BE35: 495616 | BF35: 552147
AL36: =IF(AL35="Yes",0.04,0) -> 0 | BA36: SAN BENITO | BB36: 262291 | BC36: 302419 | BD36: 364800 | BE36: 466944 | BF36: 520205
B37: (5) Irrigate only with reclaimed water, greywater, or rainwater (excepting water used for Community Gardens) or irrigate with reclaimed water, grey water, or rainwater in an amount that annually equals or exceeds 20,000 gallons or 300 gallons per unit, whichever is less. (1%) | BA37: SAN BERNARDINO | BB37: 228930 | BC37: 263954 | BD37: 318400 | BE37: 407552 | BF37: 454038
AL38: =IF(AL37="Yes",0.01,0) -> 0 | BA38: SAN DIEGO | BB38: 260566 | BC38: 300430 | BD38: 362400 | BE38: 463872 | BF38: 516782
B39: (6) Community Gardens of at least 60 square feet per unit. Permanent site improvements that provide a viable growing space within the Project including solar access, fencing, watering systems, secure storage space for tools, and pedestrian access. (1%) | BA39: SAN FRANCISCO | BB39: 511928 | BC39: 590248 | BD39: 712000 | BE39: 911360 | BF39: 1015312
AL40: =IF(AL39="Yes",0.01,0) -> 0 | BA40: SAN JOAQUIN | BB40: 238133 | BC40: 274565 | BD40: 331200 | BE40: 423936 | BF40: 472291
B41: (7) Install bamboo, cork, salvaged or FSC-Certified wood, natural linoleum, natural rubber, or ceramic tile in all kitchens, living rooms, and bathrooms (where no VOC adhesives or backing is also used). (1%) | BA41: SAN LUIS OBISPO | BB41: 303706 | BC41: 350170 | BD41: 422400 | BE41: 540672 | BF41: 602342
AL42: =IF(AL41="Yes",0.01,0) -> 0 | BA42: SAN MATEO | BB42: 440028 | BC42: 507348 | BD42: 612000 | BE42: 783360 | BF42: 872712
B43: (8) Install bamboo, stained concrete, cork, salvaged or FSC-Certified wood, ceramic tile, or natural linoleum in all common areas. (2%) | BA43: SANTA BARBARA | BB43: 303706 | BC43: 350170 | BD43: 422400 | BE43: 540672 | BF43: 602342
AL44: =IF(AL43="Yes",0.02,0) -> 0 | BA44: SANTA CLARA | BB44: 440028 | BC44: 507348 | BD44: 612000 | BE44: 783360 | BF44: 872712
B45: (9) Meet all requirements of the U.S. Environmental Protection Agency Indoor Air Plus Program. (2%) | BA45: SANTA CRUZ | BB45: 303706 | BC45: 350170 | BD45: 422400 | BE45: 540672 | BF45: 602342
AL46: =IF(AL45="Yes",0.02,0) -> 0 | BA46: SHASTA | BB46: 230655 | BC46: 265943 | BD46: 320800 | BE46: 410624 | BF46: 457461
A47: (D) | B47: Project requires seismic upgrading of existing structures, and/or requires toxic or other environmental mitigation as certified by the Project architect/ engineer. (lesser of costs or 15% basis adjustment) | AO47: =IF(AL47="Yes",MIN(AG49,AO11*0.15),0) -> 0 | BA47: SIERRA | BB47: 262291 | BC47: 302419 | BD47: 364800 | BE47: 466944 | BF47: 520205
AL48: =IF(AL47="yes","Please Select Type of Work and Enter Cost:",0) -> 0 | BA48: SISKIYOU | BB48: 262291 | BC48: 302419 | BD48: 364800 | BE48: 466944 | BF48: 520205
B49: If Yes, select type of work: | U49: Enter Certified Costs of Work: | AG49: 0 | BA49: SOLANO | BB49: 299104 | BC49: 344864 | BD49: 416000 | BE49: 532480 | BF49: 593216
A50: (E) | B50: Local development impact fees required to be paid to local government entities. Certification from local entities assessing fees also required. WAIVED IMPACT FEES ARE INELIGIBLE. | AO50: 0 | BA50: SONOMA | BB50: 299104 | BC50: 344864 | BD50: 416000 | BE50: 532480 | BF50: 593216
AL51: =IF(AL50="yes","Please Enter Amount Above:",0) -> 0 | BA51: STANISLAUS | BB51: 238133 | BC51: 274565 | BD51: 331200 | BE51: 423936 | BF51: 472291
A52: (F) | B52: Projects within a county with an unadjusted 9% threshold basis limit for a 2-bedroom unit equal or less than $400,000 and within a census tract designated on the TCAC/HCD Opportunity Map as Highest or High Resource. (10%) | AL52: =IF(AND(F54="Yes",OR(AB54="Highest Resource",AB54="High Resource")),"Yes","No") -> No | AO52: =ROUND(IF(AND(F54="Yes",OR(AB54="High Resource",AB54="Highest Resource"),AL52="Yes"),AO11*0.1,0),0) -> 0 | BA52: SUTTER | BB52: 278397 | BC52: 320989 | BD52: 387200 | BE52: 495616 | BF52: 552147
AL53: =IF(F54="Yes","In yellow cells, enter Tract ID # and TCAC/HCD Opportunity Map Resource level","") ->  | BA53: TEHAMA | BB53: 262291 | BC53: 302419 | BD53: 364800 | BE53: 466944 | BF53: 520205
B54: County eligibility: | F54: =IFERROR(IF(VLOOKUP(AC2,BA1:BF59,AX7,FALSE)<=400000,"Yes","No"),"") ->  | H54: TCAC/HCD Opportunity Area Map Tract ID #: | V54: Opportunity Map Resource level: | BA54: TRINITY | BB54: 262291 | BC54: 302419 | BD54: 364800 | BE54: 466944 | BF54: 520205
A55: TOTAL HCD ADJ. THRESHOLD BASIS LIMIT: | AO55: =AO11+AO13+AO15+AO17+AO19+AO20+AO21+AO23+AO25+AO27+AO47+AO50+AO52 -> 0 | BA55: TULARE | BB55: 238133 | BC55: 274565 | BD55: 331200 | BE55: 423936 | BF55: 472291
A56: =IF(AO2="Perm Close","Adjusted Threshold Basis Limit multiplied by 170%:","Adjusted Threshold Basis Limit multiplied by 160%:") -> Adjusted Threshold Basis Limit multiplied by 160%: | AO56: =IF(AO2="Perm Close",AO55*1.7,AO55*1.6) -> 0 | BA56: TUOLUMNE | BB56: 262291 | BC56: 302419 | BD56: 364800 | BE56: 466944 | BF56: 520205
A57: =IF(G2="",CONCATENATE("HCD HIGH COST TEST RESULT: ",G2),CONCATENATE("HCD HIGH COST TEST RESULT FOR: ",G2)) -> HCD HIGH COST TEST RESULT: | AE57: =IF(AO55=0,0,AE58/AO55) -> 0 | BA57: VENTURA | BB57: 303706 | BC57: 350170 | BD57: 422400 | BE57: 540672 | BF57: 602342
A58: (j) | B58: Total Eligible Basis (Dev Budget T125) | AE58: ='Dev Budget'!U125 -> 0 | AL58: =IF(AE58=0,"",IF(AE58<=AO56,"Costs Reasonable",IF(AO2="Perm Close","Costs too high > 170%","Costs too high > 160%"))) ->  | BA58: YOLO | BB58: 278397 | BC58: 320989 | BD58: 387200 | BE58: 495616 | BF58: 552147
BA59: YUBA | BB59: 278397 | BC59: 320989 | BD59: 387200 | BE59: 495616 | BF59: 552147

Sheet Dev Fee 2021
A1: HCD 2021 Developer Fee Calculator - revised 2/4/21 (complete YELLOW shaded cells)
A2: Project Phase: | C2: Origination | D2: Proposed Project Type: | G2: TCAC Project #:
A3: Project Name: | C3: =IF(Overview!E3="","",Overview!E3) ->  | F3: HCD Contract #s:
A4: Project's Developer Fee Summary | G4: HCD Limit | H4: Project Amt.
B5: =IF(LEFT(F2,1)="9","Maximum Total Developer Fee - 1e","Maximum Total Developer Fee - 2d") -> Maximum Total Developer Fee - 2d | G5: =IF(F2="No Tax Credits",H48,IF(LEFT(F2,1)="9",I17,I27)) -> 0 | H5: =F9 -> 0 | I5: =MAX(0,ROUND(H5,0)-ROUND(G5,0)) -> 0
B6: =IF(LEFT(F2,1)="9","Max Developer Fee payable from development funding sources - 1e","Max Developer Fee payable from development funding sources - lesser of 1e & 2d") -> Max Developer Fee payable from development funding sources - lesser of 1e & 2d | G6: =IF(F2="No Tax Credits",G5,IF(LEFT(F2,1)="9",I17,MIN(I27,I17))) -> 0 | H6: =MAX(0,H5-F10-I10) -> 0 | I6: =MAX(0,ROUND(H6,0)-ROUND(G6,0)) -> 0
B7: Deferred Developer Fee payable on a priority basis from available Cash Flow | G7: =MAX(0,MIN(G5,3500000)-G6) -> 0 | H7: =IF(F2="No Tax Credits",MAX(0,MIN(G5,H5-F10)-H6),MAX(0,MIN(G5,H5-F10,3500000)-H6)) -> 0
B8: Deferred Developer Fee payable exclusively from Sponsor Distributions | G8: =G5-G6-G7 -> 0 | H8: =MAX(0,H5-H6-H7-F10) -> 0
A9: Total Budgeted or Actual Developer Fee | F9: ='Dev Budget'!S122+'Dev Budget'!V122 -> 0
A10: Developer Fee Contributed as Capital | G10: Deferred Developer Fee
A12: =IF(F2="","Section 1. UMR §8312(c)(1) Max Developer Fee payable from funding sources - 4% Projects use TCAC 9% rules",IF(LEFT(F2,1)="4","Section 1. UMR §8312(c)(1) Max Developer Fee payable from funding sources - 4% Projects use TCAC 9% rules","Section 1. UMR §8312(b) Max Total Developer Fee - for 9% Projects")) -> Section 1. UMR §8312(c)(1) Max Developer Fee payable from funding sources - 4% Projects use TCAC 9% rules
A13: a. | B13: Project's type of construction: | D13: =IF(F2="No Tax Credits","",MID(F2,12,26)) ->  | I13: 2200000
A14: b. | B14: Project's Unadjusted Eligible Basis (excluding Developer Fee) - §10327(c)(2)(A) | G14: ='Dev Budget'!T114 -> 0 | H14: x 15% = | I14: =G14*0.15 -> 0
A15: c. | B15: Project's Unadjusted Eligible Acquisition Basis (excluding Developer Fee) - §10327(c)(2)(A) | G15: ='Dev Budget'!U114 -> 0 | H15: x 5% = | I15: =G15*0.05*(D13="Acq. Rehabilitation") -> 0
A16: d. | B16: Project's Non-Residential Costs (excluding Developer Fee) - §10327(c)(2)(A) | G16: ='Dev Budget'!V114 -> 0 | H16: x 15% = | I16: =G16*0.15 -> 0
A17: e. | B17: =IF(LEFT(F2,1)="9","Maximum Total Developer Fee - UMR §8312(b) - lesser of 1a or (1b + 1c + 1d)","Maximum Developer Fee payable from development funding sources - UMR §8312(c)(1) - lesser of 1a or (1b + 1c + 1d)") -> Maximum Developer Fee payable from development funding sources - UMR §8312(c)(1) - lesser of 1a or (1b + 1c + 1d) | I17: =MIN(I13,SUM(I14:I16)) -> 0
A19: Section 2. UMR §8312(c) - Maximum Developer Fee using TCAC 4% rules
A20: a. | B20: BIPOC Project meeting CDLAC §5230(f)(1)(B) - §10327(c)(2)(E)
A21: b. | B21: New Construction & Rehab - Unadjusted Eligible Basis (exclude Developer Fee) - §10327(c)(2)(B)(i) | G21: =G14 -> 0 | H21: =IF(OR(I20="No",I20=""),"x 15% =","x 20% =") -> x 15% = | I21: =G21*IF(OR(I20="No",I20=""),0.15,0.2) -> 0
A22: c. | B22: Basis for non-residential project costs (exclude Developer Fee) - §10327(c)(2)(B)(ii) | G22: =G16 -> 0 | H22: x 15% = | I22: =G22*0.15 -> 0
A23: d1. | B23: =IF(OR(C2="",D13="Acq. Rehabilitation"),"Acq/Rehab - at-risk development meeting the requirements of §10325(g)(4) - §10327(c)(2)(B)(ii)","Not Applicable") -> Not Applicable
A24: d2. | B24: =IF(AND(C2<>"",D13<>"Acq. Rehabilitation"),"Not Applicable","Acq/Rehab non-resyndication - hard construction costs per unit at least $50,000 per unit - §10327(c)(2)(B)(ii)") -> Not Applicable
A25: d3. | B25: =IF(OR(C2="",D13="Acq. Rehabilitation"),"Acq/Rehab non-resyndication - 30% or more of units restricted to 50% AMI or less - §10327(c)(2)(B)(ii)","Not Applicable") -> Not Applicable
A26: d4. | B26: =IF(OR(C2="",D13="Acq. Rehabilitation"),"Acq/Rehab - Unadj. Eligible Acq. Basis - §10327(c)(2)(B)(ii) = 15% if c1, c2 or c3 is Yes","Not Applicable") -> Not Applicable | G26: =IF(OR(C2="",D13<>"Acq. Rehabilitation"),0,G15) -> 0 | H26: =IF(OR(H23="Yes",H24="Yes",H25="Yes"),0.15,0.05) -> 0.05 | I26: =G26*H26 -> 0
A27: e. | B27: Maximum Total Developer Fee using TCAC 4% rules §8312(c) | I27: =ROUND(I21+I22+I26,0) -> 0
A28: f. | B28: Total Budgeted or Actual Developer Fee | H28: =F9 -> 0 | I28: =IF(ROUND(H28,0)>ROUND(I27,0),"Excess Dev Fee"&TEXT(H28-I27," $#,###"),"") -> 
A29: g. | B29: Budgeted Developer Fee paid from Development Sources | F29: Sum of Deferred and Contributed Developer Fee | G29: =F10+I10 -> 0 | H29: =H28-G29 -> 0 | I29: =IF(H29>I17,"Cannot exceed"&TEXT(MIN(I17,I27)," $#,###"),"") -> 
A30: h. | B30: Deferred Developer Fee payable on a priority basis from available Cash Flow | H30: =MAX(0,MIN(I27,H28,3500000)-MIN(I17,I27)) -> 0
A32: Section 3. UMR §8312(a) for Projects without tax credits
A33: a. New construction and substantial rehab projects with rehab construction cost UMR §8312(a)(1)
B34: substantial rehab = construction cost for rehab work (excluding contractor profit and overhead) in excess of $38,000 per unit
A35: a1. | B35: Number of units (include manager's unit)
A36: a2. | B36: First 30 units at: | D36: 28000 | E36: each | G36: =IF(F35>29,D36*30,+F35*D36) -> 0
A37: a3. | B37: Units in excess of 30 at: | D37: 11500 | E37: each | G37: =IF(F35<30,0,(F35-30)*D37) -> 0
A38: a4. | B38: Total new construction and substantial rehab (a2 + a3) | H38: =+G36+G37 -> 0
A39: b. Acquisition and rehab projects UMR §8312(a)(2)
B40: with construction cost for rehab work (excluding contractor profit and overhead) between $11,500 - $38,000 per unit
A41: b1. | B41: Number of units (include manager's unit)
A42: b2. | B42: First 30 units at: | D42: 13000 | E42: each | G42: =IF(F41>29,D42*30,+F41*D42) -> 0
A43: b3. | B43: Units in excess of 30 at: | D43: 5500 | E43: each | G43: =IF(F41<30,0,(F41-30)*D43) -> 0
A44: b4. | B44: Total acquisition and non-substantial rehab (b2 + b3) | H44: =+G42+G43 -> 0
A45: c. All other projects UMR §8312(a)(3)
A46: c1. | B46: Number of units (include manager's unit)
A47: c2. | B47: Total other at: | D47: 2000 | E47: per unit | H47: =+F46*D47 -> 0
A48: d. Maximum allowable Developer Fee (3a4 + 3b4 + 3c2) | H48: =H38+H44+H47 -> 0

Sheet Supportive Services Costs
A1: =IF(Overview!E3="","",Overview!E3) ->  | AK1: =IF('Serna RHD Coverpage'!B10="","",'Serna RHD Coverpage'!B10) -> 2021-03-26 | AR1: 8314 (e)(1) | AS1: 8314 (e)(2) | AT1: 8314 (e)(3) | AU1: 8314 (e)(4) | AV1: 8314 (e)(1) | AW1: 8314 (e)(2) | AX1: 8314 (e)(3) | AY1: 8314 (e)(4)
A2: Supportive Services Costs - HCD 2017 UMR Limits (for projects with HCD funding) - 2.5% annual increase | AQ2: Fiscal Year | AR2: Chronic Homelessness | AS2: Special Needs Population | AT2: Supportiv Services | AU2: Other | AV2: Chronic Homelessness | AW2: Special Needs Population | AX2: Supportiv Services | AY2: Other
A3: HCD UMR §8301(t): “Supportive Services” - social, health, educational, income support and employment services and benefits, coordination of community building and educational activities, individualized needs assessment, and individualized assistance with obtaining services and benefits. | AQ3: 2017 | AR3: 4080 | AS3: 3060 | AT3: 1051 | AU3: 250
A4: HCD UMR §8301(u): “Supportive Services Costs” - the costs of providing tenants service coordination, case management, and direct resident and Supportive Services. It includes: (1) the cost of providing tenants with information on and referral to social, health, educational, income support and employment services and benefits, coordination of community building and educational activities, individualized needs assessment, and individualized assistance with obtaining services and benefits; (2) salaries, benefits, contracted services, telecommunication expenses, travel costs, supplies, office expenses, staff training, maintenance of on-site equipment used in services programs, such as computer labs, incidental costs related to resident events, and other similar costs approved by the Department. | AQ4: =+AQ3+1 -> 2018 | AR4: =ROUND(AR3*1.025,0) -> 4182 | AS4: =ROUND(AS3*1.025,0) -> 3137 | AT4: =ROUND(AT3*1.025,0) -> 1077 | AU4: =ROUND(AU3*1.025,0) -> 256 | AV4: 4182 | AW4: 3137 | AX4: 1077 | AY4: 256
AQ5: =+AQ4+1 -> 2019 | AR5: =ROUND(AR4*1.025,0) -> 4287 | AS5: 3215 | AT5: 1104 | AU5: 262 | AV5: =ROUND(AV4*1.035,0) -> 4328 | AW5: 3247 | AX5: 1115 | AY5: 265
A6: A. Supportive Services Units: | I6: Total number of units: | M6: ='Max Loan & Unit Mix'!A25 -> 0 | O6: Certification Year - based on completion or update date from Universal Application ('General' worksheet cell K10): | AA6: 2021 | AC6: Total Units | AE6: Max PUPY Expense | AH6: Max Costs | AQ6: =+AQ5+1 -> 2020 | AR6: 4394 | AS6: 3295 | AT6: 1132 | AU6: 269 | AV6: 4479 | AW6: 3361 | AX6: 1154 | AY6: 274
A7: (1) UMR §8314(e)(1): Total number of Supportive Housing (SH) units anticipated to be restricted to individuals or families experiencing chronic homelessness as defined consistent with Health and Safety Code (HSC) §50675.14. | AE7: =VLOOKUP($AA$6,$AQ$3:$AY$61,2,FALSE) -> 4504 | AH7: =IFERROR(AE7*AC7,"") -> 0 | AQ7: =+AQ6+1 -> 2021 | AR7: 4504 | AS7: 3377 | AT7: 1160 | AU7: 276 | AV7: 4636 | AW7: 3479 | AX7: 1194 | AY7: 284
A8: (2) UMR §8314(e)(2): Total number of Supportive Housing (SH) units (other than those restricted to individuals or families experiencing chronic homelessness pursuant to HSC §50675.14), PLUS the total number of units restricted to occupancy by Special Needs Populations (SNP)* under any HCD program. (*click here for definition - §7301(s) of the MHP Regulations). Do not include units included in (1) above. | AE8: =VLOOKUP($AA$6,$AQ$3:$AY$61,3,FALSE) -> 3377 | AH8: =IFERROR(AE8*AC8,"") -> 0 | AQ8: 2022 | AR8: 4617 | AS8: 3461 | AT8: 1189 | AU8: 283 | AV8: 4798 | AW8: 3601 | AX8: 1236 | AY8: 294
A9: (3) UMR §8314(e)(3): Total number of units where the Sponsor, their affiliate, or a service provider under contract to provide Supportive Services at the Project has both: (A) qualified staff devoted exclusively to oversight and quality control of resident services in affordable housing, including the Project; and (B) a system to track and report on tenant outcomes, such as changes in employment status and income. Do not include units included in items (1) and (2) above. | AE9: =VLOOKUP($AA$6,$AQ$3:$AY$61,4,FALSE) -> 1160 | AH9: =IFERROR(AE9*AC9,"") -> 0 | AQ9: 2023 | AR9: 4732 | AS9: 3548 | AT9: 1219 | AU9: 290 | AV9: 4966 | AW9: 3727 | AX9: 1279 | AY9: 304
A10: (4) UMR §8314(e)(4): Total number of units anticipated to be offered Supportive Services provided by the Project Sponsor, a Sponsor affiliate, or contracted service provider that do not satisfy the criteria in items (1), (2) and (3) above. | AE10: =VLOOKUP($AA$6,$AQ$3:$AY$61,5,FALSE) -> 276 | AH10: =IFERROR(AE10*AC10,"") -> 0 | AQ10: 2024 | AR10: 4850 | AS10: 3637 | AT10: 1249 | AU10: 297 | AV10: 5140 | AW10: 3857 | AX10: 1324 | AY10: 315
A11: (5) Maximum Supportive Services Costs | AC11: =SUM(AC7:AD10) -> 0 | AH11: =SUM(AH7:AL10) -> 0 | AQ11: 2025 | AR11: 4971 | AS11: 3728 | AT11: 1280 | AU11: 304 | AV11: 5320 | AW11: 3992 | AX11: 1370 | AY11: 326
AQ12: 2026 | AR12: 5095 | AS12: 3821 | AT12: 1312 | AU12: 312 | AV12: 5506 | AW12: 4132 | AX12: 1418 | AY12: 337

Sheet Operating
A1: =IF(Overview!E3="","",Overview!E3) -> 
A2: =IF('Serna RHD Coverpage'!B10="","",'Serna RHD Coverpage'!B10) -> 2021-03-26 | C2: Year 1 Annual Income and Expenses
A4: Employee Information | F4: Comments
A5: No. | B5: FTE | C5: Employee Job Title | D5: Salary/Wages | E5: Value of Free Rent
C6: On-Site Manager(s) | D6: 0 | E6: 0
C7: On-Site Assistant Manager(s) | D7: 0 | E7: 0
C8: Supportive Services Staff Supervisor(s) | D8: 0
C9: Supportive Services Coordinator, On-Site | D9: 0
C10: Other Supportive Services Staff (inc. Case Manager) | D10: 0
C11: On-Site Maintenance Employee(s) | D11: 0 | E11: 0
C12: On-Site Leasing Agent/Administrative Employee(s) | D12: 0 | E12: 0
C13: On-Site Security Employee(s) | D13: 0 | E13: 0
D14: 0 | E14: 0
D15: 0 | E15: 0
C16: Total Salaries and Value of Free Rent Units | D16: =SUM(D6:D15) -> 0 | E16: =SUM(E6:E15) -> 0
B17: 6711 | C17: Payroll Taxes | D17: 0 | E17: Show free rent as an
B18: 6722 | C18: Workers Compensation | D18: 0 | E18: expense? | H18: Count free rent as an
B19: 6723 | C19: Employee Benefits | D19: 0 | E19: Yes | H19: expense?
C20: Employee(s) Payroll Taxes, Workers Comp. & Benefits | D20: =SUM(D17:D19) -> 0 | H20: =IF(E19="Yes",1,0) -> 1
C21: Total Employee(s) Expenses | D21: =D20+D16 -> 0
A24: Employee Units
A25: Income Limit | C25: Job Title(s) of Employee(s) Living On-Site | D25: Unit Type (No. of bdrms.) | E25: Square Footage | G25: Income Limit | H25: Job Title(s) of Employee(s) Living On-Site
D26: 0 | E26: 0 | G26: 0.6 | H26: On-Site Manager(s)
D27: 0 | E27: 0 | G27: 0.55 | H27: On-Site Assistant Manager(s)
D28: 0 | E28: 0 | G28: 0.5 | H28: On-Site Maintenance Employee(s)
D29: Total Square Footage | E29: =SUM(E26:E28) -> 0 | G29: None | H29: On-Site Leasing Agent/Administrative Employee(s)
A30: Year 1 Annual Operating Budget | G30: Other | H30: On-Site Security Employee(s)
A31: Acct. No. | C31: Revenue - Income | D31: Residential | E31: Commercial | F31: Comments | H31: Services Coordinator
A32: 5120/5140 | C32: Rent Revenue - Gross Potential | E32: 0
C33: Restricted Unit Rents | D33: ='Cash Flow'!D5 -> 0
C34: Unrestricted Unit Rents | D34: ='Cash Flow'!D6 -> 0
A35: 5121 | C35: Tenant Assistance Payments
C36: ='Max Loan & Unit Mix'!AT5 -> Subsidy Program Name | D36: ='Max Loan & Unit Mix'!BU25*12 -> 0
C37: ='Max Loan & Unit Mix'!AY5 -> Subsidy Program Name | D37: ='Max Loan & Unit Mix'!BX25*12 -> 0
C38: Operating Subsidies | D38: 0
C39: Other: (specify) | D39: 0 | E39: 0
A40: 5910 | C40: Laundry and Vending Revenue | D40: 0
A41: 5170 | C41: Garage and Parking Spaces | D41: 0 | E41: 0
A42: 5990 | C42: Miscellaneous Rent Revenue | D42: 0 | E42: 0
C43: Gross Potential Income (GPI) | D43: =SUM(D32:D42) -> 0 | E43: =SUM(E32:E42) -> 0
C45: Vacancy Rate: Restricted Units | D45: 0.05
C46: Vacancy Rate: Unrestricted Units | D46: 0.05
C47: Vacancy Rate: Tenant Assistance Payments | D47: 0.05
C48: ="Vacancy Rate: " & C39 -> Vacancy Rate: Other: (specify) | D48: 0.05
C49: Vacancy Rate: Laundry & Vending & Other Income | D49: 0.05
C50: Vacancy Rate: Commercial Income | E50: 0.5
A51: 5220/5240 | C51: Vacancy Loss(es) | D51: =(D33*D45)+(D34*D46)+((D36+D37)*D47)+(D39*D48)+((D40+D41+D42)*D49) -> 0 | E51: =+E43*E50 -> 0
C52: Effective Gross Income (EGI) | D52: =+D43-D51 -> 0 | E52: =+E43-E51 -> 0
A53: Acct. No. | C53: Expenses | D53: Residential | E53: Commercial | F53: Comments
C55: Administrative Expenses: 6200/6300
A56: 6203 | C56: Conventions and Meetings | D56: 0 | E56: 0
A57: 6210 | C57: Advertising and Marketing | D57: 0 | E57: 0
A58: 6250 | C58: Other Renting Expenses | D58: 0 | E58: 0
A59: 6310 | C59: Office/Administrative Salaries -- from above | D59: =D12 -> 0 | E59: 0
A60: 6311 | C60: Office Expenses | D60: 0 | E60: 0
A61: 6312 | C61: Office or Model Apartment Rent | D61: 0 | E61: 0
A62: 6320 | C62: Management Fee | D62: 0 | E62: 0
A63: 6330 | C63: Site/Resident Manager(s) Salaries -- from above | D63: =D6+D7 -> 0 | E63: 0
A64: 6331 | C64: Administrative Free Rent Unit -- from above | D64: =IF(H20=1,E6+E7+E12,0) -> 0 | E64: 0
A65: 6340 | C65: Legal Expense -- Project | D65: 0 | E65: 0
A66: 6350 | C66: Audit Expense | D66: 0 | E66: 0
A67: 6351 | C67: Bookkeeping Fees/Accounting Services | D67: 0 | E67: 0
A68: 6390 | C68: Miscellaneous Administrative Expenses | D68: 0 | E68: 0
A69: 6263T | C69: Total Administrative Expenses | D69: =SUM(D56:D68) -> 0 | E69: =SUM(E56:E68) -> 0
A70: Acct. No. | C70: Expenses | D70: Residential | E70: Commercial | F70: Comments
C71: Utilities Expenses: 6400
A72: 6450 | C72: Electricity | D72: 0 | E72: 0
A73: 6451 | C73: Water | D73: 0 | E73: 0
A74: 6452 | C74: Gas | D74: 0 | E74: 0
A75: 6453 | C75: Sewer | D75: 0 | E75: 0
C76: Other Utilities: (specify) | D76: 0 | E76: 0
A77: 6400T | C77: Total Utilities Expenses | D77: =SUM(D72:D76) -> 0 | E77: =SUM(E72:E76) -> 0
C78: Operating and Maintenane Expenses: 6500 | F78: Comments
A79: 6510 | C79: Payroll -- from above | D79: =D11+D13+D14+D15 -> 0 | E79: 0
A80: 6515 | C80: Supplies | D80: 0 | E80: 0
A81: 6520 | C81: Contracts | D81: 0 | E81: 0
A82: 6521 | C82: Operating & Maintenance Free Rent Unit -- from above | D82: =IF(H20=1,E11+E14+E15,0) -> 0 | E82: 0
A83: 6525 | C83: Garbage and Trash Removal | D83: 0 | E83: 0
A84: 6530 | C84: Security Contract | D84: 0 | E84: 0
A85: 6531 | C85: Security Free Rent Unit -- from above | D85: =IF(H20=1,E13,0) -> 0 | E85: 0
A86: 6546 | C86: Heating/Cooling Repairs and Maintenance | D86: 0 | E86: 0
A87: 6548 | C87: Snow Removal | D87: 0 | E87: 0
A88: 6570 | C88: Vehicle & Maintenance Equipment Operation/Reports | D88: 0 | E88: 0
A89: 6590 | C89: Miscellaneous Operating and Maintenance Expenses | D89: 0 | E89: 0
A90: 6500T | C90: Total Operating & Maintenance Expenses | D90: =SUM(D79:D89) -> 0 | E90: =SUM(E79:E89) -> 0
C91: Taxes and Insurance: 6700 | F91: Comments
A92: 6710 | C92: Real Estate Taxes | D92: 0 | E92: 0
A93: 6711 | C93: Payroll Taxes (Project's Share) -- from above | D93: =D17 -> 0 | E93: 0
A94: 6720 | C94: Property and Liability Insurance (Hazard) | D94: 0 | E94: 0
A95: 6729 | C95: Other Insurance (e.g. Earthquake) | D95: 0 | E95: 0
A96: 6721 | C96: Fidelity Bond Insurance | D96: 0 | E96: 0
A97: 6722 | C97: Worker's Compensation -- from above | D97: =D18 -> 0 | E97: 0
A98: 6723 | C98: Health Insurance/Other Employee Benefits--from above | D98: =D19 -> 0 | E98: 0
A99: 6790 | C99: Miscellaneous Taxes, Licenses, Permits & Insurance | D99: 0 | E99: 0
A100: 6700T | C100: Total Taxes and Insurance | D100: =SUM(D92:D99) -> 0 | E100: =SUM(E92:E99) -> 0
C101: Supportive Services Costs: 6900 | F101: Comments | G101: Max allowed
A102: 6990 | C102: Staff Supervisor(s) Salaries - from above | D102: =D8 -> 0 | E102: 0 | G102: =(D103+D104)*0.1 -> 0
A103: 6990 | C103: Services Coordinator Salaries, On-Site - from above | D103: =D9 -> 0 | E103: 0
A104: 6990 | C104: Other Supportive Services Staff Salaries - from above | D104: =D10 -> 0 | E104: 0
A105: 6990 | C105: Supportive Services Admin Overhead | D105: 0 | E105: 0 | G105: =SUM(D102:D107)*0.15 -> 0
A106: 6990 | C106: Other Supportive Services Costs: (specify) | D106: 0 | E106: 0
A107: 6990 | C107: Other Supportive Services Costs: (specify) | D107: 0 | E107: 0
A108: 6900T | C108: Total Supportive Services Costs | D108: =SUM(D102:D107) -> 0 | E108: =SUM(E102:E107) -> 0 | G108: ='Supportive Services Costs'!AH11 -> 0
C110: Total Operating Expenses | D110: =D69+D77+D90+D100+D108 -> 0 | E110: =E69+E77+E90+E100+E108 -> 0 | F110: Comments
C111: Funded Reserves: 7200 | D111: Residential | E111: Commercial
A112: 7210 | C112: Required Replacement Reserve Deposits | D112: 0 | E112: 0
A113: 7220 | C113: Other Reserves: (specify) | D113: 0 | E113: 0
A114: 7230 | C114: Other Reserves: (specify) | D114: 0 | E114: 0
A115: 7240 | C115: Other Reserves: (specify) | D115: 0 | E115: 0
C116: Total Reserves | D116: =SUM(D112:D115) -> 0 | E116: =SUM(E112:E115) -> 0
C117: Ground Lease | D117: Residential | E117: Commercial
C118: Ground Lease | D118: 0 | E118: 0
C119: Total Ground Lease | D119: =SUM(D118:D118) -> 0 | E119: =SUM(E118:E118) -> 0
C120: Net Operating Income | D120: =D52-D110-D116-D119 -> 0 | E120: =E52-E110-E116-E119 -> 0
C122: Financial Expenses: 6800 | F122: Comments
A123: 6820 | C123: 1st Mortgage Debt Service | D123: 0 | E123: 0
A124: 6830 | C124: 2nd Mortgage Debt Service | D124: 0 | E124: 0
A125: 6840 | C125: 3rd Mortgage Debt Service | D125: 0 | E125: 0
A126: 6890 | C126: Serna .42% Monitoring Fee | D126: 0 | E126: 0
A127: 6890 | C127: Bond Issuer Fee | D127: 0 | E127: 0
A128: 6890 | C128: Miscellaneous Financial Expenses: (specify) | D128: 0 | E128: 0
A129: 6890 | C129: Miscellaneous Financial Expenses: (specify) | D129: 0 | E129: 0
A130: 6800T | C130: Total Financial Expenses | D130: =SUM(D123:D129) -> 0 | E130: =SUM(E123:E129) -> 0
C131: Cash Flow | D131: =+D120-D130 -> 0 | E131: =+E120-E130 -> 0
A133: 7190 | C133: Asset Management/Similar Fees | D133: 0 | E133: 0
D134: Per Year | E134: Per Month
A135: Total Operating Expenses Per Unit
A136: Without any Adjustments | D136: =IFERROR(D110/'Max Loan & Unit Mix'!A25,0) -> 0 | E136: =+D136/12 -> 0
A137: With the Value of Rent-Free Units Included | D137: =IFERROR(IF(H20=1,(E16+D110)/'Max Loan & Unit Mix'!A25,D110/'Max Loan & Unit Mix'!A25),0) -> 0 | E137: =+D137/12 -> 0
A138: Without RE Taxes, Social Services Coordinator or Social Services/Social Programs and With the Value of Rent Fee Units Included | D138: =IFERROR((IF(H20=1,+((E16+D110)-(D92+D108))/'Max Loan & Unit Mix'!A25,(D110-(D92+D108))/'Max Loan & Unit Mix'!A25)),0) -> 0 | E138: =+D138/12 -> 0

Sheet Reserves
A1: HCD Reserve Requirements (all reserve withdrawals will require prior HCD approval)
A2: Project Name: | E2: =IF(Overview!E3="","",Overview!E3) ->  | Z2: Number of Project Units: | AH2: ='Max Loan & Unit Mix'!A25 -> 0 | AJ2: =IF('Serna RHD Coverpage'!B10="","",'Serna RHD Coverpage'!B10) -> 2021-03-26
A3: Replacement Reserve Calculator UMR §8309
A4: (a) | B4: 0.6% of new construction costs (structures excluding contractor profit, overhead, and general requirements and insurance): | AE4: ='Dev Budget'!S44+'Dev Budget'!V44-'Dev Budget'!S35-'Dev Budget'!V35-'Dev Budget'!S36-'Dev Budget'!V36-'Dev Budget'!S37-'Dev Budget'!V37-'Dev Budget'!S39-'Dev Budget'!V39 -> 0 | AI4: =AE4*0.006 -> 0
A5: (b) | B5: $500 per unit: | AE5: 500 | AI5: =$AH$2*AE5 -> 0
A6: (c) | B6: If a third-party physical needs assessment (PNA) was performed for this Project, must attach PNA: | Y6: PNA per unit amount: | AI6: =$AH$2*AE6 -> 0
A7: (d) | B7: Replacement Reserve amount = New construction: lesser of (a), (b) and (c) above; Rehab: lesser of (b) and (c) | AI7: =IF(AND(AI4>0,AI6>0),MIN(AI4,AI5,AI6),IF(AI4>0,MIN(AI4,AI5),IF(AI6>0,MIN(AI5,AI6),AI5))) -> 0
B8: HCD Required Replacement Reserve Amount - must be included in 'Operating' budget | AI8: =AI7 -> 0
A10: Operating Reserve Calculator UMR §8308
A11: 1 | B11: Total Operating Expenses (including Property Taxes and excluding Service Coordinator salary): | AI11: =Operating!D110-Operating!D103 -> 0
A12: 2 | B12: Replacement Reserve amount (from above): | AI12: =AI8 -> 0
A13: 3 | B13: Mandatory Permanent Debt Service (enter lender name below):
A14: (a) | B14: 1st Mortgage Debt Service | AI14: =Operating!D123 -> 0
A15: (b) | B15: 2nd Mortgage Debt Service | AI15: =Operating!D124 -> 0
A16: (c) | B16: 3rd Mortgage Debt Service | AI16: =Operating!D125 -> 0
A17: (d) | B17: Misc. Financial Expenses: | AI17: =Operating!D126+Operating!D127+Operating!D128+Operating!D129 -> 0
B18: Total Annual Mandatory Debt Service: | AI18: =SUM(AI14:AL17) -> 0
A19: 4a | B19: HCD Required Operating Reserve Amount (Tax Credit Project - 3 months) - must be included in 'Dev Budget' for tax credit projects | AI19: =(AI11+AI12+AI18)/4 -> 0
A20: 4b | B20: HCD Required Operating Reserve Amount (Non-Tax Credit Project - 4 months) - must be included in 'Dev Budget' if no tax credits | AI20: =(AI11+AI12+AI18)/3 -> 0
A21: If Reserve amounts are different than the required amount, enter reserve amounts and how they are calculated below:

Sheet Cash Flow
A1: =IF(Overview!E3="","",Overview!E3) -> 
A2: Cash Flow Analysis | R2: =IF('Serna RHD Coverpage'!B10="","",'Serna RHD Coverpage'!B10) -> 2021-03-26
A3: Is Income from Restricted Units based on Restricted or Proposed Rents? | I3: Restricted Rents | K3: =IF(I3<>"Proposed Rents",1,0) -> 1
A4: Income From Housing Units | C4: Inflation | D4: Year 1 | E4: Year 2 | F4: Year 3 | G4: Year 4 | H4: Year 5 | I4: Year 6 | J4: Year 7 | K4: Year 8 | L4: Year 9 | M4: Year 10 | N4: Year 11 | O4: Year 12 | P4: Year 13 | Q4: Year 14 | R4: Year 15 | S4: Year 16 | T4: Year 17 | U4: Year 18 | V4: Year 19 | W4: Year 20 | X4: Year 21 | Y4: Year 22 | Z4: Year 23 | AA4: Year 24 | AB4: Year 25 | AC4: Year 26 | AD4: Year 27 | AE4: Year 28 | AF4: Year 29 | AG4: Year 30 | AH4: Year 31 | AI4: Year 32 | AJ4: Year 33 | AK4: Year 34 | AL4: Year 35 | AM4: Year 36 | AN4: Year 37 | AO4: Year 38 | AP4: Year 39 | AQ4: Year 40
A5: Restricted Unit Rents | C5: 0.025 | D5: =IF(K3=1,'Max Loan & Unit Mix'!AK26,'Max Loan & Unit Mix'!AK27) -> 0 | E5: =D5*(1+$C$5) -> 0 | F5: 0 | G5: 0 | H5: 0 | I5: 0 | J5: 0 | K5: 0 | L5: 0 | M5: 0 | N5: 0 | O5: 0 | P5: 0 | Q5: 0 | R5: =Q5*(1+$C$5) -> 0 | S5: =R5*(1+$C$5) -> 0 | T5: 0 | U5: 0 | V5: 0 | W5: 0 | X5: 0 | Y5: 0 | Z5: 0 | AA5: 0 | AB5: 0 | AC5: 0 | AD5: 0 | AE5: 0 | AF5: 0 | AG5: 0 | AH5: 0 | AI5: 0 | AJ5: 0 | AK5: 0 | AL5: 0 | AM5: 0 | AN5: 0 | AO5: 0 | AP5: 0 | AQ5: 0
A6: Unrestricted Units | C6: 0.025 | D6: ='Max Loan & Unit Mix'!AK28 -> 0 | E6: =D6*(1+$C$6) -> 0 | F6: 0 | G6: 0 | H6: 0 | I6: 0 | J6: 0 | K6: 0 | L6: 0 | M6: 0 | N6: 0 | O6: 0 | P6: 0 | Q6: 0 | R6: =Q6*(1+$C$6) -> 0 | S6: =R6*(1+$C$6) -> 0 | T6: 0 | U6: 0 | V6: 0 | W6: 0 | X6: 0 | Y6: 0 | Z6: 0 | AA6: 0 | AB6: 0 | AC6: 0 | AD6: 0 | AE6: 0 | AF6: 0 | AG6: 0 | AH6: 0 | AI6: 0 | AJ6: 0 | AK6: 0 | AL6: 0 | AM6: 0 | AN6: 0 | AO6: 0 | AP6: 0 | AQ6: 0
A7: Tenant Assistance Payments
A8: =Operating!C36 -> Subsidy Program Name | C8: 0.025 | D8: =Operating!D36 -> 0 | E8: =D8*(1+$C$8) -> 0 | F8: =E8*(1+$C$8) -> 0 | G8: =F8*(1+$C$8) -> 0 | H8: 0 | I8: 0 | J8: 0 | K8: 0 | L8: 0 | M8: 0 | N8: 0 | O8: 0 | P8: 0 | Q8: 0 | R8: =Q8*(1+$C$8) -> 0 | S8: =R8*(1+$C$8) -> 0 | T8: 0 | U8: 0 | V8: 0 | W8: 0 | X8: 0 | Y8: 0 | Z8: 0 | AA8: 0 | AB8: 0 | AC8: 0 | AD8: 0 | AE8: 0 | AF8: 0 | AG8: 0 | AH8: 0 | AI8: 0 | AJ8: 0 | AK8: 0 | AL8: 0 | AM8: 0 | AN8: 0 | AO8: 0 | AP8: 0 | AQ8: 0
A9: =Operating!C37 -> Subsidy Program Name | C9: 0.025 | D9: =Operating!D37 -> 0 | E9: =D9*(1+$C$9) -> 0 | F9: =E9*(1+$C$9) -> 0 | G9: =F9*(1+$C$9) -> 0 | H9: 0 | I9: 0 | J9: 0 | K9: 0 | L9: 0 | M9: 0 | N9: 0 | O9: 0 | P9: 0 | Q9: 0 | R9: =Q9*(1+$C$9) -> 0 | S9: =R9*(1+$C$9) -> 0 | T9: 0 | U9: 0 | V9: 0 | W9: 0 | X9: 0 | Y9: 0 | Z9: 0 | AA9: 0 | AB9: 0 | AC9: 0 | AD9: 0 | AE9: 0 | AF9: 0 | AG9: 0 | AH9: 0 | AI9: 0 | AJ9: 0 | AK9: 0 | AL9: 0 | AM9: 0 | AN9: 0 | AO9: 0 | AP9: 0 | AQ9: 0
A10: Operating Subsidies | C10: 0.02 | D10: =Operating!D38 -> 0 | E10: =D10*(1+$C$10) -> 0 | F10: =E10*(1+$C$10) -> 0 | G10: 0 | H10: 0 | I10: 0 | J10: 0 | K10: 0 | L10: 0 | M10: 0 | N10: 0 | O10: 0 | P10: 0 | Q10: 0 | R10: =Q10*(1+$C$10) -> 0 | S10: =R10*(1+$C$10) -> 0 | T10: 0 | U10: 0 | V10: 0 | W10: 0 | X10: 0 | Y10: 0 | Z10: 0 | AA10: 0 | AB10: 0 | AC10: 0 | AD10: 0 | AE10: 0 | AF10: 0 | AG10: 0 | AH10: 0 | AI10: 0 | AJ10: 0 | AK10: 0 | AL10: 0 | AM10: 0 | AN10: 0 | AO10: 0 | AP10: 0 | AQ10: 0
A11: =Operating!C39 -> Other: (specify) | C11: =C8 -> 0.025 | D11: 0 | E11: 0 | F11: 0 | G11: 0 | H11: 0 | I11: 0 | J11: 0 | K11: 0 | L11: 0 | M11: 0 | N11: 0 | O11: 0 | P11: 0 | Q11: 0 | R11: 0 | S11: 0 | T11: 0 | U11: 0 | V11: 0 | W11: 0 | X11: 0 | Y11: 0 | Z11: 0 | AA11: 0 | AB11: 0 | AC11: 0 | AD11: 0 | AE11: 0 | AF11: 0 | AG11: 0 | AH11: 0 | AI11: 0 | AJ11: 0 | AK11: 0 | AL11: 0 | AM11: 0 | AN11: 0 | AO11: 0 | AP11: 0 | AQ11: 0
A12: Gross Potential Income - Housing | D12: =SUM(D5:D11) -> 0 | E12: 0 | F12: 0 | G12: 0 | H12: 0 | I12: 0 | J12: 0 | K12: 0 | L12: 0 | M12: 0 | N12: 0 | O12: 0 | P12: 0 | Q12: 0 | R12: 0 | S12: 0 | T12: 0 | U12: 0 | V12: 0 | W12: 0 | X12: 0 | Y12: 0 | Z12: 0 | AA12: 0 | AB12: 0 | AC12: 0 | AD12: 0 | AE12: 0 | AF12: 0 | AG12: 0 | AH12: 0 | AI12: 0 | AJ12: 0 | AK12: 0 | AL12: 0 | AM12: 0 | AN12: 0 | AO12: 0 | AP12: 0 | AQ12: 0
A14: Other Income
A15: Laundry & Vending | C15: 0.025 | D15: =Operating!D40 -> 0 | E15: =D15*(1+$C$15) -> 0 | F15: 0 | G15: 0 | H15: 0 | I15: 0 | J15: 0 | K15: 0 | L15: 0 | M15: 0 | N15: 0 | O15: 0 | P15: 0 | Q15: 0 | R15: =Q15*(1+$C$15) -> 0 | S15: =R15*(1+$C$15) -> 0 | T15: 0 | U15: 0 | V15: 0 | W15: 0 | X15: 0 | Y15: 0 | Z15: 0 | AA15: 0 | AB15: 0 | AC15: 0 | AD15: 0 | AE15: 0 | AF15: 0 | AG15: 0 | AH15: 0 | AI15: 0 | AJ15: 0 | AK15: 0 | AL15: 0 | AM15: 0 | AN15: 0 | AO15: 0 | AP15: 0 | AQ15: 0
A16: Other Income | C16: 0.025 | D16: =Operating!D41+Operating!D42 -> 0 | E16: =D16*(1+$C$16) -> 0 | F16: 0 | G16: 0 | H16: 0 | I16: 0 | J16: 0 | K16: 0 | L16: 0 | M16: 0 | N16: 0 | O16: 0 | P16: 0 | Q16: 0 | R16: =Q16*(1+$C$16) -> 0 | S16: =R16*(1+$C$16) -> 0 | T16: 0 | U16: 0 | V16: 0 | W16: 0 | X16: 0 | Y16: 0 | Z16: 0 | AA16: 0 | AB16: 0 | AC16: 0 | AD16: 0 | AE16: 0 | AF16: 0 | AG16: 0 | AH16: 0 | AI16: 0 | AJ16: 0 | AK16: 0 | AL16: 0 | AM16: 0 | AN16: 0 | AO16: 0 | AP16: 0 | AQ16: 0
A17: Commercial Income | C17: 0.025 | D17: =Operating!E43 -> 0 | E17: =D17*(1+$C$17) -> 0 | F17: 0 | G17: 0 | H17: 0 | I17: 0 | J17: 0 | K17: 0 | L17: 0 | M17: 0 | N17: 0 | O17: 0 | P17: 0 | Q17: 0 | R17: =Q17*(1+$C$17) -> 0 | S17: =R17*(1+$C$17) -> 0 | T17: 0 | U17: 0 | V17: 0 | W17: 0 | X17: 0 | Y17: 0 | Z17: 0 | AA17: 0 | AB17: 0 | AC17: 0 | AD17: 0 | AE17: 0 | AF17: 0 | AG17: 0 | AH17: 0 | AI17: 0 | AJ17: 0 | AK17: 0 | AL17: 0 | AM17: 0 | AN17: 0 | AO17: 0 | AP17: 0 | AQ17: 0
A18: Gross Potential Income - Other | D18: =SUM(D15:D17) -> 0 | E18: 0 | F18: 0 | G18: 0 | H18: 0 | I18: 0 | J18: 0 | K18: 0 | L18: 0 | M18: 0 | N18: 0 | O18: 0 | P18: 0 | Q18: 0 | R18: 0 | S18: 0 | T18: 0 | U18: 0 | V18: 0 | W18: 0 | X18: 0 | Y18: 0 | Z18: 0 | AA18: 0 | AB18: 0 | AC18: 0 | AD18: 0 | AE18: 0 | AF18: 0 | AG18: 0 | AH18: 0 | AI18: 0 | AJ18: 0 | AK18: 0 | AL18: 0 | AM18: 0 | AN18: 0 | AO18: 0 | AP18: 0 | AQ18: 0
A20: Gross Potential Income - Total | D20: =D12+D18 -> 0 | E20: 0 | F20: 0 | G20: 0 | H20: 0 | I20: 0 | J20: 0 | K20: 0 | L20: 0 | M20: 0 | N20: 0 | O20: 0 | P20: 0 | Q20: 0 | R20: 0 | S20: 0 | T20: 0 | U20: 0 | V20: 0 | W20: 0 | X20: 0 | Y20: 0 | Z20: 0 | AA20: 0 | AB20: 0 | AC20: 0 | AD20: 0 | AE20: 0 | AF20: 0 | AG20: 0 | AH20: 0 | AI20: 0 | AJ20: 0 | AK20: 0 | AL20: 0 | AM20: 0 | AN20: 0 | AO20: 0 | AP20: 0 | AQ20: 0
A22: Vacancy Assumptions
A23: Restricted Units | C23: =Operating!D45 -> 0.05 | D23: =$C23*D5 -> 0 | E23: =$C23*E5 -> 0 | F23: 0 | G23: 0 | H23: 0 | I23: 0 | J23: 0 | K23: 0 | L23: 0 | M23: 0 | N23: 0 | O23: 0 | P23: 0 | Q23: 0 | R23: 0 | S23: 0 | T23: 0 | U23: 0 | V23: 0 | W23: 0 | X23: 0 | Y23: 0 | Z23: 0 | AA23: 0 | AB23: 0 | AC23: 0 | AD23: 0 | AE23: 0 | AF23: 0 | AG23: 0 | AH23: 0 | AI23: 0 | AJ23: 0 | AK23: 0 | AL23: 0 | AM23: 0 | AN23: 0 | AO23: 0 | AP23: 0 | AQ23: 0
A24: Unrestricted Units | C24: =Operating!D46 -> 0.05 | D24: =$C24*D6 -> 0 | E24: 0 | F24: 0 | G24: 0 | H24: 0 | I24: 0 | J24: 0 | K24: 0 | L24: 0 | M24: 0 | N24: 0 | O24: 0 | P24: 0 | Q24: 0 | R24: 0 | S24: 0 | T24: 0 | U24: 0 | V24: 0 | W24: 0 | X24: 0 | Y24: 0 | Z24: 0 | AA24: 0 | AB24: 0 | AC24: 0 | AD24: 0 | AE24: 0 | AF24: 0 | AG24: 0 | AH24: 0 | AI24: 0 | AJ24: 0 | AK24: 0 | AL24: 0 | AM24: 0 | AN24: 0 | AO24: 0 | AP24: 0 | AQ24: 0
A25: Tenant Assistance Payments | C25: =Operating!D47 -> 0.05 | D25: =$C25*(D8+D9) -> 0 | E25: =$C25*(E8+E9) -> 0 | F25: 0 | G25: 0 | H25: 0 | I25: 0 | J25: 0 | K25: 0 | L25: 0 | M25: 0 | N25: 0 | O25: 0 | P25: 0 | Q25: 0 | R25: 0 | S25: 0 | T25: 0 | U25: 0 | V25: 0 | W25: 0 | X25: 0 | Y25: 0 | Z25: 0 | AA25: 0 | AB25: 0 | AC25: 0 | AD25: 0 | AE25: 0 | AF25: 0 | AG25: 0 | AH25: 0 | AI25: 0 | AJ25: 0 | AK25: 0 | AL25: 0 | AM25: 0 | AN25: 0 | AO25: 0 | AP25: 0 | AQ25: 0
A26: =Operating!C39 -> Other: (specify) | C26: =Operating!D48 -> 0.05 | D26: =$C26*D11 -> 0 | E26: =$C26*E11 -> 0 | F26: 0 | G26: 0 | H26: 0 | I26: 0 | J26: 0 | K26: 0 | L26: 0 | M26: 0 | N26: 0 | O26: 0 | P26: 0 | Q26: 0 | R26: 0 | S26: 0 | T26: 0 | U26: 0 | V26: 0 | W26: 0 | X26: 0 | Y26: 0 | Z26: 0 | AA26: 0 | AB26: 0 | AC26: 0 | AD26: 0 | AE26: 0 | AF26: 0 | AG26: 0 | AH26: 0 | AI26: 0 | AJ26: 0 | AK26: 0 | AL26: 0 | AM26: 0 | AN26: 0 | AO26: 0 | AP26: 0 | AQ26: 0
A27: Laundry/Vending/Other Income | C27: =Operating!D49 -> 0.05 | D27: =$C27*(D15+D16) -> 0 | E27: =$C27*(E15+E16) -> 0 | F27: 0 | G27: 0 | H27: 0 | I27: 0 | J27: 0 | K27: 0 | L27: 0 | M27: 0 | N27: 0 | O27: 0 | P27: 0 | Q27: 0 | R27: 0 | S27: 0 | T27: 0 | U27: 0 | V27: 0 | W27: 0 | X27: 0 | Y27: 0 | Z27: 0 | AA27: 0 | AB27: 0 | AC27: 0 | AD27: 0 | AE27: 0 | AF27: 0 | AG27: 0 | AH27: 0 | AI27: 0 | AJ27: 0 | AK27: 0 | AL27: 0 | AM27: 0 | AN27: 0 | AO27: 0 | AP27: 0 | AQ27: 0
A28: Commercial Income | C28: =Operating!E50 -> 0.5 | D28: =$C28*D17 -> 0 | E28: =$C28*E17 -> 0 | F28: 0 | G28: 0 | H28: 0 | I28: 0 | J28: 0 | K28: 0 | L28: 0 | M28: 0 | N28: 0 | O28: 0 | P28: 0 | Q28: 0 | R28: 0 | S28: 0 | T28: 0 | U28: 0 | V28: 0 | W28: 0 | X28: 0 | Y28: 0 | Z28: 0 | AA28: 0 | AB28: 0 | AC28: 0 | AD28: 0 | AE28: 0 | AF28: 0 | AG28: 0 | AH28: 0 | AI28: 0 | AJ28: 0 | AK28: 0 | AL28: 0 | AM28: 0 | AN28: 0 | AO28: 0 | AP28: 0 | AQ28: 0
A29: Total Vacancy Loss | D29: =SUM(D23:D28) -> 0 | E29: =SUM(E23:E28) -> 0 | F29: 0 | G29: 0 | H29: 0 | I29: 0 | J29: 0 | K29: 0 | L29: 0 | M29: 0 | N29: 0 | O29: 0 | P29: 0 | Q29: 0 | R29: 0 | S29: 0 | T29: 0 | U29: 0 | V29: 0 | W29: 0 | X29: 0 | Y29: 0 | Z29: 0 | AA29: 0 | AB29: 0 | AC29: 0 | AD29: 0 | AE29: 0 | AF29: 0 | AG29: 0 | AH29: 0 | AI29: 0 | AJ29: 0 | AK29: 0 | AL29: 0 | AM29: 0 | AN29: 0 | AO29: 0 | AP29: 0 | AQ29: 0
A31: Effective Gross Income | D31: =D20-D29 -> 0 | E31: 0 | F31: 0 | G31: 0 | H31: 0 | I31: 0 | J31: 0 | K31: 0 | L31: 0 | M31: 0 | N31: 0 | O31: 0 | P31: 0 | Q31: 0 | R31: 0 | S31: 0 | T31: 0 | U31: 0 | V31: 0 | W31: 0 | X31: 0 | Y31: 0 | Z31: 0 | AA31: 0 | AB31: 0 | AC31: 0 | AD31: 0 | AE31: 0 | AF31: 0 | AG31: 0 | AH31: 0 | AI31: 0 | AJ31: 0 | AK31: 0 | AL31: 0 | AM31: 0 | AN31: 0 | AO31: 0 | AP31: 0 | AQ31: 0
A33: Operating Expenses & Reserve Deposits
A34: Residential Exp. (w/o Real Estate Taxes & Sup. Services) | C34: 0.035 | D34: =Operating!D110-Operating!D92-Operating!D108 -> 0 | E34: =(1+$C$34)*D34 -> 0 | F34: 0 | G34: 0 | H34: 0 | I34: 0 | J34: 0 | K34: 0 | L34: 0 | M34: 0 | N34: 0 | O34: 0 | P34: 0 | Q34: 0 | R34: =(1+$C$34)*Q34 -> 0 | S34: =(1+$C$34)*R34 -> 0 | T34: 0 | U34: 0 | V34: 0 | W34: 0 | X34: 0 | Y34: 0 | Z34: 0 | AA34: 0 | AB34: 0 | AC34: 0 | AD34: 0 | AE34: 0 | AF34: 0 | AG34: 0 | AH34: 0 | AI34: 0 | AJ34: 0 | AK34: 0 | AL34: 0 | AM34: 0 | AN34: 0 | AO34: 0 | AP34: 0 | AQ34: 0
A35: Real Estate Taxes | C35: 0.02 | D35: =Operating!D92 -> 0 | E35: =(1+$C$35)*D35 -> 0 | F35: =(1+$C$35)*E35 -> 0 | G35: 0 | H35: 0 | I35: 0 | J35: 0 | K35: 0 | L35: 0 | M35: 0 | N35: 0 | O35: 0 | P35: 0 | Q35: 0 | R35: =(1+$C$35)*Q35 -> 0 | S35: =(1+$C$35)*R35 -> 0 | T35: 0 | U35: 0 | V35: 0 | W35: 0 | X35: 0 | Y35: 0 | Z35: 0 | AA35: 0 | AB35: 0 | AC35: 0 | AD35: 0 | AE35: 0 | AF35: 0 | AG35: 0 | AH35: 0 | AI35: 0 | AJ35: 0 | AK35: 0 | AL35: 0 | AM35: 0 | AN35: 0 | AO35: 0 | AP35: 0 | AQ35: 0
A36: Supportive Services Costs | C36: 0.025 | D36: =Operating!D108 -> 0 | E36: =(1+$C$36)*D36 -> 0 | F36: =(1+$C$36)*E36 -> 0 | G36: =(1+$C$36)*F36 -> 0 | H36: 0 | I36: 0 | J36: 0 | K36: 0 | L36: 0 | M36: 0 | N36: 0 | O36: 0 | P36: 0 | Q36: 0 | R36: 0 | S36: 0 | T36: 0 | U36: 0 | V36: 0 | W36: 0 | X36: 0 | Y36: 0 | Z36: 0 | AA36: 0 | AB36: 0 | AC36: 0 | AD36: 0 | AE36: 0 | AF36: 0 | AG36: 0 | AH36: 0 | AI36: 0 | AJ36: 0 | AK36: 0 | AL36: 0 | AM36: 0 | AN36: 0 | AO36: 0 | AP36: 0 | AQ36: 0
A37: Replacement Reserve | C37: 0 | D37: =Operating!D112+Operating!E112 -> 0 | E37: =(1+$C$37)*D37 -> 0 | F37: 0 | G37: 0 | H37: 0 | I37: 0 | J37: 0 | K37: 0 | L37: 0 | M37: 0 | N37: 0 | O37: 0 | P37: 0 | Q37: 0 | R37: =(1+$C$37)*Q37 -> 0 | S37: =(1+$C$37)*R37 -> 0 | T37: 0 | U37: 0 | V37: 0 | W37: 0 | X37: 0 | Y37: 0 | Z37: 0 | AA37: 0 | AB37: 0 | AC37: 0 | AD37: 0 | AE37: 0 | AF37: 0 | AG37: 0 | AH37: 0 | AI37: 0 | AJ37: 0 | AK37: 0 | AL37: 0 | AM37: 0 | AN37: 0 | AO37: 0 | AP37: 0 | AQ37: 0
A38: Other Reserves | C38: 0 | D38: =Operating!D113+Operating!D114+Operating!D115+Operating!E113+Operating!E114+Operating!E115 -> 0 | E38: =(1+$C$38)*D38 -> 0 | F38: =(1+$C$38)*E38 -> 0 | G38: 0 | H38: 0 | I38: 0 | J38: 0 | K38: 0 | L38: 0 | M38: 0 | N38: 0 | O38: 0 | P38: 0 | Q38: 0 | R38: =(1+$C$38)*Q38 -> 0 | S38: =(1+$C$38)*R38 -> 0 | T38: 0 | U38: 0 | V38: 0 | W38: 0 | X38: 0 | Y38: 0 | Z38: 0 | AA38: 0 | AB38: 0 | AC38: 0 | AD38: 0 | AE38: 0 | AF38: 0 | AG38: 0 | AH38: 0 | AI38: 0 | AJ38: 0 | AK38: 0 | AL38: 0 | AM38: 0 | AN38: 0 | AO38: 0 | AP38: 0 | AQ38: 0
A39: Ground Lease | C39: 0.02 | D39: =Operating!D118+Operating!E118 -> 0 | E39: =(1+$C$39)*D39 -> 0 | F39: =(1+$C$39)*E39 -> 0 | G39: 0 | H39: 0 | I39: 0 | J39: 0 | K39: 0 | L39: 0 | M39: 0 | N39: 0 | O39: 0 | P39: 0 | Q39: 0 | R39: =(1+$C$39)*Q39 -> 0 | S39: =(1+$C$39)*R39 -> 0 | T39: 0 | U39: 0 | V39: 0 | W39: 0 | X39: 0 | Y39: 0 | Z39: 0 | AA39: 0 | AB39: 0 | AC39: 0 | AD39: 0 | AE39: 0 | AF39: 0 | AG39: 0 | AH39: 0 | AI39: 0 | AJ39: 0 | AK39: 0 | AL39: 0 | AM39: 0 | AN39: 0 | AO39: 0 | AP39: 0 | AQ39: 0
A40: Commercial Expenses | C40: 0.035 | D40: =Operating!E110 -> 0 | E40: =(1+$C$40)*D40 -> 0 | F40: 0 | G40: 0 | H40: 0 | I40: 0 | J40: 0 | K40: 0 | L40: 0 | M40: 0 | N40: 0 | O40: 0 | P40: 0 | Q40: 0 | R40: =(1+$C$40)*Q40 -> 0 | S40: =(1+$C$40)*R40 -> 0 | T40: 0 | U40: 0 | V40: 0 | W40: 0 | X40: 0 | Y40: 0 | Z40: 0 | AA40: 0 | AB40: 0 | AC40: 0 | AD40: 0 | AE40: 0 | AF40: 0 | AG40: 0 | AH40: 0 | AI40: 0 | AJ40: 0 | AK40: 0 | AL40: 0 | AM40: 0 | AN40: 0 | AO40: 0 | AP40: 0 | AQ40: 0
A41: Total Expenses & Reserves | D41: =SUM(D34:D40) -> 0 | E41: 0 | F41: 0 | G41: 0 | H41: 0 | I41: 0 | J41: 0 | K41: 0 | L41: 0 | M41: 0 | N41: 0 | O41: 0 | P41: 0 | Q41: 0 | R41: 0 | S41: 0 | T41: 0 | U41: 0 | V41: 0 | W41: 0 | X41: 0 | Y41: 0 | Z41: 0 | AA41: 0 | AB41: 0 | AC41: 0 | AD41: 0 | AE41: 0 | AF41: 0 | AG41: 0 | AH41: 0 | AI41: 0 | AJ41: 0 | AK41: 0 | AL41: 0 | AM41: 0 | AN41: 0 | AO41: 0 | AP41: 0 | AQ41: 0
A43: Net Operating Income | D43: =D31-D41 -> 0 | E43: 0 | F43: 0 | G43: 0 | H43: 0 | I43: 0 | J43: 0 | K43: 0 | L43: 0 | M43: 0 | N43: 0 | O43: 0 | P43: 0 | Q43: 0 | R43: 0 | S43: 0 | T43: 0 | U43: 0 | V43: 0 | W43: 0 | X43: 0 | Y43: 0 | Z43: 0 | AA43: 0 | AB43: 0 | AC43: 0 | AD43: 0 | AE43: 0 | AF43: 0 | AG43: 0 | AH43: 0 | AI43: 0 | AJ43: 0 | AK43: 0 | AL43: 0 | AM43: 0 | AN43: 0 | AO43: 0 | AP43: 0 | AQ43: 0
A45: Debt Service
A46: 1st Mortgage | D46: =Operating!D123+Operating!E123 -> 0 | E46: =$D$46 -> 0 | F46: 0 | G46: 0 | H46: 0 | I46: 0 | J46: 0 | K46: 0 | L46: 0 | M46: 0 | N46: 0 | O46: 0 | P46: 0 | Q46: 0 | R46: 0 | S46: 0 | T46: 0 | U46: 0 | V46: 0 | W46: 0 | X46: 0 | Y46: 0 | Z46: 0 | AA46: 0 | AB46: 0 | AC46: 0 | AD46: 0 | AE46: 0 | AF46: 0 | AG46: 0 | AH46: 0 | AI46: 0 | AJ46: 0 | AK46: 0 | AL46: 0 | AM46: 0 | AN46: 0 | AO46: 0 | AP46: 0 | AQ46: 0
A47: Bridge Loan (repaid from Investor equity) | D47: 0 | E47: 0 | F47: 0 | G47: 0 | H47: 0
A48: 2nd Mortgage | D48: =Operating!D124+Operating!E124 -> 0 | E48: =$D$48 -> 0 | F48: 0 | G48: 0 | H48: 0 | I48: 0 | J48: 0 | K48: 0 | L48: 0 | M48: 0 | N48: 0 | O48: 0 | P48: 0 | Q48: 0 | R48: 0 | S48: 0 | T48: 0 | U48: 0 | V48: 0 | W48: 0 | X48: 0 | Y48: 0 | Z48: 0 | AA48: 0 | AB48: 0 | AC48: 0 | AD48: 0 | AE48: 0 | AF48: 0 | AG48: 0 | AH48: 0 | AI48: 0 | AJ48: 0 | AK48: 0 | AL48: 0 | AM48: 0 | AN48: 0 | AO48: 0 | AP48: 0 | AQ48: 0
A49: 3rd Mortgage Debt Service | D49: =Operating!D125+Operating!E125 -> 0 | E49: =$D$49 -> 0 | F49: 0 | G49: 0 | H49: 0 | I49: 0 | J49: 0 | K49: 0 | L49: 0 | M49: 0 | N49: 0 | O49: 0 | P49: 0 | Q49: 0 | R49: 0 | S49: 0 | T49: 0 | U49: 0 | V49: 0 | W49: 0 | X49: 0 | Y49: 0 | Z49: 0 | AA49: 0 | AB49: 0 | AC49: 0 | AD49: 0 | AE49: 0 | AF49: 0 | AG49: 0 | AH49: 0 | AI49: 0 | AJ49: 0 | AK49: 0 | AL49: 0 | AM49: 0 | AN49: 0 | AO49: 0 | AP49: 0 | AQ49: 0
A50: HCD Serna Monitoring Fee | D50: =Operating!D126+Operating!E126 -> 0 | E50: =(1+$C$50)*D50 -> 0 | F50: =(1+$C$50)*E50 -> 0 | G50: 0 | H50: 0 | I50: 0 | J50: 0 | K50: 0 | L50: 0 | M50: 0 | N50: 0 | O50: 0 | P50: 0 | Q50: 0 | R50: 0 | S50: 0 | T50: 0 | U50: 0 | V50: 0 | W50: 0 | X50: 0 | Y50: 0 | Z50: 0 | AA50: 0 | AB50: 0 | AC50: 0 | AD50: 0 | AE50: 0 | AF50: 0 | AG50: 0 | AH50: 0 | AI50: 0 | AJ50: 0 | AK50: 0 | AL50: 0 | AM50: 0 | AN50: 0 | AO50: 0 | AP50: 0 | AQ50: 0
A51: Misc. Financial Expenses: (specify) | D51: =Operating!D127+Operating!E127+Operating!D128+Operating!E128+Operating!D129+Operating!E129 -> 0 | E51: =$D$51 -> 0 | F51: =$D$51 -> 0 | G51: 0 | H51: 0 | I51: 0 | J51: 0 | K51: 0 | L51: 0 | M51: 0 | N51: 0 | O51: 0 | P51: 0 | Q51: 0 | R51: 0 | S51: =R51 -> 0 | T51: 0 | U51: 0 | V51: 0 | W51: 0 | X51: 0 | Y51: 0 | Z51: 0 | AA51: 0 | AB51: 0 | AC51: 0 | AD51: 0 | AE51: 0 | AF51: 0 | AG51: 0 | AH51: 0 | AI51: 0 | AJ51: 0 | AK51: 0 | AL51: 0 | AM51: 0 | AN51: 0 | AO51: 0 | AP51: 0 | AQ51: 0
A52: Total Required Debt Service | D52: =SUM(D46:D51)-D47 -> 0 | E52: =SUM(E46:E51)-E47 -> 0 | F52: 0 | G52: 0 | H52: 0 | I52: 0 | J52: 0 | K52: 0 | L52: 0 | M52: 0 | N52: 0 | O52: 0 | P52: 0 | Q52: 0 | R52: 0 | S52: 0 | T52: 0 | U52: 0 | V52: 0 | W52: 0 | X52: 0 | Y52: 0 | Z52: 0 | AA52: 0 | AB52: 0 | AC52: 0 | AD52: 0 | AE52: 0 | AF52: 0 | AG52: 0 | AH52: 0 | AI52: 0 | AJ52: 0 | AK52: 0 | AL52: 0 | AM52: 0 | AN52: 0 | AO52: 0 | AP52: 0 | AQ52: 0
A55: Cash Flow after all debt service | D55: =D43-D52 -> 0 | E55: 0 | F55: 0 | G55: 0 | H55: 0 | I55: 0 | J55: 0 | K55: 0 | L55: 0 | M55: 0 | N55: 0 | O55: 0 | P55: 0 | Q55: 0 | R55: 0 | S55: 0 | T55: 0 | U55: 0 | V55: 0 | W55: 0 | X55: 0 | Y55: 0 | Z55: 0 | AA55: 0 | AB55: 0 | AC55: 0 | AD55: 0 | AE55: 0 | AF55: 0 | AG55: 0 | AH55: 0 | AI55: 0 | AJ55: 0 | AK55: 0 | AL55: 0 | AM55: 0 | AN55: 0 | AO55: 0 | AP55: 0 | AQ55: 0
A57: Debt Service Coverage Ratio (DSCR) | D57: =IF(D52<=0,0,((D43/D52))) -> 0 | E57: =IF(E52<=0,0,((E43/E52))) -> 0 | F57: 0 | G57: 0 | H57: 0 | I57: 0 | J57: 0 | K57: 0 | L57: 0 | M57: 0 | N57: 0 | O57: 0 | P57: 0 | Q57: 0 | R57: 0 | S57: 0 | T57: 0 | U57: 0 | V57: 0 | W57: 0 | X57: 0 | Y57: 0 | Z57: 0 | AA57: 0 | AB57: 0 | AC57: 0 | AD57: 0 | AE57: 0 | AF57: 0 | AG57: 0 | AH57: 0 | AI57: 0 | AJ57: 0 | AK57: 0 | AL57: 0 | AM57: 0 | AN57: 0 | AO57: 0 | AP57: 0 | AQ57: 0
A58: Use of Cash Flow After Debt Service - HCD Projects
A59: Asset Mgmt./ Similar Fees | D59: =IF(D55>=D71,D71,MAX(0,D55)) -> 0 | E59: =IF(E55>=E71,E71,MAX(0,E55)) -> 0 | F59: =IF(F55>=F71,F71,MAX(0,F55)) -> 0 | G59: 0 | H59: 0 | I59: 0 | J59: 0 | K59: 0 | L59: 0 | M59: 0 | N59: 0 | O59: 0 | P59: 0 | Q59: 0 | R59: 0 | S59: 0 | T59: 0 | U59: 0 | V59: 0 | W59: 0 | X59: 0 | Y59: 0 | Z59: 0 | AA59: 0 | AB59: 0 | AC59: 0 | AD59: 0 | AE59: 0 | AF59: 0 | AG59: 0 | AH59: 0 | AI59: 0 | AJ59: 0 | AK59: 0 | AL59: 0 | AM59: 0 | AN59: 0 | AO59: 0 | AP59: 0 | AQ59: 0
A60: Deferred Developer Fee prior to
A61: Distributions & residual receipt payments | D61: =IF(D55-D59<=$D$74,MAX(0,D55-D59),$D$74) -> 0 | E61: =IF(D72+E55-E59<=$D$74,MAX(0,E55-E59),$D$74-D72) -> 0 | F61: =IF(E72+F55-F59<=$D$74,MAX(0,F55-F59),$D$74-E72) -> 0 | G61: 0 | H61: 0 | I61: 0 | J61: 0 | K61: 0 | L61: 0 | M61: 0 | N61: 0 | O61: 0 | P61: 0 | Q61: 0 | R61: 0 | S61: 0 | T61: 0 | U61: 0 | V61: 0 | W61: 0 | X61: 0 | Y61: 0 | Z61: 0 | AA61: 0 | AB61: 0 | AC61: 0 | AD61: 0 | AE61: 0 | AF61: 0 | AG61: 0 | AH61: 0 | AI61: 0 | AJ61: 0 | AK61: 0 | AL61: 0 | AM61: 0 | AN61: 0 | AO61: 0 | AP61: 0 | AQ61: 0
A62: Cash Available for Residual Receipts Loans
A63: and Sponsor Distributions | D63: =MAX(0,D55-D59-D61) -> 0 | E63: =MAX(0,E55-E59-E61) -> 0 | F63: =MAX(0,F55-F59-F61) -> 0 | G63: 0 | H63: 0 | I63: 0 | J63: 0 | K63: 0 | L63: 0 | M63: 0 | N63: 0 | O63: 0 | P63: 0 | Q63: 0 | R63: 0 | S63: 0 | T63: 0 | U63: 0 | V63: 0 | W63: 0 | X63: 0 | Y63: 0 | Z63: 0 | AA63: 0 | AB63: 0 | AC63: 0 | AD63: 0 | AE63: 0 | AF63: 0 | AG63: 0 | AH63: 0 | AI63: 0 | AJ63: 0 | AK63: 0 | AL63: 0 | AM63: 0 | AN63: 0 | AO63: 0 | AP63: 0 | AQ63: 0
A64: Sponsor Distributions | C64: 0.5 | D64: =$C64*D63 -> 0 | E64: =+$C64*E63 -> 0 | F64: 0 | G64: 0 | H64: 0 | I64: 0 | J64: 0 | K64: 0 | L64: 0 | M64: 0 | N64: 0 | O64: 0 | P64: 0 | Q64: 0 | R64: 0 | S64: 0 | T64: 0 | U64: 0 | V64: 0 | W64: 0 | X64: 0 | Y64: 0 | Z64: 0 | AA64: 0 | AB64: 0 | AC64: 0 | AD64: 0 | AE64: 0 | AF64: 0 | AG64: 0 | AH64: 0 | AI64: 0 | AJ64: 0 | AK64: 0 | AL64: 0 | AM64: 0 | AN64: 0 | AO64: 0 | AP64: 0 | AQ64: 0
A65: HCD Residual Payment | C65: 0.5 | D65: =$C65*D63 -> 0 | E65: =+$C65*E63 -> 0 | F65: 0 | G65: 0 | H65: 0 | I65: 0 | J65: 0 | K65: 0 | L65: 0 | M65: 0 | N65: 0 | O65: 0 | P65: 0 | Q65: 0 | R65: 0 | S65: 0 | T65: 0 | U65: 0 | V65: 0 | W65: 0 | X65: 0 | Y65: 0 | Z65: 0 | AA65: 0 | AB65: 0 | AC65: 0 | AD65: 0 | AE65: 0 | AF65: 0 | AG65: 0 | AH65: 0 | AI65: 0 | AJ65: 0 | AK65: 0 | AL65: 0 | AM65: 0 | AN65: 0 | AO65: 0 | AP65: 0 | AQ65: 0
A66: Other Residual Payments | C66: 0 | D66: =$C66*D63 -> 0 | E66: =+$C66*E63 -> 0 | F66: 0 | G66: 0 | H66: 0 | I66: 0 | J66: 0 | K66: 0 | L66: 0 | M66: 0 | N66: 0 | O66: 0 | P66: 0 | Q66: 0 | R66: 0 | S66: 0 | T66: 0 | U66: 0 | V66: 0 | W66: 0 | X66: 0 | Y66: 0 | Z66: 0 | AA66: 0 | AB66: 0 | AC66: 0 | AD66: 0 | AE66: 0 | AF66: 0 | AG66: 0 | AH66: 0 | AI66: 0 | AJ66: 0 | AK66: 0 | AL66: 0 | AM66: 0 | AN66: 0 | AO66: 0 | AP66: 0 | AQ66: 0
A67: Other Residual Payments | C67: 0 | D67: =$C67*D63 -> 0 | E67: =+$C67*E63 -> 0 | F67: 0 | G67: 0 | H67: 0 | I67: 0 | J67: 0 | K67: 0 | L67: 0 | M67: 0 | N67: 0 | O67: 0 | P67: 0 | Q67: 0 | R67: 0 | S67: 0 | T67: 0 | U67: 0 | V67: 0 | W67: 0 | X67: 0 | Y67: 0 | Z67: 0 | AA67: 0 | AB67: 0 | AC67: 0 | AD67: 0 | AE67: 0 | AF67: 0 | AG67: 0 | AH67: 0 | AI67: 0 | AJ67: 0 | AK67: 0 | AL67: 0 | AM67: 0 | AN67: 0 | AO67: 0 | AP67: 0 | AQ67: 0
A68: Other Residual Payments | C68: 0 | D68: =$C68*D63 -> 0 | E68: =+$C68*E63 -> 0 | F68: 0 | G68: 0 | H68: 0 | I68: 0 | J68: 0 | K68: 0 | L68: 0 | M68: 0 | N68: 0 | O68: 0 | P68: 0 | Q68: 0 | R68: 0 | S68: 0 | T68: 0 | U68: 0 | V68: 0 | W68: 0 | X68: 0 | Y68: 0 | Z68: 0 | AA68: 0 | AB68: 0 | AC68: 0 | AD68: 0 | AE68: 0 | AF68: 0 | AG68: 0 | AH68: 0 | AI68: 0 | AJ68: 0 | AK68: 0 | AL68: 0 | AM68: 0 | AN68: 0 | AO68: 0 | AP68: 0 | AQ68: 0
A69: Other Residual Payments | C69: 0 | D69: =$C69*D63 -> 0 | E69: =+$C69*E63 -> 0 | F69: 0 | G69: 0 | H69: 0 | I69: 0 | J69: 0 | K69: 0 | L69: 0 | M69: 0 | N69: 0 | O69: 0 | P69: 0 | Q69: 0 | R69: 0 | S69: 0 | T69: 0 | U69: 0 | V69: 0 | W69: 0 | X69: 0 | Y69: 0 | Z69: 0 | AA69: 0 | AB69: 0 | AC69: 0 | AD69: 0 | AE69: 0 | AF69: 0 | AG69: 0 | AH69: 0 | AI69: 0 | AJ69: 0 | AK69: 0 | AL69: 0 | AM69: 0 | AN69: 0 | AO69: 0 | AP69: 0 | AQ69: 0
A71: Max Asset Mgmt/Similar Fees | C71: 0.035 | D71: =Operating!D133 -> 0 | E71: =(1+$C$71)*D71 -> 0 | F71: =(1+$C$71)*E71 -> 0 | G71: 0 | H71: 0 | I71: 0 | J71: 0 | K71: 0 | L71: 0 | M71: 0 | N71: 0 | O71: 0 | P71: 0 | Q71: 0 | R71: =(1+$C$71)*Q71 -> 0 | S71: 0 | T71: 0 | U71: 0 | V71: 0 | W71: 0 | X71: 0 | Y71: 0 | Z71: 0 | AA71: 0 | AB71: 0 | AC71: 0 | AD71: 0 | AE71: 0 | AF71: 0 | AG71: 0 | AH71: 0 | AI71: 0 | AJ71: 0 | AK71: 0 | AL71: 0 | AM71: 0 | AN71: 0 | AO71: 0 | AP71: 0 | AQ71: 0
A72: Cumulative paid Deferred Dev. Fee | D72: =+D61 -> 0 | E72: =+D72+E61 -> 0 | F72: 0 | G72: 0 | H72: 0 | I72: 0 | J72: 0 | K72: 0 | L72: 0 | M72: 0 | N72: 0 | O72: 0 | P72: 0 | Q72: 0 | R72: =+Q72+R61 -> 0 | S72: =+R72+S61 -> 0 | T72: 0 | U72: 0 | V72: 0 | W72: 0 | X72: 0 | Y72: 0 | Z72: 0 | AA72: 0 | AB72: 0 | AC72: 0 | AD72: 0 | AE72: 0 | AF72: 0 | AG72: 0 | AH72: 0 | AI72: 0 | AJ72: 0 | AK72: 0 | AL72: 0 | AM72: 0 | AN72: 0 | AO72: 0 | AP72: 0 | AQ72: 0
A73: Total Deferred Developer Fee budgeted for payment prior
A74: to distributions and residual receipt payments | D74: 0

Sheet Serna Loan Limits (hidden)
C2: Serna 9% Loan Limits (Projects with 9% Tax Credits) | I2: Serna no 9%-higher Loan Limits (Projects without 9% Tax Credits in a new construction project located in a “High Resource” or “Highest Resource” area on the TCAC/HCD Opportunity Map) | O2: Serna no 9%-other Loan Limits (Projects without 9% Tax Credits - other Assisted Units)
C3: 0 | D3: 1 | E3: 2 | F3: 3 | G3: 4 | H3: 5 | I3: 0 | J3: 1 | K3: 2 | L3: 3 | M3: 4 | N3: 5 | O3: 0 | P3: 1 | Q3: 2 | R3: 3 | S3: 4 | T3: 5
A4: ALAMEDA80% | B4: 80% AMI | C4: 95000 | D4: 95000 | E4: 95000 | F4: 95000 | G4: 95000 | H4: 95000 | I4: 175000 | J4: 175000 | K4: 175000 | L4: 175000 | M4: 175000 | N4: 175000 | O4: 150000 | P4: 150000 | Q4: 150000 | R4: 150000 | S4: 150000 | T4: 150000 | V4: =ROUND(C4,0) -> 95000 | W4: =ROUND(D4,0) -> 95000 | X4: =ROUND(E4,0) -> 95000 | Y4: =ROUND(F4,0) -> 95000 | Z4: =ROUND(H4,0) -> 95000 | AA4: =ROUND(I4,0) -> 175000 | AB4: =ROUND(J4,0) -> 175000 | AC4: =ROUND(K4,0) -> 175000 | AD4: =ROUND(L4,0) -> 175000 | AE4: =ROUND(N4,0) -> 175000 | AF4: =ROUND(O4,0) -> 150000 | AG4: =ROUND(P4,0) -> 150000 | AH4: =ROUND(Q4,0) -> 150000 | AI4: =ROUND(R4,0) -> 150000 | AJ4: =ROUND(T4,0) -> 150000 | AL4: 95000 | AM4: 95000 | AN4: 95000 | AO4: 95000 | AP4: 95000 | AQ4: 175000 | AR4: 175000 | AS4: 175000 | AT4: 175000 | AU4: 175000 | AV4: 150000 | AW4: 150000 | AX4: 150000 | AY4: 150000 | AZ4: 150000
A5: ALAMEDA75% | B5: 75% AMI | C5: 95000 | D5: 95000 | E5: 95000 | F5: 95000 | G5: 95000 | H5: 95000 | I5: 175000 | J5: 175000 | K5: 175000 | L5: 175000 | M5: 175000 | N5: 175000 | O5: 150000 | P5: 150000 | Q5: 150000 | R5: 150000 | S5: 150000 | T5: 150000 | V5: 95000 | W5: 95000 | X5: 95000 | Y5: 95000 | Z5: 95000 | AA5: 175000 | AB5: 175000 | AC5: 175000 | AD5: 175000 | AE5: =ROUND(N5,0) -> 175000 | AF5: =ROUND(O5,0) -> 150000 | AG5: =ROUND(P5,0) -> 150000 | AH5: =ROUND(Q5,0) -> 150000 | AI5: =ROUND(R5,0) -> 150000 | AJ5: =ROUND(T5,0) -> 150000 | AL5: 95000 | AM5: 95000 | AN5: 95000 | AO5: 95000 | AP5: 95000 | AQ5: 175000 | AR5: 175000 | AS5: 175000 | AT5: 175000 | AU5: 175000 | AV5: 150000 | AW5: 150000 | AX5: 150000 | AY5: 150000 | AZ5: 150000
A6: ALAMEDA70% | B6: 70% AMI | C6: 95000 | D6: 95000 | E6: 95000 | F6: 95000 | G6: 95000 | H6: 95000 | I6: 175000 | J6: 175000 | K6: 175000 | L6: 175000 | M6: 175000 | N6: 175000 | O6: 150000 | P6: 150000 | Q6: 150000 | R6: 150000 | S6: 150000 | T6: 150000 | V6: 95000 | W6: 95000 | X6: 95000 | Y6: 95000 | Z6: 95000 | AA6: 175000 | AB6: 175000 | AC6: 175000 | AD6: 175000 | AE6: 175000 | AF6: 150000 | AG6: 150000 | AH6: 150000 | AI6: 150000 | AJ6: 150000 | AL6: 95000 | AM6: 95000 | AN6: 95000 | AO6: 95000 | AP6: 95000 | AQ6: 175000 | AR6: 175000 | AS6: 175000 | AT6: 175000 | AU6: 175000 | AV6: 150000 | AW6: 150000 | AX6: 150000 | AY6: 150000 | AZ6: 150000
A7: ALAMEDA65% | B7: 65% AMI | C7: 95000 | D7: 95000 | E7: 95000 | F7: 95000 | G7: 95000 | H7: 95000 | I7: 175000 | J7: 175000 | K7: 175000 | L7: 175000 | M7: 175000 | N7: 175000 | O7: 150000 | P7: 150000 | Q7: 150000 | R7: 150000 | S7: 150000 | T7: 150000 | V7: 95000 | W7: 95000 | X7: 95000 | Y7: 95000 | Z7: 95000 | AA7: 175000 | AB7: 175000 | AC7: 175000 | AD7: 175000 | AE7: 175000 | AF7: 150000 | AG7: 150000 | AH7: 150000 | AI7: 150000 | AJ7: 150000 | AL7: 95000 | AM7: 95000 | AN7: 95000 | AO7: 95000 | AP7: 95000 | AQ7: 175000 | AR7: 175000 | AS7: 175000 | AT7: 175000 | AU7: 175000 | AV7: 150000 | AW7: 150000 | AX7: 150000 | AY7: 150000 | AZ7: 150000
A8: ALAMEDA60% | B8: 60% AMI | C8: 95000 | D8: 95000 | E8: 95000 | F8: 95000 | G8: 95000 | H8: 95000 | I8: 175000 | J8: 175000 | K8: 175000 | L8: 175000 | M8: 175000 | N8: 175000 | O8: 150000 | P8: 150000 | Q8: 150000 | R8: 150000 | S8: 150000 | T8: 150000 | V8: 95000 | W8: 95000 | X8: 95000 | Y8: 95000 | Z8: 95000 | AA8: 175000 | AB8: 175000 | AC8: 175000 | AD8: 175000 | AE8: 175000 | AF8: 150000 | AG8: 150000 | AH8: 150000 | AI8: 150000 | AJ8: 150000 | AL8: 95000 | AM8: 95000 | AN8: 95000 | AO8: 95000 | AP8: 95000 | AQ8: 175000 | AR8: 175000 | AS8: 175000 | AT8: 175000 | AU8: 175000 | AV8: 150000 | AW8: 150000 | AX8: 150000 | AY8: 150000 | AZ8: 150000
A9: ALAMEDA55% | B9: 55% AMI | C9: 111565 | D9: 112574 | E9: 116175 | F9: 119488 | G9: 122369 | H9: 122369 | I9: 191565 | J9: 192574 | K9: 196175 | L9: 199488 | M9: 202369 | N9: 202369 | O9: 166565 | P9: 167574 | Q9: 171175 | R9: 174488 | S9: 177369 | T9: 177369 | V9: 111565 | W9: 112574 | X9: 116175 | Y9: 119488 | Z9: 122369 | AA9: 191565 | AB9: 192574 | AC9: 196175 | AD9: 199488 | AE9: 202369 | AF9: 166565 | AG9: 167574 | AH9: 171175 | AI9: 174488 | AJ9: 177369 | AL9: 111565 | AM9: 112574 | AN9: 116175 | AO9: 119488 | AP9: 122369 | AQ9: 191565 | AR9: 192574 | AS9: 196175 | AT9: 199488 | AU9: 202369 | AV9: 166565 | AW9: 167574 | AX9: 171175 | AY9: 174488 | AZ9: 177369
A10: ALAMEDA50% | B10: 50% AMI | C10: 127987 | D10: 130292 | E10: 137350 | F10: 143976 | G10: 149594 | H10: 149594 | I10: 207987 | J10: 210292 | K10: 217350 | L10: 223976 | M10: 229594 | N10: 229594 | O10: 182987 | P10: 185292 | Q10: 192350 | R10: 198976 | S10: 204594 | T10: 204594 | V10: 127987 | W10: 130292 | X10: 137350 | Y10: 143976 | Z10: 149594 | AA10: 207987 | AB10: 210292 | AC10: 217350 | AD10: 223976 | AE10: 229594 | AF10: 182987 | AG10: 185292 | AH10: 192350 | AI10: 198976 | AJ10: 204594 | AL10: 127987 | AM10: 130292 | AN10: 137350 | AO10: 143976 | AP10: 149594 | AQ10: 207987 | AR10: 210292 | AS10: 217350 | AT10: 223976 | AU10: 229594 | AV10: 182987 | AW10: 185292 | AX10: 192350 | AY10: 198976 | AZ10: 204594
A11: ALAMEDA45% | B11: 45% AMI | C11: 144408 | D11: 147865 | E11: 158525 | F11: 168320 | G11: 176819 | H11: 176819 | I11: 224408 | J11: 227865 | K11: 238525 | L11: 248320 | M11: 256819 | N11: 256819 | O11: 199408 | P11: 202865 | Q11: 213525 | R11: 223320 | S11: 231819 | T11: 231819 | V11: 144408 | W11: 147865 | X11: 158525 | Y11: 168320 | Z11: 176819 | AA11: 224408 | AB11: 227865 | AC11: 238525 | AD11: 248320 | AE11: 256819 | AF11: 199408 | AG11: 202865 | AH11: 213525 | AI11: 223320 | AJ11: 231819 | AL11: 144408 | AM11: 147865 | AN11: 158525 | AO11: 168320 | AP11: 176819 | AQ11: 224408 | AR11: 227865 | AS11: 238525 | AT11: 248320 | AU11: 256819 | AV11: 199408 | AW11: 202865 | AX11: 213525 | AY11: 223320 | AZ11: 231819
A12: ALAMEDA40% | B12: 40% AMI | C12: 160830 | D12: 165439 | E12: 179556 | F12: 192808 | G12: 204044 | H12: 204044 | I12: 240830 | J12: 245439 | K12: 259556 | L12: 272808 | M12: 284044 | N12: 284044 | O12: 215830 | P12: 220439 | Q12: 234556 | R12: 247808 | S12: 259044 | T12: 259044 | V12: 160830 | W12: 165439 | X12: 179556 | Y12: 192808 | Z12: 204044 | AA12: 240830 | AB12: 245439 | AC12: 259556 | AD12: 272808 | AE12: 284044 | AF12: 215830 | AG12: 220439 | AH12: 234556 | AI12: 247808 | AJ12: 259044 | AL12: 160830 | AM12: 165439 | AN12: 179556 | AO12: 192808 | AP12: 204044 | AQ12: 240830 | AR12: 245439 | AS12: 259556 | AT12: 272808 | AU12: 284044 | AV12: 215830 | AW12: 220439 | AX12: 234556 | AY12: 247808 | AZ12: 259044
A13: ALAMEDA35% | B13: 35% AMI | C13: 177395 | D13: 183157 | E13: 200731 | F13: 217296 | G13: 231413 | H13: 231413 | I13: 257395 | J13: 263157 | K13: 280731 | L13: 297296 | M13: 311413 | N13: 311413 | O13: 232395 | P13: 238157 | Q13: 255731 | R13: 272296 | S13: 286413 | T13: 286413 | V13: 177395 | W13: 183157 | X13: 200731 | Y13: 217296 | Z13: 231413 | AA13: 257395 | AB13: 263157 | AC13: 280731 | AD13: 297296 | AE13: 311413 | AF13: 232395 | AG13: 238157 | AH13: 255731 | AI13: 272296 | AJ13: 286413 | AL13: 177395 | AM13: 183157 | AN13: 200731 | AO13: 217296 | AP13: 231413 | AQ13: 257395 | AR13: 263157 | AS13: 280731 | AT13: 297296 | AU13: 311413 | AV13: 232395 | AW13: 238157 | AX13: 255731 | AY13: 272296 | AZ13: 286413
A14: ALAMEDA30% | B14: 30% AMI | C14: 193816 | D14: 200731 | E14: 221906 | F14: 241640 | G14: 258638 | H14: 258638 | I14: 273816 | J14: 280731 | K14: 301906 | L14: 321640 | M14: 338638 | N14: 338638 | O14: 248816 | P14: 255731 | Q14: 276906 | R14: 296640 | S14: 313638 | T14: 313638 | V14: 193816 | W14: 200731 | X14: 221906 | Y14: 241640 | Z14: 258638 | AA14: 273816 | AB14: 280731 | AC14: 301906 | AD14: 321640 | AE14: 338638 | AF14: 248816 | AG14: 255731 | AH14: 276906 | AI14: 296640 | AJ14: 313638 | AL14: 193816 | AM14: 200731 | AN14: 221906 | AO14: 241640 | AP14: 258638 | AQ14: 273816 | AR14: 280731 | AS14: 301906 | AT14: 321640 | AU14: 338638 | AV14: 248816 | AW14: 255731 | AX14: 276906 | AY14: 296640 | AZ14: 313638
A15: ALAMEDA25% | B15: 25% AMI | C15: 210238 | D15: 218449 | E15: 243081 | F15: 266128 | G15: 285863 | H15: 285863 | I15: 290238 | J15: 298449 | K15: 323081 | L15: 346128 | M15: 365863 | N15: 365863 | O15: 265238 | P15: 273449 | Q15: 298081 | R15: 321128 | S15: 340863 | T15: 340863 | V15: 210238 | W15: 218449 | X15: 243081 | Y15: 266128 | Z15: 285863 | AA15: 290238 | AB15: 298449 | AC15: 323081 | AD15: 346128 | AE15: 365863 | AF15: 265238 | AG15: 273449 | AH15: 298081 | AI15: 321128 | AJ15: 340863 | AL15: 210238 | AM15: 218449 | AN15: 243081 | AO15: 266128 | AP15: 285863 | AQ15: 290238 | AR15: 298449 | AS15: 323081 | AT15: 346128 | AU15: 365863 | AV15: 265238 | AW15: 273449 | AX15: 298081 | AY15: 321128 | AZ15: 340863
A16: ALAMEDA20% | B16: 20% AMI | C16: 226659 | D16: 236022 | E16: 264256 | F16: 290616 | G16: 313088 | H16: 313088 | I16: 306659 | J16: 316022 | K16: 344256 | L16: 370616 | M16: 393088 | N16: 393088 | O16: 281659 | P16: 291022 | Q16: 319256 | R16: 345616 | S16: 368088 | T16: 368088 | V16: 226659 | W16: 236022 | X16: 264256 | Y16: 290616 | Z16: 313088 | AA16: 306659 | AB16: 316022 | AC16: 344256 | AD16: 370616 | AE16: 393088 | AF16: 281659 | AG16: 291022 | AH16: 319256 | AI16: 345616 | AJ16: 368088 | AL16: 226659 | AM16: 236022 | AN16: 264256 | AO16: 290616 | AP16: 313088 | AQ16: 306659 | AR16: 316022 | AS16: 344256 | AT16: 370616 | AU16: 393088 | AV16: 281659 | AW16: 291022 | AX16: 319256 | AY16: 345616 | AZ16: 368088
A17: ALAMEDA15% | B17: 15% AMI | C17: 243225 | D17: 253596 | E17: 285431 | F17: 314960 | G17: 340457 | H17: 340457 | I17: 323225 | J17: 333596 | K17: 365431 | L17: 394960 | M17: 420457 | N17: 420457 | O17: 298225 | P17: 308596 | Q17: 340431 | R17: 369960 | S17: 395457 | T17: 395457 | V17: 243225 | W17: 253596 | X17: 285431 | Y17: 314960 | Z17: 340457 | AA17: 323225 | AB17: 333596 | AC17: 365431 | AD17: 394960 | AE17: 420457 | AF17: 298225 | AG17: 308596 | AH17: 340431 | AI17: 369960 | AJ17: 395457 | AL17: 243225 | AM17: 253596 | AN17: 285431 | AO17: 314960 | AP17: 340457 | AQ17: 323225 | AR17: 333596 | AS17: 365431 | AT17: 394960 | AU17: 420457 | AV17: 298225 | AW17: 308596 | AX17: 340431 | AY17: 369960 | AZ17: 395457
A18: ALPINE80% | B18: 80% AMI | C18: 95000 | D18: 95000 | E18: 95000 | F18: 95000 | G18: 95000 | H18: 95000 | I18: 175000 | J18: 175000 | K18: 175000 | L18: 175000 | M18: 175000 | N18: 175000 | O18: 150000 | P18: 150000 | Q18: 150000 | R18: 150000 | S18: 150000 | T18: 150000 | V18: 95000 | W18: 95000 | X18: 95000 | Y18: 95000 | Z18: 95000 | AA18: 175000 | AB18: 175000 | AC18: 175000 | AD18: 175000 | AE18: 175000 | AF18: 150000 | AG18: 150000 | AH18: 150000 | AI18: 150000 | AJ18: 150000 | AL18: 95000 | AM18: 95000 | AN18: 95000 | AO18: 95000 | AP18: 95000 | AQ18: 175000 | AR18: 175000 | AS18: 175000 | AT18: 175000 | AU18: 175000 | AV18: 150000 | AW18: 150000 | AX18: 150000 | AY18: 150000 | AZ18: 150000
A19: ALPINE75% | B19: 75% AMI | C19: 95000 | D19: 95000 | E19: 95000 | F19: 95000 | G19: 95000 | H19: 95000 | I19: 175000 | J19: 175000 | K19: 175000 | L19: 175000 | M19: 175000 | N19: 175000 | O19: 150000 | P19: 150000 | Q19: 150000 | R19: 150000 | S19: 150000 | T19: 150000 | V19: 95000 | W19: 95000 | X19: 95000 | Y19: 95000 | Z19: 95000 | AA19: 175000 | AB19: 175000 | AC19: 175000 | AD19: 175000 | AE19: 175000 | AF19: 150000 | AG19: 150000 | AH19: 150000 | AI19: 150000 | AJ19: 150000 | AL19: 95000 | AM19: 95000 | AN19: 95000 | AO19: 95000 | AP19: 95000 | AQ19: 175000 | AR19: 175000 | AS19: 175000 | AT19: 175000 | AU19: 175000 | AV19: 150000 | AW19: 150000 | AX19: 150000 | AY19: 150000 | AZ19: 150000
A20: ALPINE70% | B20: 70% AMI | C20: 95000 | D20: 95000 | E20: 95000 | F20: 95000 | G20: 95000 | H20: 95000 | I20: 175000 | J20: 175000 | K20: 175000 | L20: 175000 | M20: 175000 | N20: 175000 | O20: 150000 | P20: 150000 | Q20: 150000 | R20: 150000 | S20: 150000 | T20: 150000 | V20: 95000 | W20: 95000 | X20: 95000 | Y20: 95000 | Z20: 95000 | AA20: 175000 | AB20: 175000 | AC20: 175000 | AD20: 175000 | AE20: 175000 | AF20: 150000 | AG20: 150000 | AH20: 150000 | AI20: 150000 | AJ20: 150000 | AL20: 95000 | AM20: 95000 | AN20: 95000 | AO20: 95000 | AP20: 95000 | AQ20: 175000 | AR20: 175000 | AS20: 175000 | AT20: 175000 | AU20: 175000 | AV20: 150000 | AW20: 150000 | AX20: 150000 | AY20: 150000 | AZ20: 150000
A21: ALPINE65% | B21: 65% AMI | C21: 95000 | D21: 95000 | E21: 95000 | F21: 95000 | G21: 95000 | H21: 95000 | I21: 175000 | J21: 175000 | K21: 175000 | L21: 175000 | M21: 175000 | N21: 175000 | O21: 150000 | P21: 150000 | Q21: 150000 | R21: 150000 | S21: 150000 | T21: 150000 | V21: 95000 | W21: 95000 | X21: 95000 | Y21: 95000 | Z21: 95000 | AA21: 175000 | AB21: 175000 | AC21: 175000 | AD21: 175000 | AE21: 175000 | AF21: 150000 | AG21: 150000 | AH21: 150000 | AI21: 150000 | AJ21: 150000 | AL21: 95000 | AM21: 95000 | AN21: 95000 | AO21: 95000 | AP21: 95000 | AQ21: 175000 | AR21: 175000 | AS21: 175000 | AT21: 175000 | AU21: 175000 | AV21: 150000 | AW21: 150000 | AX21: 150000 | AY21: 150000 | AZ21: 150000
A22: ALPINE60% | B22: 60% AMI | C22: 95000 | D22: 95000 | E22: 95000 | F22: 95000 | G22: 95000 | H22: 95000 | I22: 175000 | J22: 175000 | K22: 175000 | L22: 175000 | M22: 175000 | N22: 175000 | O22: 150000 | P22: 150000 | Q22: 150000 | R22: 150000 | S22: 150000 | T22: 150000 | V22: 95000 | W22: 95000 | X22: 95000 | Y22: 95000 | Z22: 95000 | AA22: 175000 | AB22: 175000 | AC22: 175000 | AD22: 175000 | AE22: 175000 | AF22: 150000 | AG22: 150000 | AH22: 150000 | AI22: 150000 | AJ22: 150000 | AL22: 95000 | AM22: 95000 | AN22: 95000 | AO22: 95000 | AP22: 95000 | AQ22: 175000 | AR22: 175000 | AS22: 175000 | AT22: 175000 | AU22: 175000 | AV22: 150000 | AW22: 150000 | AX22: 150000 | AY22: 150000 | AZ22: 150000
A23: ALPINE55% | B23: 55% AMI | C23: 105515 | D23: 106236 | E23: 108540 | F23: 110557 | G23: 112430 | H23: 112430 | I23: 185515 | J23: 186236 | K23: 188540 | L23: 190557 | M23: 192430 | N23: 192430 | O23: 160515 | P23: 161236 | Q23: 163540 | R23: 165557 | S23: 167430 | T23: 167430 | V23: 105515 | W23: 106236 | X23: 108540 | Y23: 110557 | Z23: 112430 | AA23: 185515 | AB23: 186236 | AC23: 188540 | AD23: 190557 | AE23: 192430 | AF23: 160515 | AG23: 161236 | AH23: 163540 | AI23: 165557 | AJ23: 167430 | AL23: 105515 | AM23: 106236 | AN23: 108540 | AO23: 110557 | AP23: 112430 | AQ23: 185515 | AR23: 186236 | AS23: 188540 | AT23: 190557 | AU23: 192430 | AV23: 160515 | AW23: 161236 | AX23: 163540 | AY23: 165557 | AZ23: 167430
A24: ALPINE50% | B24: 50% AMI | C24: 116031 | D24: 117471 | E24: 121937 | F24: 126258 | G24: 129859 | H24: 129859 | I24: 196031 | J24: 197471 | K24: 201937 | L24: 206258 | M24: 209859 | N24: 209859 | O24: 171031 | P24: 172471 | Q24: 176937 | R24: 181258 | S24: 184859 | T24: 184859 | V24: 116031 | W24: 117471 | X24: 121937 | Y24: 126258 | Z24: 129859 | AA24: 196031 | AB24: 197471 | AC24: 201937 | AD24: 206258 | AE24: 209859 | AF24: 171031 | AG24: 172471 | AH24: 176937 | AI24: 181258 | AJ24: 184859 | AL24: 116031 | AM24: 117471 | AN24: 121937 | AO24: 126258 | AP24: 129859 | AQ24: 196031 | AR24: 197471 | AS24: 201937 | AT24: 206258 | AU24: 209859 | AV24: 171031 | AW24: 172471 | AX24: 176937 | AY24: 181258 | AZ24: 184859
A25: ALPINE45% | B25: 45% AMI | C25: 126546 | D25: 128707 | E25: 135477 | F25: 141815 | G25: 147289 | H25: 147289 | I25: 206546 | J25: 208707 | K25: 215477 | L25: 221815 | M25: 227289 | N25: 227289 | O25: 181546 | P25: 183707 | Q25: 190477 | R25: 196815 | S25: 202289 | T25: 202289 | V25: 126546 | W25: 128707 | X25: 135477 | Y25: 141815 | Z25: 147289 | AA25: 206546 | AB25: 208707 | AC25: 215477 | AD25: 221815 | AE25: 227289 | AF25: 181546 | AG25: 183707 | AH25: 190477 | AI25: 196815 | AJ25: 202289 | AL25: 126546 | AM25: 128707 | AN25: 135477 | AO25: 141815 | AP25: 147289 | AQ25: 206546 | AR25: 208707 | AS25: 215477 | AT25: 221815 | AU25: 227289 | AV25: 181546 | AW25: 183707 | AX25: 190477 | AY25: 196815 | AZ25: 202289
A26: ALPINE40% | B26: 40% AMI | C26: 136918 | D26: 139943 | E26: 148874 | F26: 157372 | G26: 164575 | H26: 164575 | I26: 216918 | J26: 219943 | K26: 228874 | L26: 237372 | M26: 244575 | N26: 244575 | O26: 191918 | P26: 194943 | Q26: 203874 | R26: 212372 | S26: 219575 | T26: 219575 | V26: 136918 | W26: 139943 | X26: 148874 | Y26: 157372 | Z26: 164575 | AA26: 216918 | AB26: 219943 | AC26: 228874 | AD26: 237372 | AE26: 244575 | AF26: 191918 | AG26: 194943 | AH26: 203874 | AI26: 212372 | AJ26: 219575 | AL26: 136918 | AM26: 139943 | AN26: 148874 | AO26: 157372 | AP26: 164575 | AQ26: 216918 | AR26: 219943 | AS26: 228874 | AT26: 237372 | AU26: 244575 | AV26: 191918 | AW26: 194943 | AX26: 203874 | AY26: 212372 | AZ26: 219575
A27: ALPINE35% | B27: 35% AMI | C27: 147433 | D27: 151178 | E27: 162414 | F27: 172930 | G27: 182005 | H27: 182005 | I27: 227433 | J27: 231178 | K27: 242414 | L27: 252930 | M27: 262005 | N27: 262005 | O27: 202433 | P27: 206178 | Q27: 217414 | R27: 227930 | S27: 237005 | T27: 237005 | V27: 147433 | W27: 151178 | X27: 162414 | Y27: 172930 | Z27: 182005 | AA27: 227433 | AB27: 231178 | AC27: 242414 | AD27: 252930 | AE27: 262005 | AF27: 202433 | AG27: 206178 | AH27: 217414 | AI27: 227930 | AJ27: 237005 | AL27: 147433 | AM27: 151178 | AN27: 162414 | AO27: 172930 | AP27: 182005 | AQ27: 227433 | AR27: 231178 | AS27: 242414 | AT27: 252930 | AU27: 262005 | AV27: 202433 | AW27: 206178 | AX27: 217414 | AY27: 227930 | AZ27: 237005
A28: ALPINE30% | B28: 30% AMI | C28: 157949 | D28: 162414 | E28: 175955 | F28: 188487 | G28: 199434 | H28: 199434 | I28: 237949 | J28: 242414 | K28: 255955 | L28: 268487 | M28: 279434 | N28: 279434 | O28: 212949 | P28: 217414 | Q28: 230955 | R28: 243487 | S28: 254434 | T28: 254434 | V28: 157949 | W28: 162414 | X28: 175955 | Y28: 188487 | Z28: 199434 | AA28: 237949 | AB28: 242414 | AC28: 255955 | AD28: 268487 | AE28: 279434 | AF28: 212949 | AG28: 217414 | AH28: 230955 | AI28: 243487 | AJ28: 254434 | AL28: 157949 | AM28: 162414 | AN28: 175955 | AO28: 188487 | AP28: 199434 | AQ28: 237949 | AR28: 242414 | AS28: 255955 | AT28: 268487 | AU28: 279434 | AV28: 212949 | AW28: 217414 | AX28: 230955 | AY28: 243487 | AZ28: 254434
A29: ALPINE25% | B29: 25% AMI | C29: 168464 | D29: 173650 | E29: 189351 | F29: 204188 | G29: 216864 | H29: 216864 | I29: 248464 | J29: 253650 | K29: 269351 | L29: 284188 | M29: 296864 | N29: 296864 | O29: 223464 | P29: 228650 | Q29: 244351 | R29: 259188 | S29: 271864 | T29: 271864 | V29: 168464 | W29: 173650 | X29: 189351 | Y29: 204188 | Z29: 216864 | AA29: 248464 | AB29: 253650 | AC29: 269351 | AD29: 284188 | AE29: 296864 | AF29: 223464 | AG29: 228650 | AH29: 244351 | AI29: 259188 | AJ29: 271864 | AL29: 168464 | AM29: 173650 | AN29: 189351 | AO29: 204188 | AP29: 216864 | AQ29: 248464 | AR29: 253650 | AS29: 269351 | AT29: 284188 | AU29: 296864 | AV29: 223464 | AW29: 228650 | AX29: 244351 | AY29: 259188 | AZ29: 271864
A30: ALPINE20% | B30: 20% AMI | C30: 178980 | D30: 184886 | E30: 202891 | F30: 219745 | G30: 234150 | H30: 234150 | I30: 258980 | J30: 264886 | K30: 282891 | L30: 299745 | M30: 314150 | N30: 314150 | O30: 233980 | P30: 239886 | Q30: 257891 | R30: 274745 | S30: 289150 | T30: 289150 | V30: 178980 | W30: 184886 | X30: 202891 | Y30: 219745 | Z30: 234150 | AA30: 258980 | AB30: 264886 | AC30: 282891 | AD30: 299745 | AE30: 314150 | AF30: 233980 | AG30: 239886 | AH30: 257891 | AI30: 274745 | AJ30: 289150 | AL30: 178980 | AM30: 184886 | AN30: 202891 | AO30: 219745 | AP30: 234150 | AQ30: 258980 | AR30: 264886 | AS30: 282891 | AT30: 299745 | AU30: 314150 | AV30: 233980 | AW30: 239886 | AX30: 257891 | AY30: 274745 | AZ30: 289150
A31: ALPINE15% | B31: 15% AMI | C31: 189495 | D31: 196121 | E31: 216432 | F31: 235302 | G31: 251579 | H31: 251579 | I31: 269495 | J31: 276121 | K31: 296432 | L31: 315302 | M31: 331579 | N31: 331579 | O31: 244495 | P31: 251121 | Q31: 271432 | R31: 290302 | S31: 306579 | T31: 306579 | V31: 189495 | W31: 196121 | X31: 216432 | Y31: 235302 | Z31: 251579 | AA31: 269495 | AB31: 276121 | AC31: 296432 | AD31: 315302 | AE31: 331579 | AF31: 244495 | AG31: 251121 | AH31: 271432 | AI31: 290302 | AJ31: 306579 | AL31: 189495 | AM31: 196121 | AN31: 216432 | AO31: 235302 | AP31: 251579 | AQ31: 269495 | AR31: 276121 | AS31: 296432 | AT31: 315302 | AU31: 331579 | AV31: 244495 | AW31: 251121 | AX31: 271432 | AY31: 290302 | AZ31: 306579
A32: AMADOR80% | B32: 80% AMI | C32: 95000 | D32: 95000 | E32: 95000 | F32: 95000 | G32: 95000 | H32: 95000 | I32: 175000 | J32: 175000 | K32: 175000 | L32: 175000 | M32: 175000 | N32: 175000 | O32: 150000 | P32: 150000 | Q32: 150000 | R32: 150000 | S32: 150000 | T32: 150000 | V32: 95000 | W32: 95000 | X32: 95000 | Y32: 95000 | Z32: 95000 | AA32: 175000 | AB32: 175000 | AC32: 175000 | AD32: 175000 | AE32: 175000 | AF32: 150000 | AG32: 150000 | AH32: 150000 | AI32: 150000 | AJ32: 150000 | AL32: 95000 | AM32: 95000 | AN32: 95000 | AO32: 95000 | AP32: 95000 | AQ32: 175000 | AR32: 175000 | AS32: 175000 | AT32: 175000 | AU32: 175000 | AV32: 150000 | AW32: 150000 | AX32: 150000 | AY32: 150000 | AZ32: 150000
A33: AMADOR75% | B33: 75% AMI | C33: 95000 | D33: 95000 | E33: 95000 | F33: 95000 | G33: 95000 | H33: 95000 | I33: 175000 | J33: 175000 | K33: 175000 | L33: 175000 | M33: 175000 | N33: 175000 | O33: 150000 | P33: 150000 | Q33: 150000 | R33: 150000 | S33: 150000 | T33: 150000 | V33: 95000 | W33: 95000 | X33: 95000 | Y33: 95000 | Z33: 95000 | AA33: 175000 | AB33: 175000 | AC33: 175000 | AD33: 175000 | AE33: 175000 | AF33: 150000 | AG33: 150000 | AH33: 150000 | AI33: 150000 | AJ33: 150000 | AL33: 95000 | AM33: 95000 | AN33: 95000 | AO33: 95000 | AP33: 95000 | AQ33: 175000 | AR33: 175000 | AS33: 175000 | AT33: 175000 | AU33: 175000 | AV33: 150000 | AW33: 150000 | AX33: 150000 | AY33: 150000 | AZ33: 150000
A34: AMADOR70% | B34: 70% AMI | C34: 95000 | D34: 95000 | E34: 95000 | F34: 95000 | G34: 95000 | H34: 95000 | I34: 175000 | J34: 175000 | K34: 175000 | L34: 175000 | M34: 175000 | N34: 175000 | O34: 150000 | P34: 150000 | Q34: 150000 | R34: 150000 | S34: 150000 | T34: 150000 | V34: 95000 | W34: 95000 | X34: 95000 | Y34: 95000 | Z34: 95000 | AA34: 175000 | AB34: 175000 | AC34: 175000 | AD34: 175000 | AE34: 175000 | AF34: 150000 | AG34: 150000 | AH34: 150000 | AI34: 150000 | AJ34: 150000 | AL34: 95000 | AM34: 95000 | AN34: 95000 | AO34: 95000 | AP34: 95000 | AQ34: 175000 | AR34: 175000 | AS34: 175000 | AT34: 175000 | AU34: 175000 | AV34: 150000 | AW34: 150000 | AX34: 150000 | AY34: 150000 | AZ34: 150000
A35: AMADOR65% | B35: 65% AMI | C35: 95000 | D35: 95000 | E35: 95000 | F35: 95000 | G35: 95000 | H35: 95000 | I35: 175000 | J35: 175000 | K35: 175000 | L35: 175000 | M35: 175000 | N35: 175000 | O35: 150000 | P35: 150000 | Q35: 150000 | R35: 150000 | S35: 150000 | T35: 150000 | V35: 95000 | W35: 95000 | X35: 95000 | Y35: 95000 | Z35: 95000 | AA35: 175000 | AB35: 175000 | AC35: 175000 | AD35: 175000 | AE35: 175000 | AF35: 150000 | AG35: 150000 | AH35: 150000 | AI35: 150000 | AJ35: 150000 | AL35: 95000 | AM35: 95000 | AN35: 95000 | AO35: 95000 | AP35: 95000 | AQ35: 175000 | AR35: 175000 | AS35: 175000 | AT35: 175000 | AU35: 175000 | AV35: 150000 | AW35: 150000 | AX35: 150000 | AY35: 150000 | AZ35: 150000
A36: AMADOR60% | B36: 60% AMI | C36: 95000 | D36: 95000 | E36: 95000 | F36: 95000 | G36: 95000 | H36: 95000 | I36: 175000 | J36: 175000 | K36: 175000 | L36: 175000 | M36: 175000 | N36: 175000 | O36: 150000 | P36: 150000 | Q36: 150000 | R36: 150000 | S36: 150000 | T36: 150000 | V36: 95000 | W36: 95000 | X36: 95000 | Y36: 95000 | Z36: 95000 | AA36: 175000 | AB36: 175000 | AC36: 175000 | AD36: 175000 | AE36: 175000 | AF36: 150000 | AG36: 150000 | AH36: 150000 | AI36: 150000 | AJ36: 150000 | AL36: 95000 | AM36: 95000 | AN36: 95000 | AO36: 95000 | AP36: 95000 | AQ36: 175000 | AR36: 175000 | AS36: 175000 | AT36: 175000 | AU36: 175000 | AV36: 150000 | AW36: 150000 | AX36: 150000 | AY36: 150000 | AZ36: 150000
A37: AMADOR55% | B37: 55% AMI | C37: 104939 | D37: 105660 | E37: 107820 | F37: 109693 | G37: 111421 | H37: 111421 | I37: 184939 | J37: 185660 | K37: 187820 | L37: 189693 | M37: 191421 | N37: 191421 | O37: 159939 | P37: 160660 | Q37: 162820 | R37: 164693 | S37: 166421 | T37: 166421 | V37: 104939 | W37: 105660 | X37: 107820 | Y37: 109693 | Z37: 111421 | AA37: 184939 | AB37: 185660 | AC37: 187820 | AD37: 189693 | AE37: 191421 | AF37: 159939 | AG37: 160660 | AH37: 162820 | AI37: 164693 | AJ37: 166421 | AL37: 104939 | AM37: 105660 | AN37: 107820 | AO37: 109693 | AP37: 111421 | AQ37: 184939 | AR37: 185660 | AS37: 187820 | AT37: 189693 | AU37: 191421 | AV37: 159939 | AW37: 160660 | AX37: 162820 | AY37: 164693 | AZ37: 166421
A38: AMADOR50% | B38: 50% AMI | C38: 114879 | D38: 116175 | E38: 120496 | F38: 124386 | G38: 127843 | H38: 127843 | I38: 194879 | J38: 196175 | K38: 200496 | L38: 204386 | M38: 207843 | N38: 207843 | O38: 169879 | P38: 171175 | Q38: 175496 | R38: 179386 | S38: 182843 | T38: 182843 | V38: 114879 | W38: 116175 | X38: 120496 | Y38: 124386 | Z38: 127843 | AA38: 194879 | AB38: 196175 | AC38: 200496 | AD38: 204386 | AE38: 207843 | AF38: 169879 | AG38: 171175 | AH38: 175496 | AI38: 179386 | AJ38: 182843 | AL38: 114879 | AM38: 116175 | AN38: 120496 | AO38: 124386 | AP38: 127843 | AQ38: 194879 | AR38: 196175 | AS38: 200496 | AT38: 204386 | AU38: 207843 | AV38: 169879 | AW38: 171175 | AX38: 175496 | AY38: 179386 | AZ38: 182843
A39: AMADOR45% | B39: 45% AMI | C39: 124818 | D39: 126834 | E39: 133317 | F39: 139223 | G39: 144264 | H39: 144264 | I39: 204818 | J39: 206834 | K39: 213317 | L39: 219223 | M39: 224264 | N39: 224264 | O39: 179818 | P39: 181834 | Q39: 188317 | R39: 194223 | S39: 199264 | T39: 199264 | V39: 124818 | W39: 126834 | X39: 133317 | Y39: 139223 | Z39: 144264 | AA39: 204818 | AB39: 206834 | AC39: 213317 | AD39: 219223 | AE39: 224264 | AF39: 179818 | AG39: 181834 | AH39: 188317 | AI39: 194223 | AJ39: 199264 | AL39: 124818 | AM39: 126834 | AN39: 133317 | AO39: 139223 | AP39: 144264 | AQ39: 204818 | AR39: 206834 | AS39: 213317 | AT39: 219223 | AU39: 224264 | AV39: 179818 | AW39: 181834 | AX39: 188317 | AY39: 194223 | AZ39: 199264
A40: AMADOR40% | B40: 40% AMI | C40: 134613 | D40: 137494 | E40: 145993 | F40: 153915 | G40: 160686 | H40: 160686 | I40: 214613 | J40: 217494 | K40: 225993 | L40: 233915 | M40: 240686 | N40: 240686 | O40: 189613 | P40: 192494 | Q40: 200993 | R40: 208915 | S40: 215686 | T40: 215686 | V40: 134613 | W40: 137494 | X40: 145993 | Y40: 153915 | Z40: 160686 | AA40: 214613 | AB40: 217494 | AC40: 225993 | AD40: 233915 | AE40: 240686 | AF40: 189613 | AG40: 192494 | AH40: 200993 | AI40: 208915 | AJ40: 215686 | AL40: 134613 | AM40: 137494 | AN40: 145993 | AO40: 153915 | AP40: 160686 | AQ40: 214613 | AR40: 217494 | AS40: 225993 | AT40: 233915 | AU40: 240686 | AV40: 189613 | AW40: 192494 | AX40: 200993 | AY40: 208915 | AZ40: 215686
A41: AMADOR35% | B41: 35% AMI | C41: 144552 | D41: 148153 | E41: 158813 | F41: 168608 | G41: 177251 | H41: 177251 | I41: 224552 | J41: 228153 | K41: 238813 | L41: 248608 | M41: 257251 | N41: 257251 | O41: 199552 | P41: 203153 | Q41: 213813 | R41: 223608 | S41: 232251 | T41: 232251 | V41: 144552 | W41: 148153 | X41: 158813 | Y41: 168608 | Z41: 177251 | AA41: 224552 | AB41: 228153 | AC41: 238813 | AD41: 248608 | AE41: 257251 | AF41: 199552 | AG41: 203153 | AH41: 213813 | AI41: 223608 | AJ41: 232251 | AL41: 144552 | AM41: 148153 | AN41: 158813 | AO41: 168608 | AP41: 177251 | AQ41: 224552 | AR41: 228153 | AS41: 238813 | AT41: 248608 | AU41: 257251 | AV41: 199552 | AW41: 203153 | AX41: 213813 | AY41: 223608 | AZ41: 232251
A42: AMADOR30% | B42: 30% AMI | C42: 154492 | D42: 158813 | E42: 171633 | F42: 183445 | G42: 193672 | H42: 193672 | I42: 234492 | J42: 238813 | K42: 251633 | L42: 263445 | M42: 273672 | N42: 273672 | O42: 209492 | P42: 213813 | Q42: 226633 | R42: 238445 | S42: 248672 | T42: 248672 | V42: 154492 | W42: 158813 | X42: 171633 | Y42: 183445 | Z42: 193672 | AA42: 234492 | AB42: 238813 | AC42: 251633 | AD42: 263445 | AE42: 273672 | AF42: 209492 | AG42: 213813 | AH42: 226633 | AI42: 238445 | AJ42: 248672 | AL42: 154492 | AM42: 158813 | AN42: 171633 | AO42: 183445 | AP42: 193672 | AQ42: 234492 | AR42: 238813 | AS42: 251633 | AT42: 263445 | AU42: 273672 | AV42: 209492 | AW42: 213813 | AX42: 226633 | AY42: 238445 | AZ42: 248672
A43: AMADOR25% | B43: 25% AMI | C43: 164431 | D43: 169328 | E43: 184309 | F43: 198138 | G43: 210094 | H43: 210094 | I43: 244431 | J43: 249328 | K43: 264309 | L43: 278138 | M43: 290094 | N43: 290094 | O43: 219431 | P43: 224328 | Q43: 239309 | R43: 253138 | S43: 265094 | T43: 265094 | V43: 164431 | W43: 169328 | X43: 184309 | Y43: 198138 | Z43: 210094 | AA43: 244431 | AB43: 249328 | AC43: 264309 | AD43: 278138 | AE43: 290094 | AF43: 219431 | AG43: 224328 | AH43: 239309 | AI43: 253138 | AJ43: 265094 | AL43: 164431 | AM43: 169328 | AN43: 184309 | AO43: 198138 | AP43: 210094 | AQ43: 244431 | AR43: 249328 | AS43: 264309 | AT43: 278138 | AU43: 290094 | AV43: 219431 | AW43: 224328 | AX43: 239309 | AY43: 253138 | AZ43: 265094
A44: AMADOR20% | B44: 20% AMI | C44: 174370 | D44: 179988 | E44: 197130 | F44: 212831 | G44: 226515 | H44: 226515 | I44: 254370 | J44: 259988 | K44: 277130 | L44: 292831 | M44: 306515 | N44: 306515 | O44: 229370 | P44: 234988 | Q44: 252130 | R44: 267831 | S44: 281515 | T44: 281515 | V44: 174370 | W44: 179988 | X44: 197130 | Y44: 212831 | Z44: 226515 | AA44: 254370 | AB44: 259988 | AC44: 277130 | AD44: 292831 | AE44: 306515 | AF44: 229370 | AG44: 234988 | AH44: 252130 | AI44: 267831 | AJ44: 281515 | AL44: 174370 | AM44: 179988 | AN44: 197130 | AO44: 212831 | AP44: 226515 | AQ44: 254370 | AR44: 259988 | AS44: 277130 | AT44: 292831 | AU44: 306515 | AV44: 229370 | AW44: 234988 | AX44: 252130 | AY44: 267831 | AZ44: 281515
A45: AMADOR15% | B45: 15% AMI | C45: 184309 | D45: 190647 | E45: 209950 | F45: 227668 | G45: 242937 | H45: 242937 | I45: 264309 | J45: 270647 | K45: 289950 | L45: 307668 | M45: 322937 | N45: 322937 | O45: 239309 | P45: 245647 | Q45: 264950 | R45: 282668 | S45: 297937 | T45: 297937 | V45: 184309 | W45: 190647 | X45: 209950 | Y45: 227668 | Z45: 242937 | AA45: 264309 | AB45: 270647 | AC45: 289950 | AD45: 307668 | AE45: 322937 | AF45: 239309 | AG45: 245647 | AH45: 264950 | AI45: 282668 | AJ45: 297937 | AL45: 184309 | AM45: 190647 | AN45: 209950 | AO45: 227668 | AP45: 242937 | AQ45: 264309 | AR45: 270647 | AS45: 289950 | AT45: 307668 | AU45: 322937 | AV45: 239309 | AW45: 245647 | AX45: 264950 | AY45: 282668 | AZ45: 297937
A46: BUTTE80% | B46: 80% AMI | C46: 95000 | D46: 95000 | E46: 95000 | F46: 95000 | G46: 95000 | H46: 95000 | I46: 175000 | J46: 175000 | K46: 175000 | L46: 175000 | M46: 175000 | N46: 175000 | O46: 150000 | P46: 150000 | Q46: 150000 | R46: 150000 | S46: 150000 | T46: 150000 | V46: 95000 | W46: 95000 | X46: 95000 | Y46: 95000 | Z46: 95000 | AA46: 175000 | AB46: 175000 | AC46: 175000 | AD46: 175000 | AE46: 175000 | AF46: 150000 | AG46: 150000 | AH46: 150000 | AI46: 150000 | AJ46: 150000 | AL46: 95000 | AM46: 95000 | AN46: 95000 | AO46: 95000 | AP46: 95000 | AQ46: 175000 | AR46: 175000 | AS46: 175000 | AT46: 175000 | AU46: 175000 | AV46: 150000 | AW46: 150000 | AX46: 150000 | AY46: 150000 | AZ46: 150000
A47: BUTTE75% | B47: 75% AMI | C47: 95000 | D47: 95000 | E47: 95000 | F47: 95000 | G47: 95000 | H47: 95000 | I47: 175000 | J47: 175000 | K47: 175000 | L47: 175000 | M47: 175000 | N47: 175000 | O47: 150000 | P47: 150000 | Q47: 150000 | R47: 150000 | S47: 150000 | T47: 150000 | V47: 95000 | W47: 95000 | X47: 95000 | Y47: 95000 | Z47: 95000 | AA47: 175000 | AB47: 175000 | AC47: 175000 | AD47: 175000 | AE47: 175000 | AF47: 150000 | AG47: 150000 | AH47: 150000 | AI47: 150000 | AJ47: 150000 | AL47: 95000 | AM47: 95000 | AN47: 95000 | AO47: 95000 | AP47: 95000 | AQ47: 175000 | AR47: 175000 | AS47: 175000 | AT47: 175000 | AU47: 175000 | AV47: 150000 | AW47: 150000 | AX47: 150000 | AY47: 150000 | AZ47: 150000
A48: BUTTE70% | B48: 70% AMI | C48: 95000 | D48: 95000 | E48: 95000 | F48: 95000 | G48: 95000 | H48: 95000 | I48: 175000 | J48: 175000 | K48: 175000 | L48: 175000 | M48: 175000 | N48: 175000 | O48: 150000 | P48: 150000 | Q48: 150000 | R48: 150000 | S48: 150000 | T48: 150000 | V48: 95000 | W48: 95000 | X48: 95000 | Y48: 95000 | Z48: 95000 | AA48: 175000 | AB48: 175000 | AC48: 175000 | AD48: 175000 | AE48: 175000 | AF48: 150000 | AG48: 150000 | AH48: 150000 | AI48: 150000 | AJ48: 150000 | AL48: 95000 | AM48: 95000 | AN48: 95000 | AO48: 95000 | AP48: 95000 | AQ48: 175000 | AR48: 175000 | AS48: 175000 | AT48: 175000 | AU48: 175000 | AV48: 150000 | AW48: 150000 | AX48: 150000 | AY48: 150000 | AZ48: 150000
A49: BUTTE65% | B49: 65% AMI | C49: 95000 | D49: 95000 | E49: 95000 | F49: 95000 | G49: 95000 | H49: 95000 | I49: 175000 | J49: 175000 | K49: 175000 | L49: 175000 | M49: 175000 | N49: 175000 | O49: 150000 | P49: 150000 | Q49: 150000 | R49: 150000 | S49: 150000 | T49: 150000 | V49: 95000 | W49: 95000 | X49: 95000 | Y49: 95000 | Z49: 95000 | AA49: 175000 | AB49: 175000 | AC49: 175000 | AD49: 175000 | AE49: 175000 | AF49: 150000 | AG49: 150000 | AH49: 150000 | AI49: 150000 | AJ49: 150000 | AL49: 95000 | AM49: 95000 | AN49: 95000 | AO49: 95000 | AP49: 95000 | AQ49: 175000 | AR49: 175000 | AS49: 175000 | AT49: 175000 | AU49: 175000 | AV49: 150000 | AW49: 150000 | AX49: 150000 | AY49: 150000 | AZ49: 150000
A50: BUTTE60% | B50: 60% AMI | C50: 95000 | D50: 95000 | E50: 95000 | F50: 95000 | G50: 95000 | H50: 95000 | I50: 175000 | J50: 175000 | K50: 175000 | L50: 175000 | M50: 175000 | N50: 175000 | O50: 150000 | P50: 150000 | Q50: 150000 | R50: 150000 | S50: 150000 | T50: 150000 | V50: 95000 | W50: 95000 | X50: 95000 | Y50: 95000 | Z50: 95000 | AA50: 175000 | AB50: 175000 | AC50: 175000 | AD50: 175000 | AE50: 175000 | AF50: 150000 | AG50: 150000 | AH50: 150000 | AI50: 150000 | AJ50: 150000 | AL50: 95000 | AM50: 95000 | AN50: 95000 | AO50: 95000 | AP50: 95000 | AQ50: 175000 | AR50: 175000 | AS50: 175000 | AT50: 175000 | AU50: 175000 | AV50: 150000 | AW50: 150000 | AX50: 150000 | AY50: 150000 | AZ50: 150000
A51: BUTTE55% | B51: 55% AMI | C51: 103931 | D51: 104507 | E51: 106524 | F51: 108252 | G51: 109837 | H51: 109837 | I51: 183931 | J51: 184507 | K51: 186524 | L51: 188252 | M51: 189837 | N51: 189837 | O51: 158931 | P51: 159507 | Q51: 161524 | R51: 163252 | S51: 164837 | T51: 164837 | V51: 103931 | W51: 104507 | X51: 106524 | Y51: 108252 | Z51: 109837 | AA51: 183931 | AB51: 184507 | AC51: 186524 | AD51: 188252 | AE51: 189837 | AF51: 158931 | AG51: 159507 | AH51: 161524 | AI51: 163252 | AJ51: 164837 | AL51: 103931 | AM51: 104507 | AN51: 106524 | AO51: 108252 | AP51: 109837 | AQ51: 183931 | AR51: 184507 | AS51: 186524 | AT51: 188252 | AU51: 189837 | AV51: 158931 | AW51: 159507 | AX51: 161524 | AY51: 163252 | AZ51: 164837
A52: BUTTE50% | B52: 50% AMI | C52: 112862 | D52: 114014 | E52: 117904 | F52: 121505 | G52: 124530 | H52: 124530 | I52: 192862 | J52: 194014 | K52: 197904 | L52: 201505 | M52: 204530 | N52: 204530 | O52: 167862 | P52: 169014 | Q52: 172904 | R52: 176505 | S52: 179530 | T52: 179530 | V52: 112862 | W52: 114014 | X52: 117904 | Y52: 121505 | Z52: 124530 | AA52: 192862 | AB52: 194014 | AC52: 197904 | AD52: 201505 | AE52: 204530 | AF52: 167862 | AG52: 169014 | AH52: 172904 | AI52: 176505 | AJ52: 179530 | AL52: 112862 | AM52: 114014 | AN52: 117904 | AO52: 121505 | AP52: 124530 | AQ52: 192862 | AR52: 194014 | AS52: 197904 | AT52: 201505 | AU52: 204530 | AV52: 167862 | AW52: 169014 | AX52: 172904 | AY52: 176505 | AZ52: 179530
A53: BUTTE45% | B53: 45% AMI | C53: 121793 | D53: 123665 | E53: 129427 | F53: 134757 | G53: 139367 | H53: 139367 | I53: 201793 | J53: 203665 | K53: 209427 | L53: 214757 | M53: 219367 | N53: 219367 | O53: 176793 | P53: 178665 | Q53: 184427 | R53: 189757 | S53: 194367 | T53: 194367 | V53: 121793 | W53: 123665 | X53: 129427 | Y53: 134757 | Z53: 139367 | AA53: 201793 | AB53: 203665 | AC53: 209427 | AD53: 214757 | AE53: 219367 | AF53: 176793 | AG53: 178665 | AH53: 184427 | AI53: 189757 | AJ53: 194367 | AL53: 121793 | AM53: 123665 | AN53: 129427 | AO53: 134757 | AP53: 139367 | AQ53: 201793 | AR53: 203665 | AS53: 209427 | AT53: 214757 | AU53: 219367 | AV53: 176793 | AW53: 178665 | AX53: 184427 | AY53: 189757 | AZ53: 194367
A54: BUTTE40% | B54: 40% AMI | C54: 130580 | D54: 133173 | E54: 140807 | F54: 148009 | G54: 154059 | H54: 154059 | I54: 210580 | J54: 213173 | K54: 220807 | L54: 228009 | M54: 234059 | N54: 234059 | O54: 185580 | P54: 188173 | Q54: 195807 | R54: 203009 | S54: 209059 | T54: 209059 | V54: 130580 | W54: 133173 | X54: 140807 | Y54: 148009 | Z54: 154059 | AA54: 210580 | AB54: 213173 | AC54: 220807 | AD54: 228009 | AE54: 234059 | AF54: 185580 | AG54: 188173 | AH54: 195807 | AI54: 203009 | AJ54: 209059 | AL54: 130580 | AM54: 133173 | AN54: 140807 | AO54: 148009 | AP54: 154059 | AQ54: 210580 | AR54: 213173 | AS54: 220807 | AT54: 228009 | AU54: 234059 | AV54: 185580 | AW54: 188173 | AX54: 195807 | AY54: 203009 | AZ54: 209059
A55: BUTTE35% | B55: 35% AMI | C55: 139511 | D55: 142680 | E55: 152331 | F55: 161262 | G55: 168896 | H55: 168896 | I55: 219511 | J55: 222680 | K55: 232331 | L55: 241262 | M55: 248896 | N55: 248896 | O55: 194511 | P55: 197680 | Q55: 207331 | R55: 216262 | S55: 223896 | T55: 223896 | V55: 139511 | W55: 142680 | X55: 152331 | Y55: 161262 | Z55: 168896 | AA55: 219511 | AB55: 222680 | AC55: 232331 | AD55: 241262 | AE55: 248896 | AF55: 194511 | AG55: 197680 | AH55: 207331 | AI55: 216262 | AJ55: 223896 | AL55: 139511 | AM55: 142680 | AN55: 152331 | AO55: 161262 | AP55: 168896 | AQ55: 219511 | AR55: 222680 | AS55: 232331 | AT55: 241262 | AU55: 248896 | AV55: 194511 | AW55: 197680 | AX55: 207331 | AY55: 216262 | AZ55: 223896
A56: BUTTE30% | B56: 30% AMI | C56: 148442 | D56: 152331 | E56: 163855 | F56: 174514 | G56: 183733 | H56: 183733 | I56: 228442 | J56: 232331 | K56: 243855 | L56: 254514 | M56: 263733 | N56: 263733 | O56: 203442 | P56: 207331 | Q56: 218855 | R56: 229514 | S56: 238733 | T56: 238733 | V56: 148442 | W56: 152331 | X56: 163855 | Y56: 174514 | Z56: 183733 | AA56: 228442 | AB56: 232331 | AC56: 243855 | AD56: 254514 | AE56: 263733 | AF56: 203442 | AG56: 207331 | AH56: 218855 | AI56: 229514 | AJ56: 238733 | AL56: 148442 | AM56: 152331 | AN56: 163855 | AO56: 174514 | AP56: 183733 | AQ56: 228442 | AR56: 232331 | AS56: 243855 | AT56: 254514 | AU56: 263733 | AV56: 203442 | AW56: 207331 | AX56: 218855 | AY56: 229514 | AZ56: 238733
A57: BUTTE25% | B57: 25% AMI | C57: 157372 | D57: 161838 | E57: 175234 | F57: 187766 | G57: 198426 | H57: 198426 | I57: 237372 | J57: 241838 | K57: 255234 | L57: 267766 | M57: 278426 | N57: 278426 | O57: 212372 | P57: 216838 | Q57: 230234 | R57: 242766 | S57: 253426 | T57: 253426 | V57: 157372 | W57: 161838 | X57: 175234 | Y57: 187766 | Z57: 198426 | AA57: 237372 | AB57: 241838 | AC57: 255234 | AD57: 267766 | AE57: 278426 | AF57: 212372 | AG57: 216838 | AH57: 230234 | AI57: 242766 | AJ57: 253426 | AL57: 157372 | AM57: 161838 | AN57: 175234 | AO57: 187766 | AP57: 198426 | AQ57: 237372 | AR57: 241838 | AS57: 255234 | AT57: 267766 | AU57: 278426 | AV57: 212372 | AW57: 216838 | AX57: 230234 | AY57: 242766 | AZ57: 253426
A58: BUTTE20% | B58: 20% AMI | C58: 166303 | D58: 171345 | E58: 186758 | F58: 201019 | G58: 213263 | H58: 213263 | I58: 246303 | J58: 251345 | K58: 266758 | L58: 281019 | M58: 293263 | N58: 293263 | O58: 221303 | P58: 226345 | Q58: 241758 | R58: 256019 | S58: 268263 | T58: 268263 | V58: 166303 | W58: 171345 | X58: 186758 | Y58: 201019 | Z58: 213263 | AA58: 246303 | AB58: 251345 | AC58: 266758 | AD58: 281019 | AE58: 293263 | AF58: 221303 | AG58: 226345 | AH58: 241758 | AI58: 256019 | AJ58: 268263 | AL58: 166303 | AM58: 171345 | AN58: 186758 | AO58: 201019 | AP58: 213263 | AQ58: 246303 | AR58: 251345 | AS58: 266758 | AT58: 281019 | AU58: 293263 | AV58: 221303 | AW58: 226345 | AX58: 241758 | AY58: 256019 | AZ58: 268263
A59: BUTTE15% | B59: 15% AMI | C59: 175234 | D59: 180996 | E59: 198282 | F59: 214271 | G59: 228100 | H59: 228100 | I59: 255234 | J59: 260996 | K59: 278282 | L59: 294271 | M59: 308100 | N59: 308100 | O59: 230234 | P59: 235996 | Q59: 253282 | R59: 269271 | S59: 283100 | T59: 283100 | V59: 175234 | W59: 180996 | X59: 198282 | Y59: 214271 | Z59: 228100 | AA59: 255234 | AB59: 260996 | AC59: 278282 | AD59: 294271 | AE59: 308100 | AF59: 230234 | AG59: 235996 | AH59: 253282 | AI59: 269271 | AJ59: 283100 | AL59: 175234 | AM59: 180996 | AN59: 198282 | AO59: 214271 | AP59: 228100 | AQ59: 255234 | AR59: 260996 | AS59: 278282 | AT59: 294271 | AU59: 308100 | AV59: 230234 | AW59: 235996 | AX59: 253282 | AY59: 269271 | AZ59: 283100
A60: CALAVERAS80% | B60: 80% AMI | C60: 95000 | D60: 95000 | E60: 95000 | F60: 95000 | G60: 95000 | H60: 95000 | I60: 175000 | J60: 175000 | K60: 175000 | L60: 175000 | M60: 175000 | N60: 175000 | O60: 150000 | P60: 150000 | Q60: 150000 | R60: 150000 | S60: 150000 | T60: 150000 | V60: 95000 | W60: 95000 | X60: 95000 | Y60: 95000 | Z60: 95000 | AA60: 175000 | AB60: 175000 | AC60: 175000 | AD60: 175000 | AE60: 175000 | AF60: 150000 | AG60: 150000 | AH60: 150000 | AI60: 150000 | AJ60: 150000 | AL60: 95000 | AM60: 95000 | AN60: 95000 | AO60: 95000 | AP60: 95000 | AQ60: 175000 | AR60: 175000 | AS60: 175000 | AT60: 175000 | AU60: 175000 | AV60: 150000 | AW60: 150000 | AX60: 150000 | AY60: 150000 | AZ60: 150000
A61: CALAVERAS75% | B61: 75% AMI | C61: 95000 | D61: 95000 | E61: 95000 | F61: 95000 | G61: 95000 | H61: 95000 | I61: 175000 | J61: 175000 | K61: 175000 | L61: 175000 | M61: 175000 | N61: 175000 | O61: 150000 | P61: 150000 | Q61: 150000 | R61: 150000 | S61: 150000 | T61: 150000 | V61: 95000 | W61: 95000 | X61: 95000 | Y61: 95000 | Z61: 95000 | AA61: 175000 | AB61: 175000 | AC61: 175000 | AD61: 175000 | AE61: 175000 | AF61: 150000 | AG61: 150000 | AH61: 150000 | AI61: 150000 | AJ61: 150000 | AL61: 95000 | AM61: 95000 | AN61: 95000 | AO61: 95000 | AP61: 95000 | AQ61: 175000 | AR61: 175000 | AS61: 175000 | AT61: 175000 | AU61: 175000 | AV61: 150000 | AW61: 150000 | AX61: 150000 | AY61: 150000 | AZ61: 150000
A62: CALAVERAS70% | B62: 70% AMI | C62: 95000 | D62: 95000 | E62: 95000 | F62: 95000 | G62: 95000 | H62: 95000 | I62: 175000 | J62: 175000 | K62: 175000 | L62: 175000 | M62: 175000 | N62: 175000 | O62: 150000 | P62: 150000 | Q62: 150000 | R62: 150000 | S62: 150000 | T62: 150000 | V62: 95000 | W62: 95000 | X62: 95000 | Y62: 95000 | Z62: 95000 | AA62: 175000 | AB62: 175000 | AC62: 175000 | AD62: 175000 | AE62: 175000 | AF62: 150000 | AG62: 150000 | AH62: 150000 | AI62: 150000 | AJ62: 150000 | AL62: 95000 | AM62: 95000 | AN62: 95000 | AO62: 95000 | AP62: 95000 | AQ62: 175000 | AR62: 175000 | AS62: 175000 | AT62: 175000 | AU62: 175000 | AV62: 150000 | AW62: 150000 | AX62: 150000 | AY62: 150000 | AZ62: 150000
A63: CALAVERAS65% | B63: 65% AMI | C63: 95000 | D63: 95000 | E63: 95000 | F63: 95000 | G63: 95000 | H63: 95000 | I63: 175000 | J63: 175000 | K63: 175000 | L63: 175000 | M63: 175000 | N63: 175000 | O63: 150000 | P63: 150000 | Q63: 150000 | R63: 150000 | S63: 150000 | T63: 150000 | V63: 95000 | W63: 95000 | X63: 95000 | Y63: 95000 | Z63: 95000 | AA63: 175000 | AB63: 175000 | AC63: 175000 | AD63: 175000 | AE63: 175000 | AF63: 150000 | AG63: 150000 | AH63: 150000 | AI63: 150000 | AJ63: 150000 | AL63: 95000 | AM63: 95000 | AN63: 95000 | AO63: 95000 | AP63: 95000 | AQ63: 175000 | AR63: 175000 | AS63: 175000 | AT63: 175000 | AU63: 175000 | AV63: 150000 | AW63: 150000 | AX63: 150000 | AY63: 150000 | AZ63: 150000
A64: CALAVERAS60% | B64: 60% AMI | C64: 95000 | D64: 95000 | E64: 95000 | F64: 95000 | G64: 95000 | H64: 95000 | I64: 175000 | J64: 175000 | K64: 175000 | L64: 175000 | M64: 175000 | N64: 175000 | O64: 150000 | P64: 150000 | Q64: 150000 | R64: 150000 | S64: 150000 | T64: 150000 | V64: 95000 | W64: 95000 | X64: 95000 | Y64: 95000 | Z64: 95000 | AA64: 175000 | AB64: 175000 | AC64: 175000 | AD64: 175000 | AE64: 175000 | AF64: 150000 | AG64: 150000 | AH64: 150000 | AI64: 150000 | AJ64: 150000 | AL64: 95000 | AM64: 95000 | AN64: 95000 | AO64: 95000 | AP64: 95000 | AQ64: 175000 | AR64: 175000 | AS64: 175000 | AT64: 175000 | AU64: 175000 | AV64: 150000 | AW64: 150000 | AX64: 150000 | AY64: 150000 | AZ64: 150000
A65: CALAVERAS55% | B65: 55% AMI | C65: 105083 | D65: 105948 | E65: 108108 | F65: 109981 | G65: 111854 | H65: 111854 | I65: 185083 | J65: 185948 | K65: 188108 | L65: 189981 | M65: 191854 | N65: 191854 | O65: 160083 | P65: 160948 | Q65: 163108 | R65: 164981 | S65: 166854 | T65: 166854 | V65: 105083 | W65: 105948 | X65: 108108 | Y65: 109981 | Z65: 111854 | AA65: 185083 | AB65: 185948 | AC65: 188108 | AD65: 189981 | AE65: 191854 | AF65: 160083 | AG65: 160948 | AH65: 163108 | AI65: 164981 | AJ65: 166854 | AL65: 105083 | AM65: 105948 | AN65: 108108 | AO65: 109981 | AP65: 111854 | AQ65: 185083 | AR65: 185948 | AS65: 188108 | AT65: 189981 | AU65: 191854 | AV65: 160083 | AW65: 160948 | AX65: 163108 | AY65: 164981 | AZ65: 166854
A66: CALAVERAS50% | B66: 50% AMI | C66: 115311 | D66: 116751 | E66: 121073 | F66: 125106 | G66: 128563 | H66: 128563 | I66: 195311 | J66: 196751 | K66: 201073 | L66: 205106 | M66: 208563 | N66: 208563 | O66: 170311 | P66: 171751 | Q66: 176073 | R66: 180106 | S66: 183563 | T66: 183563 | V66: 115311 | W66: 116751 | X66: 121073 | Y66: 125106 | Z66: 128563 | AA66: 195311 | AB66: 196751 | AC66: 201073 | AD66: 205106 | AE66: 208563 | AF66: 170311 | AG66: 171751 | AH66: 176073 | AI66: 180106 | AJ66: 183563 | AL66: 115311 | AM66: 116751 | AN66: 121073 | AO66: 125106 | AP66: 128563 | AQ66: 195311 | AR66: 196751 | AS66: 201073 | AT66: 205106 | AU66: 208563 | AV66: 170311 | AW66: 171751 | AX66: 176073 | AY66: 180106 | AZ66: 183563
A67: CALAVERAS45% | B67: 45% AMI | C67: 125394 | D67: 127699 | E67: 134181 | F67: 140087 | G67: 145417 | H67: 145417 | I67: 205394 | J67: 207699 | K67: 214181 | L67: 220087 | M67: 225417 | N67: 225417 | O67: 180394 | P67: 182699 | Q67: 189181 | R67: 195087 | S67: 200417 | T67: 200417 | V67: 125394 | W67: 127699 | X67: 134181 | Y67: 140087 | Z67: 145417 | AA67: 205394 | AB67: 207699 | AC67: 214181 | AD67: 220087 | AE67: 225417 | AF67: 180394 | AG67: 182699 | AH67: 189181 | AI67: 195087 | AJ67: 200417 | AL67: 125394 | AM67: 127699 | AN67: 134181 | AO67: 140087 | AP67: 145417 | AQ67: 205394 | AR67: 207699 | AS67: 214181 | AT67: 220087 | AU67: 225417 | AV67: 180394 | AW67: 182699 | AX67: 189181 | AY67: 195087 | AZ67: 200417
A68: CALAVERAS40% | B68: 40% AMI | C68: 135477 | D68: 138502 | E68: 147145 | F68: 155212 | G68: 162126 | H68: 162126 | I68: 215477 | J68: 218502 | K68: 227145 | L68: 235212 | M68: 242126 | N68: 242126 | O68: 190477 | P68: 193502 | Q68: 202145 | R68: 210212 | S68: 217126 | T68: 217126 | V68: =ROUND(C68,0) -> 135477 | W68: =ROUND(D68,0) -> 138502 | X68: =ROUND(E68,0) -> 147145 | Y68: =ROUND(F68,0) -> 155212 | Z68: =ROUND(H68,0) -> 162126 | AA68: =ROUND(I68,0) -> 215477 | AB68: =ROUND(J68,0) -> 218502 | AC68: =ROUND(K68,0) -> 227145 | AD68: =ROUND(L68,0) -> 235212 | AE68: 242126 | AF68: 190477 | AG68: 193502 | AH68: 202145 | AI68: 210212 | AJ68: 217126 | AL68: 135477 | AM68: 138502 | AN68: 147145 | AO68: 155212 | AP68: 162126 | AQ68: 215477 | AR68: 218502 | AS68: 227145 | AT68: 235212 | AU68: 242126 | AV68: 190477 | AW68: 193502 | AX68: 202145 | AY68: 210212 | AZ68: 217126
A69: CALAVERAS35% | B69: 35% AMI | C69: 145705 | D69: 149306 | E69: 160253 | F69: 170337 | G69: 178980 | H69: 178980 | I69: 225705 | J69: 229306 | K69: 240253 | L69: 250337 | M69: 258980 | N69: 258980 | O69: 200705 | P69: 204306 | Q69: 215253 | R69: 225337 | S69: 233980 | T69: 233980 | V69: 145705 | W69: 149306 | X69: 160253 | Y69: 170337 | Z69: 178980 | AA69: 225705 | AB69: 229306 | AC69: 240253 | AD69: 250337 | AE69: =ROUND(N69,0) -> 258980 | AF69: =ROUND(O69,0) -> 200705 | AG69: =ROUND(P69,0) -> 204306 | AH69: =ROUND(Q69,0) -> 215253 | AI69: =ROUND(R69,0) -> 225337 | AJ69: =ROUND(T69,0) -> 233980 | AL69: 145705 | AM69: 149306 | AN69: 160253 | AO69: 170337 | AP69: 178980 | AQ69: 225705 | AR69: 229306 | AS69: 240253 | AT69: 250337 | AU69: 258980 | AV69: 200705 | AW69: 204306 | AX69: 215253 | AY69: 225337 | AZ69: 233980
A70: CALAVERAS30% | B70: 30% AMI | C70: 155788 | D70: 160253 | E70: 173218 | F70: 185318 | G70: 195833 | H70: 195833 | I70: 235788 | J70: 240253 | K70: 253218 | L70: 265318 | M70: 275833 | N70: 275833 | O70: 210788 | P70: 215253 | Q70: 228218 | R70: 240318 | S70: 250833 | T70: 250833 | V70: 155788 | W70: 160253 | X70: 173218 | Y70: 185318 | Z70: 195833 | AA70: 235788 | AB70: 240253 | AC70: 253218 | AD70: 265318 | AE70: 275833 | AF70: 210788 | AG70: 215253 | AH70: 228218 | AI70: 240318 | AJ70: 250833 | AL70: 155788 | AM70: 160253 | AN70: 173218 | AO70: 185318 | AP70: 195833 | AQ70: 235788 | AR70: 240253 | AS70: 253218 | AT70: 265318 | AU70: 275833 | AV70: 210788 | AW70: 215253 | AX70: 228218 | AY70: 240318 | AZ70: 250833
A71: CALAVERAS25% | B71: 25% AMI | C71: 166015 | D71: 171057 | E71: 186326 | F71: 200443 | G71: 212543 | H71: 212543 | I71: 246015 | J71: 251057 | K71: 266326 | L71: 280443 | M71: 292543 | N71: 292543 | O71: 221015 | P71: 226057 | Q71: 241326 | R71: 255443 | S71: 267543 | T71: 267543 | V71: 166015 | W71: 171057 | X71: 186326 | Y71: 200443 | Z71: 212543 | AA71: 246015 | AB71: 251057 | AC71: 266326 | AD71: 280443 | AE71: 292543 | AF71: 221015 | AG71: 226057 | AH71: 241326 | AI71: 255443 | AJ71: 267543 | AL71: 166015 | AM71: 171057 | AN71: 186326 | AO71: 200443 | AP71: 212543 | AQ71: 246015 | AR71: 251057 | AS71: 266326 | AT71: 280443 | AU71: 292543 | AV71: 221015 | AW71: 226057 | AX71: 241326 | AY71: 255443 | AZ71: 267543
A72: CALAVERAS20% | B72: 20% AMI | C72: 176099 | D72: 182005 | E72: 199290 | F72: 215424 | G72: 229396 | H72: 229396 | I72: 256099 | J72: 262005 | K72: 279290 | L72: 295424 | M72: 309396 | N72: 309396 | O72: 231099 | P72: 237005 | Q72: 254290 | R72: 270424 | S72: 284396 | T72: 284396 | V72: 176099 | W72: 182005 | X72: 199290 | Y72: 215424 | Z72: 229396 | AA72: 256099 | AB72: 262005 | AC72: 279290 | AD72: 295424 | AE72: 309396 | AF72: 231099 | AG72: 237005 | AH72: 254290 | AI72: 270424 | AJ72: 284396 | AL72: 176099 | AM72: 182005 | AN72: 199290 | AO72: 215424 | AP72: 229396 | AQ72: 256099 | AR72: 262005 | AS72: 279290 | AT72: 295424 | AU72: 309396 | AV72: 231099 | AW72: 237005 | AX72: 254290 | AY72: 270424 | AZ72: 284396
A73: CALAVERAS15% | B73: 15% AMI | C73: 186182 | D73: 192808 | E73: 212399 | F73: 230549 | G73: 246250 | H73: 246250 | I73: 266182 | J73: 272808 | K73: 292399 | L73: 310549 | M73: 326250 | N73: 326250 | O73: 241182 | P73: 247808 | Q73: 267399 | R73: 285549 | S73: 301250 | T73: 301250 | V73: 186182 | W73: 192808 | X73: 212399 | Y73: 230549 | Z73: 246250 | AA73: 266182 | AB73: 272808 | AC73: 292399 | AD73: 310549 | AE73: 326250 | AF73: 241182 | AG73: 247808 | AH73: 267399 | AI73: 285549 | AJ73: 301250 | AL73: 186182 | AM73: 192808 | AN73: 212399 | AO73: 230549 | AP73: 246250 | AQ73: 266182 | AR73: 272808 | AS73: 292399 | AT73: 310549 | AU73: 326250 | AV73: 241182 | AW73: 247808 | AX73: 267399 | AY73: 285549 | AZ73: 301250
A74: COLUSA80% | B74: 80% AMI | C74: 95000 | D74: 95000 | E74: 95000 | F74: 95000 | G74: 95000 | H74: 95000 | I74: 175000 | J74: 175000 | K74: 175000 | L74: 175000 | M74: 175000 | N74: 175000 | O74: 150000 | P74: 150000 | Q74: 150000 | R74: 150000 | S74: 150000 | T74: 150000 | V74: 95000 | W74: 95000 | X74: 95000 | Y74: 95000 | Z74: 95000 | AA74: 175000 | AB74: 175000 | AC74: 175000 | AD74: 175000 | AE74: 175000 | AF74: 150000 | AG74: 150000 | AH74: 150000 | AI74: 150000 | AJ74: 150000 | AL74: 95000 | AM74: 95000 | AN74: 95000 | AO74: 95000 | AP74: 95000 | AQ74: 175000 | AR74: 175000 | AS74: 175000 | AT74: 175000 | AU74: 175000 | AV74: 150000 | AW74: 150000 | AX74: 150000 | AY74: 150000 | AZ74: 150000
A75: COLUSA75% | B75: 75% AMI | C75: 95000 | D75: 95000 | E75: 95000 | F75: 95000 | G75: 95000 | H75: 95000 | I75: 175000 | J75: 175000 | K75: 175000 | L75: 175000 | M75: 175000 | N75: 175000 | O75: 150000 | P75: 150000 | Q75: 150000 | R75: 150000 | S75: 150000 | T75: 150000 | V75: 95000 | W75: 95000 | X75: 95000 | Y75: 95000 | Z75: 95000 | AA75: 175000 | AB75: 175000 | AC75: 175000 | AD75: 175000 | AE75: 175000 | AF75: 150000 | AG75: 150000 | AH75: 150000 | AI75: 150000 | AJ75: 150000 | AL75: 95000 | AM75: 95000 | AN75: 95000 | AO75: 95000 | AP75: 95000 | AQ75: 175000 | AR75: 175000 | AS75: 175000 | AT75: 175000 | AU75: 175000 | AV75: 150000 | AW75: 150000 | AX75: 150000 | AY75: 150000 | AZ75: 150000
A76: COLUSA70% | B76: 70% AMI | C76: 95000 | D76: 95000 | E76: 95000 | F76: 95000 | G76: 95000 | H76: 95000 | I76: 175000 | J76: 175000 | K76: 175000 | L76: 175000 | M76: 175000 | N76: 175000 | O76: 150000 | P76: 150000 | Q76: 150000 | R76: 150000 | S76: 150000 | T76: 150000 | V76: 95000 | W76: 95000 | X76: 95000 | Y76: 95000 | Z76: 95000 | AA76: 175000 | AB76: 175000 | AC76: 175000 | AD76: 175000 | AE76: 175000 | AF76: 150000 | AG76: 150000 | AH76: 150000 | AI76: 150000 | AJ76: 150000 | AL76: 95000 | AM76: 95000 | AN76: 95000 | AO76: 95000 | AP76: 95000 | AQ76: 175000 | AR76: 175000 | AS76: 175000 | AT76: 175000 | AU76: 175000 | AV76: 150000 | AW76: 150000 | AX76: 150000 | AY76: 150000 | AZ76: 150000
A77: COLUSA65% | B77: 65% AMI | C77: 95000 | D77: 95000 | E77: 95000 | F77: 95000 | G77: 95000 | H77: 95000 | I77: 175000 | J77: 175000 | K77: 175000 | L77: 175000 | M77: 175000 | N77: 175000 | O77: 150000 | P77: 150000 | Q77: 150000 | R77: 150000 | S77: 150000 | T77: 150000 | V77: 95000 | W77: 95000 | X77: 95000 | Y77: 95000 | Z77: 95000 | AA77: 175000 | AB77: 175000 | AC77: 175000 | AD77: 175000 | AE77: 175000 | AF77: 150000 | AG77: 150000 | AH77: 150000 | AI77: 150000 | AJ77: 150000 | AL77: 95000 | AM77: 95000 | AN77: 95000 | AO77: 95000 | AP77: 95000 | AQ77: 175000 | AR77: 175000 | AS77: 175000 | AT77: 175000 | AU77: 175000 | AV77: 150000 | AW77: 150000 | AX77: 150000 | AY77: 150000 | AZ77: 150000
A78: COLUSA60% | B78: 60% AMI | C78: 95000 | D78: 95000 | E78: 95000 | F78: 95000 | G78: 95000 | H78: 95000 | I78: 175000 | J78: 175000 | K78: 175000 | L78: 175000 | M78: 175000 | N78: 175000 | O78: 150000 | P78: 150000 | Q78: 150000 | R78: 150000 | S78: 150000 | T78: 150000 | V78: 95000 | W78: 95000 | X78: 95000 | Y78: 95000 | Z78: 95000 | AA78: 175000 | AB78: 175000 | AC78: 175000 | AD78: 175000 | AE78: 175000 | AF78: 150000 | AG78: 150000 | AH78: 150000 | AI78: 150000 | AJ78: 150000 | AL78: 95000 | AM78: 95000 | AN78: 95000 | AO78: 95000 | AP78: 95000 | AQ78: 175000 | AR78: 175000 | AS78: 175000 | AT78: 175000 | AU78: 175000 | AV78: 150000 | AW78: 150000 | AX78: 150000 | AY78: 150000 | AZ78: 150000
A79: COLUSA55% | B79: 55% AMI | C79: 103931 | D79: 104507 | E79: 106380 | F79: 108108 | G79: 109549 | H79: 109549 | I79: 183931 | J79: 184507 | K79: 186380 | L79: 188108 | M79: 189549 | N79: 189549 | O79: 158931 | P79: 159507 | Q79: 161380 | R79: 163108 | S79: 164549 | T79: 164549 | V79: 103931 | W79: 104507 | X79: 106380 | Y79: 108108 | Z79: 109549 | AA79: 183931 | AB79: 184507 | AC79: 186380 | AD79: 188108 | AE79: 189549 | AF79: 158931 | AG79: 159507 | AH79: 161380 | AI79: 163108 | AJ79: 164549 | AL79: 103931 | AM79: 104507 | AN79: 106380 | AO79: 108108 | AP79: 109549 | AQ79: 183931 | AR79: 184507 | AS79: 186380 | AT79: 188108 | AU79: 189549 | AV79: 158931 | AW79: 159507 | AX79: 161380 | AY79: 163108 | AZ79: 164549
A80: COLUSA50% | B80: 50% AMI | C80: 112718 | D80: 113870 | E80: 117759 | F80: 121217 | G80: 124242 | H80: 124242 | I80: 192718 | J80: 193870 | K80: 197759 | L80: 201217 | M80: 204242 | N80: 204242 | O80: 167718 | P80: 168870 | Q80: 172759 | R80: 176217 | S80: 179242 | T80: 179242 | V80: 112718 | W80: 113870 | X80: 117759 | Y80: 121217 | Z80: 124242 | AA80: 192718 | AB80: 193870 | AC80: 197759 | AD80: 201217 | AE80: 204242 | AF80: 167718 | AG80: 168870 | AH80: 172759 | AI80: 176217 | AJ80: 179242 | AL80: 112718 | AM80: 113870 | AN80: 117759 | AO80: 121217 | AP80: 124242 | AQ80: 192718 | AR80: 193870 | AS80: 197759 | AT80: 201217 | AU80: 204242 | AV80: 167718 | AW80: 168870 | AX80: 172759 | AY80: 176217 | AZ80: 179242
A81: COLUSA45% | B81: 45% AMI | C81: 121505 | D81: 123377 | E81: 129139 | F81: 134325 | G81: 138790 | H81: 138790 | I81: 201505 | J81: 203377 | K81: 209139 | L81: 214325 | M81: 218790 | N81: 218790 | O81: 176505 | P81: 178377 | Q81: 184139 | R81: 189325 | S81: 193790 | T81: 193790 | V81: 121505 | W81: 123377 | X81: 129139 | Y81: 134325 | Z81: 138790 | AA81: 201505 | AB81: 203377 | AC81: 209139 | AD81: 214325 | AE81: 218790 | AF81: 176505 | AG81: 178377 | AH81: 184139 | AI81: 189325 | AJ81: 193790 | AL81: 121505 | AM81: 123377 | AN81: 129139 | AO81: 134325 | AP81: 138790 | AQ81: 201505 | AR81: 203377 | AS81: 209139 | AT81: 214325 | AU81: 218790 | AV81: 176505 | AW81: 178377 | AX81: 184139 | AY81: 189325 | AZ81: 193790
A82: COLUSA40% | B82: 40% AMI | C82: 130292 | D82: 132740 | E82: 140375 | F82: 147289 | G82: 153339 | H82: 153339 | I82: 210292 | J82: 212740 | K82: 220375 | L82: 227289 | M82: 233339 | N82: 233339 | O82: 185292 | P82: 187740 | Q82: 195375 | R82: 202289 | S82: 208339 | T82: 208339 | V82: 130292 | W82: 132740 | X82: 140375 | Y82: 147289 | Z82: 153339 | AA82: 210292 | AB82: 212740 | AC82: 220375 | AD82: 227289 | AE82: 233339 | AF82: 185292 | AG82: 187740 | AH82: 195375 | AI82: 202289 | AJ82: 208339 | AL82: 130292 | AM82: 132740 | AN82: 140375 | AO82: 147289 | AP82: 153339 | AQ82: 210292 | AR82: 212740 | AS82: 220375 | AT82: 227289 | AU82: 233339 | AV82: 185292 | AW82: 187740 | AX82: 195375 | AY82: 202289 | AZ82: 208339
A83: COLUSA35% | B83: 35% AMI | C83: 139223 | D83: 142248 | E83: 151755 | F83: 160397 | G83: 168032 | H83: 168032 | I83: 219223 | J83: 222248 | K83: 231755 | L83: 240397 | M83: 248032 | N83: 248032 | O83: 194223 | P83: 197248 | Q83: 206755 | R83: 215397 | S83: 223032 | T83: 223032 | V83: 139223 | W83: 142248 | X83: 151755 | Y83: 160397 | Z83: 168032 | AA83: 219223 | AB83: 222248 | AC83: 231755 | AD83: 240397 | AE83: 248032 | AF83: 194223 | AG83: 197248 | AH83: 206755 | AI83: 215397 | AJ83: 223032 | AL83: 139223 | AM83: 142248 | AN83: 151755 | AO83: 160397 | AP83: 168032 | AQ83: 219223 | AR83: 222248 | AS83: 231755 | AT83: 240397 | AU83: 248032 | AV83: 194223 | AW83: 197248 | AX83: 206755 | AY83: 215397 | AZ83: 223032
A84: COLUSA30% | B84: 30% AMI | C84: 148009 | D84: 151755 | E84: 163134 | F84: 173506 | G84: 182581 | H84: 182581 | I84: 228009 | J84: 231755 | K84: 243134 | L84: 253506 | M84: 262581 | N84: 262581 | O84: 203009 | P84: 206755 | Q84: 218134 | R84: 228506 | S84: 237581 | T84: 237581 | V84: 148009 | W84: 151755 | X84: 163134 | Y84: 173506 | Z84: 182581 | AA84: 228009 | AB84: 231755 | AC84: 243134 | AD84: 253506 | AE84: 262581 | AF84: 203009 | AG84: 206755 | AH84: 218134 | AI84: 228506 | AJ84: 237581 | AL84: 148009 | AM84: 151755 | AN84: 163134 | AO84: 173506 | AP84: 182581 | AQ84: 228009 | AR84: 231755 | AS84: 243134 | AT84: 253506 | AU84: 262581 | AV84: 203009 | AW84: 206755 | AX84: 218134 | AY84: 228506 | AZ84: 237581
A85: COLUSA25% | B85: 25% AMI | C85: 156796 | D85: 161118 | E85: 174514 | F85: 186614 | G85: 197274 | H85: 197274 | I85: 236796 | J85: 241118 | K85: 254514 | L85: 266614 | M85: 277274 | N85: 277274 | O85: 211796 | P85: 216118 | Q85: 229514 | R85: 241614 | S85: 252274 | T85: 252274 | V85: 156796 | W85: 161118 | X85: 174514 | Y85: 186614 | Z85: 197274 | AA85: 236796 | AB85: 241118 | AC85: 254514 | AD85: 266614 | AE85: 277274 | AF85: 211796 | AG85: 216118 | AH85: 229514 | AI85: 241614 | AJ85: 252274 | AL85: 156796 | AM85: 161118 | AN85: 174514 | AO85: 186614 | AP85: 197274 | AQ85: 236796 | AR85: 241118 | AS85: 254514 | AT85: 266614 | AU85: 277274 | AV85: 211796 | AW85: 216118 | AX85: 229514 | AY85: 241614 | AZ85: 252274
A86: COLUSA20% | B86: 20% AMI | C86: 165583 | D86: 170625 | E86: 185750 | F86: 199722 | G86: 211822 | H86: 211822 | I86: 245583 | J86: 250625 | K86: 265750 | L86: 279722 | M86: 291822 | N86: 291822 | O86: 220583 | P86: 225625 | Q86: 240750 | R86: 254722 | S86: 266822 | T86: 266822 | V86: 165583 | W86: 170625 | X86: 185750 | Y86: 199722 | Z86: 211822 | AA86: 245583 | AB86: 250625 | AC86: 265750 | AD86: 279722 | AE86: 291822 | AF86: 220583 | AG86: 225625 | AH86: 240750 | AI86: 254722 | AJ86: 266822 | AL86: 165583 | AM86: 170625 | AN86: 185750 | AO86: 199722 | AP86: 211822 | AQ86: 245583 | AR86: 250625 | AS86: 265750 | AT86: 279722 | AU86: 291822 | AV86: 220583 | AW86: 225625 | AX86: 240750 | AY86: 254722 | AZ86: 266822
A87: COLUSA15% | B87: 15% AMI | C87: 174514 | D87: 180132 | E87: 197130 | F87: 212831 | G87: 226371 | H87: 226371 | I87: 254514 | J87: 260132 | K87: 277130 | L87: 292831 | M87: 306371 | N87: 306371 | O87: 229514 | P87: 235132 | Q87: 252130 | R87: 267831 | S87: 281371 | T87: 281371 | V87: 174514 | W87: 180132 | X87: 197130 | Y87: 212831 | Z87: 226371 | AA87: 254514 | AB87: 260132 | AC87: 277130 | AD87: 292831 | AE87: 306371 | AF87: 229514 | AG87: 235132 | AH87: 252130 | AI87: 267831 | AJ87: 281371 | AL87: 174514 | AM87: 180132 | AN87: 197130 | AO87: 212831 | AP87: 226371 | AQ87: 254514 | AR87: 260132 | AS87: 277130 | AT87: 292831 | AU87: 306371 | AV87: 229514 | AW87: 235132 | AX87: 252130 | AY87: 267831 | AZ87: 281371
A88: CONTRA COSTA80% | B88: 80% AMI | C88: 95000 | D88: 95000 | E88: 95000 | F88: 95000 | G88: 95000 | H88: 95000 | I88: 175000 | J88: 175000 | K88: 175000 | L88: 175000 | M88: 175000 | N88: 175000 | O88: 150000 | P88: 150000 | Q88: 150000 | R88: 150000 | S88: 150000 | T88: 150000 | V88: 95000 | W88: 95000 | X88: 95000 | Y88: 95000 | Z88: 95000 | AA88: 175000 | AB88: 175000 | AC88: 175000 | AD88: 175000 | AE88: 175000 | AF88: 150000 | AG88: 150000 | AH88: 150000 | AI88: 150000 | AJ88: 150000 | AL88: 95000 | AM88: 95000 | AN88: 95000 | AO88: 95000 | AP88: 95000 | AQ88: 175000 | AR88: 175000 | AS88: 175000 | AT88: 175000 | AU88: 175000 | AV88: 150000 | AW88: 150000 | AX88: 150000 | AY88: 150000 | AZ88: 150000
A89: CONTRA COSTA75% | B89: 75% AMI | C89: 95000 | D89: 95000 | E89: 95000 | F89: 95000 | G89: 95000 | H89: 95000 | I89: 175000 | J89: 175000 | K89: 175000 | L89: 175000 | M89: 175000 | N89: 175000 | O89: 150000 | P89: 150000 | Q89: 150000 | R89: 150000 | S89: 150000 | T89: 150000 | V89: 95000 | W89: 95000 | X89: 95000 | Y89: 95000 | Z89: 95000 | AA89: 175000 | AB89: 175000 | AC89: 175000 | AD89: 175000 | AE89: 175000 | AF89: 150000 | AG89: 150000 | AH89: 150000 | AI89: 150000 | AJ89: 150000 | AL89: 95000 | AM89: 95000 | AN89: 95000 | AO89: 95000 | AP89: 95000 | AQ89: 175000 | AR89: 175000 | AS89: 175000 | AT89: 175000 | AU89: 175000 | AV89: 150000 | AW89: 150000 | AX89: 150000 | AY89: 150000 | AZ89: 150000
A90: CONTRA COSTA70% | B90: 70% AMI | C90: 95000 | D90: 95000 | E90: 95000 | F90: 95000 | G90: 95000 | H90: 95000 | I90: 175000 | J90: 175000 | K90: 175000 | L90: 175000 | M90: 175000 | N90: 175000 | O90: 150000 | P90: 150000 | Q90: 150000 | R90: 150000 | S90: 150000 | T90: 150000 | V90: 95000 | W90: 95000 | X90: 95000 | Y90: 95000 | Z90: 95000 | AA90: 175000 | AB90: 175000 | AC90: 175000 | AD90: 175000 | AE90: 175000 | AF90: 150000 | AG90: 150000 | AH90: 150000 | AI90: 150000 | AJ90: 150000 | AL90: 95000 | AM90: 95000 | AN90: 95000 | AO90: 95000 | AP90: 95000 | AQ90: 175000 | AR90: 175000 | AS90: 175000 | AT90: 175000 | AU90: 175000 | AV90: 150000 | AW90: 150000 | AX90: 150000 | AY90: 150000 | AZ90: 150000
A91: CONTRA COSTA65% | B91: 65% AMI | C91: 95000 | D91: 95000 | E91: 95000 | F91: 95000 | G91: 95000 | H91: 95000 | I91: 175000 | J91: 175000 | K91: 175000 | L91: 175000 | M91: 175000 | N91: 175000 | O91: 150000 | P91: 150000 | Q91: 150000 | R91: 150000 | S91: 150000 | T91: 150000 | V91: 95000 | W91: 95000 | X91: 95000 | Y91: 95000 | Z91: 95000 | AA91: 175000 | AB91: 175000 | AC91: 175000 | AD91: 175000 | AE91: 175000 | AF91: 150000 | AG91: 150000 | AH91: 150000 | AI91: 150000 | AJ91: 150000 | AL91: 95000 | AM91: 95000 | AN91: 95000 | AO91: 95000 | AP91: 95000 | AQ91: 175000 | AR91: 175000 | AS91: 175000 | AT91: 175000 | AU91: 175000 | AV91: 150000 | AW91: 150000 | AX91: 150000 | AY91: 150000 | AZ91: 150000
A92: CONTRA COSTA60% | B92: 60% AMI | C92: 95000 | D92: 95000 | E92: 95000 | F92: 95000 | G92: 95000 | H92: 95000 | I92: 175000 | J92: 175000 | K92: 175000 | L92: 175000 | M92: 175000 | N92: 175000 | O92: 150000 | P92: 150000 | Q92: 150000 | R92: 150000 | S92: 150000 | T92: 150000 | V92: 95000 | W92: 95000 | X92: 95000 | Y92: 95000 | Z92: 95000 | AA92: 175000 | AB92: 175000 | AC92: 175000 | AD92: 175000 | AE92: 175000 | AF92: 150000 | AG92: 150000 | AH92: 150000 | AI92: 150000 | AJ92: 150000 | AL92: 95000 | AM92: 95000 | AN92: 95000 | AO92: 95000 | AP92: 95000 | AQ92: 175000 | AR92: 175000 | AS92: 175000 | AT92: 175000 | AU92: 175000 | AV92: 150000 | AW92: 150000 | AX92: 150000 | AY92: 150000 | AZ92: 150000
A93: CONTRA COSTA55% | B93: 55% AMI | C93: 111565 | D93: 112574 | E93: 116175 | F93: 119488 | G93: 122369 | H93: 122369 | I93: 191565 | J93: 192574 | K93: 196175 | L93: 199488 | M93: 202369 | N93: 202369 | O93: 166565 | P93: 167574 | Q93: 171175 | R93: 174488 | S93: 177369 | T93: 177369 | V93: 111565 | W93: 112574 | X93: 116175 | Y93: 119488 | Z93: 122369 | AA93: 191565 | AB93: 192574 | AC93: 196175 | AD93: 199488 | AE93: 202369 | AF93: 166565 | AG93: 167574 | AH93: 171175 | AI93: 174488 | AJ93: 177369 | AL93: 111565 | AM93: 112574 | AN93: 116175 | AO93: 119488 | AP93: 122369 | AQ93: 191565 | AR93: 192574 | AS93: 196175 | AT93: 199488 | AU93: 202369 | AV93: 166565 | AW93: 167574 | AX93: 171175 | AY93: 174488 | AZ93: 177369
A94: CONTRA COSTA50% | B94: 50% AMI | C94: 127987 | D94: 130292 | E94: 137350 | F94: 143976 | G94: 149594 | H94: 149594 | I94: 207987 | J94: 210292 | K94: 217350 | L94: 223976 | M94: 229594 | N94: 229594 | O94: 182987 | P94: 185292 | Q94: 192350 | R94: 198976 | S94: 204594 | T94: 204594 | V94: 127987 | W94: 130292 | X94: 137350 | Y94: 143976 | Z94: 149594 | AA94: 207987 | AB94: 210292 | AC94: 217350 | AD94: 223976 | AE94: 229594 | AF94: 182987 | AG94: 185292 | AH94: 192350 | AI94: 198976 | AJ94: 204594 | AL94: 127987 | AM94: 130292 | AN94: 137350 | AO94: 143976 | AP94: 149594 | AQ94: 207987 | AR94: 210292 | AS94: 217350 | AT94: 223976 | AU94: 229594 | AV94: 182987 | AW94: 185292 | AX94: 192350 | AY94: 198976 | AZ94: 204594
A95: CONTRA COSTA45% | B95: 45% AMI | C95: 144408 | D95: 147865 | E95: 158525 | F95: 168320 | G95: 176819 | H95: 176819 | I95: 224408 | J95: 227865 | K95: 238525 | L95: 248320 | M95: 256819 | N95: 256819 | O95: 199408 | P95: 202865 | Q95: 213525 | R95: 223320 | S95: 231819 | T95: 231819 | V95: 144408 | W95: 147865 | X95: 158525 | Y95: 168320 | Z95: 176819 | AA95: 224408 | AB95: 227865 | AC95: 238525 | AD95: 248320 | AE95: 256819 | AF95: 199408 | AG95: 202865 | AH95: 213525 | AI95: 223320 | AJ95: 231819 | AL95: 144408 | AM95: 147865 | AN95: 158525 | AO95: 168320 | AP95: 176819 | AQ95: 224408 | AR95: 227865 | AS95: 238525 | AT95: 248320 | AU95: 256819 | AV95: 199408 | AW95: 202865 | AX95: 213525 | AY95: 223320 | AZ95: 231819
A96: CONTRA COSTA40% | B96: 40% AMI | C96: 160830 | D96: 165439 | E96: 179556 | F96: 192808 | G96: 204044 | H96: 204044 | I96: 240830 | J96: 245439 | K96: 259556 | L96: 272808 | M96: 284044 | N96: 284044 | O96: 215830 | P96: 220439 | Q96: 234556 | R96: 247808 | S96: 259044 | T96: 259044 | V96: 160830 | W96: 165439 | X96: 179556 | Y96: 192808 | Z96: 204044 | AA96: 240830 | AB96: 245439 | AC96: 259556 | AD96: 272808 | AE96: 284044 | AF96: 215830 | AG96: 220439 | AH96: 234556 | AI96: 247808 | AJ96: 259044 | AL96: 160830 | AM96: 165439 | AN96: 179556 | AO96: 192808 | AP96: 204044 | AQ96: 240830 | AR96: 245439 | AS96: 259556 | AT96: 272808 | AU96: 284044 | AV96: 215830 | AW96: 220439 | AX96: 234556 | AY96: 247808 | AZ96: 259044
A97: CONTRA COSTA35% | B97: 35% AMI | C97: 177395 | D97: 183157 | E97: 200731 | F97: 217296 | G97: 231413 | H97: 231413 | I97: 257395 | J97: 263157 | K97: 280731 | L97: 297296 | M97: 311413 | N97: 311413 | O97: 232395 | P97: 238157 | Q97: 255731 | R97: 272296 | S97: 286413 | T97: 286413 | V97: 177395 | W97: 183157 | X97: 200731 | Y97: 217296 | Z97: 231413 | AA97: 257395 | AB97: 263157 | AC97: 280731 | AD97: 297296 | AE97: 311413 | AF97: 232395 | AG97: 238157 | AH97: 255731 | AI97: 272296 | AJ97: 286413 | AL97: 177395 | AM97: 183157 | AN97: 200731 | AO97: 217296 | AP97: 231413 | AQ97: 257395 | AR97: 263157 | AS97: 280731 | AT97: 297296 | AU97: 311413 | AV97: 232395 | AW97: 238157 | AX97: 255731 | AY97: 272296 | AZ97: 286413
A98: CONTRA COSTA30% | B98: 30% AMI | C98: 193816 | D98: 200731 | E98: 221906 | F98: 241640 | G98: 258638 | H98: 258638 | I98: 273816 | J98: 280731 | K98: 301906 | L98: 321640 | M98: 338638 | N98: 338638 | O98: 248816 | P98: 255731 | Q98: 276906 | R98: 296640 | S98: 313638 | T98: 313638 | V98: 193816 | W98: 200731 | X98: 221906 | Y98: 241640 | Z98: 258638 | AA98: 273816 | AB98: 280731 | AC98: 301906 | AD98: 321640 | AE98: 338638 | AF98: 248816 | AG98: 255731 | AH98: 276906 | AI98: 296640 | AJ98: 313638 | AL98: 193816 | AM98: 200731 | AN98: 221906 | AO98: 241640 | AP98: 258638 | AQ98: 273816 | AR98: 280731 | AS98: 301906 | AT98: 321640 | AU98: 338638 | AV98: 248816 | AW98: 255731 | AX98: 276906 | AY98: 296640 | AZ98: 313638
A99: CONTRA COSTA25% | B99: 25% AMI | C99: 210238 | D99: 218449 | E99: 243081 | F99: 266128 | G99: 285863 | H99: 285863 | I99: 290238 | J99: 298449 | K99: 323081 | L99: 346128 | M99: 365863 | N99: 365863 | O99: 265238 | P99: 273449 | Q99: 298081 | R99: 321128 | S99: 340863 | T99: 340863 | V99: 210238 | W99: 218449 | X99: 243081 | Y99: 266128 | Z99: 285863 | AA99: 290238 | AB99: 298449 | AC99: 323081 | AD99: 346128 | AE99: 365863 | AF99: 265238 | AG99: 273449 | AH99: 298081 | AI99: 321128 | AJ99: 340863 | AL99: 210238 | AM99: 218449 | AN99: 243081 | AO99: 266128 | AP99: 285863 | AQ99: 290238 | AR99: 298449 | AS99: 323081 | AT99: 346128 | AU99: 365863 | AV99: 265238 | AW99: 273449 | AX99: 298081 | AY99: 321128 | AZ99: 340863
A100: CONTRA COSTA20% | B100: 20% AMI | C100: 226659 | D100: 236022 | E100: 264256 | F100: 290616 | G100: 313088 | H100: 313088 | I100: 306659 | J100: 316022 | K100: 344256 | L100: 370616 | M100: 393088 | N100: 393088 | O100: 281659 | P100: 291022 | Q100: 319256 | R100: 345616 | S100: 368088 | T100: 368088 | V100: 226659 | W100: 236022 | X100: 264256 | Y100: 290616 | Z100: 313088 | AA100: 306659 | AB100: 316022 | AC100: 344256 | AD100: 370616 | AE100: 393088 | AF100: 281659 | AG100: 291022 | AH100: 319256 | AI100: 345616 | AJ100: 368088 | AL100: 226659 | AM100: 236022 | AN100: 264256 | AO100: 290616 | AP100: 313088 | AQ100: 306659 | AR100: 316022 | AS100: 344256 | AT100: 370616 | AU100: 393088 | AV100: 281659 | AW100: 291022 | AX100: 319256 | AY100: 345616 | AZ100: 368088
A101: CONTRA COSTA15% | B101: 15% AMI | C101: 243225 | D101: 253596 | E101: 285431 | F101: 314960 | G101: 340457 | H101: 340457 | I101: 323225 | J101: 333596 | K101: 365431 | L101: 394960 | M101: 420457 | N101: 420457 | O101: 298225 | P101: 308596 | Q101: 340431 | R101: 369960 | S101: 395457 | T101: 395457 | V101: 243225 | W101: 253596 | X101: 285431 | Y101: 314960 | Z101: 340457 | AA101: 323225 | AB101: 333596 | AC101: 365431 | AD101: 394960 | AE101: 420457 | AF101: 298225 | AG101: 308596 | AH101: 340431 | AI101: 369960 | AJ101: 395457 | AL101: 243225 | AM101: 253596 | AN101: 285431 | AO101: 314960 | AP101: 340457 | AQ101: 323225 | AR101: 333596 | AS101: 365431 | AT101: 394960 | AU101: 420457 | AV101: 298225 | AW101: 308596 | AX101: 340431 | AY101: 369960 | AZ101: 395457
A102: DEL NORTE80% | B102: 80% AMI | C102: 95000 | D102: 95000 | E102: 95000 | F102: 95000 | G102: 95000 | H102: 95000 | I102: 175000 | J102: 175000 | K102: 175000 | L102: 175000 | M102: 175000 | N102: 175000 | O102: 150000 | P102: 150000 | Q102: 150000 | R102: 150000 | S102: 150000 | T102: 150000 | V102: 95000 | W102: 95000 | X102: 95000 | Y102: 95000 | Z102: 95000 | AA102: 175000 | AB102: 175000 | AC102: 175000 | AD102: 175000 | AE102: 175000 | AF102: 150000 | AG102: 150000 | AH102: 150000 | AI102: 150000 | AJ102: 150000 | AL102: 95000 | AM102: 95000 | AN102: 95000 | AO102: 95000 | AP102: 95000 | AQ102: 175000 | AR102: 175000 | AS102: 175000 | AT102: 175000 | AU102: 175000 | AV102: 150000 | AW102: 150000 | AX102: 150000 | AY102: 150000 | AZ102: 150000
A103: DEL NORTE75% | B103: 75% AMI | C103: 95000 | D103: 95000 | E103: 95000 | F103: 95000 | G103: 95000 | H103: 95000 | I103: 175000 | J103: 175000 | K103: 175000 | L103: 175000 | M103: 175000 | N103: 175000 | O103: 150000 | P103: 150000 | Q103: 150000 | R103: 150000 | S103: 150000 | T103: 150000 | V103: 95000 | W103: 95000 | X103: 95000 | Y103: 95000 | Z103: 95000 | AA103: 175000 | AB103: 175000 | AC103: 175000 | AD103: 175000 | AE103: 175000 | AF103: 150000 | AG103: 150000 | AH103: 150000 | AI103: 150000 | AJ103: 150000 | AL103: 95000 | AM103: 95000 | AN103: 95000 | AO103: 95000 | AP103: 95000 | AQ103: 175000 | AR103: 175000 | AS103: 175000 | AT103: 175000 | AU103: 175000 | AV103: 150000 | AW103: 150000 | AX103: 150000 | AY103: 150000 | AZ103: 150000
A104: DEL NORTE70% | B104: 70% AMI | C104: 95000 | D104: 95000 | E104: 95000 | F104: 95000 | G104: 95000 | H104: 95000 | I104: 175000 | J104: 175000 | K104: 175000 | L104: 175000 | M104: 175000 | N104: 175000 | O104: 150000 | P104: 150000 | Q104: 150000 | R104: 150000 | S104: 150000 | T104: 150000 | V104: 95000 | W104: 95000 | X104: 95000 | Y104: 95000 | Z104: 95000 | AA104: 175000 | AB104: 175000 | AC104: 175000 | AD104: 175000 | AE104: 175000 | AF104: 150000 | AG104: 150000 | AH104: 150000 | AI104: 150000 | AJ104: 150000 | AL104: 95000 | AM104: 95000 | AN104: 95000 | AO104: 95000 | AP104: 95000 | AQ104: 175000 | AR104: 175000 | AS104: 175000 | AT104: 175000 | AU104: 175000 | AV104: 150000 | AW104: 150000 | AX104: 150000 | AY104: 150000 | AZ104: 150000
A105: DEL NORTE65% | B105: 65% AMI | C105: 95000 | D105: 95000 | E105: 95000 | F105: 95000 | G105: 95000 | H105: 95000 | I105: 175000 | J105: 175000 | K105: 175000 | L105: 175000 | M105: 175000 | N105: 175000 | O105: 150000 | P105: 150000 | Q105: 150000 | R105: 150000 | S105: 150000 | T105: 150000 | V105: 95000 | W105: 95000 | X105: 95000 | Y105: 95000 | Z105: 95000 | AA105: 175000 | AB105: 175000 | AC105: 175000 | AD105: 175000 | AE105: 175000 | AF105: 150000 | AG105: 150000 | AH105: 150000 | AI105: 150000 | AJ105: 150000 | AL105: 95000 | AM105: 95000 | AN105: 95000 | AO105: 95000 | AP105: 95000 | AQ105: 175000 | AR105: 175000 | AS105: 175000 | AT105: 175000 | AU105: 175000 | AV105: 150000 | AW105: 150000 | AX105: 150000 | AY105: 150000 | AZ105: 150000
A106: DEL NORTE60% | B106: 60% AMI | C106: 95000 | D106: 95000 | E106: 95000 | F106: 95000 | G106: 95000 | H106: 95000 | I106: 175000 | J106: 175000 | K106: 175000 | L106: 175000 | M106: 175000 | N106: 175000 | O106: 150000 | P106: 150000 | Q106: 150000 | R106: 150000 | S106: 150000 | T106: 150000 | V106: 95000 | W106: 95000 | X106: 95000 | Y106: 95000 | Z106: 95000 | AA106: 175000 | AB106: 175000 | AC106: 175000 | AD106: 175000 | AE106: 175000 | AF106: 150000 | AG106: 150000 | AH106: 150000 | AI106: 150000 | AJ106: 150000 | AL106: 95000 | AM106: 95000 | AN106: 95000 | AO106: 95000 | AP106: 95000 | AQ106: 175000 | AR106: 175000 | AS106: 175000 | AT106: 175000 | AU106: 175000 | AV106: 150000 | AW106: 150000 | AX106: 150000 | AY106: 150000 | AZ106: 150000
A107: DEL NORTE55% | B107: 55% AMI | C107: 103931 | D107: 104507 | E107: 106380 | F107: 108108 | G107: 109549 | H107: 109549 | I107: 183931 | J107: 184507 | K107: 186380 | L107: 188108 | M107: 189549 | N107: 189549 | O107: 158931 | P107: 159507 | Q107: 161380 | R107: 163108 | S107: 164549 | T107: 164549 | V107: 103931 | W107: 104507 | X107: 106380 | Y107: 108108 | Z107: 109549 | AA107: 183931 | AB107: 184507 | AC107: 186380 | AD107: 188108 | AE107: 189549 | AF107: 158931 | AG107: 159507 | AH107: 161380 | AI107: 163108 | AJ107: 164549 | AL107: 103931 | AM107: 104507 | AN107: 106380 | AO107: 108108 | AP107: 109549 | AQ107: 183931 | AR107: 184507 | AS107: 186380 | AT107: 188108 | AU107: 189549 | AV107: 158931 | AW107: 159507 | AX107: 161380 | AY107: 163108 | AZ107: 164549
A108: DEL NORTE50% | B108: 50% AMI | C108: 112718 | D108: 113870 | E108: 117759 | F108: 121217 | G108: 124242 | H108: 124242 | I108: 192718 | J108: 193870 | K108: 197759 | L108: 201217 | M108: 204242 | N108: 204242 | O108: 167718 | P108: 168870 | Q108: 172759 | R108: 176217 | S108: 179242 | T108: 179242 | V108: 112718 | W108: 113870 | X108: 117759 | Y108: 121217 | Z108: 124242 | AA108: 192718 | AB108: 193870 | AC108: 197759 | AD108: 201217 | AE108: 204242 | AF108: 167718 | AG108: 168870 | AH108: 172759 | AI108: 176217 | AJ108: 179242 | AL108: 112718 | AM108: 113870 | AN108: 117759 | AO108: 121217 | AP108: 124242 | AQ108: 192718 | AR108: 193870 | AS108: 197759 | AT108: 201217 | AU108: 204242 | AV108: 167718 | AW108: 168870 | AX108: 172759 | AY108: 176217 | AZ108: 179242
A109: DEL NORTE45% | B109: 45% AMI | C109: 121505 | D109: 123377 | E109: 129139 | F109: 134325 | G109: 138790 | H109: 138790 | I109: 201505 | J109: 203377 | K109: 209139 | L109: 214325 | M109: 218790 | N109: 218790 | O109: 176505 | P109: 178377 | Q109: 184139 | R109: 189325 | S109: 193790 | T109: 193790 | V109: 121505 | W109: 123377 | X109: 129139 | Y109: 134325 | Z109: 138790 | AA109: 201505 | AB109: 203377 | AC109: 209139 | AD109: 214325 | AE109: 218790 | AF109: 176505 | AG109: 178377 | AH109: 184139 | AI109: 189325 | AJ109: 193790 | AL109: 121505 | AM109: 123377 | AN109: 129139 | AO109: 134325 | AP109: 138790 | AQ109: 201505 | AR109: 203377 | AS109: 209139 | AT109: 214325 | AU109: 218790 | AV109: 176505 | AW109: 178377 | AX109: 184139 | AY109: 189325 | AZ109: 193790
A110: DEL NORTE40% | B110: 40% AMI | C110: 130292 | D110: 132740 | E110: 140375 | F110: 147289 | G110: 153339 | H110: 153339 | I110: 210292 | J110: 212740 | K110: 220375 | L110: 227289 | M110: 233339 | N110: 233339 | O110: 185292 | P110: 187740 | Q110: 195375 | R110: 202289 | S110: 208339 | T110: 208339 | V110: 130292 | W110: 132740 | X110: 140375 | Y110: 147289 | Z110: 153339 | AA110: 210292 | AB110: 212740 | AC110: 220375 | AD110: 227289 | AE110: 233339 | AF110: 185292 | AG110: 187740 | AH110: 195375 | AI110: 202289 | AJ110: 208339 | AL110: 130292 | AM110: 132740 | AN110: 140375 | AO110: 147289 | AP110: 153339 | AQ110: 210292 | AR110: 212740 | AS110: 220375 | AT110: 227289 | AU110: 233339 | AV110: 185292 | AW110: 187740 | AX110: 195375 | AY110: 202289 | AZ110: 208339
A111: DEL NORTE35% | B111: 35% AMI | C111: 139223 | D111: 142248 | E111: 151755 | F111: 160397 | G111: 168032 | H111: 168032 | I111: 219223 | J111: 222248 | K111: 231755 | L111: 240397 | M111: 248032 | N111: 248032 | O111: 194223 | P111: 197248 | Q111: 206755 | R111: 215397 | S111: 223032 | T111: 223032 | V111: 139223 | W111: 142248 | X111: 151755 | Y111: 160397 | Z111: 168032 | AA111: 219223 | AB111: 222248 | AC111: 231755 | AD111: 240397 | AE111: 248032 | AF111: 194223 | AG111: 197248 | AH111: 206755 | AI111: 215397 | AJ111: 223032 | AL111: 139223 | AM111: 142248 | AN111: 151755 | AO111: 160397 | AP111: 168032 | AQ111: 219223 | AR111: 222248 | AS111: 231755 | AT111: 240397 | AU111: 248032 | AV111: 194223 | AW111: 197248 | AX111: 206755 | AY111: 215397 | AZ111: 223032
A112: DEL NORTE30% | B112: 30% AMI | C112: 148009 | D112: 151755 | E112: 163134 | F112: 173506 | G112: 182581 | H112: 182581 | I112: 228009 | J112: 231755 | K112: 243134 | L112: 253506 | M112: 262581 | N112: 262581 | O112: 203009 | P112: 206755 | Q112: 218134 | R112: 228506 | S112: 237581 | T112: 237581 | V112: 148009 | W112: 151755 | X112: 163134 | Y112: 173506 | Z112: 182581 | AA112: 228009 | AB112: 231755 | AC112: 243134 | AD112: 253506 | AE112: 262581 | AF112: 203009 | AG112: 206755 | AH112: 218134 | AI112: 228506 | AJ112: 237581 | AL112: 148009 | AM112: 151755 | AN112: 163134 | AO112: 173506 | AP112: 182581 | AQ112: 228009 | AR112: 231755 | AS112: 243134 | AT112: 253506 | AU112: 262581 | AV112: 203009 | AW112: 206755 | AX112: 218134 | AY112: 228506 | AZ112: 237581
A113: DEL NORTE25% | B113: 25% AMI | C113: 156796 | D113: 161118 | E113: 174514 | F113: 186614 | G113: 197274 | H113: 197274 | I113: 236796 | J113: 241118 | K113: 254514 | L113: 266614 | M113: 277274 | N113: 277274 | O113: 211796 | P113: 216118 | Q113: 229514 | R113: 241614 | S113: 252274 | T113: 252274 | V113: 156796 | W113: 161118 | X113: 174514 | Y113: 186614 | Z113: 197274 | AA113: 236796 | AB113: 241118 | AC113: 254514 | AD113: 266614 | AE113: 277274 | AF113: 211796 | AG113: 216118 | AH113: 229514 | AI113: 241614 | AJ113: 252274 | AL113: 156796 | AM113: 161118 | AN113: 174514 | AO113: 186614 | AP113: 197274 | AQ113: 236796 | AR113: 241118 | AS113: 254514 | AT113: 266614 | AU113: 277274 | AV113: 211796 | AW113: 216118 | AX113: 229514 | AY113: 241614 | AZ113: 252274
A114: DEL NORTE20% | B114: 20% AMI | C114: 165583 | D114: 170625 | E114: 185750 | F114: 199722 | G114: 211822 | H114: 211822 | I114: 245583 | J114: 250625 | K114: 265750 | L114: 279722 | M114: 291822 | N114: 291822 | O114: 220583 | P114: 225625 | Q114: 240750 | R114: 254722 | S114: 266822 | T114: 266822 | V114: 165583 | W114: 170625 | X114: 185750 | Y114: 199722 | Z114: 211822 | AA114: 245583 | AB114: 250625 | AC114: 265750 | AD114: 279722 | AE114: 291822 | AF114: 220583 | AG114: 225625 | AH114: 240750 | AI114: 254722 | AJ114: 266822 | AL114: 165583 | AM114: 170625 | AN114: 185750 | AO114: 199722 | AP114: 211822 | AQ114: 245583 | AR114: 250625 | AS114: 265750 | AT114: 279722 | AU114: 291822 | AV114: 220583 | AW114: 225625 | AX114: 240750 | AY114: 254722 | AZ114: 266822
A115: DEL NORTE15% | B115: 15% AMI | C115: 174514 | D115: 180132 | E115: 197130 | F115: 212831 | G115: 226371 | H115: 226371 | I115: 254514 | J115: 260132 | K115: 277130 | L115: 292831 | M115: 306371 | N115: 306371 | O115: 229514 | P115: 235132 | Q115: 252130 | R115: 267831 | S115: 281371 | T115: 281371 | V115: 174514 | W115: 180132 | X115: 197130 | Y115: 212831 | Z115: 226371 | AA115: 254514 | AB115: 260132 | AC115: 277130 | AD115: 292831 | AE115: 306371 | AF115: 229514 | AG115: 235132 | AH115: 252130 | AI115: 267831 | AJ115: 281371 | AL115: 174514 | AM115: 180132 | AN115: 197130 | AO115: 212831 | AP115: 226371 | AQ115: 254514 | AR115: 260132 | AS115: 277130 | AT115: 292831 | AU115: 306371 | AV115: 229514 | AW115: 235132 | AX115: 252130 | AY115: 267831 | AZ115: 281371
A116: EL DORADO80% | B116: 80% AMI | C116: 95000 | D116: 95000 | E116: 95000 | F116: 95000 | G116: 95000 | H116: 95000 | I116: 175000 | J116: 175000 | K116: 175000 | L116: 175000 | M116: 175000 | N116: 175000 | O116: 150000 | P116: 150000 | Q116: 150000 | R116: 150000 | S116: 150000 | T116: 150000 | V116: 95000 | W116: 95000 | X116: 95000 | Y116: 95000 | Z116: 95000 | AA116: 175000 | AB116: 175000 | AC116: 175000 | AD116: 175000 | AE116: 175000 | AF116: 150000 | AG116: 150000 | AH116: 150000 | AI116: 150000 | AJ116: 150000 | AL116: 95000 | AM116: 95000 | AN116: 95000 | AO116: 95000 | AP116: 95000 | AQ116: 175000 | AR116: 175000 | AS116: 175000 | AT116: 175000 | AU116: 175000 | AV116: 150000 | AW116: 150000 | AX116: 150000 | AY116: 150000 | AZ116: 150000
A117: EL DORADO75% | B117: 75% AMI | C117: 95000 | D117: 95000 | E117: 95000 | F117: 95000 | G117: 95000 | H117: 95000 | I117: 175000 | J117: 175000 | K117: 175000 | L117: 175000 | M117: 175000 | N117: 175000 | O117: 150000 | P117: 150000 | Q117: 150000 | R117: 150000 | S117: 150000 | T117: 150000 | V117: 95000 | W117: 95000 | X117: 95000 | Y117: 95000 | Z117: 95000 | AA117: 175000 | AB117: 175000 | AC117: 175000 | AD117: 175000 | AE117: 175000 | AF117: 150000 | AG117: 150000 | AH117: 150000 | AI117: 150000 | AJ117: 150000 | AL117: 95000 | AM117: 95000 | AN117: 95000 | AO117: 95000 | AP117: 95000 | AQ117: 175000 | AR117: 175000 | AS117: 175000 | AT117: 175000 | AU117: 175000 | AV117: 150000 | AW117: 150000 | AX117: 150000 | AY117: 150000 | AZ117: 150000
A118: EL DORADO70% | B118: 70% AMI | C118: 95000 | D118: 95000 | E118: 95000 | F118: 95000 | G118: 95000 | H118: 95000 | I118: 175000 | J118: 175000 | K118: 175000 | L118: 175000 | M118: 175000 | N118: 175000 | O118: 150000 | P118: 150000 | Q118: 150000 | R118: 150000 | S118: 150000 | T118: 150000 | V118: 95000 | W118: 95000 | X118: 95000 | Y118: 95000 | Z118: 95000 | AA118: 175000 | AB118: 175000 | AC118: 175000 | AD118: 175000 | AE118: 175000 | AF118: 150000 | AG118: 150000 | AH118: 150000 | AI118: 150000 | AJ118: 150000 | AL118: 95000 | AM118: 95000 | AN118: 95000 | AO118: 95000 | AP118: 95000 | AQ118: 175000 | AR118: 175000 | AS118: 175000 | AT118: 175000 | AU118: 175000 | AV118: 150000 | AW118: 150000 | AX118: 150000 | AY118: 150000 | AZ118: 150000
A119: EL DORADO65% | B119: 65% AMI | C119: 95000 | D119: 95000 | E119: 95000 | F119: 95000 | G119: 95000 | H119: 95000 | I119: 175000 | J119: 175000 | K119: 175000 | L119: 175000 | M119: 175000 | N119: 175000 | O119: 150000 | P119: 150000 | Q119: 150000 | R119: 150000 | S119: 150000 | T119: 150000 | V119: 95000 | W119: 95000 | X119: 95000 | Y119: 95000 | Z119: 95000 | AA119: 175000 | AB119: 175000 | AC119: 175000 | AD119: 175000 | AE119: 175000 | AF119: 150000 | AG119: 150000 | AH119: 150000 | AI119: 150000 | AJ119: 150000 | AL119: 95000 | AM119: 95000 | AN119: 95000 | AO119: 95000 | AP119: 95000 | AQ119: 175000 | AR119: 175000 | AS119: 175000 | AT119: 175000 | AU119: 175000 | AV119: 150000 | AW119: 150000 | AX119: 150000 | AY119: 150000 | AZ119: 150000
A120: EL DORADO60% | B120: 60% AMI | C120: 95000 | D120: 95000 | E120: 95000 | F120: 95000 | G120: 95000 | H120: 95000 | I120: 175000 | J120: 175000 | K120: 175000 | L120: 175000 | M120: 175000 | N120: 175000 | O120: 150000 | P120: 150000 | Q120: 150000 | R120: 150000 | S120: 150000 | T120: 150000 | V120: 95000 | W120: 95000 | X120: 95000 | Y120: 95000 | Z120: 95000 | AA120: 175000 | AB120: 175000 | AC120: 175000 | AD120: 175000 | AE120: 175000 | AF120: 150000 | AG120: 150000 | AH120: 150000 | AI120: 150000 | AJ120: 150000 | AL120: 95000 | AM120: 95000 | AN120: 95000 | AO120: 95000 | AP120: 95000 | AQ120: 175000 | AR120: 175000 | AS120: 175000 | AT120: 175000 | AU120: 175000 | AV120: 150000 | AW120: 150000 | AX120: 150000 | AY120: 150000 | AZ120: 150000
A121: EL DORADO55% | B121: 55% AMI | C121: 105948 | D121: 106668 | E121: 108973 | F121: 111277 | G121: 113150 | H121: 113150 | I121: 185948 | J121: 186668 | K121: 188973 | L121: 191277 | M121: 193150 | N121: 193150 | O121: 160948 | P121: 161668 | Q121: 163973 | R121: 166277 | S121: 168150 | T121: 168150 | V121: 105948 | W121: 106668 | X121: 108973 | Y121: 111277 | Z121: 113150 | AA121: 185948 | AB121: 186668 | AC121: 188973 | AD121: 191277 | AE121: 193150 | AF121: 160948 | AG121: 161668 | AH121: 163973 | AI121: 166277 | AJ121: 168150 | AL121: 105948 | AM121: 106668 | AN121: 108973 | AO121: 111277 | AP121: 113150 | AQ121: 185948 | AR121: 186668 | AS121: 188973 | AT121: 191277 | AU121: 193150 | AV121: 160948 | AW121: 161668 | AX121: 163973 | AY121: 166277 | AZ121: 168150
A122: EL DORADO50% | B122: 50% AMI | C122: 116751 | D122: 118336 | E122: 122945 | F122: 127411 | G122: 131156 | H122: 131156 | I122: 196751 | J122: 198336 | K122: 202945 | L122: 207411 | M122: 211156 | N122: 211156 | O122: 171751 | P122: 173336 | Q122: 177945 | R122: 182411 | S122: 186156 | T122: 186156 | V122: 116751 | W122: 118336 | X122: 122945 | Y122: 127411 | Z122: 131156 | AA122: 196751 | AB122: 198336 | AC122: 202945 | AD122: 207411 | AE122: 211156 | AF122: 171751 | AG122: 173336 | AH122: 177945 | AI122: 182411 | AJ122: 186156 | AL122: 116751 | AM122: 118336 | AN122: 122945 | AO122: 127411 | AP122: 131156 | AQ122: 196751 | AR122: 198336 | AS122: 202945 | AT122: 207411 | AU122: 211156 | AV122: 171751 | AW122: 173336 | AX122: 177945 | AY122: 182411 | AZ122: 186156
A123: EL DORADO45% | B123: 45% AMI | C123: 127699 | D123: 130003 | E123: 136918 | F123: 143544 | G123: 149162 | H123: 149162 | I123: 207699 | J123: 210003 | K123: 216918 | L123: 223544 | M123: 229162 | N123: 229162 | O123: 182699 | P123: 185003 | Q123: 191918 | R123: 198544 | S123: 204162 | T123: 204162 | V123: 127699 | W123: 130003 | X123: 136918 | Y123: 143544 | Z123: 149162 | AA123: 207699 | AB123: 210003 | AC123: 216918 | AD123: 223544 | AE123: 229162 | AF123: 182699 | AG123: 185003 | AH123: 191918 | AI123: 198544 | AJ123: 204162 | AL123: 127699 | AM123: 130003 | AN123: 136918 | AO123: 143544 | AP123: 149162 | AQ123: 207699 | AR123: 210003 | AS123: 216918 | AT123: 223544 | AU123: 229162 | AV123: 182699 | AW123: 185003 | AX123: 191918 | AY123: 198544 | AZ123: 204162
A124: EL DORADO40% | B124: 40% AMI | C124: 138502 | D124: 141671 | E124: 150890 | F124: 159677 | G124: 167168 | H124: 167168 | I124: 218502 | J124: 221671 | K124: 230890 | L124: 239677 | M124: 247168 | N124: 247168 | O124: 193502 | P124: 196671 | Q124: 205890 | R124: 214677 | S124: 222168 | T124: 222168 | V124: 138502 | W124: 141671 | X124: 150890 | Y124: 159677 | Z124: 167168 | AA124: 218502 | AB124: 221671 | AC124: 230890 | AD124: 239677 | AE124: 247168 | AF124: 193502 | AG124: 196671 | AH124: 205890 | AI124: 214677 | AJ124: 222168 | AL124: 138502 | AM124: 141671 | AN124: 150890 | AO124: 159677 | AP124: 167168 | AQ124: 218502 | AR124: 221671 | AS124: 230890 | AT124: 239677 | AU124: 247168 | AV124: 193502 | AW124: 196671 | AX124: 205890 | AY124: 214677 | AZ124: 222168
A125: EL DORADO35% | B125: 35% AMI | C125: 149450 | D125: 153339 | E125: 165007 | F125: 175955 | G125: 185318 | H125: 185318 | I125: 229450 | J125: 233339 | K125: 245007 | L125: 255955 | M125: 265318 | N125: 265318 | O125: 204450 | P125: 208339 | Q125: 220007 | R125: 230955 | S125: 240318 | T125: 240318 | V125: 149450 | W125: 153339 | X125: 165007 | Y125: 175955 | Z125: 185318 | AA125: 229450 | AB125: 233339 | AC125: 245007 | AD125: 255955 | AE125: 265318 | AF125: 204450 | AG125: 208339 | AH125: 220007 | AI125: 230955 | AJ125: 240318 | AL125: 149450 | AM125: 153339 | AN125: 165007 | AO125: 175955 | AP125: 185318 | AQ125: 229450 | AR125: 233339 | AS125: 245007 | AT125: 255955 | AU125: 265318 | AV125: 204450 | AW125: 208339 | AX125: 220007 | AY125: 230955 | AZ125: 240318
A126: EL DORADO30% | B126: 30% AMI | C126: 160397 | D126: 165007 | E126: 178980 | F126: 192088 | G126: 203324 | H126: 203324 | I126: 240397 | J126: 245007 | K126: 258980 | L126: 272088 | M126: 283324 | N126: 283324 | O126: 215397 | P126: 220007 | Q126: 233980 | R126: 247088 | S126: 258324 | T126: 258324 | V126: 160397 | W126: 165007 | X126: 178980 | Y126: 192088 | Z126: 203324 | AA126: 240397 | AB126: 245007 | AC126: 258980 | AD126: 272088 | AE126: 283324 | AF126: 215397 | AG126: 220007 | AH126: 233980 | AI126: 247088 | AJ126: 258324 | AL126: 160397 | AM126: 165007 | AN126: 178980 | AO126: 192088 | AP126: 203324 | AQ126: 240397 | AR126: 245007 | AS126: 258980 | AT126: 272088 | AU126: 283324 | AV126: 215397 | AW126: 220007 | AX126: 233980 | AY126: 247088 | AZ126: 258324
